Workbook

Sheet 0

Sheet Sayfa Listesi (hidden)
A1: Sayfa Adı | B1: Sayfa Linki
A3: index | B3: Git
A4: Giris | B4: Git
A5: Bilgi | B5: Git
A6: Hücre Biçimlendirme | B6: Git
A7: Formül Oluşturma | B7: Git
A8: TemelFormüller1 | B8: Git
A9: TemelFormüller2 | B9: Git
A10: HücreRefarasları1 | B10: Git
A11: Eğer | B11: Git
A12: EğerTemelÖrnekler | B12: Git
A13: EğerÖrnek2 | B13: Git
A14: EğerÖrnek3 | B14: Git
A15: ÇokEğer | B15: Git
A16: VE-YADA | B16: Git
A17: MetinselFonksiyonlar1 | B17: Git
A18: Metinsel Fonksiyonlar 2 | B18: Git
A19: VeritabanıFonksiyonları1 | B19: Git
A20: VeritabanıFonksiyonları2 | B20: Git
A21: Pano1 | B21: Git
A22: VeritabanıFonksiyonları3 | B22: Git
A23: GruplaÖlçüt | B23: Git
A24: ÖzetÖlçüt | B24: Git
A25: TarihFonksiyonları 1 | B25: Git
A26: TarihFonksiyonları 2 | B26: Git
A27: Örnek1 | B27: Git
A28: TarihFonksiyonları 3 | B28: Git
A29: Düşeyara1 | B29: Git
A30: Düşeyara2 | B30: Git
A31: Düşeyara3 | B31: Git
A32: Yatayara | B32: Git
A33: Çaprazara | B33: Git
A34: İstatistikselFonksiyonlar | B34: Git
A35: KoşulluBiçimlendirme1 | B35: Git
A36: KoşulluBiçimlendirme2 | B36: Git
A37: Sıralama | B37: Git
A38: Filtre | B38: Git
A39: Alttoplam | B39: Git
A40: PivotTablo | B40: Git
A41: HedefAra | B41: Git
A42: Grafikler | B42: Git
A43: Grafikler (A) | B43: Git
A44: Uygulama 1 | B44: Git
A45: Uygulama 1 Verileri | B45: Git
A46: Uygulama2 | B46: Git
A47: Uygulama 2 Verileri | B47: Git
A48: Formüller | B48: Git

Sheet index
B2: Index
C4: Kullanılalan Fonksiyon
B5: Giriş | C5: Fonksiyon 1 | D5: Fonksiyon 2 | E5: Fonksiyon 3 | F5: Fonksiyon 4 | G5: Fonksiyon 5 | H5: Fonksiyon 6 | I5: Fonksiyon 7
B6: Temel Formüller 1 | C6: TOPLA | J6: =IF(COUNTA(C6:I6)>0,COUNTA(C6:I6),"") -> 1
B7: Temel Formüller 2 | C7: ORTALAMA | D7: MIN | E7: MAK | J7: 3
B8: Hücre Refarasları 1
B9: Eğer Temel Örnekler | C9: EĞER | J9: 1
B10: Eğer Örnek 2
B11: Eğer Örnek 3
B12: Çokeğer | C12: ÇOKEĞER | J12: 1
B13: VE - YADA | C13: VE | D13: YADA | J13: 2
B14: Metinsel Fonksiyonlar 1 | C14: BÜYÜKHARF | D14: KÜÇÜKHARF | E14: YAZIM.DÜZENİ | F14: KIRP | G14: BİRLEŞTİR | H14: METİNBİRLEŞTİR | I14: ARALIKBİRLEŞTİR | J14: 7
B15: Metinsel Fonksiyonlar 2 | C15: SOLDAN | D15: SAĞDAN | E15: PARÇAAL | F15: MBUL | G15: UZUNLUK | J15: 5
B16: Veritabanı Fonksiyonları 1 | C16: ETOPLA | D16: EĞERSAY | J16: 2
B17: Veritabanı Fonksiyonları 2 | C17: ÇOKETOPLA | J17: 1
B18: Veritabanı Fonksiyonları 3 | C18: ÇOKEĞERSAY | D18: BENZERSİZ | E18: SIRALAÖLÇÜT | J18: 3
B19: Tarih Fonksiyonları1 | C19: BUGÜN | D19: ŞİMDİ | J19: 2
B20: Tarih Fonksiyonları2 | C20: GÜN | D20: AY | E20: YIL | J20: 3
B21: Tarih Fonksiyonları3 | C21: HAFTANINGÜNÜ | D21: ISOHAFTASAY | E21: HAFTASAY | F21: TAMİŞGÜNÜ | G21: TAMİŞGÜNÜ.ULUSL | J21: 5
B22: Düşeyara 1 | C22: DÜŞEYARA | J22: 1
B23: Düşeyara 2 | C23: EĞERHATA | D23: DÜŞEYYIĞ | E23: BENZERSİZ | J23: 3
B24: Düşeyara 3 | C24: TOPLAMA | J24: 1
B25: Yatayara | C25: YATAYARA | J25: 1
B26: İndis - Kaçıncı | C26: İNDİS | D26: KAÇINCI | J26: 2
B27: Çaprazara | C27: ÇAPRAZARA | J27: 1
B28: İstatistiksel Fonksiyonlar | C28: BAĞ_DEĞ_DOLU_SAY | D28: BAĞ_DEĞ_SAY | E28: BOŞLUKSAY | F28: BÜYÜK | G28: KÜÇÜK | H28: İNDİS | I28: KAÇINCI | J28: 7
B29: Koşullu Biçimlendirme
B30: Sıralama | C30: SIRALAÖLÇÜT | D30: SIRALA | E30: SÜTUNSEÇ | J30: 3
B31: Filtre | C31: FİLTRE | D31: ALTTOPLAM | J31: 2
B32: Alttoplam
B33: PivotTablo
B34: HedefAra
B35: Grafikler
B36: Form Kontrolleri
B37: Form Kontrolleri Veriler
J38: =SUM(J6:J37) -> 57
D39: ="Toplam "&D40&" Fonksiyon" -> Toplam 57 Fonksiyon
D40: =COUNTA(C6:I37) -> 57

Sheet Giris
B2: Giriş / Bilgi
B4: Aşağıdaki Bilgileri Doldurunuz.
F6: Excel' i Hangi Dilde Kullanıyorsunuz | J6: : | N6: Parametre Ayracını Koltrol Edelim
B7: Adınız | C7: :
B8: Soyadınız | C8: :
B9: Doğum Tarihiniz | C9: :
B10: Firmanız | C10: :
B15: =IF(AND(isim>0,soyisim>0),CONCATENATE("Sayın ",PROPER(isim)," ",UPPER(soyisim)," Merhaba, Dosyanızı Kaydetmeyi Unutmayınız"),"Lütfen Yukarıdaki Bilgileri Doldurun") -> Lütfen Yukarıdaki Bilgileri Doldurun
B20: =IF(AND(dtarih>0,firma>0),CONCATENATE("Doğum Tarihiniz ",TEXT(dtarih,"gg aaaa yyyy")," ","Firmanız ",UPPER(firma)),"") -> 
D21: Program : | E21: Microsoft Excel | L21: Excel Sürümü
D22: İşletim Sistemi : | E22: Windows (64-bit) NT 10.00 | L22: Excel 2015
D23: Versiyon : | E23: 16 | L23: Excel Sürümü | M23: Yapı Numarası
D24: Yapı Numarası : | E24: 20206 | L24: Excel 2016 | M24: 16.0
D25: Versiyon : | E25: 16 | F25: =IF(E25=8,$L$31,IF(E25=9,$L$30,IF(E25=10,$L$29,IF(E25=11,$L$28,IF(E25=12,$L$27,IF(E25=14,$L$26,IF(E25=15,$L$25,"Excel 2016 ve Üzeri"))))))) -> Excel 2016 ve Üzeri | L25: Excel 2013 | M25: 15.0
D26: Yapı Numarası : | E26: 19131 | L26: Excel 2010 | M26: 14.0
D27: Dosya Rev. : | E27: 2024-5 | L27: Excel 2007 | M27: 12.0
L28: Excel 2003 | M28: 11.0
L29: Excel 2002 | M29: 10.0
L30: Excel 2000 | M30: 9.0
B31: 2 | L31: Excel 97 | M31: 8.0
B32: Türkçe
B33: İngilizce
B34: Fransızca
B35: Almanca

Sheet Bilgi (hidden)
A3: Excel 1 (1985): İlk Excel sürümü, yalnızca Macintosh için piyasaya sürüldü.
A4: Excel 2 (1987): İlk Windows sürümü, Mac sürümüyle uyumlu olarak “2” olarak adlandırıldı. | D4: Excel Formüllerinin Farklı Dillerdeki Karşılıkları
A5: Excel 3 (1990): Araç çubukları, çizim yetenekleri, eklenti desteği ve 3D grafikler gibi yeni özellikler eklendi.
A6: Excel 4 (1992): AutoFill gibi kullanılabilirlik özellikleri ilk kez bu sürümde tanıtıldı.
A7: Excel 5 (1993): Çoklu çalışma sayfalarını içeren çalışma kitapları, VBA ve Makro desteği eklendi.
A8: Excel 95 (1995): 32-bit mimariye geçiş yapıldı ve Excel 5’e kıyasla dağıtım sorunları giderildi. | F8: ISO 8601, tarih ve saatle ilgili verilerin değişimini kapsayan bir ISO standardıdır. 1988'de Uluslararası Standardizasyon Örgütü tarafından yayınlanmıştır. Bu standardın amacı, tarihlerin ve saatlerin temsilini yanlış yorumlamaktan kaçınmak için açık ve iyi tanımlanmış bir yöntem sağlamaktır1. ISO 8601, tarih ve saat formatlarını uluslararası olarak anlaşılır bir şekilde standartlaştırır. Örneğin, bu standarda göre tarihler yıl-ay-gün formatında (YYYY-MM-DD) yazılır ve saatler 24 saatlik bir format kullanılarak ifade edilir. Bu sayede, farklı ülkelerde ve farklı kültürlerde yaşayan insanlar arasında tarih ve saatle ilgili karışıklıkların önüne geçilir2. ISO 8601 ayrıca, haftanın ilk gününün pazartesi olarak kabul edildiği haftalık takvim numaralandırmasını da içerir. Bu, özellikle uluslararası iş ilişkilerinde ve veri alışverişinde tutarlılık sağlamak için önemlidir1..
A9: Excel 97 (1997): VBA geliştiricileri için yeni bir arayüz, UserForms, veri doğrulama gibi özellikler eklendi.
A10: Excel 2000 (1999): HTML’in yerel dosya formatı olarak kullanılması, “kendi kendini onarma” yeteneği, gelişmiş panoya kopyalama, pivot grafikler ve modalsız kullanıcı formları gibi yeni özellikler getirildi.
A11: Excel 2002 (2001): Akıllı etiketler ve görev bölmesi gibi özellikler tanıtıldı.
A12: Excel 2003 (2003): Liste özelliği ve XML dosya desteği eklendi.
A13: Excel 2007 (2007): Office Fluent Kullanıcı Arayüzü (Ribbon) tanıtıldı, dosya formatı olarak Office Open XML kullanılmaya başlandı.
A14: Excel 2010 (2010): Slicers ve Sparklines gibi veri analizi ve görselleştirme araçları eklendi.
A15: Excel 2013 (2013): Dokunmatik ekran desteği, Flash Fill ve Quick Analysis gibi özellikler eklendi.
A16: Excel 2016 (2015): Co-Authoring, Power Query ve yeni grafik türleri gibi işbirliği ve veri analizi özellikleri eklendi.
A17: Excel 2019 (2018): Eğik çizgiler, 2D haritalar ve FUNNEL grafikleri gibi yeni grafik türleri eklendi.
A18: Excel 2021 (2021): XLOOKUP ve LET gibi yeni fonksiyonlar, dinamik diziler ve gelişmiş işbirliği özellikleri eklendi.
A19: Excel 365 (Devamlı Güncelleniyor): Excel 365, sürekli güncellenen bir ürün olarak planlandı ve yeni özellikler her yeni sürümle birlikte sunuluyor. Dinamik Diziler ve XLOOKUP gibi önemli özellikler bu sürümle tanıtıldı.
A25: İlk Sürüm: Excel ilk olarak 1985 yılında Macintosh için piyasaya sürüldü
A26: Kod Adı “Odyssey”: Excel’in orijinal kod adı “Odyssey” idi
A27: Araç Çubuğu İnovasyonu: Excel 3.0, bir araç çubuğu kullanan ilk uygulamaydı
A28: Formül Uzunluğu: Excel’de bir formülün maksimum uzunluğu 8,192 karakterdir
A29: Hücre Kapasitesi: Bir hücre en fazla 32,767 karakter içerebilir
A30: Formül Bağımlılığı: Tek bir hücreye bağlı olarak 4 milyar (evet, milyar) formül bulunabilir
A31: Renk Desteği: Excel 32 milyon renk destekler
A33: Bir çalışma sayfasında ise toplam hücre sayısı, 1,048,576 satır ve 16,384 sütun olmak üzere toplamda yaklaşık 17 milyar (17,179,869,184) hücre bulunmaktadır

Sheet Hücre Biçimlendirme (hidden)
B2: Hücre Sayı Biçimleri
B5: Genel | D5: Finansal | F5: Kısa Tarih | H5: Saat | J5: Metin
B6: 100 | D6: 100 | F6: =TODAY() -> 2026-06-12 | H6: 12:15:00 | J6: 100
B8: Sayı | D8: Para Birimi | F8: Uzun Tarih | H8: Yüzde
B9: 100 | D9: 100 | F9: =TODAY() -> 2026-06-12 | H9: 0.05
B12: Özel 1 | D12: Özel 2 | F12: Özel 3
B13: 100 | D13: 100 | F13: 150

Sheet Formül Oluşturma
B2: Formül Oluşturma

Sheet TemelFormüller1
B2: TOPLA | C2: =IF(lang_op=1,"",IF(lang_op=2,"/ İngilizce Karşılığı ---->",IF(lang_op=3,"/ Fransızca Karşılığı ---->","/ Almanca Karşılığı ---->"))) -> / İngilizce Karşılığı ----> | F2: =IF(lang_op=2,VLOOKUP(B2,formuller,2,0),IF(lang_op=3,VLOOKUP(B2,formuller,3,0),IF(lang_op=4,VLOOKUP(B2,formuller,4,0),""))) -> SUM
B5: İsim | C5: 1. Hafta | D5: 2. Hafta | E5: Toplam
B6: İlhan IŞIK | C6: 1200 | D6: 1400 | G6: =IFERROR(_xlfn.FORMULATEXT(C11),"") -> 
B7: Fatih TANDOĞAN | C7: 1500 | D7: 1300
B8: Seda DEĞİRMENCİ | C8: 1450 | D8: 1800
B9: =IF(isim>0,CONCATENATE(TRIM(isim)," ",UPPER(TRIM(soyisim))),"İsmini Göremedik") -> İsmini Göremedik | C9: 650 | D9: 900 | G9: =IngFormul(C11) -> 
B10: Neslihan YILMAZ | C10: 2550 | D10: 2400
B11: TOPLAM

Sheet TemelFormüller2
B2: ORTALAMA | C2: =IF(lang_op=1,"",IF(lang_op=2,"/ İngilizce Karşılığı ---->",IF(lang_op=3,"/ Fransızca Karşılığı ---->","/ Almanca Karşılığı ---->"))) -> / İngilizce Karşılığı ----> | F2: =IF(lang_op=2,VLOOKUP(B2,formuller,2,0),IF(lang_op=3,VLOOKUP(B2,formuller,3,0),IF(lang_op=4,VLOOKUP(B2,formuller,4,0),""))) -> AVERAGE
B3: MAK | C3: =IF(lang_op=1,"",IF(lang_op=2,"/ İngilizce Karşılığı ---->",IF(lang_op=3,"/ Fransızca Karşılığı ---->","/ Almanca Karşılığı ---->"))) -> / İngilizce Karşılığı ----> | F3: =IF(lang_op=2,VLOOKUP(B3,formuller,2,0),IF(lang_op=3,VLOOKUP(B3,formuller,3,0),IF(lang_op=4,VLOOKUP(B3,formuller,4,0),""))) -> MAX
B4: MİN | C4: =IF(lang_op=1,"",IF(lang_op=2,"/ İngilizce Karşılığı ---->",IF(lang_op=3,"/ Fransızca Karşılığı ---->","/ Almanca Karşılığı ---->"))) -> / İngilizce Karşılığı ----> | F4: =IF(lang_op=2,VLOOKUP(B4,formuller,2,0),IF(lang_op=3,VLOOKUP(B4,formuller,3,0),IF(lang_op=4,VLOOKUP(B4,formuller,4,0),""))) -> MIN
B7: İsim | C7: 1. Hafta | D7: 2. Hafta | E7: Ortalama | F7: Prim | H7: Prim Oranı | I7: 0.05 | K7: =IFERROR(_xlfn.FORMULATEXT(E8),"") ->  | P7: =IngFormul(E8) -> 
B8: Efe YILDIZ | C8: 10454 | D8: 22915
B9: Egemen ATAY | C9: 17619 | D9: 11773
B10: İlhan IŞIK | C10: 13789 | D10: 9401 | H10: En Yüksek Prim | K10: =IFERROR(_xlfn.FORMULATEXT(F8),"") -> 
B11: Fatih TANDOĞAN | C11: 11989 | D11: 14796
B12: Seda DEĞİRMENCİ | C12: 21723 | D12: 18415 | H12: En Düşük Prim
B13: Mustafa EMEK | C13: 13551 | D13: 14529
B14: =IF(isim>0,CONCATENATE(TRIM(isim)," ",UPPER(TRIM(soyisim))),"İsmini Göremedik") -> İsmini Göremedik | C14: 24082 | D14: 28786 | H14: =IFERROR(_xlfn.FORMULATEXT(I10),"") ->  | J14: =IngFormul(I10) -> 
B15: Gökhan YAĞIZ | C15: 15687 | D15: 24630
B16: Yasemin TURGUT | C16: 18077 | D16: 20722
B17: Can YILDIRIM | C17: 23329 | D17: 21048 | H17: =IFERROR(_xlfn.FORMULATEXT(I12),"") ->  | J17: =IngFormul(I12) -> 
B18: Hasan KUTLU | C18: 21825 | D18: 26606
B19: TOPLAM | C19: =SUM(C8:C18) -> 192125 | D19: =SUM(D8:D18) -> 213621
B41: Foknsiyon | C41: =IF(lang_op=1,"",IF(lang_op=2,"İngilizce Karşılığı",IF(lang_op=3,"Fransızca Karşılığı","Almanca Karşılığı"))) -> İngilizce Karşılığı | D41: Değer 1 | E41: Değer 2 | F41: Değer 3 | G41: Değer 4 | H41: Formül Sonucu | J41: =IFERROR(_xlfn.FORMULATEXT(H43),"") -> =AVERAGEA(D43:G43)
B42: ORTALAMA | C42: =IF(lang_op=2,VLOOKUP(B42,formuller,2,0),IF(lang_op=3,VLOOKUP(B2,formuller,3,0),IF(lang_op=4,VLOOKUP(B2,formuller,4,0),""))) -> AVERAGE | D42: 10 | E42: metin | F42: 10 | G42: 10 | H42: =AVERAGE(D42:G42) -> 10
B43: ORTALAMAA | C43: =IF(lang_op=2,VLOOKUP(B43,formuller,2,0),IF(lang_op=3,VLOOKUP(B3,formuller,3,0),IF(lang_op=4,VLOOKUP(B3,formuller,4,0),""))) -> AVERAGEA | D43: 10 | E43: metin | F43: 10 | G43: 10 | H43: =AVERAGEA(D43:G43) -> 7.5 | J43: =IngFormul(H43) -> =AVERAGEA(D43:G43)

Sheet HücreRefarasları1
B2: Hücre Refaransları - 1
C4: Oran
B5: Miktar | C5: 0.005 | D5: 0.018 | E5: 0.026 | F5: 0.032 | G5: 0.055
B6: 6250 | I6: =IFERROR(_xlfn.FORMULATEXT(C6),"") -> 
B7: 9843.75
B8: 13437.5
B9: 17031.25
B10: 20625
B11: 24218.75
B12: 27812.5
B13: 31406.25
B14: 35000
B15: 38593.75
B16: 42187.5
B17: 45781.25
B18: 49375
B19: 52968.75
B20: 56562.5

Sheet İstatistikselFonksiyonlarTemel
B2: İstatistiksel Fonksiyonlar
B4: Öğrenci Adı | C4: Sınav 1 | D4: Sınav 2 | F4: 1. Sınava Giren Öğrenci Sayısı | O4: =IF(H5>0,O5,"") -> 
B5: İlhan IŞIK | D5: 65 | F5: BAĞ_DEĞ_DOLU_SAY | G5: =IF(lang_op=2,VLOOKUP(F5,formuller,2,0),IF(lang_op=3,VLOOKUP(F5,formuller,3,0),IF(lang_op=4,VLOOKUP(F5,formuller,4,0),""))) -> COUNTA | J5: =IFERROR(_xlfn.FORMULATEXT(H5),"") ->  | O5: =COUNTA(C5:C17)
B6: Gökhan YAĞIZ | C6: 76 | D6: 82
B7: Fatih TANDOĞAN | D7: 40 | F7: 2. Sınava Giren Öğrenci Sayısı | O7: =IF(H8>0,O8,"") -> 
B8: Seda DEĞİRMENCİ | C8: 85 | D8: 80 | F8: BAĞ_DEĞ_SAY | G8: =IF(lang_op=2,VLOOKUP(F8,formuller,2,0),IF(lang_op=3,VLOOKUP(F8,formuller,3,0),IF(lang_op=4,VLOOKUP(F8,formuller,4,0),""))) -> COUNT | J8: =IFERROR(_xlfn.FORMULATEXT(H8),"") ->  | O8: =COUNT(C5:D17)
B9: Egemen ATAY | C9: 65
B10: Mustafa EMEK | C10: 100 | D10: 70 | F10: 1. Sınava Girmeyen Öğrenci Sayısı
B11: Hasan DEMİR | D11: 94 | F11: BOŞLUKSAY | G11: =IF(lang_op=2,VLOOKUP(F11,formuller,2,0),IF(lang_op=3,VLOOKUP(F11,formuller,3,0),IF(lang_op=4,VLOOKUP(F11,formuller,4,0),""))) -> COUNTBLANK | J11: =IFERROR(_xlfn.FORMULATEXT(H11),"") ->  | O11: =IF(H11>0,O12,"") -> 
B12: Neslihan YILMAZ | O12: =COUNTBLANK(C5:C17)
B13: Efe YILDIZ | C13: 78 | D13: 83 | F13: 1. Sınavdaki En Yüksek 2. Not
B14: Can YILDIZ | C14: 76 | D14: 80 | F14: BÜYÜK | G14: =IF(lang_op=2,VLOOKUP(F14,formuller,2,0),IF(lang_op=3,VLOOKUP(F14,formuller,3,0),IF(lang_op=4,VLOOKUP(F14,formuller,4,0),""))) -> LARGE | J14: =IFERROR(_xlfn.FORMULATEXT(H14),"") ->  | O14: =IngFormul(H14) -> 
B15: Berkay ÖZEN | C15: 83 | D15: 60
B16: Mehmet DEMREN | C16: 90 | D16: 85 | F16: 1. Sınavdaki En Düşük 2. Not
B17: Emre SARAÇ | C17: 66 | D17: 92 | F17: KÜÇÜK | G17: =IF(lang_op=2,VLOOKUP(F17,formuller,2,0),IF(lang_op=3,VLOOKUP(F17,formuller,3,0),IF(lang_op=4,VLOOKUP(F17,formuller,4,0),""))) -> SMALL | J17: =IFERROR(_xlfn.FORMULATEXT(H17),"") ->  | O17: =IngFormul(H17) -> 
F20: =CONCATENATE(F13,"u"," Alan Kim?") -> 1. Sınavdaki En Yüksek 2. Notu Alan Kim? | J20: =IFERROR(_xlfn.FORMULATEXT(H20),"") -> 
F22: =CONCATENATE(F16,"u"," Alan Kim?") -> 1. Sınavdaki En Düşük 2. Notu Alan Kim? | J22: =IFERROR(_xlfn.FORMULATEXT(H22),"") -> 
B35: Vitamin | C35: Meyve | F35: İkinci Sırada Hangi Meyve Var | H35: 2
B36: C - E | C36: Elma | F36: İNDİS | G36: =IF(lang_op=2,VLOOKUP(F36,formuller,2,0),IF(lang_op=3,VLOOKUP(F36,formuller,3,0),IF(lang_op=4,VLOOKUP(F36,formuller,4,0),""))) -> INDEX | H36: =INDEX(C36:C40,2) -> Muz
B37: B6 - C | C37: Muz
B38: C - A | C38: Nar | F38: Muz Kaçıncı Sırada | H38: Muz
B39: A - C | C39: Kayısı | F39: KAÇINCI | G39: =IF(lang_op=2,VLOOKUP(F39,formuller,2,0),IF(lang_op=3,VLOOKUP(F39,formuller,3,0),IF(lang_op=4,VLOOKUP(F39,formuller,4,0),""))) -> MATCH | H39: =MATCH(H38,C36:C40,0) -> 2
B40: C - K | C40: Üzüm
F41: Hangi Vitamin | H41: Muz
F42: KAÇINCI | G42: =IF(lang_op=2,VLOOKUP(F42,formuller,2,0),IF(lang_op=3,VLOOKUP(F42,formuller,3,0),IF(lang_op=4,VLOOKUP(F42,formuller,4,0),""))) -> MATCH | H42: =INDEX(B36:B40,MATCH(H41,C36:C40,0)) -> B6 - C

Sheet Sıralama
B2: Sıralama | J2: SIRALAÖLÇÜT | K2: =IF(lang_op=1,"",IF(lang_op=2,"/ İngilizce Karşılığı ---->",IF(lang_op=3,"/ Fransızca Karşılığı ---->","/ Almanca Karşılığı ---->"))) -> / İngilizce Karşılığı ----> | N2: =IF(lang_op=2,VLOOKUP(J2,formuller,2,0),IF(lang_op=3,VLOOKUP(J2,formuller,3,0),IF(lang_op=4,VLOOKUP(J2,formuller,4,0),""))) -> SORTBY
B4: Raf | C4: Sıra | F4: Eğitim | G4: Firma | H4: Teklif Tarihi | J4: Eğitim | K4: Firma | L4: Teklif Tarihi | N4: =IFERROR(_xlfn.FORMULATEXT(J5),"") -> 
B5: I | C5: 3 | F5: 04- Temel Excel | G5: Yazaki | H5: 2024-09-21
B6: H | C6: 1 | F6: 01- İleri Excel | G6: Yazaki | H6: 2024-10-12
B7: G | C7: 9 | F7: 03- PowerPoint | G7: Grammer | H7: 2024-08-12
B8: F | C8: 2 | F8: 01- İleri Excel | G8: Renault | H8: 2024-06-10 | N8: =IngFormul(J5) -> 
B9: E | C9: 8 | F9: 06- PowerBI | G9: Renault | H9: 2024-11-10
B10: D | C10: 7 | F10: 02- PowerApps | G10: Yazaki | H10: 2024-07-20
B11: C | C11: 4 | F11: 04- Temel Excel | G11: Renault | H11: 2024-12-02
B12: B | C12: 5 | F12: 04- Temel Excel | G12: Yazaki | H12: 2024-09-15
B13: A | C13: 6 | F13: 03- PowerPoint | G13: Yazaki | H13: 2024-10-27
F14: 03- PowerPoint | G14: Renault | H14: 2024-10-19
F15: 01- İleri Excel | G15: Renault | H15: 2024-12-23
F16: 02- PowerApps | G16: Grammer | H16: 2024-07-12
F17: 07- Excel Macro | G17: Grammer | H17: 2024-08-26
F18: 03- PowerPoint | G18: Grammer | H18: 2024-07-22
F19: 07- Excel Macro | G19: Nobel | H19: 2024-09-23
F20: 02- PowerApps | G20: Renault | H20: 2024-06-12
F21: 02- PowerApps | G21: =firma -> 0 | H21: 2024-07-07
F22: 02- PowerApps | G22: Renault | H22: 2024-11-20
F23: 02- PowerApps | G23: Grammer | H23: 2024-10-11
F24: 01- İleri Excel | G24: Yazaki | H24: 2024-05-08
F25: 01- İleri Excel | G25: Renault | H25: 2024-08-06
F26: 01- İleri Excel | G26: Yazaki | H26: 2024-06-01
F27: 05- Project | G27: Grammer | H27: 2024-05-23
F28: 05- Project | G28: Grammer | H28: 2024-05-05
F29: 02- PowerApps | G29: Nobel | H29: 2024-09-21
F30: 04- Temel Excel | G30: Yazaki | H30: 2024-05-28
F31: 06- PowerBI | G31: Nobel | H31: 2024-05-11
F32: 01- İleri Excel | G32: Yazaki | H32: 2024-11-12
F33: 05- Project | G33: Renault | H33: 2024-03-28
F34: 02- PowerApps | G34: Renault | H34: 2024-07-15
F35: 01- İleri Excel | G35: Yazaki | H35: 2024-09-12
F36: 02- PowerApps | G36: Renault | H36: 2024-04-25
F37: 03- PowerPoint | G37: Renault | H37: 2024-08-17
F38: 01- İleri Excel | G38: Yazaki | H38: 2024-08-30
F39: 02- PowerApps | G39: Renault | H39: 2024-05-08
F40: 02- PowerApps | G40: Renault | H40: 2024-05-17
F41: 05- Project | G41: Yazaki | H41: 2024-11-27

Sheet Sıralama2
B2: SÜTUNSEÇ | D2: =IF(lang_op=1,"",IF(lang_op=2,"/ İngilizce Karşılığı ---->",IF(lang_op=3,"/ Fransızca Karşılığı ---->","/ Almanca Karşılığı ---->"))) -> / İngilizce Karşılığı ----> | F2: =IF(lang_op=2,VLOOKUP(B2,formuller,2,0),IF(lang_op=3,VLOOKUP(B2,formuller,3,0),IF(lang_op=4,VLOOKUP(B2,formuller,4,0),""))) -> CHOOSECOLS
B3: SIRALAÖLÇÜT | D3: =IF(lang_op=1,"",IF(lang_op=2,"/ İngilizce Karşılığı ---->",IF(lang_op=3,"/ Fransızca Karşılığı ---->","/ Almanca Karşılığı ---->"))) -> / İngilizce Karşılığı ----> | F3: =IF(lang_op=2,VLOOKUP(B3,formuller,2,0),IF(lang_op=3,VLOOKUP(B3,formuller,3,0),IF(lang_op=4,VLOOKUP(B3,formuller,4,0),""))) -> SORTBY
B5: Eğitim | C5: Firma | D5: Teklif Tarihi | F5: Sıralanacak Sütun | G5: Firma | H5: Sıralama Ölçütü | I5: Z<A | J5: =_xlfn.IFS(G5="Eğitim",1,G5="Firma",2,G5="Teklif Tarihi",3) -> 2 | K5: =IF(I5="A>Z",1,-"1") -> -1
B6: 04- Temel Excel | C6: Yazaki | D6: 2024-09-21
B7: 01- İleri Excel | C7: Yazaki | D7: 2024-10-12
B8: 03- PowerPoint | C8: Grammer | D8: 2024-08-12 | F8: Eğitim | G8: Firma | H8: Teklif Tarihi
B9: 01- İleri Excel | C9: Renault | D9: 2024-06-10 | F9: =_xlfn.SORTBY(B6:D42,_xlfn.CHOOSECOLS(B6:D42,J5),K5) -> 04- Temel Excel | G9: Yazaki | H9: 2024-09-21
B10: 06- PowerBI | C10: Renault | D10: 2024-11-10 | F10: 01- İleri Excel | G10: Yazaki | H10: 2024-10-12
B11: 02- PowerApps | C11: Yazaki | D11: 2024-07-20 | F11: 02- PowerApps | G11: Yazaki | H11: 2024-07-20
B12: 04- Temel Excel | C12: Renault | D12: 2024-12-02 | F12: 04- Temel Excel | G12: Yazaki | H12: 2024-09-15
B13: 04- Temel Excel | C13: Yazaki | D13: 2024-09-15 | F13: 03- PowerPoint | G13: Yazaki | H13: 2024-10-27
B14: 03- PowerPoint | C14: Yazaki | D14: 2024-10-27 | F14: 01- İleri Excel | G14: Yazaki | H14: 2024-05-08
B15: 03- PowerPoint | C15: Renault | D15: 2024-10-19 | F15: 01- İleri Excel | G15: Yazaki | H15: 2024-06-01
B16: 01- İleri Excel | C16: Renault | D16: 2024-12-23 | F16: 04- Temel Excel | G16: Yazaki | H16: 2024-05-28
B17: 02- PowerApps | C17: Grammer | D17: 2024-07-12 | F17: 01- İleri Excel | G17: Yazaki | H17: 2024-11-12
B18: 07- Excel Macro | C18: Grammer | D18: 2024-08-26 | F18: 01- İleri Excel | G18: Yazaki | H18: 2024-09-12
B19: 03- PowerPoint | C19: Grammer | D19: 2024-07-22 | F19: 01- İleri Excel | G19: Yazaki | H19: 2024-08-30
B20: 07- Excel Macro | C20: Nobel | D20: 2024-09-23 | F20: 05- Project | G20: Yazaki | H20: 2024-11-27
B21: 02- PowerApps | C21: Renault | D21: 2024-06-12 | F21: 01- İleri Excel | G21: Renault | H21: 2024-06-10
B22: 02- PowerApps | C22: =firma -> 0 | D22: 2024-07-07 | F22: 06- PowerBI | G22: Renault | H22: 2024-11-10
B23: 02- PowerApps | C23: Renault | D23: 2024-11-20 | F23: 04- Temel Excel | G23: Renault | H23: 2024-12-02
B24: 02- PowerApps | C24: Grammer | D24: 2024-10-11 | F24: 03- PowerPoint | G24: Renault | H24: 2024-10-19
B25: 01- İleri Excel | C25: Yazaki | D25: 2024-05-08 | F25: 01- İleri Excel | G25: Renault | H25: 2024-12-23
B26: 01- İleri Excel | C26: Renault | D26: 2024-08-06 | F26: 02- PowerApps | G26: Renault | H26: 2024-06-12
B27: 01- İleri Excel | C27: Yazaki | D27: 2024-06-01 | F27: 02- PowerApps | G27: Renault | H27: 2024-11-20
B28: 05- Project | C28: Grammer | D28: 2024-05-23 | F28: 01- İleri Excel | G28: Renault | H28: 2024-08-06
B29: 05- Project | C29: Grammer | D29: 2024-05-05 | F29: 05- Project | G29: Renault | H29: 2024-03-28
B30: 02- PowerApps | C30: Nobel | D30: 2024-09-21 | F30: 02- PowerApps | G30: Renault | H30: 2024-07-15
B31: 04- Temel Excel | C31: Yazaki | D31: 2024-05-28 | F31: 02- PowerApps | G31: Renault | H31: 2024-04-25
B32: 06- PowerBI | C32: Nobel | D32: 2024-05-11 | F32: 03- PowerPoint | G32: Renault | H32: 2024-08-17
B33: 01- İleri Excel | C33: Yazaki | D33: 2024-11-12 | F33: 02- PowerApps | G33: Renault | H33: 2024-05-08
B34: 05- Project | C34: Renault | D34: 2024-03-28 | F34: 02- PowerApps | G34: Renault | H34: 2024-05-17
B35: 02- PowerApps | C35: Renault | D35: 2024-07-15 | F35: 07- Excel Macro | G35: Nobel | H35: 2024-09-23
B36: 01- İleri Excel | C36: Yazaki | D36: 2024-09-12 | F36: 02- PowerApps | G36: Nobel | H36: 2024-09-21
B37: 02- PowerApps | C37: Renault | D37: 2024-04-25 | F37: 06- PowerBI | G37: Nobel | H37: 2024-05-11
B38: 03- PowerPoint | C38: Renault | D38: 2024-08-17 | F38: 03- PowerPoint | G38: Grammer | H38: 2024-08-12
B39: 01- İleri Excel | C39: Yazaki | D39: 2024-08-30 | F39: 02- PowerApps | G39: Grammer | H39: 2024-07-12
B40: 02- PowerApps | C40: Renault | D40: 2024-05-08 | F40: 07- Excel Macro | G40: Grammer | H40: 2024-08-26
B41: 02- PowerApps | C41: Renault | D41: 2024-05-17 | F41: 03- PowerPoint | G41: Grammer | H41: 2024-07-22
B42: 05- Project | C42: Yazaki | D42: 2024-11-27 | F42: 02- PowerApps | G42: Grammer | H42: 2024-10-11
F43: 05- Project | G43: Grammer | H43: 2024-05-23
F44: 05- Project | G44: Grammer | H44: 2024-05-05
F45: 02- PowerApps | G45: 0 | H45: 2024-07-07

Sheet Filtre
B2: Filtre | I2: ALTTOPLAM | J2: =IF(lang_op=1,"",IF(lang_op=2,"/ İngilizce Karşılığı ---->",IF(lang_op=3,"/ Fransızca Karşılığı ---->","/ Almanca Karşılığı ---->"))) -> / İngilizce Karşılığı ----> | M2: =IF(lang_op=2,VLOOKUP(I2,formuller,2,0),IF(lang_op=3,VLOOKUP(I2,formuller,3,0),IF(lang_op=4,VLOOKUP(I2,formuller,4,0),""))) -> SUBTOTAL
B4: Marka | C4: Tür | D4: Satış Türü | E4: Tarih | F4: Şehir | G4: Ödeme Türü | H4: Fiyat | J4: Toplam
B5: DELL | C5: Notebook | D5: Mağaza | E5: 2019-10-12 | F5: Bursa | G5: Kredi Kartı | H5: 15709
B6: IBM | C6: PC | D6: Mağaza | E6: 2016-09-12 | F6: Ankara | G6: Peşin | H6: 6243
B7: LENOVO | C7: Notebook | D7: Site | E7: 2016-01-08 | F7: Bursa | G7: Kredi Kartı | H7: 17622
B8: IBM | C8: PC | D8: Mağaza | E8: 2016-05-24 | F8: Bursa | G8: Kredi Kartı | H8: 6629
B9: IBM | C9: PC | D9: Site | E9: 2016-06-08 | F9: İstanbul | G9: Kredi Kartı | H9: 7582 | J9: =IFERROR(_xlfn.FORMULATEXT(K4),"") -> 
B10: MSI | C10: Tablet | D10: Site | E10: 2016-10-20 | F10: İstanbul | G10: Kredi Kartı | H10: 5714
B11: HP | C11: PC | D11: Site | E11: 2016-02-04 | F11: Bursa | G11: Kredi Kartı | H11: 8263
B12: MSI | C12: Notebook | D12: Mağaza | E12: 2016-08-10 | F12: Bursa | G12: Peşin | H12: 9102 | J12: =IngFormul(K4) -> 
B13: DELL | C13: Notebook | D13: Mağaza | E13: 2016-03-20 | F13: İstanbul | G13: Peşin | H13: 11792
B14: ASUS | C14: Tablet | D14: Site | E14: 2016-07-29 | F14: Bursa | G14: Kredi Kartı | H14: 3583
B15: HP | C15: Tablet | D15: Mağaza | E15: 2016-09-16 | F15: Ankara | G15: Peşin | H15: 5549
B16: HP | C16: PC | D16: Site | E16: 2016-02-18 | F16: İstanbul | G16: Kredi Kartı | H16: 6165
B17: DELL | C17: Notebook | D17: Site | E17: 2016-07-30 | F17: Bursa | G17: Kredi Kartı | H17: 14176
B18: IBM | C18: Notebook | D18: Site | E18: 2016-02-18 | F18: Bursa | G18: Kredi Kartı | H18: 14332
B19: LENOVO | C19: PC | D19: Site | E19: 2016-10-31 | F19: İstanbul | G19: Kredi Kartı | H19: 5811
B20: ASUS | C20: Notebook | D20: Site | E20: 2016-06-24 | F20: Bursa | G20: Kredi Kartı | H20: 8902
B21: DELL | C21: PC | D21: Site | E21: 2016-05-11 | F21: Ankara | G21: Kredi Kartı | H21: 11541
B22: HP | C22: PC | D22: Mağaza | E22: 2016-01-25 | F22: Bursa | G22: Peşin | H22: 7436
B23: HP | C23: Tablet | D23: Mağaza | E23: 2016-09-23 | F23: Ankara | G23: Kredi Kartı | H23: 3361
B24: IBM | C24: PC | D24: Mağaza | E24: 2016-01-03 | F24: İstanbul | G24: Peşin | H24: 7687
B25: DELL | C25: Notebook | D25: Mağaza | E25: 2016-01-31 | F25: İstanbul | G25: Peşin | H25: 13702
B26: LENOVO | C26: Notebook | D26: Mağaza | E26: 2016-11-27 | F26: İstanbul | G26: Kredi Kartı | H26: 15702
B27: MSI | C27: Tablet | D27: Mağaza | E27: 2016-05-09 | F27: İstanbul | G27: Peşin | H27: 4374
B28: IBM | C28: Tablet | D28: Site | E28: 2016-02-12 | F28: Ankara | G28: Kredi Kartı | H28: 4903
B29: DELL | C29: PC | D29: Mağaza | E29: 2016-10-08 | F29: Bursa | G29: Peşin | H29: 8833
B30: DELL | C30: Notebook | D30: Mağaza | E30: 2016-04-30 | F30: İstanbul | G30: Peşin | H30: 11889
B31: ASUS | C31: Notebook | D31: Mağaza | E31: 2016-04-26 | F31: Ankara | G31: Peşin | H31: 9491
B32: MSI | C32: PC | D32: Site | E32: 2016-08-25 | F32: Ankara | G32: Kredi Kartı | H32: 5114
B33: DELL | C33: Notebook | D33: Site | E33: 2016-09-27 | F33: Ankara | G33: Kredi Kartı | H33: 11070
B34: IBM | C34: PC | D34: Mağaza | E34: 2016-02-18 | F34: Ankara | G34: Peşin | H34: 5100
B35: IBM | C35: PC | D35: Mağaza | E35: 2016-05-07 | F35: İstanbul | G35: Peşin | H35: 6587
B36: LENOVO | C36: Tablet | D36: Site | E36: 2016-09-07 | F36: Bursa | G36: Kredi Kartı | H36: 3656
B37: HP | C37: PC | D37: Mağaza | E37: 2016-05-23 | F37: İstanbul | G37: Peşin | H37: 9317
B38: ASUS | C38: Notebook | D38: Site | E38: 2016-12-04 | F38: Bursa | G38: Kredi Kartı | H38: 14258
B39: MSI | C39: Notebook | D39: Site | E39: 2016-10-22 | F39: Bursa | G39: Kredi Kartı | H39: 12830
B40: IBM | C40: Tablet | D40: Site | E40: 2016-05-16 | F40: Bursa | G40: Kredi Kartı | H40: 2686
B41: DELL | C41: Tablet | D41: Mağaza | E41: 2016-02-29 | F41: Bursa | G41: Peşin | H41: 3900
B42: HP | C42: PC | D42: Mağaza | E42: 2016-04-11 | F42: İstanbul | G42: Peşin | H42: 8199
B43: IBM | C43: Notebook | D43: Site | E43: 2016-04-10 | F43: Bursa | G43: Kredi Kartı | H43: 11447
B44: ASUS | C44: Notebook | D44: Mağaza | E44: 2016-10-17 | F44: Ankara | G44: Peşin | H44: 15673
B45: HP | C45: PC | D45: Site | E45: 2016-08-16 | F45: Bursa | G45: Kredi Kartı | H45: 6757
B46: HP | C46: Notebook | D46: Site | E46: 2016-07-29 | F46: İstanbul | G46: Kredi Kartı | H46: 13553
B47: DELL | C47: PC | D47: Site | E47: 2016-12-12 | F47: İstanbul | G47: Kredi Kartı | H47: 11352
B48: ASUS | C48: PC | D48: Site | E48: 2016-10-05 | F48: İstanbul | G48: Kredi Kartı | H48: 6489
B49: MSI | C49: Tablet | D49: Site | E49: 2016-09-14 | F49: Bursa | G49: Kredi Kartı | H49: 3990
B50: MSI | C50: PC | D50: Site | E50: 2016-05-25 | F50: Bursa | G50: Kredi Kartı | H50: 7336
B51: LENOVO | C51: Notebook | D51: Mağaza | E51: 2016-12-26 | F51: Ankara | G51: Peşin | H51: 16911
B52: MSI | C52: Notebook | D52: Mağaza | E52: 2016-03-13 | F52: Bursa | G52: Peşin | H52: 14512
B53: MSI | C53: Tablet | D53: Mağaza | E53: 2016-03-21 | F53: İstanbul | G53: Kredi Kartı | H53: 4839
B54: DELL | C54: Tablet | D54: Mağaza | E54: 2016-07-11 | F54: Bursa | G54: Kredi Kartı | H54: 3177
B55: LENOVO | C55: PC | D55: Mağaza | E55: 2016-09-26 | F55: İstanbul | G55: Peşin | H55: 6824
B56: LENOVO | C56: Notebook | D56: Mağaza | E56: 2016-06-17 | F56: Bursa | G56: Peşin | H56: 9830
B57: IBM | C57: Notebook | D57: Site | E57: 2016-02-14 | F57: Bursa | G57: Kredi Kartı | H57: 10363
B58: LENOVO | C58: PC | D58: Mağaza | E58: 2016-11-05 | F58: Bursa | G58: Peşin | H58: 11333
B59: LENOVO | C59: Notebook | D59: Mağaza | E59: 2016-06-26 | F59: Ankara | G59: Kredi Kartı | H59: 12612
B60: LENOVO | C60: PC | D60: Mağaza | E60: 2016-07-01 | F60: Ankara | G60: Peşin | H60: 8053
B61: MSI | C61: PC | D61: Site | E61: 2016-10-21 | F61: Bursa | G61: Kredi Kartı | H61: 7739
B62: DELL | C62: Tablet | D62: Site | E62: 2016-12-16 | F62: Bursa | G62: Kredi Kartı | H62: 4743
B63: ASUS | C63: PC | D63: Mağaza | E63: 2016-07-22 | F63: Bursa | G63: Peşin | H63: 10081
B64: IBM | C64: Notebook | D64: Mağaza | E64: 2016-04-08 | F64: Bursa | G64: Peşin | H64: 17649
B65: LENOVO | C65: Notebook | D65: Site | E65: 2016-12-23 | F65: Bursa | G65: Kredi Kartı | H65: 15094
B66: HP | C66: Tablet | D66: Mağaza | E66: 2016-01-16 | F66: Bursa | G66: Peşin | H66: 2928
B67: DELL | C67: Tablet | D67: Site | E67: 2016-03-08 | F67: Ankara | G67: Kredi Kartı | H67: 4843
B68: HP | C68: PC | D68: Site | E68: 2016-11-05 | F68: Bursa | G68: Kredi Kartı | H68: 11909
B69: ASUS | C69: Notebook | D69: Site | E69: 2016-08-25 | F69: Bursa | G69: Kredi Kartı | H69: 12854
B70: LENOVO | C70: Notebook | D70: Mağaza | E70: 2016-10-17 | F70: Bursa | G70: Peşin | H70: 12227
B71: HP | C71: PC | D71: Mağaza | E71: 2016-03-13 | F71: Ankara | G71: Peşin | H71: 7973
B72: ASUS | C72: Notebook | D72: Site | E72: 2016-05-02 | F72: İstanbul | G72: Kredi Kartı | H72: 13775
B73: MSI | C73: PC | D73: Mağaza | E73: 2016-11-04 | F73: Ankara | G73: Peşin | H73: 10012
B74: LENOVO | C74: PC | D74: Site | E74: 2016-04-24 | F74: Ankara | G74: Kredi Kartı | H74: 9061
B75: ASUS | C75: Tablet | D75: Site | E75: 2016-11-27 | F75: Bursa | G75: Kredi Kartı | H75: 5773
B76: LENOVO | C76: PC | D76: Site | E76: 2016-09-13 | F76: İstanbul | G76: Kredi Kartı | H76: 11933
B77: HP | C77: Notebook | D77: Site | E77: 2016-10-06 | F77: Bursa | G77: Kredi Kartı | H77: 15500
B78: IBM | C78: Notebook | D78: Site | E78: 2016-10-03 | F78: Bursa | G78: Kredi Kartı | H78: 12634
B79: LENOVO | C79: Tablet | D79: Site | E79: 2016-07-31 | F79: Bursa | G79: Kredi Kartı | H79: 3945
B80: LENOVO | C80: Tablet | D80: Mağaza | E80: 2016-08-31 | F80: Bursa | G80: Peşin | H80: 2723
B81: DELL | C81: PC | D81: Mağaza | E81: 2016-03-29 | F81: Ankara | G81: Kredi Kartı | H81: 6566
B82: IBM | C82: Notebook | D82: Mağaza | E82: 2016-09-05 | F82: Bursa | G82: Kredi Kartı | H82: 9479
B83: HP | C83: Notebook | D83: Mağaza | E83: 2016-04-02 | F83: Ankara | G83: Peşin | H83: 17275
B84: IBM | C84: PC | D84: Mağaza | E84: 2016-05-19 | F84: Bursa | G84: Kredi Kartı | H84: 6003
B85: ASUS | C85: Notebook | D85: Mağaza | E85: 2016-06-04 | F85: Ankara | G85: Peşin | H85: 17319
B86: HP | C86: PC | D86: Site | E86: 2016-05-18 | F86: İstanbul | G86: Kredi Kartı | H86: 7385
B87: HP | C87: PC | D87: Mağaza | E87: 2016-11-19 | F87: Bursa | G87: Peşin | H87: 7598
B88: IBM | C88: Tablet | D88: Mağaza | E88: 2016-07-08 | F88: Ankara | G88: Peşin | H88: 5088
B89: IBM | C89: PC | D89: Mağaza | E89: 2016-08-29 | F89: İstanbul | G89: Peşin | H89: 8162
B90: IBM | C90: Notebook | D90: Site | E90: 2016-06-23 | F90: Ankara | G90: Kredi Kartı | H90: 10031
B91: DELL | C91: Notebook | D91: Site | E91: 2016-10-18 | F91: Bursa | G91: Kredi Kartı | H91: 15809
B92: HP | C92: Tablet | D92: Site | E92: 2016-09-30 | F92: Bursa | G92: Kredi Kartı | H92: 4899
B93: HP | C93: Tablet | D93: Mağaza | E93: 2016-05-23 | F93: Bursa | G93: Peşin | H93: 4320
B94: ASUS | C94: PC | D94: Mağaza | E94: 2016-11-29 | F94: İstanbul | G94: Peşin | H94: 11077
B95: LENOVO | C95: Tablet | D95: Mağaza | E95: 2016-01-14 | F95: Ankara | G95: Peşin | H95: 4516
B96: DELL | C96: PC | D96: Site | E96: 2016-10-24 | F96: Bursa | G96: Kredi Kartı | H96: 10376
B97: LENOVO | C97: Notebook | D97: Site | E97: 2016-11-02 | F97: Bursa | G97: Kredi Kartı | H97: 8686
B98: DELL | C98: Notebook | D98: Site | E98: 2016-03-19 | F98: İstanbul | G98: Kredi Kartı | H98: 17932
B99: MSI | C99: Tablet | D99: Mağaza | E99: 2016-08-06 | F99: Ankara | G99: Peşin | H99: 4365
B100: DELL | C100: Tablet | D100: Mağaza | E100: 2016-01-18 | F100: Bursa | G100: Kredi Kartı | H100: 3715

Sheet Filtre2
B2: Filtre / Dinamik Tablo
B4: Marka | C4: Tür | D4: Satış Türü | E4: Tarih | F4: Şehir | G4: Ödeme Türü | H4: Fiyat
B5: DELL | C5: Notebook | D5: Mağaza | E5: 2019-10-12 | F5: Bursa | G5: Kredi Kartı | H5: 15709
B6: IBM | C6: PC | D6: Mağaza | E6: 2016-09-12 | F6: Ankara | G6: Peşin | H6: 6243
B7: LENOVO | C7: Notebook | D7: Site | E7: 2016-01-08 | F7: Bursa | G7: Kredi Kartı | H7: 17622
B8: IBM | C8: PC | D8: Mağaza | E8: 2016-05-24 | F8: Bursa | G8: Kredi Kartı | H8: 6629
B9: IBM | C9: PC | D9: Site | E9: 2016-06-08 | F9: İstanbul | G9: Kredi Kartı | H9: 7582
B10: MSI | C10: Tablet | D10: Site | E10: 2016-10-20 | F10: İstanbul | G10: Kredi Kartı | H10: 5714
B11: HP | C11: PC | D11: Site | E11: 2016-02-04 | F11: Bursa | G11: Kredi Kartı | H11: 8263
B12: MSI | C12: Notebook | D12: Mağaza | E12: 2016-08-10 | F12: Bursa | G12: Peşin | H12: 9102
B13: DELL | C13: Notebook | D13: Mağaza | E13: 2016-03-20 | F13: İstanbul | G13: Peşin | H13: 11792
B14: ASUS | C14: Tablet | D14: Site | E14: 2016-07-29 | F14: Bursa | G14: Kredi Kartı | H14: 3583
B15: HP | C15: Tablet | D15: Mağaza | E15: 2016-09-16 | F15: Ankara | G15: Peşin | H15: 5549
B16: HP | C16: PC | D16: Site | E16: 2016-02-18 | F16: İstanbul | G16: Kredi Kartı | H16: 6165
B17: DELL | C17: Notebook | D17: Site | E17: 2016-07-30 | F17: Bursa | G17: Kredi Kartı | H17: 14176
B18: IBM | C18: Notebook | D18: Site | E18: 2016-02-18 | F18: Bursa | G18: Kredi Kartı | H18: 14332
B19: LENOVO | C19: PC | D19: Site | E19: 2016-10-31 | F19: İstanbul | G19: Kredi Kartı | H19: 5811
B20: ASUS | C20: Notebook | D20: Site | E20: 2016-06-24 | F20: Bursa | G20: Kredi Kartı | H20: 8902
B21: DELL | C21: PC | D21: Site | E21: 2016-05-11 | F21: Ankara | G21: Kredi Kartı | H21: 11541
B22: HP | C22: PC | D22: Mağaza | E22: 2016-01-25 | F22: Bursa | G22: Peşin | H22: 7436
B23: HP | C23: Tablet | D23: Mağaza | E23: 2016-09-23 | F23: Ankara | G23: Kredi Kartı | H23: 3361
B24: IBM | C24: PC | D24: Mağaza | E24: 2016-01-03 | F24: İstanbul | G24: Peşin | H24: 7687
B25: DELL | C25: Notebook | D25: Mağaza | E25: 2016-01-31 | F25: İstanbul | G25: Peşin | H25: 13702
B26: LENOVO | C26: Notebook | D26: Mağaza | E26: 2016-11-27 | F26: İstanbul | G26: Kredi Kartı | H26: 15702
B27: MSI | C27: Tablet | D27: Mağaza | E27: 2016-05-09 | F27: İstanbul | G27: Peşin | H27: 4374
B28: IBM | C28: Tablet | D28: Site | E28: 2016-02-12 | F28: Ankara | G28: Kredi Kartı | H28: 4903
B29: DELL | C29: PC | D29: Mağaza | E29: 2016-10-08 | F29: Bursa | G29: Peşin | H29: 8833
B30: DELL | C30: Notebook | D30: Mağaza | E30: 2016-04-30 | F30: İstanbul | G30: Peşin | H30: 11889
B31: ASUS | C31: Notebook | D31: Mağaza | E31: 2016-04-26 | F31: Ankara | G31: Peşin | H31: 9491
B32: MSI | C32: PC | D32: Site | E32: 2016-08-25 | F32: Ankara | G32: Kredi Kartı | H32: 5114
B33: DELL | C33: Notebook | D33: Site | E33: 2016-09-27 | F33: Ankara | G33: Kredi Kartı | H33: 11070
B34: IBM | C34: PC | D34: Mağaza | E34: 2016-02-18 | F34: Ankara | G34: Peşin | H34: 5100
B35: IBM | C35: PC | D35: Mağaza | E35: 2016-05-07 | F35: İstanbul | G35: Peşin | H35: 6587
B36: LENOVO | C36: Tablet | D36: Site | E36: 2016-09-07 | F36: Bursa | G36: Kredi Kartı | H36: 3656
B37: HP | C37: PC | D37: Mağaza | E37: 2016-05-23 | F37: İstanbul | G37: Peşin | H37: 9317
B38: ASUS | C38: Notebook | D38: Site | E38: 2016-12-04 | F38: Bursa | G38: Kredi Kartı | H38: 14258
B39: MSI | C39: Notebook | D39: Site | E39: 2016-10-22 | F39: Bursa | G39: Kredi Kartı | H39: 12830
B40: IBM | C40: Tablet | D40: Site | E40: 2016-05-16 | F40: Bursa | G40: Kredi Kartı | H40: 2686
B41: DELL | C41: Tablet | D41: Mağaza | E41: 2016-02-29 | F41: Bursa | G41: Peşin | H41: 3900
B42: HP | C42: PC | D42: Mağaza | E42: 2016-04-11 | F42: İstanbul | G42: Peşin | H42: 8199
B43: IBM | C43: Notebook | D43: Site | E43: 2016-04-10 | F43: Bursa | G43: Kredi Kartı | H43: 11447
B44: ASUS | C44: Notebook | D44: Mağaza | E44: 2016-10-17 | F44: Ankara | G44: Peşin | H44: 15673
B45: HP | C45: PC | D45: Site | E45: 2016-08-16 | F45: Bursa | G45: Kredi Kartı | H45: 6757
B46: HP | C46: Notebook | D46: Site | E46: 2016-07-29 | F46: İstanbul | G46: Kredi Kartı | H46: 13553
B47: DELL | C47: PC | D47: Site | E47: 2016-12-12 | F47: İstanbul | G47: Kredi Kartı | H47: 11352
B48: ASUS | C48: PC | D48: Site | E48: 2016-10-05 | F48: İstanbul | G48: Kredi Kartı | H48: 6489
B49: MSI | C49: Tablet | D49: Site | E49: 2016-09-14 | F49: Bursa | G49: Kredi Kartı | H49: 3990
B50: MSI | C50: PC | D50: Site | E50: 2016-05-25 | F50: Bursa | G50: Kredi Kartı | H50: 7336
B51: LENOVO | C51: Notebook | D51: Mağaza | E51: 2016-12-26 | F51: Ankara | G51: Peşin | H51: 16911
B52: MSI | C52: Notebook | D52: Mağaza | E52: 2016-03-13 | F52: Bursa | G52: Peşin | H52: 14512
B53: MSI | C53: Tablet | D53: Mağaza | E53: 2016-03-21 | F53: İstanbul | G53: Kredi Kartı | H53: 4839
B54: DELL | C54: Tablet | D54: Mağaza | E54: 2016-07-11 | F54: Bursa | G54: Kredi Kartı | H54: 3177
B55: LENOVO | C55: PC | D55: Mağaza | E55: 2016-09-26 | F55: İstanbul | G55: Peşin | H55: 6824
B56: LENOVO | C56: Notebook | D56: Mağaza | E56: 2016-06-17 | F56: Bursa | G56: Peşin | H56: 9830
B57: IBM | C57: Notebook | D57: Site | E57: 2016-02-14 | F57: Bursa | G57: Kredi Kartı | H57: 10363
B58: LENOVO | C58: PC | D58: Mağaza | E58: 2016-11-05 | F58: Bursa | G58: Peşin | H58: 11333
B59: LENOVO | C59: Notebook | D59: Mağaza | E59: 2016-06-26 | F59: Ankara | G59: Kredi Kartı | H59: 12612
B60: LENOVO | C60: PC | D60: Mağaza | E60: 2016-07-01 | F60: Ankara | G60: Peşin | H60: 8053
B61: MSI | C61: PC | D61: Site | E61: 2016-10-21 | F61: Bursa | G61: Kredi Kartı | H61: 7739
B62: DELL | C62: Tablet | D62: Site | E62: 2016-12-16 | F62: Bursa | G62: Kredi Kartı | H62: 4743
B63: ASUS | C63: PC | D63: Mağaza | E63: 2016-07-22 | F63: Bursa | G63: Peşin | H63: 10081
B64: IBM | C64: Notebook | D64: Mağaza | E64: 2016-04-08 | F64: Bursa | G64: Peşin | H64: 17649
B65: LENOVO | C65: Notebook | D65: Site | E65: 2016-12-23 | F65: Bursa | G65: Kredi Kartı | H65: 15094
B66: HP | C66: Tablet | D66: Mağaza | E66: 2016-01-16 | F66: Bursa | G66: Peşin | H66: 2928
B67: DELL | C67: Tablet | D67: Site | E67: 2016-03-08 | F67: Ankara | G67: Kredi Kartı | H67: 4843
B68: HP | C68: PC | D68: Site | E68: 2016-11-05 | F68: Bursa | G68: Kredi Kartı | H68: 11909
B69: ASUS | C69: Notebook | D69: Site | E69: 2016-08-25 | F69: Bursa | G69: Kredi Kartı | H69: 12854
B70: LENOVO | C70: Notebook | D70: Mağaza | E70: 2016-10-17 | F70: Bursa | G70: Peşin | H70: 12227
B71: HP | C71: PC | D71: Mağaza | E71: 2016-03-13 | F71: Ankara | G71: Peşin | H71: 7973
B72: ASUS | C72: Notebook | D72: Site | E72: 2016-05-02 | F72: İstanbul | G72: Kredi Kartı | H72: 13775
B73: MSI | C73: PC | D73: Mağaza | E73: 2016-11-04 | F73: Ankara | G73: Peşin | H73: 10012
B74: LENOVO | C74: PC | D74: Site | E74: 2016-04-24 | F74: Ankara | G74: Kredi Kartı | H74: 9061
B75: ASUS | C75: Tablet | D75: Site | E75: 2016-11-27 | F75: Bursa | G75: Kredi Kartı | H75: 5773
B76: LENOVO | C76: PC | D76: Site | E76: 2016-09-13 | F76: İstanbul | G76: Kredi Kartı | H76: 11933
B77: HP | C77: Notebook | D77: Site | E77: 2016-10-06 | F77: Bursa | G77: Kredi Kartı | H77: 15500
B78: IBM | C78: Notebook | D78: Site | E78: 2016-10-03 | F78: Bursa | G78: Kredi Kartı | H78: 12634
B79: LENOVO | C79: Tablet | D79: Site | E79: 2016-07-31 | F79: Bursa | G79: Kredi Kartı | H79: 3945
B80: LENOVO | C80: Tablet | D80: Mağaza | E80: 2016-08-31 | F80: Bursa | G80: Peşin | H80: 2723
B81: DELL | C81: PC | D81: Mağaza | E81: 2016-03-29 | F81: Ankara | G81: Kredi Kartı | H81: 6566
B82: IBM | C82: Notebook | D82: Mağaza | E82: 2016-09-05 | F82: Bursa | G82: Kredi Kartı | H82: 9479
B83: HP | C83: Notebook | D83: Mağaza | E83: 2016-04-02 | F83: Ankara | G83: Peşin | H83: 17275
B84: IBM | C84: PC | D84: Mağaza | E84: 2016-05-19 | F84: Bursa | G84: Kredi Kartı | H84: 6003
B85: ASUS | C85: Notebook | D85: Mağaza | E85: 2016-06-04 | F85: Ankara | G85: Peşin | H85: 17319
B86: HP | C86: PC | D86: Site | E86: 2016-05-18 | F86: İstanbul | G86: Kredi Kartı | H86: 7385
B87: HP | C87: PC | D87: Mağaza | E87: 2016-11-19 | F87: Bursa | G87: Peşin | H87: 7598
B88: IBM | C88: Tablet | D88: Mağaza | E88: 2016-07-08 | F88: Ankara | G88: Peşin | H88: 5088
B89: IBM | C89: PC | D89: Mağaza | E89: 2016-08-29 | F89: İstanbul | G89: Peşin | H89: 8162
B90: IBM | C90: Notebook | D90: Site | E90: 2016-06-23 | F90: Ankara | G90: Kredi Kartı | H90: 10031
B91: DELL | C91: Notebook | D91: Site | E91: 2016-10-18 | F91: Bursa | G91: Kredi Kartı | H91: 15809
B92: HP | C92: Tablet | D92: Site | E92: 2016-09-30 | F92: Bursa | G92: Kredi Kartı | H92: 4899
B93: HP | C93: Tablet | D93: Mağaza | E93: 2016-05-23 | F93: Bursa | G93: Peşin | H93: 4320
B94: ASUS | C94: PC | D94: Mağaza | E94: 2016-11-29 | F94: İstanbul | G94: Peşin | H94: 11077
B95: LENOVO | C95: Tablet | D95: Mağaza | E95: 2016-01-14 | F95: Ankara | G95: Peşin | H95: 4516
B96: DELL | C96: PC | D96: Site | E96: 2016-10-24 | F96: Bursa | G96: Kredi Kartı | H96: 10376
B97: LENOVO | C97: Notebook | D97: Site | E97: 2016-11-02 | F97: Bursa | G97: Kredi Kartı | H97: 8686
B98: DELL | C98: Notebook | D98: Site | E98: 2016-03-19 | F98: İstanbul | G98: Kredi Kartı | H98: 17932
B99: MSI | C99: Tablet | D99: Mağaza | E99: 2016-08-06 | F99: Ankara | G99: Peşin | H99: 4365
B100: DELL | C100: Tablet | D100: Mağaza | E100: 2016-01-18 | F100: Bursa | G100: Kredi Kartı | H100: 3715

Sheet Filtre3
B2: FİLTRE | C2: =IF(lang_op=1,"",IF(lang_op=2,"/ İngilizce Karşılığı ---->",IF(lang_op=3,"/ Fransızca Karşılığı ---->","/ Almanca Karşılığı ---->"))) -> / İngilizce Karşılığı ----> | F2: =IF(lang_op=2,VLOOKUP(B2,formuller,2,0),IF(lang_op=3,VLOOKUP(B2,formuller,3,0),IF(lang_op=4,VLOOKUP(B2,formuller,4,0),""))) -> FILTER
B4: Marka | C4: Tür | D4: Satış Türü | E4: Tarih | F4: Şehir | G4: Ödeme Türü | H4: Fiyat | K4: Marka | L4: DELL | M4: Şehir | N4: Bursa
B5: DELL | C5: Notebook | D5: Mağaza | E5: 2019-10-12 | F5: Bursa | G5: Kredi Kartı | H5: 15709
B6: IBM | C6: PC | D6: Mağaza | E6: 2016-09-12 | F6: Ankara | G6: Peşin | H6: 6243
B7: LENOVO | C7: Notebook | D7: Site | E7: 2016-01-08 | F7: Bursa | G7: Kredi Kartı | H7: 17622 | K7: =IFERROR(_xlfn.FORMULATEXT(K11),"") ->  | O7: =IngFormul(K11) -> 
B8: IBM | C8: PC | D8: Mağaza | E8: 2016-05-24 | F8: Bursa | G8: Kredi Kartı | H8: 6629
B9: IBM | C9: PC | D9: Site | E9: 2016-06-08 | F9: İstanbul | G9: Kredi Kartı | H9: 7582
B10: MSI | C10: Tablet | D10: Site | E10: 2016-10-20 | F10: İstanbul | G10: Kredi Kartı | H10: 5714 | K10: Marka | L10: Tür | M10: Satış Türü | N10: Tarih | O10: Şehir | P10: Ödeme Türü | Q10: Fiyat | Y10: Marka | AA10: Şehir
B11: HP | C11: PC | D11: Site | E11: 2016-02-04 | F11: Bursa | G11: Kredi Kartı | H11: 8263 | Y11: DELL | AA11: Bursa
B12: MSI | C12: Notebook | D12: Mağaza | E12: 2016-08-10 | F12: Bursa | G12: Peşin | H12: 9102 | Y12: IBM | AA12: Ankara
B13: DELL | C13: Notebook | D13: Mağaza | E13: 2016-03-20 | F13: İstanbul | G13: Peşin | H13: 11792 | Y13: LENOVO | AA13: İstanbul
B14: ASUS | C14: Tablet | D14: Site | E14: 2016-07-29 | F14: Bursa | G14: Kredi Kartı | H14: 3583 | Y14: MSI
B15: HP | C15: Tablet | D15: Mağaza | E15: 2016-09-16 | F15: Ankara | G15: Peşin | H15: 5549 | Y15: HP
B16: HP | C16: PC | D16: Site | E16: 2016-02-18 | F16: İstanbul | G16: Kredi Kartı | H16: 6165 | Y16: ASUS
B17: DELL | C17: Notebook | D17: Site | E17: 2016-07-30 | F17: Bursa | G17: Kredi Kartı | H17: 14176
B18: IBM | C18: Notebook | D18: Site | E18: 2016-02-18 | F18: Bursa | G18: Kredi Kartı | H18: 14332
B19: LENOVO | C19: PC | D19: Site | E19: 2016-10-31 | F19: İstanbul | G19: Kredi Kartı | H19: 5811
B20: ASUS | C20: Notebook | D20: Site | E20: 2016-06-24 | F20: Bursa | G20: Kredi Kartı | H20: 8902
B21: DELL | C21: PC | D21: Site | E21: 2016-05-11 | F21: Ankara | G21: Kredi Kartı | H21: 11541
B22: HP | C22: PC | D22: Mağaza | E22: 2016-01-25 | F22: Bursa | G22: Peşin | H22: 7436
B23: HP | C23: Tablet | D23: Mağaza | E23: 2016-09-23 | F23: Ankara | G23: Kredi Kartı | H23: 3361
B24: IBM | C24: PC | D24: Mağaza | E24: 2016-01-03 | F24: İstanbul | G24: Peşin | H24: 7687
B25: DELL | C25: Notebook | D25: Mağaza | E25: 2016-01-31 | F25: İstanbul | G25: Peşin | H25: 13702
B26: LENOVO | C26: Notebook | D26: Mağaza | E26: 2016-11-27 | F26: İstanbul | G26: Kredi Kartı | H26: 15702
B27: MSI | C27: Tablet | D27: Mağaza | E27: 2016-05-09 | F27: İstanbul | G27: Peşin | H27: 4374
B28: IBM | C28: Tablet | D28: Site | E28: 2016-02-12 | F28: Ankara | G28: Kredi Kartı | H28: 4903
B29: DELL | C29: PC | D29: Mağaza | E29: 2016-10-08 | F29: Bursa | G29: Peşin | H29: 8833
B30: DELL | C30: Notebook | D30: Mağaza | E30: 2016-04-30 | F30: İstanbul | G30: Peşin | H30: 11889
B31: ASUS | C31: Notebook | D31: Mağaza | E31: 2016-04-26 | F31: Ankara | G31: Peşin | H31: 9491
B32: MSI | C32: PC | D32: Site | E32: 2016-08-25 | F32: Ankara | G32: Kredi Kartı | H32: 5114
B33: DELL | C33: Notebook | D33: Site | E33: 2016-09-27 | F33: Ankara | G33: Kredi Kartı | H33: 11070
B34: IBM | C34: PC | D34: Mağaza | E34: 2016-02-18 | F34: Ankara | G34: Peşin | H34: 5100
B35: IBM | C35: PC | D35: Mağaza | E35: 2016-05-07 | F35: İstanbul | G35: Peşin | H35: 6587
B36: LENOVO | C36: Tablet | D36: Site | E36: 2016-09-07 | F36: Bursa | G36: Kredi Kartı | H36: 3656
B37: HP | C37: PC | D37: Mağaza | E37: 2016-05-23 | F37: İstanbul | G37: Peşin | H37: 9317
B38: ASUS | C38: Notebook | D38: Site | E38: 2016-12-04 | F38: Bursa | G38: Kredi Kartı | H38: 14258
B39: MSI | C39: Notebook | D39: Site | E39: 2016-10-22 | F39: Bursa | G39: Kredi Kartı | H39: 12830
B40: IBM | C40: Tablet | D40: Site | E40: 2016-05-16 | F40: Bursa | G40: Kredi Kartı | H40: 2686
B41: DELL | C41: Tablet | D41: Mağaza | E41: 2016-02-29 | F41: Bursa | G41: Peşin | H41: 3900
B42: HP | C42: PC | D42: Mağaza | E42: 2016-04-11 | F42: İstanbul | G42: Peşin | H42: 8199
B43: IBM | C43: Notebook | D43: Site | E43: 2016-04-10 | F43: Bursa | G43: Kredi Kartı | H43: 11447
B44: ASUS | C44: Notebook | D44: Mağaza | E44: 2016-10-17 | F44: Ankara | G44: Peşin | H44: 15673
B45: HP | C45: PC | D45: Site | E45: 2016-08-16 | F45: Bursa | G45: Kredi Kartı | H45: 6757
B46: HP | C46: Notebook | D46: Site | E46: 2016-07-29 | F46: İstanbul | G46: Kredi Kartı | H46: 13553
B47: DELL | C47: PC | D47: Site | E47: 2016-12-12 | F47: İstanbul | G47: Kredi Kartı | H47: 11352
B48: ASUS | C48: PC | D48: Site | E48: 2016-10-05 | F48: İstanbul | G48: Kredi Kartı | H48: 6489
B49: MSI | C49: Tablet | D49: Site | E49: 2016-09-14 | F49: Bursa | G49: Kredi Kartı | H49: 3990
B50: MSI | C50: PC | D50: Site | E50: 2016-05-25 | F50: Bursa | G50: Kredi Kartı | H50: 7336
B51: LENOVO | C51: Notebook | D51: Mağaza | E51: 2016-12-26 | F51: Ankara | G51: Peşin | H51: 16911
B52: MSI | C52: Notebook | D52: Mağaza | E52: 2016-03-13 | F52: Bursa | G52: Peşin | H52: 14512
B53: MSI | C53: Tablet | D53: Mağaza | E53: 2016-03-21 | F53: İstanbul | G53: Kredi Kartı | H53: 4839
B54: DELL | C54: Tablet | D54: Mağaza | E54: 2016-07-11 | F54: Bursa | G54: Kredi Kartı | H54: 3177
B55: LENOVO | C55: PC | D55: Mağaza | E55: 2016-09-26 | F55: İstanbul | G55: Peşin | H55: 6824
B56: LENOVO | C56: Notebook | D56: Mağaza | E56: 2016-06-17 | F56: Bursa | G56: Peşin | H56: 9830
B57: IBM | C57: Notebook | D57: Site | E57: 2016-02-14 | F57: Bursa | G57: Kredi Kartı | H57: 10363
B58: LENOVO | C58: PC | D58: Mağaza | E58: 2016-11-05 | F58: Bursa | G58: Peşin | H58: 11333
B59: LENOVO | C59: Notebook | D59: Mağaza | E59: 2016-06-26 | F59: Ankara | G59: Kredi Kartı | H59: 12612
B60: LENOVO | C60: PC | D60: Mağaza | E60: 2016-07-01 | F60: Ankara | G60: Peşin | H60: 8053
B61: MSI | C61: PC | D61: Site | E61: 2016-10-21 | F61: Bursa | G61: Kredi Kartı | H61: 7739
B62: DELL | C62: Tablet | D62: Site | E62: 2016-12-16 | F62: Bursa | G62: Kredi Kartı | H62: 4743
B63: ASUS | C63: PC | D63: Mağaza | E63: 2016-07-22 | F63: Bursa | G63: Peşin | H63: 10081
B64: IBM | C64: Notebook | D64: Mağaza | E64: 2016-04-08 | F64: Bursa | G64: Peşin | H64: 17649
B65: LENOVO | C65: Notebook | D65: Site | E65: 2016-12-23 | F65: Bursa | G65: Kredi Kartı | H65: 15094
B66: HP | C66: Tablet | D66: Mağaza | E66: 2016-01-16 | F66: Bursa | G66: Peşin | H66: 2928
B67: DELL | C67: Tablet | D67: Site | E67: 2016-03-08 | F67: Ankara | G67: Kredi Kartı | H67: 4843
B68: HP | C68: PC | D68: Site | E68: 2016-11-05 | F68: Bursa | G68: Kredi Kartı | H68: 11909
B69: ASUS | C69: Notebook | D69: Site | E69: 2016-08-25 | F69: Bursa | G69: Kredi Kartı | H69: 12854
B70: LENOVO | C70: Notebook | D70: Mağaza | E70: 2016-10-17 | F70: Bursa | G70: Peşin | H70: 12227
B71: HP | C71: PC | D71: Mağaza | E71: 2016-03-13 | F71: Ankara | G71: Peşin | H71: 7973
B72: ASUS | C72: Notebook | D72: Site | E72: 2016-05-02 | F72: İstanbul | G72: Kredi Kartı | H72: 13775
B73: MSI | C73: PC | D73: Mağaza | E73: 2016-11-04 | F73: Ankara | G73: Peşin | H73: 10012
B74: LENOVO | C74: PC | D74: Site | E74: 2016-04-24 | F74: Ankara | G74: Kredi Kartı | H74: 9061
B75: ASUS | C75: Tablet | D75: Site | E75: 2016-11-27 | F75: Bursa | G75: Kredi Kartı | H75: 5773
B76: LENOVO | C76: PC | D76: Site | E76: 2016-09-13 | F76: İstanbul | G76: Kredi Kartı | H76: 11933
B77: HP | C77: Notebook | D77: Site | E77: 2016-10-06 | F77: Bursa | G77: Kredi Kartı | H77: 15500
B78: IBM | C78: Notebook | D78: Site | E78: 2016-10-03 | F78: Bursa | G78: Kredi Kartı | H78: 12634
B79: LENOVO | C79: Tablet | D79: Site | E79: 2016-07-31 | F79: Bursa | G79: Kredi Kartı | H79: 3945
B80: LENOVO | C80: Tablet | D80: Mağaza | E80: 2016-08-31 | F80: Bursa | G80: Peşin | H80: 2723
B81: DELL | C81: PC | D81: Mağaza | E81: 2016-03-29 | F81: Ankara | G81: Kredi Kartı | H81: 6566
B82: IBM | C82: Notebook | D82: Mağaza | E82: 2016-09-05 | F82: Bursa | G82: Kredi Kartı | H82: 9479
B83: HP | C83: Notebook | D83: Mağaza | E83: 2016-04-02 | F83: Ankara | G83: Peşin | H83: 17275
B84: IBM | C84: PC | D84: Mağaza | E84: 2016-05-19 | F84: Bursa | G84: Kredi Kartı | H84: 6003
B85: ASUS | C85: Notebook | D85: Mağaza | E85: 2016-06-04 | F85: Ankara | G85: Peşin | H85: 17319
B86: HP | C86: PC | D86: Site | E86: 2016-05-18 | F86: İstanbul | G86: Kredi Kartı | H86: 7385
B87: HP | C87: PC | D87: Mağaza | E87: 2016-11-19 | F87: Bursa | G87: Peşin | H87: 7598
B88: IBM | C88: Tablet | D88: Mağaza | E88: 2016-07-08 | F88: Ankara | G88: Peşin | H88: 5088
B89: IBM | C89: PC | D89: Mağaza | E89: 2016-08-29 | F89: İstanbul | G89: Peşin | H89: 8162
B90: IBM | C90: Notebook | D90: Site | E90: 2016-06-23 | F90: Ankara | G90: Kredi Kartı | H90: 10031
B91: DELL | C91: Notebook | D91: Site | E91: 2016-10-18 | F91: Bursa | G91: Kredi Kartı | H91: 15809
B92: HP | C92: Tablet | D92: Site | E92: 2016-09-30 | F92: Bursa | G92: Kredi Kartı | H92: 4899
B93: HP | C93: Tablet | D93: Mağaza | E93: 2016-05-23 | F93: Bursa | G93: Peşin | H93: 4320
B94: ASUS | C94: PC | D94: Mağaza | E94: 2016-11-29 | F94: İstanbul | G94: Peşin | H94: 11077
B95: LENOVO | C95: Tablet | D95: Mağaza | E95: 2016-01-14 | F95: Ankara | G95: Peşin | H95: 4516
B96: DELL | C96: PC | D96: Site | E96: 2016-10-24 | F96: Bursa | G96: Kredi Kartı | H96: 10376
B97: LENOVO | C97: Notebook | D97: Site | E97: 2016-11-02 | F97: Bursa | G97: Kredi Kartı | H97: 8686
B98: DELL | C98: Notebook | D98: Site | E98: 2016-03-19 | F98: İstanbul | G98: Kredi Kartı | H98: 17932
B99: MSI | C99: Tablet | D99: Mağaza | E99: 2016-08-06 | F99: Ankara | G99: Peşin | H99: 4365
B100: DELL | C100: Tablet | D100: Mağaza | E100: 2016-01-18 | F100: Bursa | G100: Kredi Kartı | H100: 3715

Sheet Eğer
B2: EĞER | C2: =IF(lang_op=1,"",IF(lang_op=2,"/ İngilizce Karşılığı ---->",IF(lang_op=3,"/ Fransızca Karşılığı ---->","/ Almanca Karşılığı ---->"))) -> / İngilizce Karşılığı ----> | E2: =IF(lang_op=2,VLOOKUP(B2,formuller,2,0),IF(lang_op=3,VLOOKUP(B2,formuller,3,0),IF(lang_op=4,VLOOKUP(B2,formuller,4,0),""))) -> IF
B4: Mantıksal Operatörler
B5: > | C5: Büyük
B6: < | C6: Küçük
B7: >= | C7: Büyük Eşit
B8: <= | C8: Küçük Eşit
B9: = | C9: Eşit
B10: <> | C10: Eşit Değil

Sheet EğerTemelÖrnekler
B2: EĞER | C2: =IF(lang_op=1,"",IF(lang_op=2,"/ İngilizce Karşılığı ---->",IF(lang_op=3,"/ Fransızca Karşılığı ---->","/ Almanca Karşılığı ---->"))) -> / İngilizce Karşılığı ----> | E2: =IF(lang_op=2,VLOOKUP(B2,formuller,2,0),IF(lang_op=3,VLOOKUP(B2,formuller,3,0),IF(lang_op=4,VLOOKUP(B2,formuller,4,0),""))) -> IF
B5: 50' den Büyük mü? | E5: 50' den Büyük yada Eşit mi? | H5: 50' den Büyükse 2 ile Çarp, Değilse Böl | K5: Metin Karşılaştırma
B6: 50 | E6: 33 | H6: 45 | K6: Ali
B7: 60 | E7: 75 | H7: 77 | K7: Hasan
B8: 40 | E8: 82 | H8: 40 | K8: ali
B9: 75 | E9: 46 | H9: 85 | K9: =isim -> 0
B10: 90 | E10: 90 | H10: 58 | K10: Efe
B11: 45 | E11: 50 | H11: 45 | K11: Cemal
B12: 15 | E12: 15 | H12: 25 | K12: ALİ
B15: =IFERROR(_xlfn.FORMULATEXT(C6),"") ->  | E15: =IFERROR(_xlfn.FORMULATEXT(F6),"") ->  | H15: =IFERROR(_xlfn.FORMULATEXT(I6),"") ->  | K15: =IFERROR(_xlfn.FORMULATEXT(L6),"") -> 
B19: =IngFormul(C6) ->  | E19: =IngFormul(F6) ->  | H19: =IngFormul(I6) ->  | K19: =IngFormul(L6) -> 

Sheet EğerÖrnek2
B2: EĞER | C2: =IF(lang_op=1,"",IF(lang_op=2,"/ İngilizce Karşılığı ---->",IF(lang_op=3,"/ Fransızca Karşılığı ---->","/ Almanca Karşılığı ---->"))) -> / İngilizce Karşılığı ----> | G2: =IF(lang_op=2,VLOOKUP(B2,formuller,2,0),IF(lang_op=3,VLOOKUP(B2,formuller,3,0),IF(lang_op=4,VLOOKUP(B2,formuller,4,0),""))) -> IF
B5: Adı Soyadı | C5: Sınav 1 | D5: Sınav 2 | E5: Sınav 3 | F5: Ortalama | G5: Durum 1 | I5: Adı Soyadı | J5: Sınav 1 | K5: Sınav 2 | L5: Sınav 3 | M5: Durum 2
B6: Efe YILDIZ | C6: 42 | D6: 60 | E6: 65 | F6: =AVERAGE(C6:E6) -> 55.66666667 | I6: Efe YILDIZ | J6: 45 | K6: 60 | L6: 65
B7: Egemen ATAY | C7: 75 | D7: 68 | E7: 80 | F7: =AVERAGE(C7:E7) -> 74.33333333 | I7: Egemen ATAY | J7: 75 | K7: 68 | L7: 80
B8: İlhan IŞIK | C8: 55 | D8: 65 | E8: 80 | F8: 66.66666667 | I8: İlhan IŞIK | J8: 55 | K8: 65 | L8: 80
B9: Fatih TANDOĞAN | C9: 99 | D9: 65 | E9: 44 | F9: 69.33333333 | I9: Fatih TANDOĞAN | J9: 99 | K9: 65 | L9: 44
B10: Seda DEĞİRMENCİ | C10: 58.99 | D10: 55.8 | E10: 61.9 | F10: 58.89666667 | I10: Seda DEĞİRMENCİ | J10: 58.99 | K10: 55.8 | L10: 61.9
B11: Mustafa EMEK | C11: 50 | D11: 80 | E11: 85 | F11: 71.66666667 | I11: Mustafa EMEK | J11: 50 | K11: 80 | L11: 85
B12: =IF(isim>0,CONCATENATE(TRIM(isim)," ",UPPER(TRIM(soyisim))),"İsmini Göremedik") -> İsmini Göremedik | C12: 75 | D12: 85 | E12: 95 | F12: 85 | I12: =IF(isim>0,CONCATENATE(TRIM(isim)," ",UPPER(TRIM(soyisim))),"İsmini Göremedik") -> İsmini Göremedik | J12: 75 | K12: 80 | L12: 95
B13: Gökhan YAĞIZ | C13: 65 | D13: 60 | E13: 77 | F13: 67.33333333 | I13: Gökhan YAĞIZ | J13: 65 | K13: 60 | L13: 77
B14: Yasemin TURGUT | C14: 74 | D14: 78 | E14: 27 | F14: 59.66666667 | I14: Yasemin TURGUT | J14: 74 | K14: 78 | L14: 27
B16: =IFERROR(_xlfn.FORMULATEXT(G6),"") ->  | I16: =IFERROR(_xlfn.FORMULATEXT(M6),"") -> 
B19: =IngFormul(G6) ->  | I19: =IF(M6>0,I23,"") -> 
I23: =IF(AVERAGE(J6:L6)>=60,"Geçti","Kaldı")

Sheet EğerÖrnek3
B2: EĞER | C2: =IF(lang_op=1,"",IF(lang_op=2,"/ İngilizce Karşılığı ---->",IF(lang_op=3,"/ Fransızca Karşılığı ---->","/ Almanca Karşılığı ---->"))) -> / İngilizce Karşılığı ----> | E2: =IF(lang_op=2,VLOOKUP(B2,formuller,2,0),IF(lang_op=3,VLOOKUP(B2,formuller,3,0),IF(lang_op=4,VLOOKUP(B2,formuller,4,0),""))) -> IF
B5: Satış Temsilcisi | C5: Bölge | D5: Satış Tutarı | E5: Prim Oranı | F5: Prim Tutarı | I5: Satış Tutarı | K5: Prim Oranı
B6: Efe YILDIZ | C6: Akdeniz | D6: 122844 | F6: =D6*E6 -> 0 | I6: 45000 | J6: < | K6: 0 | AC6: =E6 -> 0 | AD6: 0.1 | AE6: =AC6=AD6 -> FALSE | AF6: =IF(AND(AE6,AE7,AE8,AE9),1,0) -> 0
B7: Egemen ATAY | C7: Ege | D7: 72412 | F7: 0 | I7: 45000 | J7: > | K7: 0.05 | AC7: =E7 -> 0 | AD7: 0.08 | AE7: =AC7=AD7 -> FALSE
B8: İlhan IŞIK | C8: İç Anadolu | D8: 45919 | F8: 0 | I8: 60000 | J8: > | K8: 0.08 | AC8: =E8 -> 0 | AD8: 0.05 | AE8: =AC8=AD8 -> FALSE
B9: Fatih TANDOĞAN | C9: Marmara | D9: 35689 | F9: 0 | I9: 90000 | J9: > | K9: 0.1 | AC9: =E9 -> 0 | AD9: 0 | AE9: =AC9=AD9 -> TRUE
B10: Seda DEĞİRMENCİ | C10: Ege | D10: 68782 | F10: 0
B11: Mustafa EMEK | C11: Ege | D11: 146889 | F11: 0 | H11: =IFERROR(_xlfn.FORMULATEXT(E6),"") -> 
B12: Neslihan YILMAZ | C12: Güneydoğu Anadolu | D12: 76474 | F12: 0
B13: Gökhan YAĞIZ | C13: Ege | D13: 102011 | F13: 0
B14: Yasemin TURGUT | C14: Karadeniz | D14: 85863 | F14: 0 | H14: =IngFormul(E6) -> 
B15: Emin TEMEL | C15: Marmara | D15: 177556 | F15: 0
B16: Hayri ÖZEL | C16: Doğu Anadolu | D16: 175712 | F16: 0
B17: Can YILDIZ | C17: Karadeniz | D17: 127952 | F17: 0
B18: Berkay YALÇIN | C18: İç Anadolu | D18: 169763 | F18: 0
B19: Eren HASANOĞLU | C19: Karadeniz | D19: 90941 | F19: 0
B20: Ayşen ÇAKIR | C20: Ege | D20: 104907 | F20: 0
B21: Serdar ALADAĞ | C21: Güneydoğu Anadolu | D21: 39474 | F21: 0
B22: Emel YAŞİN | C22: Doğu Anadolu | D22: 133368 | F22: 0
B23: =IF(isim>0,CONCATENATE(TRIM(isim)," ",UPPER(TRIM(soyisim))),"İsmini Göremedik") -> İsmini Göremedik | C23: Marmara | D23: 131514 | F23: 0
B24: Kemalettin TAN | C24: Ege | D24: 111146 | F24: 0
B25: Sevim SARPER | C25: Marmara | D25: 176391 | F25: 0
B26: Ayşe UYAN | C26: Marmara | D26: 64015 | F26: 0
B27: Engin AYDOĞAN | C27: Marmara | D27: 40211 | F27: 0
B28: Ayla KARA | C28: Ege | D28: 87324 | F28: 0
B29: Bülent AYDOĞAN | C29: Güneydoğu Anadolu | D29: 75801 | F29: 0
B30: Hakan DUMAN | C30: Karadeniz | D30: 50202 | F30: 0
B31: Efe YILDIZ | C31: Akdeniz | D31: 88161 | F31: 0
B32: Egemen ATAY | C32: Ege | D32: 113723 | F32: 0
B33: İlhan IŞIK | C33: İç Anadolu | D33: 151542 | F33: 0
B34: Fatih TANDOĞAN | C34: Marmara | D34: 114751 | F34: 0
B35: Seda DEĞİRMENCİ | C35: Ege | D35: 54748 | F35: 0
B36: Mustafa EMEK | C36: Ege | D36: 109347 | F36: 0
B37: Neslihan YILMAZ | C37: Güneydoğu Anadolu | D37: 69979 | F37: 0
B38: Gökhan YAĞIZ | C38: Ege | D38: 57125 | F38: =D38*E38 -> 0
B39: Yasemin TURGUT | C39: Karadeniz | D39: 165033 | F39: 0
B40: Emin TEMEL | C40: Marmara | D40: 96199 | F40: 0
B41: Hayri ÖZEL | C41: Doğu Anadolu | D41: 63193 | F41: 0
B42: Can YILDIZ | C42: Karadeniz | D42: 90896 | F42: 0
B43: Berkay YALÇIN | C43: İç Anadolu | D43: 110257 | F43: 0
B44: Eren HASANOĞLU | C44: Karadeniz | D44: 82987 | F44: 0
B45: Ayşen ÇAKIR | C45: Ege | D45: 116121 | F45: 0
B46: Serdar ALADAĞ | C46: Güneydoğu Anadolu | D46: 64065 | F46: 0
B47: Emel YAŞİN | C47: Doğu Anadolu | D47: 90933 | F47: 0
B48: =IF(isim>0,CONCATENATE(TRIM(isim)," ",UPPER(TRIM(soyisim))),"İsmini Göremedik") -> İsmini Göremedik | C48: Marmara | D48: 90063 | F48: 0
B49: Kemalettin TAN | C49: Ege | D49: 120211 | F49: 0
B50: Sevim SARPER | C50: Marmara | D50: 49060 | F50: 0
B51: Ayşe UYAN | C51: Marmara | D51: 167219 | F51: 0
B52: Engin AYDOĞAN | C52: Marmara | D52: 57695 | F52: 0
B53: Ayla KARA | C53: Ege | D53: 157762 | F53: 0
B54: Bülent AYDOĞAN | C54: Güneydoğu Anadolu | D54: 126646 | F54: 0
B55: Hakan DUMAN | C55: Karadeniz | D55: 119302 | F55: 0

Sheet ÇokEğer
B2: ÇOKEĞER | C2: =IF(lang_op=1,"",IF(lang_op=2,"/ İngilizce Karşılığı ---->",IF(lang_op=3,"/ Fransızca Karşılığı ---->","/ Almanca Karşılığı ---->"))) -> / İngilizce Karşılığı ----> | E2: =IF(lang_op=2,VLOOKUP(B2,formuller,2,0),IF(lang_op=3,VLOOKUP(B2,formuller,3,0),IF(lang_op=4,VLOOKUP(B2,formuller,4,0),""))) -> IFS
B5: Satış Temsilcisi | C5: Bölge | D5: Satış Tutarı | E5: Prim Oranı | F5: Prim Tutarı | I5: Satış Tutarı | K5: Prim Oranı
B6: Efe YILDIZ | C6: Akdeniz | D6: 122844 | F6: =D6*E6 -> 0 | I6: 45000 | J6: < | K6: 0
B7: Egemen ATAY | C7: Ege | D7: 72412 | F7: 0 | I7: 45000 | J7: >= | K7: 0.05
B8: İlhan IŞIK | C8: İç Anadolu | D8: 45919 | F8: 0 | I8: 60000 | J8: >= | K8: 0.08
B9: Fatih TANDOĞAN | C9: Marmara | D9: 35689 | F9: 0 | I9: 90000 | J9: >= | K9: 0.1
B10: Seda DEĞİRMENCİ | C10: Ege | D10: 68782 | F10: 0
B11: Mustafa EMEK | C11: Ege | D11: 146889 | F11: 0 | H11: =IFERROR(_xlfn.FORMULATEXT(E6),"") -> 
B12: Neslihan YILMAZ | C12: Güneydoğu Anadolu | D12: 76474 | F12: 0
B13: Gökhan YAĞIZ | C13: Ege | D13: 102011 | F13: 0
B14: Yasemin TURGUT | C14: Karadeniz | D14: 85863 | F14: 0 | H14: =IngFormul(E6) -> 
B15: Emin TEMEL | C15: Marmara | D15: 177556 | F15: 0
B16: Hayri ÖZEL | C16: Doğu Anadolu | D16: 175712 | F16: 0
B17: Can YILDIZ | C17: Karadeniz | D17: 127952 | F17: 0
B18: Berkay YALÇIN | C18: İç Anadolu | D18: 169763 | F18: 0
B19: Eren HASANOĞLU | C19: Karadeniz | D19: 90941 | F19: 0
B20: Ayşen ÇAKIR | C20: Ege | D20: 104907 | F20: 0
B21: Serdar ALADAĞ | C21: Güneydoğu Anadolu | D21: 39474 | F21: 0
B22: Emel YAŞİN | C22: Doğu Anadolu | D22: 133368 | F22: 0
B23: =IF(isim>0,CONCATENATE(TRIM(isim)," ",UPPER(TRIM(soyisim))),"İsmini Göremedik") -> İsmini Göremedik | C23: Marmara | D23: 131514 | F23: 0
B24: Kemalettin TAN | C24: Ege | D24: 111146 | F24: 0
B25: Sevim SARPER | C25: Marmara | D25: 176391 | F25: 0
B26: Ayşe UYAN | C26: Marmara | D26: 64015 | F26: 0
B27: Engin AYDOĞAN | C27: Marmara | D27: 40211 | F27: 0
B28: Ayla KARA | C28: Ege | D28: 87324 | F28: 0
B29: Bülent AYDOĞAN | C29: Güneydoğu Anadolu | D29: 75801 | F29: 0
B30: Hakan DUMAN | C30: Karadeniz | D30: 50202 | F30: 0
B31: Efe YILDIZ | C31: Akdeniz | D31: 88161 | F31: 0
B32: Egemen ATAY | C32: Ege | D32: 113723 | F32: 0
B33: İlhan IŞIK | C33: İç Anadolu | D33: 151542 | F33: 0
B34: Fatih TANDOĞAN | C34: Marmara | D34: 114751 | F34: 0
B35: Seda DEĞİRMENCİ | C35: Ege | D35: 54748 | F35: 0
B36: Mustafa EMEK | C36: Ege | D36: 109347 | F36: 0
B37: Neslihan YILMAZ | C37: Güneydoğu Anadolu | D37: 69979 | F37: 0
B38: Gökhan YAĞIZ | C38: Ege | D38: 57125 | F38: 0
B39: Yasemin TURGUT | C39: Karadeniz | D39: 165033 | F39: 0
B40: Emin TEMEL | C40: Marmara | D40: 96199 | F40: 0
B41: Hayri ÖZEL | C41: Doğu Anadolu | D41: 63193 | F41: 0
B42: Can YILDIZ | C42: Karadeniz | D42: 90896 | F42: 0
B43: Berkay YALÇIN | C43: İç Anadolu | D43: 110257 | F43: 0
B44: Eren HASANOĞLU | C44: Karadeniz | D44: 82987 | F44: 0
B45: Ayşen ÇAKIR | C45: Ege | D45: 116121 | F45: 0
B46: Serdar ALADAĞ | C46: Güneydoğu Anadolu | D46: 64065 | F46: 0
B47: Emel YAŞİN | C47: Doğu Anadolu | D47: 90933 | F47: 0
B48: =IF(isim>0,CONCATENATE(TRIM(isim)," ",UPPER(TRIM(soyisim))),"İsmini Göremedik") -> İsmini Göremedik | C48: Marmara | D48: 90063 | F48: 0
B49: Kemalettin TAN | C49: Ege | D49: 120211 | F49: 0
B50: Sevim SARPER | C50: Marmara | D50: 49060 | F50: 0
B51: Ayşe UYAN | C51: Marmara | D51: 167219 | F51: 0
B52: Engin AYDOĞAN | C52: Marmara | D52: 57695 | F52: 0
B53: Ayla KARA | C53: Ege | D53: 157762 | F53: 0
B54: Bülent AYDOĞAN | C54: Güneydoğu Anadolu | D54: 126646 | F54: 0
B55: Hakan DUMAN | C55: Karadeniz | D55: 119302 | F55: 0

Sheet VE-YADA
B2: VE | C2: =IF(lang_op=1,"",IF(lang_op=2,"/ İngilizce Karşılığı ---->",IF(lang_op=3,"/ Fransızca Karşılığı ---->","/ Almanca Karşılığı ---->"))) -> / İngilizce Karşılığı ----> | E2: =IF(lang_op=2,VLOOKUP(B2,formuller,2,0),IF(lang_op=3,VLOOKUP(B2,formuller,3,0),IF(lang_op=4,VLOOKUP(B2,formuller,4,0),""))) -> AND
B3: YADA | C3: =IF(lang_op=1,"",IF(lang_op=2,"/ İngilizce Karşılığı ---->",IF(lang_op=3,"/ Fransızca Karşılığı ---->","/ Almanca Karşılığı ---->"))) -> / İngilizce Karşılığı ----> | E3: =IF(lang_op=2,VLOOKUP(B3,formuller,2,0),IF(lang_op=3,VLOOKUP(B3,formuller,3,0),IF(lang_op=4,VLOOKUP(B3,formuller,4,0),""))) -> OR
H5: 3
B6: Satış Temsilcisi | C6: Ürün | D6: Satış Tutarı | E6: Satış Adedi | F6: 1 | G6: 2 | J6: Ürün | K6: Adet | M6: İndirim Oranı | N6: =E2 -> AND | O6: 1
B7: Efe YILDIZ | C7: Asus | D7: 60310 | E7: 37 | J7: Asus | K7: 15 | M7: 0.1
B8: Egemen ATAY | C8: HP | D8: 64125 | E8: 45
B9: İlhan IŞIK | C9: Lenovo | D9: 77645 | E9: 53 | J9: Ürün | K9: Ürün | M9: İndirim Oranı | N9: =E3 -> OR | O9: 2
B10: Fatih TANDOĞAN | C10: Asus | D10: 19560 | E10: 12 | J10: Dell | K10: MSI | M10: 0.15
B11: Seda DEĞİRMENCİ | C11: MSI | D11: 95400 | E11: 45
B12: Mustafa EMEK | C12: Dell | D12: 78720 | E12: 48
B13: Neslihan YILMAZ | C13: HP | D13: 89775 | E13: 63 | J13: 1 | K13: =IFERROR(_xlfn.FORMULATEXT(F7),"") -> 
B14: Gökhan YAĞIZ | C14: Lenovo | D14: 82040 | E14: 56
B15: Yasemin TURGUT | C15: HP | D15: 66975 | E15: 47
B16: =IF(isim>0,CONCATENATE(TRIM(isim)," ",UPPER(TRIM(soyisim))),"İsmini Göremedik") -> İsmini Göremedik | C16: Asus | D16: 53790 | E16: 33 | J16: 1 | K16: =FormuluIngilizceyeCevir(F7) -> 
B17: Hayri ÖZEL | C17: Dell | D17: 93480 | E17: 57
B18: Can YILDIZ | C18: Asus | D18: 40750 | E18: 25
B19: Berkay YALÇIN | C19: Asus | D19: 48900 | E19: 30 | J19: 2 | K19: =IFERROR(_xlfn.FORMULATEXT(G7),"") -> 
B20: Eren HASANOĞLU | C20: MSI | D20: 144160 | E20: 68
B21: Ayşen ÇAKIR | C21: Dell | D21: 106600 | E21: 65
B22: Serdar ALADAĞ | C22: HP | D22: 69825 | E22: 49 | J22: 2 | K22: =FormuluIngilizceyeCevir(G7) -> 
B23: Emel YAŞİN | C23: Lenovo | D23: 43950 | E23: 30
B24: Yıldırım BOZKURT | C24: Dell | D24: 72160 | E24: 44
B25: Kemalettin TAN | C25: Asus | D25: 104320 | E25: 64
B26: Sevim SARPER | C26: Asus | D26: 73350 | E26: 45
B27: Ayşe UYAN | C27: HP | D27: 75525 | E27: 53
B28: =B16 -> İsmini Göremedik | C28: Lenovo | D28: 64460 | E28: 44
B29: Ayla KARA | C29: Dell | D29: 44280 | E29: 27
B30: Bülent AYDOĞAN | C30: HP | D30: 58425 | E30: 41
B31: Hakan DUMAN | C31: HP | D31: 59850 | E31: 42
B32: Efe YILDIZ | C32: Asus | D32: 60310 | E32: 37
B33: Emel YAŞİN | C33: Lenovo | D33: 39555 | E33: 27
B34: Yıldırım BOZKURT | C34: Dell | D34: 68880 | E34: 42
B35: Kemalettin TAN | C35: Asus | D35: 84760 | E35: 52
B36: Sevim SARPER | C36: Asus | D36: 32600 | E36: 20
B37: Ayşe UYAN | C37: HP | D37: 81225 | E37: 57
B38: Engin AYDOĞAN | C38: Lenovo | D38: 89365 | E38: 61
B39: Ayla KARA | C39: Dell | D39: 65600 | E39: 40
B40: Bülent AYDOĞAN | C40: HP | D40: 84075 | E40: 59
B41: Hakan DUMAN | C41: HP | D41: 31350 | E41: 22
B42: Efe YILDIZ | C42: Asus | D42: 107580 | E42: 66
B43: Egemen ATAY | C43: HP | D43: 25650 | E43: 18
B44: İlhan IŞIK | C44: Lenovo | D44: 52740 | E44: 36
B45: =B28 -> İsmini Göremedik | C45: Asus | D45: 88020 | E45: 54
B46: Seda DEĞİRMENCİ | C46: MSI | D46: 78440 | E46: 37
B47: Ayşe UYAN | C47: HP | D47: 51300 | E47: 36
B48: Engin AYDOĞAN | C48: Lenovo | D48: 30765 | E48: 21
B49: Ayla KARA | C49: Dell | D49: 31160 | E49: 19
B50: Bülent AYDOĞAN | C50: HP | D50: 94050 | E50: 66
B51: Hakan DUMAN | C51: HP | D51: 29925 | E51: 21
B52: Efe YILDIZ | C52: Asus | D52: 104320 | E52: 64
B53: Emel YAŞİN | C53: Lenovo | D53: 49810 | E53: 34
B54: Yıldırım BOZKURT | C54: Dell | D54: 55760 | E54: 34
B55: Kemalettin TAN | C55: Asus | D55: 105950 | E55: 65
B56: Berkay YALÇIN | C56: Asus | D56: 117360 | E56: 72
B57: Eren HASANOĞLU | C57: MSI | D57: 133560 | E57: 63
B58: Ayşen ÇAKIR | C58: Dell | D58: 72160 | E58: 44
B59: Serdar ALADAĞ | C59: HP | D59: 28500 | E59: 20
B60: Emel YAŞİN | C60: Lenovo | D60: 68855 | E60: 47

Sheet MetinselFonksiyonlar1
B2: Metinsel Fonksiyonlar - 1
B5: Fonksiyon | C5: =IF(lang_op=1,"",IF(lang_op=2,"İngilizce Karşılığı",IF(lang_op=3,"Fransızca Karşılığı","Almanca Karşılığı"))) -> İngilizce Karşılığı | D5: Metin | F5: Fonksiyon Sonucu
B6: BÜYÜKHARF | C6: =IF(lang_op=2,VLOOKUP(B6,formuller,2,0),IF(lang_op=3,VLOOKUP(B6,formuller,3,0),IF(lang_op=4,VLOOKUP(B6,formuller,4,0),""))) -> UPPER | D6: datahouse | H6: =IFERROR(_xlfn.FORMULATEXT(F6),"") ->  | T6: =IngFormul(F6) -> 
B7: KÜÇÜKHARF | C7: =IF(lang_op=2,VLOOKUP(B7,formuller,2,0),IF(lang_op=3,VLOOKUP(B7,formuller,3,0),IF(lang_op=4,VLOOKUP(B7,formuller,4,0),""))) -> LOWER | D7: MICROSOFT | H7: =IFERROR(_xlfn.FORMULATEXT(F7),"") ->  | T7: =IngFormul(F7) -> 
B8: YAZIM.DÜZENİ | C8: PROPER | D8: office ileri | T8: =IngFormul(F8) -> 
B9: KIRP | C9: TRIM | D9: excel eğitimi | T9: =IngFormul(F9) -> 
B10: BİRLEŞTİR | C10: CONCATENATE | D10: DataHouse | T10: =IngFormul(F10) -> 
B11: METİNBİRLEŞTİR | C11: TEXTJOIN | D11: DataHouse | T11: =IngFormul(F11) -> 
B12: ARALIKBİRLEŞTİR | C12: CONCAT | D12: DataHouse | T12: =IngFormul(F12) -> 

Sheet Metinsel Fonksiyonlar 2
B2: Metinsel Fonksiyonlar - 2
B5: Fonksiyon | C5: =IF(lang_op=1,"",IF(lang_op=2,"İngilizce Karşılığı",IF(lang_op=3,"Fransızca Karşılığı","Almanca Karşılığı"))) -> İngilizce Karşılığı | D5: Metin | E5: Fonksiyon Sonucu
B6: SOLDAN | C6: =IF(lang_op=2,VLOOKUP(B6,formuller,2,0),IF(lang_op=3,VLOOKUP(B6,formuller,3,0),IF(lang_op=4,VLOOKUP(B6,formuller,4,0),""))) -> LEFT | D6: Excel Eğitimi | G6: =IFERROR(_xlfn.FORMULATEXT(E6),"") ->  | AJ6: =IngFormul(E6) -> 
B8: SAĞDAN | C8: =IF(lang_op=2,VLOOKUP(B8,formuller,2,0),IF(lang_op=3,VLOOKUP(B8,formuller,3,0),IF(lang_op=4,VLOOKUP(B8,formuller,4,0),""))) -> RIGHT | D8: Excel Eğitimi | G8: =IFERROR(_xlfn.FORMULATEXT(E8),"") ->  | AJ8: =IngFormul(E8) -> 
AJ9: =IngFormul(E9) -> 
B10: PARÇAAL | C10: =IF(lang_op=2,VLOOKUP(B10,formuller,2,0),IF(lang_op=3,VLOOKUP(B10,formuller,3,0),IF(lang_op=4,VLOOKUP(B10,formuller,4,0),""))) -> MID | D10: Excel Eğitimi | G10: =IFERROR(_xlfn.FORMULATEXT(E10),"") ->  | AJ10: =IngFormul(E10) -> 
AJ11: =IngFormul(E11) -> 
B12: MBUL | C12: =IF(lang_op=2,VLOOKUP(B12,formuller,2,0),IF(lang_op=3,VLOOKUP(B12,formuller,3,0),IF(lang_op=4,VLOOKUP(B12,formuller,4,0),""))) -> SEARCH | D12: Excel Eğitimi | G12: =IFERROR(_xlfn.FORMULATEXT(E12),"") ->  | AJ12: =IngFormul(E12) -> 
AJ13: =IngFormul(E13) -> 
B14: UZUNLUK | C14: =IF(lang_op=2,VLOOKUP(B14,formuller,2,0),IF(lang_op=3,VLOOKUP(B14,formuller,3,0),IF(lang_op=4,VLOOKUP(B14,formuller,4,0),""))) -> LEN | D14: Excel Eğitimi | G14: =IFERROR(_xlfn.FORMULATEXT(E14),"") ->  | AJ14: =IngFormul(E14) -> 
M15: =IngFormul(E15) -> 
B30: Üretici Kod | C30: Kontrol | E30: Kod | F30: Marka | G30: İşlemci | H30: RAM | J30: Kod | K30: Marka | M30: Kod | N30: İşlemci | P30: Kod | Q30: RAM
B31: 2015685 | E31: AR-775-1 | F31: =IF(LEFT(E31,1)=$J$31,$K$31,IF(LEFT(E31,1)=$J$32,$K$32,$K$33)) -> Asus | G31: =IF(MID(E31,4,3)="675",$N$31,IF(MID(E31,4,3)="775",$N$32,$N$33)) -> i5 | H31: =IF(RIGHT(E31,1)="1",$Q$31,IF(RIGHT(E31,1)="2",$Q$32,$Q$33)) -> 8 GB | J31: A | K31: Asus | M31: 675 | N31: i3 | P31: 1 | Q31: 8 GB
B32: 8085769 | E32: DG-875-3 | F32: Dell | G32: i7 | H32: 16 GB | J32: H | K32: HP | M32: 775 | N32: i5 | P32: 2 | Q32: 12 GB
B33: 2115856 | E33: HW-775-2 | F33: HP | G33: i5 | H33: 12 GB | J33: D | K33: Dell | M33: 875 | N33: i7 | P33: 3 | Q33: 16 GB
B34: 2015942 | E34: DR-875-3 | F34: Dell | G34: i7 | H34: 16 GB
B35: 20770155 | E35: AG-675-1 | F35: Asus | G35: i3 | H35: 8 GB
B36: 3018123 | E36: DW-775-3 | F36: Dell | G36: i5 | H36: 16 GB
B37: 2016214
B38: 2019378
B39: 706495
B40: 2012553
B41: 281616
B42: 20165749
B43: 3016845
B44: 40169157
B45: 2017029
B46: 2119134
B47: 2017236
B48: 607342
B49: 2017411
B59: Fonksiyon | C59: =IF(lang_op=1,"",IF(lang_op=2,"İngilizce Karşılığı",IF(lang_op=3,"Fransızca Karşılığı","Almanca Karşılığı"))) -> İngilizce Karşılığı | D59: Metin | E59: Fonksiyon Sonucu
B60: DEĞİŞTİR | C60: =IF(lang_op=2,VLOOKUP(B60,formuller,2,0),IF(lang_op=3,VLOOKUP(B60,formuller,3,0),IF(lang_op=4,VLOOKUP(B60,formuller,4,0),""))) -> REPLACE | D60: Excel Eğitimi | E60: =REPLACE(D60,1,5,"PowerPoint") -> PowerPoint Eğitimi | H60: =IFERROR(_xlfn.FORMULATEXT(E60),"") -> =REPLACE(D60;1;5;"PowerPoint") | O60: =IngFormul(E60) -> =REPLACE(D60,1,5,"PowerPoint")
B62: METİNBÖL | C62: =IF(lang_op=2,VLOOKUP(B62,formuller,2,0),IF(lang_op=3,VLOOKUP(B62,formuller,3,0),IF(lang_op=4,VLOOKUP(B62,formuller,4,0),""))) -> TEXTSPLIT | D62: Excel Eğitimi | E62: =_xlfn.TEXTSPLIT(D62," ") -> Excel | F62: Eğitimi | H62: =IFERROR(_xlfn.FORMULATEXT(E62),"") -> =TEXTSPLIT(D62;" ") | O62: =IngFormul(E62) -> =TEXTSPLIT(D62," ")
B64: ÖZDEŞ | C64: =IF(lang_op=2,VLOOKUP(B64,formuller,2,0),IF(lang_op=3,VLOOKUP(B64,formuller,3,0),IF(lang_op=4,VLOOKUP(B64,formuller,4,0),""))) -> EXACT | D64: Excel Eğitimi | E64: =EXACT(D64,"excel eğitimi") -> FALSE | H64: =IFERROR(_xlfn.FORMULATEXT(E64),"") -> =EXACT(D64;"excel eğitimi") | O64: =IngFormul(E64) -> =EXACT(D64,"excel eğitimi")
B66: YİNELE | C66: =IF(lang_op=2,VLOOKUP(B66,formuller,2,0),IF(lang_op=3,VLOOKUP(B66,formuller,3,0),IF(lang_op=4,VLOOKUP(B66,formuller,4,0),""))) -> REPT | D66: Excel Eğitimi | E66: =REPT("Excel",3) -> ExcelExcelExcel | H66: =IFERROR(_xlfn.FORMULATEXT(E66),"") -> =REPT("Excel";3) | P66: =IngFormul(E66) -> =REPT("Excel",3)
B68: YERİNEKOY | C68: =IF(lang_op=2,VLOOKUP(B68,formuller,2,0),IF(lang_op=3,VLOOKUP(B68,formuller,3,0),IF(lang_op=4,VLOOKUP(B68,formuller,4,0),""))) -> SUBSTITUTE | D68: Excel Eğitimi | E68: =SUBSTITUTE(D68,"Excel","PowerPoint") -> PowerPoint Eğitimi | H68: =IFERROR(_xlfn.FORMULATEXT(E68),"") -> =SUBSTITUTE(D68;"Excel";"PowerPoint") | P68: =IngFormul(E68) -> =SUBSTITUTE(D68,"Excel","PowerPoint")
B70: DİLİALGILA | C70: =IF(lang_op=2,VLOOKUP(B70,formuller,2,0),IF(lang_op=3,VLOOKUP(B70,formuller,3,0),IF(lang_op=4,VLOOKUP(B70,formuller,4,0),""))) -> DETECTLANGUAGE | D70: Excel Eğitimi | E70: =_xlfn.DETECTLANGUAGE(D70) -> tr | H70: =IFERROR(_xlfn.FORMULATEXT(E70),"") -> =DETECTLANGUAGE(D70) | P70: =IngFormul(E70) -> =DETECTLANGUAGE(D70)
B72: DİLÇEVİR | C72: =IF(lang_op=2,VLOOKUP(B72,formuller,2,0),IF(lang_op=3,VLOOKUP(B72,formuller,3,0),IF(lang_op=4,VLOOKUP(B72,formuller,4,0),""))) -> TRANSLATE | D72: Excel Eğitimi | E72: =_xlfn.TRANSLATE(D72,"tr","en") -> Excel Tutorial | H72: =IFERROR(_xlfn.FORMULATEXT(E72),"") -> =TRANSLATE(D72;"tr";"en") | P72: =IngFormul(E72) -> =TRANSLATE(D72,"tr","en")
D74: Excel Eğitimi | E74: =_xlfn.TRANSLATE(D74,_xlfn.DETECTLANGUAGE(D74),"en") -> Excel Tutorial | H74: =IFERROR(_xlfn.FORMULATEXT(E74),"") -> =TRANSLATE(D74;DETECTLANGUAGE(D74);"en") | P74: =IngFormul(E74) -> =TRANSLATE(D74,DETECTLANGUAGE(D74),"en")

Sheet VeritabanıFonksiyonları1
B2: ETOPLA | C2: =IF(lang_op=1,"",IF(lang_op=2,"/ İngilizce Karşılığı ---->",IF(lang_op=3,"/ Fransızca Karşılığı ---->","/ Almanca Karşılığı ---->"))) -> / İngilizce Karşılığı ----> | F2: =IF(lang_op=2,VLOOKUP(B2,formuller,2,0),IF(lang_op=3,VLOOKUP(B2,formuller,3,0),IF(lang_op=4,VLOOKUP(B2,formuller,4,0),""))) -> SUMIF
B3: EĞERSAY | C3: =IF(lang_op=1,"",IF(lang_op=2,"/ İngilizce Karşılığı ---->",IF(lang_op=3,"/ Fransızca Karşılığı ---->","/ Almanca Karşılığı ---->"))) -> / İngilizce Karşılığı ----> | F3: =IF(lang_op=2,VLOOKUP(B3,formuller,2,0),IF(lang_op=3,VLOOKUP(B3,formuller,3,0),IF(lang_op=4,VLOOKUP(B3,formuller,4,0),""))) -> COUNTIF
B5: Satış Temsilcisi | C5: Bölge | D5: Ürün | E5: Satış Adedi | G5: Bölge | H5: Toplam Adet | J5: Bölge | K5: Tekrar Sayısı
B6: Efe YILDIZ | C6: Akdeniz | D6: Asus | E6: 145 | G6: Akdeniz | J6: Akdeniz
B7: Egemen ATAY | C7: Ege | D7: HP | E7: 119 | G7: Doğu Anadolu | J7: Doğu Anadolu
B8: İlhan IŞIK | C8: İç Anadolu | D8: Lenovo | E8: 82 | G8: Ege | J8: Ege
B9: Fatih TANDOĞAN | C9: Marmara | D9: Asus | E9: 28 | G9: Güneydoğu Anadolu | J9: Güneydoğu Anadolu
B10: Seda DEĞİRMENCİ | C10: Ege | D10: MSI | E10: 140 | G10: İç Anadolu | J10: İç Anadolu
B11: Mustafa EMEK | C11: Akdeniz | D11: Dell | E11: 58 | G11: Karadeniz | J11: Karadeniz
B12: Neslihan YILMAZ | C12: Güneydoğu Anadolu | D12: HP | E12: 153 | G12: Marmara | J12: Marmara
B13: Gökhan YAĞIZ | C13: Ege | D13: Lenovo | E13: 104
B14: Yasemin TURGUT | C14: Karadeniz | D14: HP | E14: 60 | G14: =IFERROR(_xlfn.FORMULATEXT(H6),"") ->  | J14: =IFERROR(_xlfn.FORMULATEXT(K6),"") -> 
B15: =IF(isim>0,CONCATENATE(TRIM(isim)," ",UPPER(TRIM(soyisim))),"İsmini Göremedik") -> İsmini Göremedik | C15: Marmara | D15: Asus | E15: 228
B16: Hayri ÖZEL | C16: Doğu Anadolu | D16: Dell | E16: 100 | G16: =IngFormul(H6) ->  | J16: =IngFormul(K6) -> 
B17: Can YILDIZ | C17: Karadeniz | D17: Asus | E17: 138
B18: Berkay YALÇIN | C18: İç Anadolu | D18: Asus | E18: 55
B19: Eren HASANOĞLU | C19: Karadeniz | D19: MSI | E19: 100 | G19: Toplam Adet | H19: Toplam Adet | J19: > 150 | K19: Dell
B20: Ayşen ÇAKIR | C20: Ege | D20: Dell | E20: 29
B21: Serdar ALADAĞ | C21: Güneydoğu Anadolu | D21: HP | E21: 123
B22: Emel YAŞİN | C22: Doğu Anadolu | D22: Lenovo | E22: 129
B23: Yıldırım BOZKURT | C23: Karadeniz | D23: Dell | E23: 119
B24: Kemalettin TAN | C24: Ege | D24: Asus | E24: 94
B25: Sevim SARPER | C25: Doğu Anadolu | D25: Asus | E25: 158
B26: Ayşe UYAN | C26: Marmara | D26: HP | E26: 106
B27: Engin AYDOĞAN | C27: Marmara | D27: Lenovo | E27: 151
B28: Ayla KARA | C28: Ege | D28: Dell | E28: 96
B29: Bülent AYDOĞAN | C29: Güneydoğu Anadolu | D29: HP | E29: 71
B30: Hakan DUMAN | C30: Karadeniz | D30: HP | E30: 128
B31: Efe YILDIZ | C31: Akdeniz | D31: Asus | E31: 93
B32: Emel YAŞİN | C32: Doğu Anadolu | D32: Lenovo | E32: 155
B33: Yıldırım BOZKURT | C33: Karadeniz | D33: Dell | E33: 41
B34: Kemalettin TAN | C34: Ege | D34: Asus | E34: 95
B35: Sevim SARPER | C35: Akdeniz | D35: Asus | E35: 91
B36: =IF(isim>0,CONCATENATE(TRIM(isim)," ",UPPER(TRIM(soyisim))),"İsmini Göremedik") -> İsmini Göremedik | C36: Marmara | D36: HP | E36: 52
B37: Engin AYDOĞAN | C37: Marmara | D37: Lenovo | E37: 138
B38: Ayla KARA | C38: Ege | D38: Dell | E38: 69
B39: Bülent AYDOĞAN | C39: Güneydoğu Anadolu | D39: HP | E39: 138
B40: Hakan DUMAN | C40: Karadeniz | D40: HP | E40: 153
B41: Efe YILDIZ | C41: Akdeniz | D41: Asus | E41: 37
B42: Egemen ATAY | C42: Ege | D42: HP | E42: 57
B43: İlhan IŞIK | C43: İç Anadolu | D43: Lenovo | E43: 53
B44: Berkay YALÇIN | C44: İç Anadolu | D44: Asus | E44: 88
B45: Seda DEĞİRMENCİ | C45: Ege | D45: MSI | E45: 118
B46: Ayşe UYAN | C46: Marmara | D46: HP | E46: 127
B47: Engin AYDOĞAN | C47: Doğu Anadolu | D47: Lenovo | E47: 65
B48: Ayla KARA | C48: Ege | D48: Dell | E48: 99
B49: Bülent AYDOĞAN | C49: Güneydoğu Anadolu | D49: HP | E49: 71
B50: Hakan DUMAN | C50: Karadeniz | D50: HP | E50: 91
B51: Efe YILDIZ | C51: Akdeniz | D51: Asus | E51: 59
B52: Emel YAŞİN | C52: Doğu Anadolu | D52: Lenovo | E52: 148
B53: Yıldırım BOZKURT | C53: Karadeniz | D53: Dell | E53: 81
B54: Kemalettin TAN | C54: Ege | D54: Asus | E54: 135
B55: Berkay YALÇIN | C55: İç Anadolu | D55: Asus | E55: 137
B56: Eren HASANOĞLU | C56: Karadeniz | D56: MSI | E56: 61
B57: Ayşen ÇAKIR | C57: Ege | D57: Dell | E57: 54
B58: Serdar ALADAĞ | C58: Güneydoğu Anadolu | D58: HP | E58: 66
B59: Emel YAŞİN | C59: Doğu Anadolu | D59: Lenovo | E59: 127
B60: Efe YILDIZ | C60: Akdeniz | D60: Asus | E60: 50
B61: Egemen ATAY | C61: Ege | D61: HP | E61: 65
B62: İlhan IŞIK | C62: İç Anadolu | D62: Lenovo | E62: 75
B63: Fatih TANDOĞAN | C63: Marmara | D63: Asus | E63: 154
B64: Seda DEĞİRMENCİ | C64: Ege | D64: MSI | E64: 136
B65: Mustafa EMEK | C65: Ege | D65: Dell | E65: 30
B66: Neslihan YILMAZ | C66: Güneydoğu Anadolu | D66: Asus | E66: 60
B67: Gökhan YAĞIZ | C67: Ege | D67: Lenovo | E67: 54
B68: Yasemin TURGUT | C68: Karadeniz | D68: HP | E68: 40
B69: Ayşe UYAN | C69: Akdeniz | D69: HP | E69: 102
B70: Engin AYDOĞAN | C70: Marmara | D70: Lenovo | E70: 147
B71: Ayla KARA | C71: Ege | D71: Dell | E71: 153
B72: Bülent AYDOĞAN | C72: Güneydoğu Anadolu | D72: HP | E72: 33
B73: Hakan DUMAN | C73: Karadeniz | D73: HP | E73: 120
B74: Efe YILDIZ | C74: Akdeniz | D74: Asus | E74: 61
B75: Emel YAŞİN | C75: Doğu Anadolu | D75: HP | E75: 87
B76: Yıldırım BOZKURT | C76: Karadeniz | D76: Lenovo | E76: 118
B77: Kemalettin TAN | C77: Ege | D77: Asus | E77: 144
B78: Berkay YALÇIN | C78: İç Anadolu | D78: HP | E78: 27
B79: Eren HASANOĞLU | C79: Karadeniz | D79: MSI | E79: 91
B80: Ayşen ÇAKIR | C80: Ege | D80: Dell | E80: 83
B81: Serdar ALADAĞ | C81: Güneydoğu Anadolu | D81: HP | E81: 68
B82: Berkay YALÇIN | C82: İç Anadolu | D82: Lenovo | E82: 67
B83: Eren HASANOĞLU | C83: Karadeniz | D83: MSI | E83: 144
B84: Ayşen ÇAKIR | C84: Ege | D84: Dell | E84: 156
B85: Serdar ALADAĞ | C85: Güneydoğu Anadolu | D85: HP | E85: 75
B86: Emel YAŞİN | C86: Doğu Anadolu | D86: Lenovo | E86: 68
B87: Yıldırım BOZKURT | C87: Karadeniz | D87: Dell | E87: 92
B88: Kemalettin TAN | C88: Ege | D88: Asus | E88: 120
B89: Sevim SARPER | C89: Marmara | D89: Asus | E89: 47
B90: Ayşe UYAN | C90: Marmara | D90: HP | E90: 30
B91: =IF(isim>0,CONCATENATE(TRIM(isim)," ",UPPER(TRIM(soyisim))),"İsmini Göremedik") -> İsmini Göremedik | C91: Marmara | D91: Lenovo | E91: 63
B92: Ayla KARA | C92: Ege | D92: Dell | E92: 115
B93: Bülent AYDOĞAN | C93: Güneydoğu Anadolu | D93: Lenovo | E93: 145
B94: Hakan DUMAN | C94: Karadeniz | D94: HP | E94: 98
B95: Efe YILDIZ | C95: Akdeniz | D95: Asus | E95: 154
B96: Emel YAŞİN | C96: Akdeniz | D96: Lenovo | E96: 72
B97: Berkay YALÇIN | C97: İç Anadolu | D97: MSI | E97: 67
B98: Eren HASANOĞLU | C98: Akdeniz | D98: MSI | E98: 144
B99: Ayşen ÇAKIR | C99: Marmara | D99: Dell | E99: 156
B100: Serdar ALADAĞ | C100: Güneydoğu Anadolu | D100: MSI | E100: 75
B101: Emel YAŞİN | C101: İç Anadolu | D101: MSI | E101: 68
B102: Yıldırım BOZKURT | C102: Güneydoğu Anadolu | D102: MSI | E102: 92
B103: Kemalettin TAN | C103: İç Anadolu | D103: MSI | E103: 120
B104: Sevim SARPER | C104: Marmara | D104: MSI | E104: 47
B105: Ayşe UYAN | C105: Doğu Anadolu | D105: MSI | E105: 30
B106: İsmini Göremedik | C106: İç Anadolu | D106: Dell | E106: 63
B107: Ayla KARA | C107: Akdeniz | D107: MSI | E107: 115
B108: Bülent AYDOĞAN | C108: Güneydoğu Anadolu | D108: Dell | E108: 145
B109: Hakan DUMAN | C109: Doğu Anadolu | D109: MSI | E109: 98
B110: Efe YILDIZ | C110: Akdeniz | D110: Asus | E110: 154
B111: Emel YAŞİN | C111: Marmara | D111: MSI | E111: 72

Sheet VeritabanıFonksiyonları2
B2: ÇOKETOPLA | C2: =IF(lang_op=1,"",IF(lang_op=2,"/ İngilizce Karşılığı ---->",IF(lang_op=3,"/ Fransızca Karşılığı ---->","/ Almanca Karşılığı ---->"))) -> / İngilizce Karşılığı ----> | F2: =IF(lang_op=2,VLOOKUP(B2,formuller,2,0),IF(lang_op=3,VLOOKUP(B2,formuller,3,0),IF(lang_op=4,VLOOKUP(B2,formuller,4,0),""))) -> SUMIFS
B4: Satış Temsilcisi | C4: Bölge | D4: Ürün | E4: Satış Adedi | G4: Bölge | H4: Ürün | I4: Toplam Adet
B5: Efe YILDIZ | C5: Akdeniz | D5: Asus | E5: 145 | G5: Akdeniz | H5: Lenovo
B6: Egemen ATAY | C6: Ege | D6: HP | E6: 119 | G6: Ege | H6: =H5 -> Lenovo
B7: İlhan IŞIK | C7: İç Anadolu | D7: Lenovo | E7: 82 | G7: Marmara | H7: Lenovo
B8: Fatih TANDOĞAN | C8: Marmara | D8: Asus | E8: 28 | G8: Karadeniz | H8: Lenovo
B9: Seda DEĞİRMENCİ | C9: Ege | D9: MSI | E9: 140 | G9: İç Anadolu | H9: Lenovo
B10: Mustafa EMEK | C10: Akdeniz | D10: Dell | E10: 58 | G10: Doğu Anadolu | H10: Lenovo
B11: Neslihan YILMAZ | C11: Güneydoğu Anadolu | D11: Dell | E11: 153 | G11: Güneydoğu Anadolu | H11: Lenovo
B12: Gökhan YAĞIZ | C12: Ege | D12: Lenovo | E12: 104
B13: Yasemin TURGUT | C13: İç Anadolu | D13: HP | E13: 60 | G13: =IFERROR(_xlfn.FORMULATEXT(I5),"") -> 
B14: =IF(isim>0,CONCATENATE(TRIM(isim)," ",UPPER(TRIM(soyisim))),"İsmini Göremedik") -> İsmini Göremedik | C14: Marmara | D14: Asus | E14: 35
B15: Hayri ÖZEL | C15: Doğu Anadolu | D15: HP | E15: 100 | G15: =IngFormul(I5) -> 
B16: Can YILDIZ | C16: Karadeniz | D16: Asus | E16: 138
B17: Berkay YALÇIN | C17: İç Anadolu | D17: Asus | E17: 55
B18: Eren HASANOĞLU | C18: Karadeniz | D18: MSI | E18: 100
B19: Ayşen ÇAKIR | C19: Ege | D19: Dell | E19: 29
B20: Serdar ALADAĞ | C20: Güneydoğu Anadolu | D20: HP | E20: 123
B21: Emel YAŞİN | C21: Doğu Anadolu | D21: Lenovo | E21: 129
B22: Yıldırım BOZKURT | C22: Karadeniz | D22: Dell | E22: 119
B23: Kemalettin TAN | C23: Ege | D23: Asus | E23: 94
B24: Sevim SARPER | C24: Doğu Anadolu | D24: Asus | E24: 158
B25: Ayşe UYAN | C25: Marmara | D25: HP | E25: 106
B26: Engin AYDOĞAN | C26: Marmara | D26: Lenovo | E26: 151
B27: Ayla KARA | C27: Ege | D27: Dell | E27: 96
B28: Bülent AYDOĞAN | C28: Güneydoğu Anadolu | D28: Asus | E28: 71
B29: Hakan DUMAN | C29: Karadeniz | D29: HP | E29: 128
B30: Efe YILDIZ | C30: Akdeniz | D30: Asus | E30: 93
B31: Emel YAŞİN | C31: Doğu Anadolu | D31: Lenovo | E31: 155
B32: Yıldırım BOZKURT | C32: Karadeniz | D32: Dell | E32: 41
B33: Kemalettin TAN | C33: Ege | D33: Asus | E33: 95
B34: Sevim SARPER | C34: Akdeniz | D34: Asus | E34: 91
B35: =IF(isim>0,CONCATENATE(TRIM(isim)," ",UPPER(TRIM(soyisim))),"İsmini Göremedik") -> İsmini Göremedik | C35: Marmara | D35: HP | E35: 52
B36: Engin AYDOĞAN | C36: Marmara | D36: Lenovo | E36: 138
B37: Ayla KARA | C37: Ege | D37: Dell | E37: 69
B38: Bülent AYDOĞAN | C38: Güneydoğu Anadolu | D38: HP | E38: 138
B39: Hakan DUMAN | C39: Karadeniz | D39: HP | E39: 153
B40: Efe YILDIZ | C40: Akdeniz | D40: Asus | E40: 37
B41: Egemen ATAY | C41: Ege | D41: HP | E41: 57
B42: İlhan IŞIK | C42: İç Anadolu | D42: Lenovo | E42: 53
B43: Berkay YALÇIN | C43: İç Anadolu | D43: Asus | E43: 88
B44: Seda DEĞİRMENCİ | C44: Ege | D44: MSI | E44: 118
B45: Ayşe UYAN | C45: Marmara | D45: HP | E45: 127
B46: Engin AYDOĞAN | C46: Doğu Anadolu | D46: Dell | E46: 65
B47: Ayla KARA | C47: Ege | D47: Dell | E47: 99
B48: Bülent AYDOĞAN | C48: Güneydoğu Anadolu | D48: HP | E48: 71
B49: Hakan DUMAN | C49: Karadeniz | D49: HP | E49: 91
B50: Efe YILDIZ | C50: Akdeniz | D50: Asus | E50: 59
B51: Emel YAŞİN | C51: Doğu Anadolu | D51: Lenovo | E51: 148
B52: Yıldırım BOZKURT | C52: Karadeniz | D52: Dell | E52: 81
B53: Kemalettin TAN | C53: Ege | D53: Asus | E53: 135
B54: Berkay YALÇIN | C54: İç Anadolu | D54: Asus | E54: 137
B55: Eren HASANOĞLU | C55: Karadeniz | D55: MSI | E55: 61
B56: Ayşen ÇAKIR | C56: Ege | D56: Dell | E56: 54
B57: Serdar ALADAĞ | C57: Güneydoğu Anadolu | D57: HP | E57: 66
B58: Emel YAŞİN | C58: Doğu Anadolu | D58: Lenovo | E58: 127
B59: Efe YILDIZ | C59: Akdeniz | D59: Asus | E59: 50
B60: Egemen ATAY | C60: Ege | D60: HP | E60: 65
B61: İlhan IŞIK | C61: İç Anadolu | D61: Lenovo | E61: 75
B62: Fatih TANDOĞAN | C62: Marmara | D62: Asus | E62: 154
B63: Seda DEĞİRMENCİ | C63: Ege | D63: MSI | E63: 136
B64: Mustafa EMEK | C64: Ege | D64: Dell | E64: 30
B65: Neslihan YILMAZ | C65: Güneydoğu Anadolu | D65: HP | E65: 60
B66: Gökhan YAĞIZ | C66: Ege | D66: Lenovo | E66: 54
B67: Yasemin TURGUT | C67: Karadeniz | D67: HP | E67: 40
B68: Ayşe UYAN | C68: Akdeniz | D68: HP | E68: 102
B69: Engin AYDOĞAN | C69: Marmara | D69: Lenovo | E69: 147
B70: Ayla KARA | C70: Ege | D70: Dell | E70: 153
B71: Bülent AYDOĞAN | C71: Güneydoğu Anadolu | D71: HP | E71: 33
B72: Hakan DUMAN | C72: Karadeniz | D72: HP | E72: 120
B73: Efe YILDIZ | C73: Akdeniz | D73: Asus | E73: 61
B74: Emel YAŞİN | C74: Doğu Anadolu | D74: Lenovo | E74: 87
B75: Yıldırım BOZKURT | C75: Karadeniz | D75: Dell | E75: 118
B76: Kemalettin TAN | C76: Ege | D76: Asus | E76: 144
B77: Berkay YALÇIN | C77: İç Anadolu | D77: Asus | E77: 27
B78: Eren HASANOĞLU | C78: Karadeniz | D78: MSI | E78: 91
B79: Ayşen ÇAKIR | C79: Ege | D79: Dell | E79: 83
B80: Serdar ALADAĞ | C80: Güneydoğu Anadolu | D80: HP | E80: 68
B81: Berkay YALÇIN | C81: İç Anadolu | D81: Lenovo | E81: 67
B82: Eren HASANOĞLU | C82: Karadeniz | D82: MSI | E82: 144
B83: Ayşen ÇAKIR | C83: Ege | D83: Dell | E83: 156
B84: Serdar ALADAĞ | C84: Güneydoğu Anadolu | D84: HP | E84: 75
B85: Emel YAŞİN | C85: Doğu Anadolu | D85: Lenovo | E85: 68
B86: Yıldırım BOZKURT | C86: Karadeniz | D86: Dell | E86: 92
B87: Kemalettin TAN | C87: Ege | D87: Asus | E87: 120
B88: Sevim SARPER | C88: Marmara | D88: Asus | E88: 47
B89: Ayşe UYAN | C89: Marmara | D89: HP | E89: 30
B90: =IF(isim>0,CONCATENATE(TRIM(isim)," ",UPPER(TRIM(soyisim))),"İsmini Göremedik") -> İsmini Göremedik | C90: Marmara | D90: Lenovo | E90: 63
B91: Ayla KARA | C91: Ege | D91: Dell | E91: 115
B92: Bülent AYDOĞAN | C92: Güneydoğu Anadolu | D92: HP | E92: 145
B93: Hakan DUMAN | C93: Karadeniz | D93: HP | E93: 98
B94: Efe YILDIZ | C94: Akdeniz | D94: Asus | E94: 154
B95: Emel YAŞİN | C95: Akdeniz | D95: Lenovo | E95: 72
B96: Efe YILDIZ | C96: Akdeniz | D96: Dell | E96: 145
B97: Egemen ATAY | C97: Ege | D97: Dell | E97: 119
B98: İlhan IŞIK | C98: İç Anadolu | D98: Dell | E98: 82
B99: Fatih TANDOĞAN | C99: Marmara | D99: Dell | E99: 28
B100: Seda DEĞİRMENCİ | C100: Ege | D100: Dell | E100: 140
B101: Mustafa EMEK | C101: Akdeniz | D101: Dell | E101: 58
B102: Neslihan YILMAZ | C102: Doğu Anadolu | D102: Dell | E102: 153
B103: Gökhan YAĞIZ | C103: Ege | D103: Dell | E103: 104
B104: Yasemin TURGUT | C104: İç Anadolu | D104: Dell | E104: 60
B105: Efe YILDIZ | C105: Akdeniz | D105: MSI | E105: 145
B106: Egemen ATAY | C106: Ege | D106: MSI | E106: 119
B107: İlhan IŞIK | C107: İç Anadolu | D107: MSI | E107: 82
B108: Fatih TANDOĞAN | C108: Marmara | D108: MSI | E108: 28
B109: Seda DEĞİRMENCİ | C109: Ege | D109: MSI | E109: 140
B110: Mustafa EMEK | C110: Akdeniz | D110: MSI | E110: 58
B111: Neslihan YILMAZ | C111: Doğu Anadolu | D111: MSI | E111: 153
B112: Gökhan YAĞIZ | C112: Ege | D112: Dell | E112: 104
B113: Yasemin TURGUT | C113: Karadeniz | D113: Lenovo | E113: 60
B114: Bülent AYDOĞAN | C114: Güneydoğu Anadolu | D114: MSI | E114: 145
B115: Bülent AYDOĞAN | C115: Güneydoğu Anadolu | D115: Lenovo | E115: 145

Sheet Pano1 (hidden)
B4: Ürün | C4: Toplam Adet | G4: Toplam Adet | M4: =C13 -> Lenovo | O4: Tüm Bölgeler
B5: Asus | C5: =SUMIF(VeritabanıFonksiyonları1!D:D,Pano1!B5,VeritabanıFonksiyonları1!E:E) -> 2525 | D5: =_xlfn.RANK.EQ(C5,$C$5:$C$9) -> 1 | E5: 1 | F5: =INDEX($B$5:$B$9,MATCH(E5,$D$5:$D$9,0)) -> Asus | G5: =VLOOKUP(F5,$B$5:$C$9,2,0) -> 2525 | W5: Satış Temsilcisi | Y5: Bölge | AA5: Ürün
B6: HP | C6: =SUMIF(VeritabanıFonksiyonları1!D:D,Pano1!B6,VeritabanıFonksiyonları1!E:E) -> 2260 | D6: =_xlfn.RANK.EQ(C6,$C$5:$C$9) -> 2 | E6: 2 | F6: =INDEX($B$5:$B$9,MATCH(E6,$D$5:$D$9,0)) -> HP | G6: =VLOOKUP(F6,$B$5:$C$9,2,0) -> 2260 | M6: En Yüksek Satış Adedi" | O6: En Yüksek Satış Adedi | W6: Efe YILDIZ | Y6: Akdeniz | AA6: Asus
B7: Lenovo | C7: =SUMIF(VeritabanıFonksiyonları1!D:D,Pano1!B7,VeritabanıFonksiyonları1!E:E) -> 1961 | D7: =_xlfn.RANK.EQ(C7,$C$5:$C$9) -> 3 | E7: 3 | F7: =INDEX($B$5:$B$9,MATCH(E7,$D$5:$D$9,0)) -> Lenovo | G7: =VLOOKUP(F7,$B$5:$C$9,2,0) -> 1961 | M7: =_xlfn.MAXIFS(VeritabanıFonksiyonları1!E:E,VeritabanıFonksiyonları1!D:D,Pano1!C13) -> 155 | O7: =MAX(VeritabanıFonksiyonları1!E:E) -> 228 | W7: Egemen ATAY | Y7: Ege | AA7: HP
B8: MSI | C8: =SUMIF(VeritabanıFonksiyonları1!D:D,Pano1!B8,VeritabanıFonksiyonları1!E:E) -> 1718 | D8: =_xlfn.RANK.EQ(C8,$C$5:$C$9) -> 5 | E8: 4 | F8: =INDEX($B$5:$B$9,MATCH(E8,$D$5:$D$9,0)) -> Dell | G8: =VLOOKUP(F8,$B$5:$C$9,2,0) -> 1739 | W8: İlhan IŞIK | Y8: İç Anadolu | AA8: Lenovo
B9: Dell | C9: =SUMIF(VeritabanıFonksiyonları1!D:D,Pano1!B9,VeritabanıFonksiyonları1!E:E) -> 1739 | D9: =_xlfn.RANK.EQ(C9,$C$5:$C$9) -> 4 | E9: 5 | F9: =INDEX($B$5:$B$9,MATCH(E9,$D$5:$D$9,0)) -> MSI | G9: =VLOOKUP(F9,$B$5:$C$9,2,0) -> 1718 | M9: Satış Elemanı | O9: Satış Elemanı | W9: Fatih TANDOĞAN | Y9: Marmara | AA9: MSI
M10: =INDEX(VeritabanıFonksiyonları1!B:B,MATCH(Pano1!M7,VeritabanıFonksiyonları1!E:E,0)) -> Emel YAŞİN | O10: =INDEX(VeritabanıFonksiyonları1!B:B,MATCH(Pano1!O7,VeritabanıFonksiyonları1!E:E,0)) -> İsmini Göremedik | W10: Seda DEĞİRMENCİ | Y10: Güneydoğu Anadolu | AA10: Dell
W11: Mustafa EMEK | Y11: Doğu Anadolu
B12: Bölge | C12: Ürün | D12: Toplam Adet | I12: Toplam Adet | M12: Bölge | O12: Bölge | W12: Neslihan YILMAZ | Y12: Karadeniz
B13: Akdeniz | C13: Lenovo | D13: =SUMIFS(VeritabanıFonksiyonları1!E:E,VeritabanıFonksiyonları1!C:C,Pano1!B13,VeritabanıFonksiyonları1!D:D,Pano1!C13) -> 72 | F13: =_xlfn.RANK.EQ(D13,$D$13:$D$19) -> 7 | G13: 1 | H13: =INDEX($B$13:$B$19,MATCH(G13,$F$13:$F$19,0)) -> Doğu Anadolu | I13: =VLOOKUP(H13,$B$13:$D$19,3,0) -> 692 | K13: =IF(MAX($I$13:$I$19)=I13,I13,"") -> 692 | M13: =INDEX(VeritabanıFonksiyonları1!C:C,MATCH(Pano1!M7,VeritabanıFonksiyonları1!$E:$E,0))&" Bölgesi" -> Doğu Anadolu Bölgesi | O13: =INDEX(VeritabanıFonksiyonları1!C:C,MATCH(Pano1!O7,VeritabanıFonksiyonları1!$E:$E,0))&" Bölgesi" -> Marmara Bölgesi | W13: Gökhan YAĞIZ
B14: Ege | C14: =C13 -> Lenovo | D14: =SUMIFS(VeritabanıFonksiyonları1!E:E,VeritabanıFonksiyonları1!C:C,Pano1!B14,VeritabanıFonksiyonları1!D:D,Pano1!C14) -> 158 | F14: =_xlfn.RANK.EQ(D14,$D$13:$D$19) -> 4 | G14: 2 | H14: =INDEX($B$13:$B$19,MATCH(G14,$F$13:$F$19,0)) -> Marmara | I14: =VLOOKUP(H14,$B$13:$D$19,3,0) -> 499 | K14: =IF(MAX($I$13:$I$19)=I14,I14,"") ->  | W14: Yasemin TURGUT
B15: Marmara | C15: Lenovo | D15: =SUMIFS(VeritabanıFonksiyonları1!E:E,VeritabanıFonksiyonları1!C:C,Pano1!B15,VeritabanıFonksiyonları1!D:D,Pano1!C15) -> 499 | F15: 2 | G15: 3 | H15: İç Anadolu | I15: 277 | W15: =IF(isim>0,CONCATENATE(TRIM(isim)," ",UPPER(TRIM(soyisim))),"İsmini Göremedik") -> İsmini Göremedik
B16: Karadeniz | C16: Lenovo | D16: =SUMIFS(VeritabanıFonksiyonları1!E:E,VeritabanıFonksiyonları1!C:C,Pano1!B16,VeritabanıFonksiyonları1!D:D,Pano1!C16) -> 118 | F16: 6 | G16: 4 | H16: Ege | I16: 158 | W16: Hayri ÖZEL
B17: İç Anadolu | C17: Lenovo | D17: =SUMIFS(VeritabanıFonksiyonları1!E:E,VeritabanıFonksiyonları1!C:C,Pano1!B17,VeritabanıFonksiyonları1!D:D,Pano1!C17) -> 277 | F17: 3 | G17: 5 | H17: Güneydoğu Anadolu | I17: 145 | W17: Can YILDIZ
B18: Doğu Anadolu | C18: Lenovo | D18: =SUMIFS(VeritabanıFonksiyonları1!E:E,VeritabanıFonksiyonları1!C:C,Pano1!B18,VeritabanıFonksiyonları1!D:D,Pano1!C18) -> 692 | F18: 1 | G18: 6 | H18: Karadeniz | I18: 118 | W18: Berkay YALÇIN
B19: Güneydoğu Anadolu | C19: Lenovo | D19: =SUMIFS(VeritabanıFonksiyonları1!E:E,VeritabanıFonksiyonları1!C:C,Pano1!B19,VeritabanıFonksiyonları1!D:D,Pano1!C19) -> 145 | F19: 5 | G19: 7 | H19: Akdeniz | I19: 72 | W19: Eren HASANOĞLU
W20: Ayşen ÇAKIR
W21: Serdar ALADAĞ
W22: Emel YAŞİN
B23: Satış Temsilcisi | C23: Bölge | D23: Ürün | E23: Satış Adedi | W23: Yıldırım BOZKURT
B24: =_xlfn._xlws.FILTER(VeritabanıFonksiyonları1!B5:E111,VeritabanıFonksiyonları1!D5:D111=Pano1!C13) -> İlhan IŞIK | C24: İç Anadolu | D24: Lenovo | E24: 82 | W24: Kemalettin TAN
B25: Gökhan YAĞIZ | C25: Ege | D25: Lenovo | E25: 104 | W25: Sevim SARPER
B26: Emel YAŞİN | C26: Doğu Anadolu | D26: Lenovo | E26: 129 | W26: Ayşe UYAN
B27: Engin AYDOĞAN | C27: Marmara | D27: Lenovo | E27: 151 | W27: Engin AYDOĞAN
B28: Emel YAŞİN | C28: Doğu Anadolu | D28: Lenovo | E28: 155 | W28: Ayla KARA
B29: Engin AYDOĞAN | C29: Marmara | D29: Lenovo | E29: 138 | W29: Bülent AYDOĞAN
B30: İlhan IŞIK | C30: İç Anadolu | D30: Lenovo | E30: 53 | W30: Hakan DUMAN
B31: Engin AYDOĞAN | C31: Doğu Anadolu | D31: Lenovo | E31: 65
B32: Emel YAŞİN | C32: Doğu Anadolu | D32: Lenovo | E32: 148
B33: Emel YAŞİN | C33: Doğu Anadolu | D33: Lenovo | E33: 127
B34: İlhan IŞIK | C34: İç Anadolu | D34: Lenovo | E34: 75
B35: Gökhan YAĞIZ | C35: Ege | D35: Lenovo | E35: 54
B36: Engin AYDOĞAN | C36: Marmara | D36: Lenovo | E36: 147
B37: Yıldırım BOZKURT | C37: Karadeniz | D37: Lenovo | E37: 118
B38: Berkay YALÇIN | C38: İç Anadolu | D38: Lenovo | E38: 67
B39: Emel YAŞİN | C39: Doğu Anadolu | D39: Lenovo | E39: 68
B40: İsmini Göremedik | C40: Marmara | D40: Lenovo | E40: 63
B41: Bülent AYDOĞAN | C41: Güneydoğu Anadolu | D41: Lenovo | E41: 145
B42: Emel YAŞİN | C42: Akdeniz | D42: Lenovo | E42: 72

Sheet VeritabanıFonksiyonları3
B2: ÇOKEĞERSAY | C2: =IF(lang_op=1,"",IF(lang_op=2,"/ İngilizce Karşılığı ---->",IF(lang_op=3,"/ Fransızca Karşılığı ---->","/ Almanca Karşılığı ---->"))) -> / İngilizce Karşılığı ----> | F2: =IF(lang_op=2,VLOOKUP(B2,formuller,2,0),IF(lang_op=3,VLOOKUP(B2,formuller,3,0),IF(lang_op=4,VLOOKUP(B2,formuller,4,0),""))) -> COUNTIFS
B4: Satış Temsilcisi | C4: Bölge | D4: Ürün | E4: Satış Adedi | G4: Bölge | H4: Ürün | I4: Tekrar Sayısı
B5: Efe YILDIZ | C5: Akdeniz | D5: Asus | E5: 145 | G5: Akdeniz | H5: Lenovo
B6: Egemen ATAY | C6: Ege | D6: HP | E6: 119 | G6: Ege | H6: =H5 -> Lenovo
B7: İlhan IŞIK | C7: İç Anadolu | D7: Lenovo | E7: 82 | G7: Marmara | H7: Lenovo
B8: Fatih TANDOĞAN | C8: Marmara | D8: Asus | E8: 28 | G8: Karadeniz | H8: Lenovo
B9: Seda DEĞİRMENCİ | C9: Ege | D9: MSI | E9: 140 | G9: İç Anadolu | H9: Lenovo
B10: Mustafa EMEK | C10: Akdeniz | D10: Dell | E10: 58 | G10: Doğu Anadolu | H10: Lenovo
B11: Neslihan YILMAZ | C11: Güneydoğu Anadolu | D11: Dell | E11: 153 | G11: Güneydoğu Anadolu | H11: Lenovo
B12: Gökhan YAĞIZ | C12: Ege | D12: Lenovo | E12: 104
B13: Yasemin TURGUT | C13: İç Anadolu | D13: HP | E13: 60 | G13: =IFERROR(_xlfn.FORMULATEXT(I5),"") -> 
B14: =IF(isim>0,CONCATENATE(TRIM(isim)," ",UPPER(TRIM(soyisim))),"İsmini Göremedik") -> İsmini Göremedik | C14: Marmara | D14: Asus | E14: 35
B15: Hayri ÖZEL | C15: Doğu Anadolu | D15: HP | E15: 100 | G15: =IngFormul(I5) -> 
B16: Can YILDIZ | C16: Karadeniz | D16: Asus | E16: 138
B17: Berkay YALÇIN | C17: İç Anadolu | D17: Asus | E17: 55
B18: Eren HASANOĞLU | C18: Karadeniz | D18: MSI | E18: 100
B19: Ayşen ÇAKIR | C19: Ege | D19: Dell | E19: 29
B20: Serdar ALADAĞ | C20: Güneydoğu Anadolu | D20: HP | E20: 123
B21: Emel YAŞİN | C21: Doğu Anadolu | D21: Lenovo | E21: 129
B22: Yıldırım BOZKURT | C22: Karadeniz | D22: Dell | E22: 119
B23: Kemalettin TAN | C23: Ege | D23: Asus | E23: 94
B24: Sevim SARPER | C24: Doğu Anadolu | D24: Asus | E24: 158
B25: Ayşe UYAN | C25: Marmara | D25: HP | E25: 106
B26: Engin AYDOĞAN | C26: Marmara | D26: Lenovo | E26: 151
B27: Ayla KARA | C27: Ege | D27: Dell | E27: 96
B28: Bülent AYDOĞAN | C28: Güneydoğu Anadolu | D28: Asus | E28: 71
B29: Hakan DUMAN | C29: Karadeniz | D29: HP | E29: 128
B30: Efe YILDIZ | C30: Akdeniz | D30: Asus | E30: 93
B31: Emel YAŞİN | C31: Doğu Anadolu | D31: Lenovo | E31: 155
B32: Yıldırım BOZKURT | C32: Karadeniz | D32: Dell | E32: 41
B33: Kemalettin TAN | C33: Ege | D33: Asus | E33: 95
B34: Sevim SARPER | C34: Akdeniz | D34: Asus | E34: 91
B35: =IF(isim>0,CONCATENATE(TRIM(isim)," ",UPPER(TRIM(soyisim))),"İsmini Göremedik") -> İsmini Göremedik | C35: Marmara | D35: HP | E35: 52
B36: Engin AYDOĞAN | C36: Marmara | D36: Lenovo | E36: 138
B37: Ayla KARA | C37: Ege | D37: Dell | E37: 69
B38: Bülent AYDOĞAN | C38: Güneydoğu Anadolu | D38: HP | E38: 138
B39: Hakan DUMAN | C39: Karadeniz | D39: HP | E39: 153
B40: Efe YILDIZ | C40: Akdeniz | D40: Asus | E40: 37
B41: Egemen ATAY | C41: Ege | D41: HP | E41: 57
B42: İlhan IŞIK | C42: İç Anadolu | D42: Lenovo | E42: 53
B43: Berkay YALÇIN | C43: İç Anadolu | D43: Asus | E43: 88
B44: Seda DEĞİRMENCİ | C44: Ege | D44: MSI | E44: 118
B45: Ayşe UYAN | C45: Marmara | D45: HP | E45: 127
B46: Engin AYDOĞAN | C46: Doğu Anadolu | D46: Dell | E46: 65
B47: Ayla KARA | C47: Ege | D47: Dell | E47: 99
B48: Bülent AYDOĞAN | C48: Güneydoğu Anadolu | D48: HP | E48: 71
B49: Hakan DUMAN | C49: Karadeniz | D49: HP | E49: 91
B50: Efe YILDIZ | C50: Akdeniz | D50: Asus | E50: 59
B51: Emel YAŞİN | C51: Doğu Anadolu | D51: Lenovo | E51: 148
B52: Yıldırım BOZKURT | C52: Karadeniz | D52: Dell | E52: 81
B53: Kemalettin TAN | C53: Ege | D53: Asus | E53: 135
B54: Berkay YALÇIN | C54: İç Anadolu | D54: Asus | E54: 137
B55: Eren HASANOĞLU | C55: Karadeniz | D55: MSI | E55: 61
B56: Ayşen ÇAKIR | C56: Ege | D56: Dell | E56: 54
B57: Serdar ALADAĞ | C57: Güneydoğu Anadolu | D57: HP | E57: 66
B58: Emel YAŞİN | C58: Doğu Anadolu | D58: Lenovo | E58: 127
B59: Efe YILDIZ | C59: Akdeniz | D59: Asus | E59: 50
B60: Egemen ATAY | C60: Ege | D60: HP | E60: 65
B61: İlhan IŞIK | C61: İç Anadolu | D61: Lenovo | E61: 75
B62: Fatih TANDOĞAN | C62: Marmara | D62: Asus | E62: 154
B63: Seda DEĞİRMENCİ | C63: Ege | D63: MSI | E63: 136
B64: Mustafa EMEK | C64: Ege | D64: Dell | E64: 30
B65: Neslihan YILMAZ | C65: Güneydoğu Anadolu | D65: HP | E65: 60
B66: Gökhan YAĞIZ | C66: Ege | D66: Lenovo | E66: 54
B67: Yasemin TURGUT | C67: Karadeniz | D67: HP | E67: 40
B68: Ayşe UYAN | C68: Akdeniz | D68: HP | E68: 102
B69: Engin AYDOĞAN | C69: Marmara | D69: Lenovo | E69: 147
B70: Ayla KARA | C70: Ege | D70: Dell | E70: 153
B71: Bülent AYDOĞAN | C71: Güneydoğu Anadolu | D71: HP | E71: 33
B72: Hakan DUMAN | C72: Karadeniz | D72: HP | E72: 120
B73: Efe YILDIZ | C73: Akdeniz | D73: Asus | E73: 61
B74: Emel YAŞİN | C74: Doğu Anadolu | D74: Lenovo | E74: 87
B75: Yıldırım BOZKURT | C75: Karadeniz | D75: Dell | E75: 118
B76: Kemalettin TAN | C76: Ege | D76: Asus | E76: 144
B77: Berkay YALÇIN | C77: İç Anadolu | D77: Asus | E77: 27
B78: Eren HASANOĞLU | C78: Karadeniz | D78: MSI | E78: 91
B79: Ayşen ÇAKIR | C79: Ege | D79: Dell | E79: 83
B80: Serdar ALADAĞ | C80: Güneydoğu Anadolu | D80: HP | E80: 68
B81: Berkay YALÇIN | C81: İç Anadolu | D81: Lenovo | E81: 67
B82: Eren HASANOĞLU | C82: Karadeniz | D82: MSI | E82: 144
B83: Ayşen ÇAKIR | C83: Ege | D83: Dell | E83: 156
B84: Serdar ALADAĞ | C84: Güneydoğu Anadolu | D84: HP | E84: 75
B85: Emel YAŞİN | C85: Doğu Anadolu | D85: Lenovo | E85: 68
B86: Yıldırım BOZKURT | C86: Karadeniz | D86: Dell | E86: 92
B87: Kemalettin TAN | C87: Ege | D87: Asus | E87: 120
B88: Sevim SARPER | C88: Marmara | D88: Asus | E88: 47
B89: Ayşe UYAN | C89: Marmara | D89: HP | E89: 30
B90: =IF(isim>0,CONCATENATE(TRIM(isim)," ",UPPER(TRIM(soyisim))),"İsmini Göremedik") -> İsmini Göremedik | C90: Marmara | D90: Lenovo | E90: 63
B91: Ayla KARA | C91: Ege | D91: Dell | E91: 115
B92: Bülent AYDOĞAN | C92: Güneydoğu Anadolu | D92: HP | E92: 145
B93: Hakan DUMAN | C93: Karadeniz | D93: HP | E93: 98
B94: Efe YILDIZ | C94: Akdeniz | D94: Asus | E94: 154
B95: Emel YAŞİN | C95: Akdeniz | D95: Lenovo | E95: 72
B96: Efe YILDIZ | C96: Akdeniz | D96: Dell | E96: 145
B97: Egemen ATAY | C97: Ege | D97: Dell | E97: 119
B98: İlhan IŞIK | C98: İç Anadolu | D98: Dell | E98: 82
B99: Fatih TANDOĞAN | C99: Marmara | D99: Dell | E99: 28
B100: Seda DEĞİRMENCİ | C100: Ege | D100: Dell | E100: 140
B101: Mustafa EMEK | C101: Akdeniz | D101: Dell | E101: 58
B102: Neslihan YILMAZ | C102: Doğu Anadolu | D102: Dell | E102: 153
B103: Gökhan YAĞIZ | C103: Ege | D103: Dell | E103: 104
B104: Yasemin TURGUT | C104: İç Anadolu | D104: Dell | E104: 60
B105: Efe YILDIZ | C105: Akdeniz | D105: MSI | E105: 145
B106: Egemen ATAY | C106: Ege | D106: MSI | E106: 119
B107: İlhan IŞIK | C107: İç Anadolu | D107: MSI | E107: 82
B108: Fatih TANDOĞAN | C108: Marmara | D108: MSI | E108: 28
B109: Seda DEĞİRMENCİ | C109: Ege | D109: MSI | E109: 140
B110: Mustafa EMEK | C110: Akdeniz | D110: MSI | E110: 58
B111: Neslihan YILMAZ | C111: Doğu Anadolu | D111: MSI | E111: 153
B112: Gökhan YAĞIZ | C112: Ege | D112: Dell | E112: 104
B113: Yasemin TURGUT | C113: Karadeniz | D113: Lenovo | E113: 60
B114: Bülent AYDOĞAN | C114: Güneydoğu Anadolu | D114: MSI | E114: 145
B115: Bülent AYDOĞAN | C115: Güneydoğu Anadolu | D115: Lenovo | E115: 145

Sheet GruplaÖlçüt (hidden)
B2: GRUPLAÖLÇÜT | C2: =IF(lang_op=1,"",IF(lang_op=2,"/ İngilizce Karşılığı ---->",IF(lang_op=3,"/ Fransızca Karşılığı ---->","/ Almanca Karşılığı ---->"))) -> / İngilizce Karşılığı ----> | D2: =IF(lang_op=2,VLOOKUP(B2,formuller,2,0),IF(lang_op=3,VLOOKUP(B2,formuller,3,0),IF(lang_op=4,VLOOKUP(B2,formuller,4,0),""))) -> GROUPBY
B4: Satış Temsilcisi | C4: Bölge | D4: Şehir | E4: Ürün | F4: Satış Adedi
B5: İlhan IŞIK | C5: Akdeniz Bölgesi | D5: Antalya | E5: Lenovo | F5: 141
B6: Halime AŞAN | C6: Doğu Anadolu Bölgesi | D6: Van | E6: Lenovo | F6: 461
B7: Nagihan VATANSEVER | C7: Marmara Bölgesi | D7: İstanbul | E7: Dell | F7: 248
B8: Zeynep TATLITÜR | C8: Ege Bölgesi | D8: İzmir | E8: Dell | F8: 85
B9: Mustafa EMEK | C9: Karadeniz Bölgesi | D9: Artvin | E9: Lenovo | F9: 92
B10: Egemen ATAY | C10: İç Anadolu Bölgesi | D10: Ankara | E10: Lenovo | F10: 305
B11: Emel YAŞİN | C11: Ege Bölgesi | D11: Denizli | E11: Dell | F11: 18
B12: Gökhan YAĞIZ | C12: Karadeniz Bölgesi | D12: Artvin | E12: Dell | F12: 203
B13: Eren AKTÜRK | C13: İç Anadolu Bölgesi | D13: Konya | E13: MSI | F13: 32
B14: Hüseyin ALBAYRAK | C14: Karadeniz Bölgesi | D14: Ordu | E14: Dell | F14: 184
B15: Halime AŞAN | C15: Doğu Anadolu Bölgesi | D15: Van | E15: Asus | F15: 276
B16: Rıza SİLAHLIPODA | C16: Akdeniz Bölgesi | D16: Hatay | E16: Lenovo | F16: 410
B17: Hüseyin ALBAYRAK | C17: Karadeniz Bölgesi | D17: Ordu | E17: MSI | F17: 326
B18: Ersin KARADUT | C18: İç Anadolu Bölgesi | D18: Kayseri | E18: Dell | F18: 16
B19: Rıza SİLAHLIPODA | C19: Akdeniz Bölgesi | D19: Hatay | E19: Dell | F19: 292
B20: Tuğba TARCAN | C20: Akdeniz Bölgesi | D20: Hatay | E20: Dell | F20: 177
B21: Rahmi YALÇIN | C21: İç Anadolu Bölgesi | D21: Konya | E21: Dell | F21: 149
B22: Berkan KUMLU | C22: Ege Bölgesi | D22: İzmir | E22: Dell | F22: 32
B23: Fatih TÜRKYILMAZ | C23: Karadeniz Bölgesi | D23: Trabzon | E23: HP | F23: 331
B24: İsmail TÜRKÖNE | C24: Marmara Bölgesi | D24: İstanbul | E24: MSI | F24: 412
B25: Fatih TÜRKYILMAZ | C25: Karadeniz Bölgesi | D25: Trabzon | E25: Lenovo | F25: 451
B26: Kemalettin YALÇIN | C26: Güneydoğu Anadolu Bölgesi | D26: Gaziantep | E26: Lenovo | F26: 41
B27: Berkay YALÇIN | C27: Marmara Bölgesi | D27: Bilecik | E27: Lenovo | F27: 474
B28: Ayşen ÇAKIR | C28: Doğu Anadolu Bölgesi | D28: Erzincan | E28: MSI | F28: 441
B29: Hakan DUMAN | C29: Marmara Bölgesi | D29: Çanakkale | E29: Dell | F29: 301
B30: Eren HASANOĞLU | C30: Marmara Bölgesi | D30: Edirne | E30: Lenovo | F30: 111
B31: Eren HASANOĞLU | C31: Marmara Bölgesi | D31: Edirne | E31: Dell | F31: 280
B32: Ahmet SEVİNÇ | C32: Karadeniz Bölgesi | D32: Samsun | E32: Lenovo | F32: 271
B33: Fatih TÜRKYILMAZ | C33: Karadeniz Bölgesi | D33: Trabzon | E33: MSI | F33: 257
B34: Ayla KARA | C34: İç Anadolu Bölgesi | D34: Eskişehir | E34: MSI | F34: 282
B35: Efe YILDIZ | C35: İç Anadolu Bölgesi | D35: Ankara | E35: Dell | F35: 489
B36: Serdar ALADAĞ | C36: Güneydoğu Anadolu Bölgesi | D36: Diyarbakır | E36: Lenovo | F36: 311
B37: İsmail TÜRKÖNE | C37: Marmara Bölgesi | D37: İstanbul | E37: MSI | F37: 117
B38: Hüseyin ALBAYRAK | C38: Karadeniz Bölgesi | D38: Ordu | E38: Lenovo | F38: 251
B39: Servet DENİZ | C39: Karadeniz Bölgesi | D39: Ordu | E39: Dell | F39: 490
B40: Volkan ERTÜRK | C40: Marmara Bölgesi | D40: Bursa | E40: MSI | F40: 294
B41: Berkan KUMLU | C41: Ege Bölgesi | D41: İzmir | E41: Lenovo | F41: 290
B42: Can YILDIZ | C42: Karadeniz Bölgesi | D42: Sinop | E42: Dell | F42: 213
B43: Hayri ÖZEL | C43: Marmara Bölgesi | D43: Balıkesir | E43: Dell | F43: 207
B44: Eren AKTÜRK | C44: İç Anadolu Bölgesi | D44: Konya | E44: Dell | F44: 268
B45: Hami EREN | C45: Doğu Anadolu Bölgesi | D45: Malatya | E45: Dell | F45: 203
B46: Can YILDIZ | C46: Karadeniz Bölgesi | D46: Sinop | E46: Dell | F46: 286
B47: Ersin KARADUT | C47: İç Anadolu Bölgesi | D47: Kayseri | E47: Dell | F47: 398
B48: Egemen ATAY | C48: İç Anadolu Bölgesi | D48: Ankara | E48: Asus | F48: 297
B49: Servet DENİZ | C49: Karadeniz Bölgesi | D49: Ordu | E49: Lenovo | F49: 315
B50: Ayşe UYAN | C50: Marmara Bölgesi | D50: Edirne | E50: Dell | F50: 58
B51: Egemen ATAY | C51: İç Anadolu Bölgesi | D51: Ankara | E51: HP | F51: 260
B52: Ayşen ÇAKIR | C52: Doğu Anadolu Bölgesi | D52: Erzincan | E52: Dell | F52: 461
B53: Ömer GİRGİN | C53: Ege Bölgesi | D53: Kütahya | E53: MSI | F53: 224
B54: Fatih TANDOĞAN | C54: Akdeniz Bölgesi | D54: Antalya | E54: Dell | F54: 174
B55: İlhan IŞIK | C55: Akdeniz Bölgesi | D55: Antalya | E55: Dell | F55: 286
B56: Kamuran TEMUR | C56: İç Anadolu Bölgesi | D56: Kayseri | E56: MSI | F56: 232
B57: Mustafa EMEK | C57: Karadeniz Bölgesi | D57: Artvin | E57: MSI | F57: 186
B58: Hakkı ÖLMEZ | C58: Güneydoğu Anadolu Bölgesi | D58: Gaziantep | E58: Dell | F58: 239
B59: Egemen ATAY | C59: İç Anadolu Bölgesi | D59: Ankara | E59: MSI | F59: 454
B60: Ayşe UYAN | C60: Marmara Bölgesi | D60: Edirne | E60: Lenovo | F60: 402
B61: Sevim SARPER | C61: Marmara Bölgesi | D61: Çanakkale | E61: Lenovo | F61: 246
B62: Halime AŞAN | C62: Doğu Anadolu Bölgesi | D62: Van | E62: Dell | F62: 219
B63: Hüseyin ALBAYRAK | C63: Karadeniz Bölgesi | D63: Ordu | E63: Lenovo | F63: 385
B64: Hayri ÖZEL | C64: Marmara Bölgesi | D64: Balıkesir | E64: Lenovo | F64: 48
B65: Atilla YİĞİT | C65: Karadeniz Bölgesi | D65: Trabzon | E65: Lenovo | F65: 271
B66: Berkay YALÇIN | C66: Marmara Bölgesi | D66: Bilecik | E66: MSI | F66: 341
B67: Aliye GEZER | C67: Karadeniz Bölgesi | D67: Samsun | E67: Lenovo | F67: 422
B68: Rıza SİLAHLIPODA | C68: Akdeniz Bölgesi | D68: Hatay | E68: Dell | F68: 46
B69: Eren AKTÜRK | C69: İç Anadolu Bölgesi | D69: Konya | E69: Dell | F69: 17
B70: Hami EREN | C70: Doğu Anadolu Bölgesi | D70: Malatya | E70: Lenovo | F70: 356
B71: Emel YAŞİN | C71: Ege Bölgesi | D71: Denizli | E71: MSI | F71: 59
B72: Yıldırım BOZKURT | C72: Güneydoğu Anadolu Bölgesi | D72: Diyarbakır | E72: Lenovo | F72: 96
B73: Rahmi YALÇIN | C73: İç Anadolu Bölgesi | D73: Konya | E73: Lenovo | F73: 405
B74: Ayla KARA | C74: İç Anadolu Bölgesi | D74: Eskişehir | E74: Dell | F74: 431
B75: Bertuğ YENİŞEHİRLİ | C75: Doğu Anadolu Bölgesi | D75: Malatya | E75: MSI | F75: 239
B76: Gökhan YAĞIZ | C76: Marmara Bölgesi | D76: Balıkesir | E76: Lenovo | F76: 215
B77: Kemalettin YALÇIN | C77: Güneydoğu Anadolu Bölgesi | D77: Gaziantep | E77: MSI | F77: 333
B78: Rahmi YALÇIN | C78: İç Anadolu Bölgesi | D78: Konya | E78: Lenovo | F78: 457
B79: Hami EREN | C79: Doğu Anadolu Bölgesi | D79: Malatya | E79: Lenovo | F79: 492
B80: Yasemin TURGUT | C80: İç Anadolu Bölgesi | D80: Eskişehir | E80: HP | F80: 392
B81: Yıldırım BOZKURT | C81: Güneydoğu Anadolu Bölgesi | D81: Diyarbakır | E81: Lenovo | F81: 413
B82: Ersin KARADUT | C82: İç Anadolu Bölgesi | D82: Kayseri | E82: Dell | F82: 310
B83: İrem DERİN | C83: Güneydoğu Anadolu Bölgesi | D83: Şanlıurfa | E83: HP | F83: 97
B84: Tuğba TARCAN | C84: Akdeniz Bölgesi | D84: Hatay | E84: Lenovo | F84: 362
B85: Aliye GEZER | C85: Karadeniz Bölgesi | D85: Samsun | E85: HP | F85: 375
B86: Hakan DUMAN | C86: Marmara Bölgesi | D86: Çanakkale | E86: Lenovo | F86: 241
B87: Ömer GİRGİN | C87: Ege Bölgesi | D87: Kütahya | E87: Lenovo | F87: 331
B88: Bertuğ YENİŞEHİRLİ | C88: Doğu Anadolu Bölgesi | D88: Malatya | E88: MSI | F88: 145
B89: Rıza SİLAHLIPODA | C89: Akdeniz Bölgesi | D89: Hatay | E89: MSI | F89: 200
B90: Ersin KARADUT | C90: İç Anadolu Bölgesi | D90: Kayseri | E90: Dell | F90: 347
B91: İrem DERİN | C91: Güneydoğu Anadolu Bölgesi | D91: Şanlıurfa | E91: HP | F91: 419
B92: Efe YILDIZ | C92: Akdeniz Bölgesi | D92: Adana | E92: Asus | F92: 114
B93: Berkan KUMLU | C93: Ege Bölgesi | D93: İzmir | E93: Lenovo | F93: 372
B94: Serdar ALADAĞ | C94: Güneydoğu Anadolu Bölgesi | D94: Diyarbakır | E94: MSI | F94: 386
B95: Kemalettin YALÇIN | C95: Güneydoğu Anadolu Bölgesi | D95: Gaziantep | E95: MSI | F95: 449
B96: =IF(isim>0,CONCATENATE(TRIM(isim)," ",UPPER(TRIM(soyisim))),"İsmini Göremedik") -> İsmini Göremedik | C96: Marmara Bölgesi | D96: Bursa | E96: Dell | F96: 52
B97: Yasemin TURGUT | C97: İç Anadolu Bölgesi | D97: Eskişehir | E97: Lenovo | F97: 218
B98: Engin AYDOĞAN | C98: Doğu Anadolu Bölgesi | D98: Erzurum | E98: Dell | F98: 491
B99: Gökhan YAĞIZ | C99: Marmara Bölgesi | D99: Balıkesir | E99: MSI | F99: 345
B100: Kemalettin TAN | C100: Marmara Bölgesi | D100: Çanakkale | E100: HP | F100: 358
B101: Bertuğ YENİŞEHİRLİ | C101: Doğu Anadolu Bölgesi | D101: Malatya | E101: Dell | F101: 320
B102: Neslihan YILMAZ | C102: Karadeniz Bölgesi | D102: Artvin | E102: Dell | F102: 316
B103: Bülent AYDOĞAN | C103: Doğu Anadolu Bölgesi | D103: Erzincan | E103: Lenovo | F103: 260
B104: Egemen ATAY | C104: İç Anadolu Bölgesi | D104: Ankara | E104: HP | F104: 478
B105: Rıza SİLAHLIPODA | C105: Akdeniz Bölgesi | D105: Hatay | E105: Dell | F105: 171
B106: Ahmet SEVİNÇ | C106: Karadeniz Bölgesi | D106: Samsun | E106: Lenovo | F106: 156
B107: Tuğba TARCAN | C107: Akdeniz Bölgesi | D107: Hatay | E107: MSI | F107: 252
B108: Ömer GİRGİN | C108: Ege Bölgesi | D108: Kütahya | E108: HP | F108: 203
B109: Berkay YALÇIN | C109: Marmara Bölgesi | D109: Bilecik | E109: Lenovo | F109: 57
B110: Sevim SARPER | C110: Marmara Bölgesi | D110: Çanakkale | E110: Dell | F110: 176
B111: Serdar ALADAĞ | C111: Güneydoğu Anadolu Bölgesi | D111: Diyarbakır | E111: HP | F111: 48
B112: Gökhan YAĞIZ | C112: Marmara Bölgesi | D112: Balıkesir | E112: Dell | F112: 13
B113: Efe YILDIZ | C113: Akdeniz Bölgesi | D113: Adana | E113: Lenovo | F113: 353
B114: Can YILDIZ | C114: Karadeniz Bölgesi | D114: Sinop | E114: Lenovo | F114: 438
B115: Kemalettin YALÇIN | C115: Güneydoğu Anadolu Bölgesi | D115: Gaziantep | E115: Dell | F115: 493
B116: Nagihan VATANSEVER | C116: Marmara Bölgesi | D116: İstanbul | E116: MSI | F116: 413
B117: Ayla KARA | C117: İç Anadolu Bölgesi | D117: Eskişehir | E117: Lenovo | F117: 222
B118: Ayşe UYAN | C118: Marmara Bölgesi | D118: Edirne | E118: Dell | F118: 435
B119: Kemalettin TAN | C119: Marmara Bölgesi | D119: Çanakkale | E119: Lenovo | F119: 156
B120: Ayşen ÇAKIR | C120: Doğu Anadolu Bölgesi | D120: Erzincan | E120: Lenovo | F120: 197
B121: Can YILDIZ | C121: Karadeniz Bölgesi | D121: Sinop | E121: MSI | F121: 489
B122: Safiye TERGAN | C122: Doğu Anadolu Bölgesi | D122: Van | E122: Dell | F122: 22
B123: Neslihan YILMAZ | C123: Karadeniz Bölgesi | D123: Artvin | E123: MSI | F123: 338
B124: Emel YAŞİN | C124: Ege Bölgesi | D124: Denizli | E124: MSI | F124: 192
B125: Engin AYDOĞAN | C125: Doğu Anadolu Bölgesi | D125: Erzurum | E125: Lenovo | F125: 321
B126: Aliye GEZER | C126: Karadeniz Bölgesi | D126: Samsun | E126: Asus | F126: 45
B127: Ömer GİRGİN | C127: Ege Bölgesi | D127: Kütahya | E127: Lenovo | F127: 255
B128: Can YILDIZ | C128: Karadeniz Bölgesi | D128: Sinop | E128: Asus | F128: 91
B129: Atilla YİĞİT | C129: Karadeniz Bölgesi | D129: Trabzon | E129: MSI | F129: 467
B130: Neslihan YILMAZ | C130: Karadeniz Bölgesi | D130: Artvin | E130: Dell | F130: 420
B131: Yıldırım BOZKURT | C131: Güneydoğu Anadolu Bölgesi | D131: Diyarbakır | E131: MSI | F131: 181
B132: Kamil BURLU | C132: Güneydoğu Anadolu Bölgesi | D132: Şanlıurfa | E132: MSI | F132: 207
B133: Berkay YALÇIN | C133: Marmara Bölgesi | D133: Bilecik | E133: Dell | F133: 241
B134: Bülent AYDOĞAN | C134: Doğu Anadolu Bölgesi | D134: Erzincan | E134: MSI | F134: 409
B135: Nagihan VATANSEVER | C135: Marmara Bölgesi | D135: İstanbul | E135: Lenovo | F135: 210
B136: Seda DEĞİRMENCİ | C136: Akdeniz Bölgesi | D136: Antalya | E136: MSI | F136: 177
B137: Ömer GİRGİN | C137: Ege Bölgesi | D137: Kütahya | E137: MSI | F137: 84
B138: Nagihan VATANSEVER | C138: Marmara Bölgesi | D138: İstanbul | E138: Dell | F138: 400
B139: Aliye GEZER | C139: Karadeniz Bölgesi | D139: Samsun | E139: Dell | F139: 324
B140: Seda DEĞİRMENCİ | C140: Akdeniz Bölgesi | D140: Antalya | E140: HP | F140: 398
B141: Kamuran TEMUR | C141: İç Anadolu Bölgesi | D141: Kayseri | E141: Lenovo | F141: 396
B142: Nagihan VATANSEVER | C142: Marmara Bölgesi | D142: İstanbul | E142: Dell | F142: 463
B143: Eren HASANOĞLU | C143: Marmara Bölgesi | D143: Edirne | E143: MSI | F143: 45
B144: Bülent AYDOĞAN | C144: Doğu Anadolu Bölgesi | D144: Erzincan | E144: Dell | F144: 454
B145: Yıldırım BOZKURT | C145: Güneydoğu Anadolu Bölgesi | D145: Diyarbakır | E145: Dell | F145: 400
B146: İlhan IŞIK | C146: Akdeniz Bölgesi | D146: Antalya | E146: Lenovo | F146: 21
B147: Ersin KARADUT | C147: İç Anadolu Bölgesi | D147: Kayseri | E147: HP | F147: 418
B148: Ayşen ÇAKIR | C148: Doğu Anadolu Bölgesi | D148: Erzincan | E148: HP | F148: 249
B149: Emel YAŞİN | C149: Ege Bölgesi | D149: Denizli | E149: Dell | F149: 403
B150: İsmail TÜRKÖNE | C150: Marmara Bölgesi | D150: İstanbul | E150: HP | F150: 89
B151: Kamil BURLU | C151: Güneydoğu Anadolu Bölgesi | D151: Şanlıurfa | E151: Dell | F151: 237
B152: Fatih TÜRKYILMAZ | C152: Karadeniz Bölgesi | D152: Trabzon | E152: Dell | F152: 170
B153: Berkan KUMLU | C153: Ege Bölgesi | D153: İzmir | E153: Lenovo | F153: 445
B154: Serdar ALADAĞ | C154: Güneydoğu Anadolu Bölgesi | D154: Diyarbakır | E154: Dell | F154: 304
B155: Yıldırım BOZKURT | C155: Güneydoğu Anadolu Bölgesi | D155: Diyarbakır | E155: Dell | F155: 279
B156: Hakkı ÖLMEZ | C156: Güneydoğu Anadolu Bölgesi | D156: Gaziantep | E156: Lenovo | F156: 131
B157: Mustafa EMEK | C157: Karadeniz Bölgesi | D157: Artvin | E157: Lenovo | F157: 407
B158: Ömer GİRGİN | C158: Ege Bölgesi | D158: Kütahya | E158: Dell | F158: 144
B159: Gökhan YAĞIZ | C159: Karadeniz Bölgesi | D159: Artvin | E159: MSI | F159: 74
B160: Atilla YİĞİT | C160: Karadeniz Bölgesi | D160: Trabzon | E160: Asus | F160: 102
B161: Fatih TANDOĞAN | C161: Akdeniz Bölgesi | D161: Antalya | E161: Lenovo | F161: 61
B162: Zeynep TATLITÜR | C162: Ege Bölgesi | D162: İzmir | E162: MSI | F162: 338
B163: Hakan DUMAN | C163: Marmara Bölgesi | D163: Çanakkale | E163: Dell | F163: 61
B164: Ayla KARA | C164: İç Anadolu Bölgesi | D164: Eskişehir | E164: MSI | F164: 482
B165: Kamuran TEMUR | C165: İç Anadolu Bölgesi | D165: Kayseri | E165: MSI | F165: 69
B166: Ayşen ÇAKIR | C166: Doğu Anadolu Bölgesi | D166: Erzincan | E166: MSI | F166: 47
B167: Alper ÖNER | C167: Marmara Bölgesi | D167: Bursa | E167: Lenovo | F167: 172
B168: Hami EREN | C168: Doğu Anadolu Bölgesi | D168: Malatya | E168: HP | F168: 302
B169: Emel YAŞİN | C169: Ege Bölgesi | D169: Denizli | E169: Dell | F169: 447
B170: Safiye TERGAN | C170: Doğu Anadolu Bölgesi | D170: Van | E170: Lenovo | F170: 266
B171: Kamuran TEMUR | C171: İç Anadolu Bölgesi | D171: Kayseri | E171: MSI | F171: 209
B172: Yıldırım BOZKURT | C172: Güneydoğu Anadolu Bölgesi | D172: Diyarbakır | E172: MSI | F172: 174
B173: Ahmet SEVİNÇ | C173: Karadeniz Bölgesi | D173: Samsun | E173: Dell | F173: 125
B174: Fatih TANDOĞAN | C174: Akdeniz Bölgesi | D174: Antalya | E174: MSI | F174: 237
B175: Alper ÖNER | C175: Marmara Bölgesi | D175: Bursa | E175: MSI | F175: 474
B176: Kamuran TEMUR | C176: İç Anadolu Bölgesi | D176: Kayseri | E176: Lenovo | F176: 130
B177: Servet DENİZ | C177: Karadeniz Bölgesi | D177: Ordu | E177: MSI | F177: 196
B178: Zeynep TATLITÜR | C178: Ege Bölgesi | D178: İzmir | E178: Dell | F178: 464
B179: Can YILDIZ | C179: Karadeniz Bölgesi | D179: Sinop | E179: Dell | F179: 306
B180: Berkay YALÇIN | C180: Marmara Bölgesi | D180: Bilecik | E180: HP | F180: 12
B181: İsmail TÜRKÖNE | C181: Marmara Bölgesi | D181: İstanbul | E181: Lenovo | F181: 155
B182: Rıza SİLAHLIPODA | C182: Akdeniz Bölgesi | D182: Hatay | E182: Lenovo | F182: 397
B183: Servet DENİZ | C183: Karadeniz Bölgesi | D183: Ordu | E183: MSI | F183: 46
B184: Safiye TERGAN | C184: Doğu Anadolu Bölgesi | D184: Van | E184: Lenovo | F184: 418
B185: Hakkı ÖLMEZ | C185: Güneydoğu Anadolu Bölgesi | D185: Gaziantep | E185: Dell | F185: 259
B186: Atilla YİĞİT | C186: Karadeniz Bölgesi | D186: Trabzon | E186: Dell | F186: 312
B187: İrem DERİN | C187: Güneydoğu Anadolu Bölgesi | D187: Şanlıurfa | E187: Lenovo | F187: 453
B188: Can YILDIZ | C188: Karadeniz Bölgesi | D188: Sinop | E188: Lenovo | F188: 477
B189: Atilla YİĞİT | C189: Karadeniz Bölgesi | D189: Trabzon | E189: Asus | F189: 400
B190: Hüseyin ALBAYRAK | C190: Karadeniz Bölgesi | D190: Ordu | E190: Dell | F190: 298
B191: Efe YILDIZ | C191: Akdeniz Bölgesi | D191: Adana | E191: Asus | F191: 338
B192: Egemen ATAY | C192: İç Anadolu Bölgesi | D192: Ankara | E192: Asus | F192: 316
B193: İrem DERİN | C193: Güneydoğu Anadolu Bölgesi | D193: Şanlıurfa | E193: MSI | F193: 136
B194: Berkay YALÇIN | C194: Marmara Bölgesi | D194: Bilecik | E194: Dell | F194: 38
B195: Ahmet SEVİNÇ | C195: Karadeniz Bölgesi | D195: Samsun | E195: MSI | F195: 203
B196: Engin AYDOĞAN | C196: Doğu Anadolu Bölgesi | D196: Erzurum | E196: Dell | F196: 425
B197: Nagihan VATANSEVER | C197: Marmara Bölgesi | D197: İstanbul | E197: Dell | F197: 322
B198: Kamil BURLU | C198: Güneydoğu Anadolu Bölgesi | D198: Şanlıurfa | E198: Lenovo | F198: 258
B199: Emel YAŞİN | C199: Ege Bölgesi | D199: Denizli | E199: Lenovo | F199: 318
B200: Mustafa EMEK | C200: Karadeniz Bölgesi | D200: Artvin | E200: Dell | F200: 209
B201: Tuğba TARCAN | C201: Akdeniz Bölgesi | D201: Hatay | E201: Dell | F201: 237
B202: Sevim SARPER | C202: Marmara Bölgesi | D202: Çanakkale | E202: MSI | F202: 97
... 7 more rows

Sheet ÖzetÖlçüt (hidden)
B2: ÖZETÖLÇÜT | C2: =IF(lang_op=1,"",IF(lang_op=2,"/ İngilizce Karşılığı ---->",IF(lang_op=3,"/ Fransızca Karşılığı ---->","/ Almanca Karşılığı ---->"))) -> / İngilizce Karşılığı ----> | D2: =IF(lang_op=2,VLOOKUP(B2,formuller,2,0),IF(lang_op=3,VLOOKUP(B2,formuller,3,0),IF(lang_op=4,VLOOKUP(B2,formuller,4,0),""))) -> PIVOTBY
B4: Satış Temsilcisi | C4: Bölge | D4: Şehir | E4: Ürün | F4: Satış Adedi
B5: İlhan IŞIK | C5: Akdeniz Bölgesi | D5: Antalya | E5: Lenovo | F5: 141
B6: Halime AŞAN | C6: Doğu Anadolu Bölgesi | D6: Van | E6: Lenovo | F6: 461
B7: Nagihan VATANSEVER | C7: Marmara Bölgesi | D7: İstanbul | E7: Dell | F7: 248
B8: Zeynep TATLITÜR | C8: Ege Bölgesi | D8: İzmir | E8: Dell | F8: 85
B9: Mustafa EMEK | C9: Karadeniz Bölgesi | D9: Artvin | E9: Lenovo | F9: 92
B10: Egemen ATAY | C10: İç Anadolu Bölgesi | D10: Ankara | E10: Lenovo | F10: 305
B11: Emel YAŞİN | C11: Ege Bölgesi | D11: Denizli | E11: Dell | F11: 18
B12: Gökhan YAĞIZ | C12: Karadeniz Bölgesi | D12: Artvin | E12: Dell | F12: 203
B13: Eren AKTÜRK | C13: İç Anadolu Bölgesi | D13: Konya | E13: MSI | F13: 32 | G13: =IFERROR(_xlfn.FORMULATEXT(I5),"") -> 
B14: Hüseyin ALBAYRAK | C14: Karadeniz Bölgesi | D14: Ordu | E14: Dell | F14: 184
B15: Halime AŞAN | C15: Doğu Anadolu Bölgesi | D15: Van | E15: Asus | F15: 276
B16: Rıza SİLAHLIPODA | C16: Akdeniz Bölgesi | D16: Hatay | E16: Lenovo | F16: 410
B17: Hüseyin ALBAYRAK | C17: Karadeniz Bölgesi | D17: Ordu | E17: MSI | F17: 326
B18: Ersin KARADUT | C18: İç Anadolu Bölgesi | D18: Kayseri | E18: Dell | F18: 16
B19: Rıza SİLAHLIPODA | C19: Akdeniz Bölgesi | D19: Hatay | E19: Dell | F19: 292
B20: Tuğba TARCAN | C20: Akdeniz Bölgesi | D20: Hatay | E20: Dell | F20: 177
B21: Rahmi YALÇIN | C21: İç Anadolu Bölgesi | D21: Konya | E21: Dell | F21: 149
B22: Berkan KUMLU | C22: Ege Bölgesi | D22: İzmir | E22: Dell | F22: 32
B23: Fatih TÜRKYILMAZ | C23: Karadeniz Bölgesi | D23: Trabzon | E23: HP | F23: 331
B24: İsmail TÜRKÖNE | C24: Marmara Bölgesi | D24: İstanbul | E24: MSI | F24: 412
B25: Fatih TÜRKYILMAZ | C25: Karadeniz Bölgesi | D25: Trabzon | E25: Lenovo | F25: 451
B26: Kemalettin YALÇIN | C26: Güneydoğu Anadolu Bölgesi | D26: Gaziantep | E26: Lenovo | F26: 41
B27: Berkay YALÇIN | C27: Marmara Bölgesi | D27: Bilecik | E27: Lenovo | F27: 474
B28: Ayşen ÇAKIR | C28: Doğu Anadolu Bölgesi | D28: Erzincan | E28: MSI | F28: 441
B29: Hakan DUMAN | C29: Marmara Bölgesi | D29: Çanakkale | E29: Dell | F29: 301
B30: Eren HASANOĞLU | C30: Marmara Bölgesi | D30: Edirne | E30: Lenovo | F30: 111
B31: Eren HASANOĞLU | C31: Marmara Bölgesi | D31: Edirne | E31: Dell | F31: 280
B32: Ahmet SEVİNÇ | C32: Karadeniz Bölgesi | D32: Samsun | E32: Lenovo | F32: 271
B33: Fatih TÜRKYILMAZ | C33: Karadeniz Bölgesi | D33: Trabzon | E33: MSI | F33: 257
B34: Ayla KARA | C34: İç Anadolu Bölgesi | D34: Eskişehir | E34: MSI | F34: 282
B35: Efe YILDIZ | C35: İç Anadolu Bölgesi | D35: Ankara | E35: Dell | F35: 489
B36: Serdar ALADAĞ | C36: Güneydoğu Anadolu Bölgesi | D36: Diyarbakır | E36: Lenovo | F36: 311
B37: İsmail TÜRKÖNE | C37: Marmara Bölgesi | D37: İstanbul | E37: MSI | F37: 117
B38: Hüseyin ALBAYRAK | C38: Karadeniz Bölgesi | D38: Ordu | E38: Lenovo | F38: 251
B39: Servet DENİZ | C39: Karadeniz Bölgesi | D39: Ordu | E39: Dell | F39: 490
B40: Volkan ERTÜRK | C40: Marmara Bölgesi | D40: Bursa | E40: MSI | F40: 294
B41: Berkan KUMLU | C41: Ege Bölgesi | D41: İzmir | E41: Lenovo | F41: 290
B42: Can YILDIZ | C42: Karadeniz Bölgesi | D42: Sinop | E42: Dell | F42: 213
B43: Hayri ÖZEL | C43: Marmara Bölgesi | D43: Balıkesir | E43: Dell | F43: 207
B44: Eren AKTÜRK | C44: İç Anadolu Bölgesi | D44: Konya | E44: Dell | F44: 268
B45: Hami EREN | C45: Doğu Anadolu Bölgesi | D45: Malatya | E45: Dell | F45: 203
B46: Can YILDIZ | C46: Karadeniz Bölgesi | D46: Sinop | E46: Dell | F46: 286
B47: Ersin KARADUT | C47: İç Anadolu Bölgesi | D47: Kayseri | E47: Dell | F47: 398
B48: Egemen ATAY | C48: İç Anadolu Bölgesi | D48: Ankara | E48: Asus | F48: 297
B49: Servet DENİZ | C49: Karadeniz Bölgesi | D49: Ordu | E49: Lenovo | F49: 315
B50: Ayşe UYAN | C50: Marmara Bölgesi | D50: Edirne | E50: Dell | F50: 58
B51: Egemen ATAY | C51: İç Anadolu Bölgesi | D51: Ankara | E51: HP | F51: 260
B52: Ayşen ÇAKIR | C52: Doğu Anadolu Bölgesi | D52: Erzincan | E52: Dell | F52: 461
B53: Ömer GİRGİN | C53: Ege Bölgesi | D53: Kütahya | E53: MSI | F53: 224
B54: Fatih TANDOĞAN | C54: Akdeniz Bölgesi | D54: Antalya | E54: Dell | F54: 174
B55: İlhan IŞIK | C55: Akdeniz Bölgesi | D55: Antalya | E55: Dell | F55: 286
B56: Kamuran TEMUR | C56: İç Anadolu Bölgesi | D56: Kayseri | E56: MSI | F56: 232
B57: Mustafa EMEK | C57: Karadeniz Bölgesi | D57: Artvin | E57: MSI | F57: 186
B58: Hakkı ÖLMEZ | C58: Güneydoğu Anadolu Bölgesi | D58: Gaziantep | E58: Dell | F58: 239
B59: Egemen ATAY | C59: İç Anadolu Bölgesi | D59: Ankara | E59: MSI | F59: 454
B60: Ayşe UYAN | C60: Marmara Bölgesi | D60: Edirne | E60: Lenovo | F60: 402
B61: Sevim SARPER | C61: Marmara Bölgesi | D61: Çanakkale | E61: Lenovo | F61: 246
B62: Halime AŞAN | C62: Doğu Anadolu Bölgesi | D62: Van | E62: Dell | F62: 219
B63: Hüseyin ALBAYRAK | C63: Karadeniz Bölgesi | D63: Ordu | E63: Lenovo | F63: 385
B64: Hayri ÖZEL | C64: Marmara Bölgesi | D64: Balıkesir | E64: Lenovo | F64: 48
B65: Atilla YİĞİT | C65: Karadeniz Bölgesi | D65: Trabzon | E65: Lenovo | F65: 271
B66: Berkay YALÇIN | C66: Marmara Bölgesi | D66: Bilecik | E66: MSI | F66: 341
B67: Aliye GEZER | C67: Karadeniz Bölgesi | D67: Samsun | E67: Lenovo | F67: 422
B68: Rıza SİLAHLIPODA | C68: Akdeniz Bölgesi | D68: Hatay | E68: Dell | F68: 46
B69: Eren AKTÜRK | C69: İç Anadolu Bölgesi | D69: Konya | E69: Dell | F69: 17
B70: Hami EREN | C70: Doğu Anadolu Bölgesi | D70: Malatya | E70: Lenovo | F70: 356
B71: Emel YAŞİN | C71: Ege Bölgesi | D71: Denizli | E71: MSI | F71: 59
B72: Yıldırım BOZKURT | C72: Güneydoğu Anadolu Bölgesi | D72: Diyarbakır | E72: Lenovo | F72: 96
B73: Rahmi YALÇIN | C73: İç Anadolu Bölgesi | D73: Konya | E73: Lenovo | F73: 405
B74: Ayla KARA | C74: İç Anadolu Bölgesi | D74: Eskişehir | E74: Dell | F74: 431
B75: Bertuğ YENİŞEHİRLİ | C75: Doğu Anadolu Bölgesi | D75: Malatya | E75: MSI | F75: 239
B76: Gökhan YAĞIZ | C76: Marmara Bölgesi | D76: Balıkesir | E76: Lenovo | F76: 215
B77: Kemalettin YALÇIN | C77: Güneydoğu Anadolu Bölgesi | D77: Gaziantep | E77: MSI | F77: 333
B78: Rahmi YALÇIN | C78: İç Anadolu Bölgesi | D78: Konya | E78: Lenovo | F78: 457
B79: Hami EREN | C79: Doğu Anadolu Bölgesi | D79: Malatya | E79: Lenovo | F79: 492
B80: Yasemin TURGUT | C80: İç Anadolu Bölgesi | D80: Eskişehir | E80: HP | F80: 392
B81: Yıldırım BOZKURT | C81: Güneydoğu Anadolu Bölgesi | D81: Diyarbakır | E81: Lenovo | F81: 413
B82: Ersin KARADUT | C82: İç Anadolu Bölgesi | D82: Kayseri | E82: Dell | F82: 310
B83: İrem DERİN | C83: Güneydoğu Anadolu Bölgesi | D83: Şanlıurfa | E83: HP | F83: 97
B84: Tuğba TARCAN | C84: Akdeniz Bölgesi | D84: Hatay | E84: Lenovo | F84: 362
B85: Aliye GEZER | C85: Karadeniz Bölgesi | D85: Samsun | E85: HP | F85: 375
B86: Hakan DUMAN | C86: Marmara Bölgesi | D86: Çanakkale | E86: Lenovo | F86: 241
B87: Ömer GİRGİN | C87: Ege Bölgesi | D87: Kütahya | E87: Lenovo | F87: 331
B88: Bertuğ YENİŞEHİRLİ | C88: Doğu Anadolu Bölgesi | D88: Malatya | E88: MSI | F88: 145
B89: Rıza SİLAHLIPODA | C89: Akdeniz Bölgesi | D89: Hatay | E89: MSI | F89: 200
B90: Ersin KARADUT | C90: İç Anadolu Bölgesi | D90: Kayseri | E90: Dell | F90: 347
B91: İrem DERİN | C91: Güneydoğu Anadolu Bölgesi | D91: Şanlıurfa | E91: HP | F91: 419
B92: Efe YILDIZ | C92: Akdeniz Bölgesi | D92: Adana | E92: Asus | F92: 114
B93: Berkan KUMLU | C93: Ege Bölgesi | D93: İzmir | E93: Lenovo | F93: 372
B94: Serdar ALADAĞ | C94: Güneydoğu Anadolu Bölgesi | D94: Diyarbakır | E94: MSI | F94: 386
B95: Kemalettin YALÇIN | C95: Güneydoğu Anadolu Bölgesi | D95: Gaziantep | E95: MSI | F95: 449
B96: =IF(isim>0,CONCATENATE(TRIM(isim)," ",UPPER(TRIM(soyisim))),"İsmini Göremedik") -> İsmini Göremedik | C96: Marmara Bölgesi | D96: Bursa | E96: Dell | F96: 52
B97: Yasemin TURGUT | C97: İç Anadolu Bölgesi | D97: Eskişehir | E97: Lenovo | F97: 218
B98: Engin AYDOĞAN | C98: Doğu Anadolu Bölgesi | D98: Erzurum | E98: Dell | F98: 491
B99: Gökhan YAĞIZ | C99: Marmara Bölgesi | D99: Balıkesir | E99: MSI | F99: 345
B100: Kemalettin TAN | C100: Marmara Bölgesi | D100: Çanakkale | E100: HP | F100: 358
B101: Bertuğ YENİŞEHİRLİ | C101: Doğu Anadolu Bölgesi | D101: Malatya | E101: Dell | F101: 320
B102: Neslihan YILMAZ | C102: Karadeniz Bölgesi | D102: Artvin | E102: Dell | F102: 316
B103: Bülent AYDOĞAN | C103: Doğu Anadolu Bölgesi | D103: Erzincan | E103: Lenovo | F103: 260
B104: Egemen ATAY | C104: İç Anadolu Bölgesi | D104: Ankara | E104: HP | F104: 478
B105: Rıza SİLAHLIPODA | C105: Akdeniz Bölgesi | D105: Hatay | E105: Dell | F105: 171
B106: Ahmet SEVİNÇ | C106: Karadeniz Bölgesi | D106: Samsun | E106: Lenovo | F106: 156
B107: Tuğba TARCAN | C107: Akdeniz Bölgesi | D107: Hatay | E107: MSI | F107: 252
B108: Ömer GİRGİN | C108: Ege Bölgesi | D108: Kütahya | E108: HP | F108: 203
B109: Berkay YALÇIN | C109: Marmara Bölgesi | D109: Bilecik | E109: Lenovo | F109: 57
B110: Sevim SARPER | C110: Marmara Bölgesi | D110: Çanakkale | E110: Dell | F110: 176
B111: Serdar ALADAĞ | C111: Güneydoğu Anadolu Bölgesi | D111: Diyarbakır | E111: HP | F111: 48
B112: Gökhan YAĞIZ | C112: Marmara Bölgesi | D112: Balıkesir | E112: Dell | F112: 13
B113: Efe YILDIZ | C113: Akdeniz Bölgesi | D113: Adana | E113: Lenovo | F113: 353
B114: Can YILDIZ | C114: Karadeniz Bölgesi | D114: Sinop | E114: Lenovo | F114: 438
B115: Kemalettin YALÇIN | C115: Güneydoğu Anadolu Bölgesi | D115: Gaziantep | E115: Dell | F115: 493
B116: Nagihan VATANSEVER | C116: Marmara Bölgesi | D116: İstanbul | E116: MSI | F116: 413
B117: Ayla KARA | C117: İç Anadolu Bölgesi | D117: Eskişehir | E117: Lenovo | F117: 222
B118: Ayşe UYAN | C118: Marmara Bölgesi | D118: Edirne | E118: Dell | F118: 435
B119: Kemalettin TAN | C119: Marmara Bölgesi | D119: Çanakkale | E119: Lenovo | F119: 156
B120: Ayşen ÇAKIR | C120: Doğu Anadolu Bölgesi | D120: Erzincan | E120: Lenovo | F120: 197
B121: Can YILDIZ | C121: Karadeniz Bölgesi | D121: Sinop | E121: MSI | F121: 489
B122: Safiye TERGAN | C122: Doğu Anadolu Bölgesi | D122: Van | E122: Dell | F122: 22
B123: Neslihan YILMAZ | C123: Karadeniz Bölgesi | D123: Artvin | E123: MSI | F123: 338
B124: Emel YAŞİN | C124: Ege Bölgesi | D124: Denizli | E124: MSI | F124: 192
B125: Engin AYDOĞAN | C125: Doğu Anadolu Bölgesi | D125: Erzurum | E125: Lenovo | F125: 321
B126: Aliye GEZER | C126: Karadeniz Bölgesi | D126: Samsun | E126: Asus | F126: 45
B127: Ömer GİRGİN | C127: Ege Bölgesi | D127: Kütahya | E127: Lenovo | F127: 255
B128: Can YILDIZ | C128: Karadeniz Bölgesi | D128: Sinop | E128: Asus | F128: 91
B129: Atilla YİĞİT | C129: Karadeniz Bölgesi | D129: Trabzon | E129: MSI | F129: 467
B130: Neslihan YILMAZ | C130: Karadeniz Bölgesi | D130: Artvin | E130: Dell | F130: 420
B131: Yıldırım BOZKURT | C131: Güneydoğu Anadolu Bölgesi | D131: Diyarbakır | E131: MSI | F131: 181
B132: Kamil BURLU | C132: Güneydoğu Anadolu Bölgesi | D132: Şanlıurfa | E132: MSI | F132: 207
B133: Berkay YALÇIN | C133: Marmara Bölgesi | D133: Bilecik | E133: Dell | F133: 241
B134: Bülent AYDOĞAN | C134: Doğu Anadolu Bölgesi | D134: Erzincan | E134: MSI | F134: 409
B135: Nagihan VATANSEVER | C135: Marmara Bölgesi | D135: İstanbul | E135: Lenovo | F135: 210
B136: Seda DEĞİRMENCİ | C136: Akdeniz Bölgesi | D136: Antalya | E136: MSI | F136: 177
B137: Ömer GİRGİN | C137: Ege Bölgesi | D137: Kütahya | E137: MSI | F137: 84
B138: Nagihan VATANSEVER | C138: Marmara Bölgesi | D138: İstanbul | E138: Dell | F138: 400
B139: Aliye GEZER | C139: Karadeniz Bölgesi | D139: Samsun | E139: Dell | F139: 324
B140: Seda DEĞİRMENCİ | C140: Akdeniz Bölgesi | D140: Antalya | E140: HP | F140: 398
B141: Kamuran TEMUR | C141: İç Anadolu Bölgesi | D141: Kayseri | E141: Lenovo | F141: 396
B142: Nagihan VATANSEVER | C142: Marmara Bölgesi | D142: İstanbul | E142: Dell | F142: 463
B143: Eren HASANOĞLU | C143: Marmara Bölgesi | D143: Edirne | E143: MSI | F143: 45
B144: Bülent AYDOĞAN | C144: Doğu Anadolu Bölgesi | D144: Erzincan | E144: Dell | F144: 454
B145: Yıldırım BOZKURT | C145: Güneydoğu Anadolu Bölgesi | D145: Diyarbakır | E145: Dell | F145: 400
B146: İlhan IŞIK | C146: Akdeniz Bölgesi | D146: Antalya | E146: Lenovo | F146: 21
B147: Ersin KARADUT | C147: İç Anadolu Bölgesi | D147: Kayseri | E147: HP | F147: 418
B148: Ayşen ÇAKIR | C148: Doğu Anadolu Bölgesi | D148: Erzincan | E148: HP | F148: 249
B149: Emel YAŞİN | C149: Ege Bölgesi | D149: Denizli | E149: Dell | F149: 403
B150: İsmail TÜRKÖNE | C150: Marmara Bölgesi | D150: İstanbul | E150: HP | F150: 89
B151: Kamil BURLU | C151: Güneydoğu Anadolu Bölgesi | D151: Şanlıurfa | E151: Dell | F151: 237
B152: Fatih TÜRKYILMAZ | C152: Karadeniz Bölgesi | D152: Trabzon | E152: Dell | F152: 170
B153: Berkan KUMLU | C153: Ege Bölgesi | D153: İzmir | E153: Lenovo | F153: 445
B154: Serdar ALADAĞ | C154: Güneydoğu Anadolu Bölgesi | D154: Diyarbakır | E154: Dell | F154: 304
B155: Yıldırım BOZKURT | C155: Güneydoğu Anadolu Bölgesi | D155: Diyarbakır | E155: Dell | F155: 279
B156: Hakkı ÖLMEZ | C156: Güneydoğu Anadolu Bölgesi | D156: Gaziantep | E156: Lenovo | F156: 131
B157: Mustafa EMEK | C157: Karadeniz Bölgesi | D157: Artvin | E157: Lenovo | F157: 407
B158: Ömer GİRGİN | C158: Ege Bölgesi | D158: Kütahya | E158: Dell | F158: 144
B159: Gökhan YAĞIZ | C159: Karadeniz Bölgesi | D159: Artvin | E159: MSI | F159: 74
B160: Atilla YİĞİT | C160: Karadeniz Bölgesi | D160: Trabzon | E160: Asus | F160: 102
B161: Fatih TANDOĞAN | C161: Akdeniz Bölgesi | D161: Antalya | E161: Lenovo | F161: 61
B162: Zeynep TATLITÜR | C162: Ege Bölgesi | D162: İzmir | E162: MSI | F162: 338
B163: Hakan DUMAN | C163: Marmara Bölgesi | D163: Çanakkale | E163: Dell | F163: 61
B164: Ayla KARA | C164: İç Anadolu Bölgesi | D164: Eskişehir | E164: MSI | F164: 482
B165: Kamuran TEMUR | C165: İç Anadolu Bölgesi | D165: Kayseri | E165: MSI | F165: 69
B166: Ayşen ÇAKIR | C166: Doğu Anadolu Bölgesi | D166: Erzincan | E166: MSI | F166: 47
B167: Alper ÖNER | C167: Marmara Bölgesi | D167: Bursa | E167: Lenovo | F167: 172
B168: Hami EREN | C168: Doğu Anadolu Bölgesi | D168: Malatya | E168: HP | F168: 302
B169: Emel YAŞİN | C169: Ege Bölgesi | D169: Denizli | E169: Dell | F169: 447
B170: Safiye TERGAN | C170: Doğu Anadolu Bölgesi | D170: Van | E170: Lenovo | F170: 266
B171: Kamuran TEMUR | C171: İç Anadolu Bölgesi | D171: Kayseri | E171: MSI | F171: 209
B172: Yıldırım BOZKURT | C172: Güneydoğu Anadolu Bölgesi | D172: Diyarbakır | E172: MSI | F172: 174
B173: Ahmet SEVİNÇ | C173: Karadeniz Bölgesi | D173: Samsun | E173: Dell | F173: 125
B174: Fatih TANDOĞAN | C174: Akdeniz Bölgesi | D174: Antalya | E174: MSI | F174: 237
B175: Alper ÖNER | C175: Marmara Bölgesi | D175: Bursa | E175: MSI | F175: 474
B176: Kamuran TEMUR | C176: İç Anadolu Bölgesi | D176: Kayseri | E176: Lenovo | F176: 130
B177: Servet DENİZ | C177: Karadeniz Bölgesi | D177: Ordu | E177: MSI | F177: 196
B178: Zeynep TATLITÜR | C178: Ege Bölgesi | D178: İzmir | E178: Dell | F178: 464
B179: Can YILDIZ | C179: Karadeniz Bölgesi | D179: Sinop | E179: Dell | F179: 306
B180: Berkay YALÇIN | C180: Marmara Bölgesi | D180: Bilecik | E180: HP | F180: 12
B181: İsmail TÜRKÖNE | C181: Marmara Bölgesi | D181: İstanbul | E181: Lenovo | F181: 155
B182: Rıza SİLAHLIPODA | C182: Akdeniz Bölgesi | D182: Hatay | E182: Lenovo | F182: 397
B183: Servet DENİZ | C183: Karadeniz Bölgesi | D183: Ordu | E183: MSI | F183: 46
B184: Safiye TERGAN | C184: Doğu Anadolu Bölgesi | D184: Van | E184: Lenovo | F184: 418
B185: Hakkı ÖLMEZ | C185: Güneydoğu Anadolu Bölgesi | D185: Gaziantep | E185: Dell | F185: 259
B186: Atilla YİĞİT | C186: Karadeniz Bölgesi | D186: Trabzon | E186: Dell | F186: 312
B187: İrem DERİN | C187: Güneydoğu Anadolu Bölgesi | D187: Şanlıurfa | E187: Lenovo | F187: 453
B188: Can YILDIZ | C188: Karadeniz Bölgesi | D188: Sinop | E188: Lenovo | F188: 477
B189: Atilla YİĞİT | C189: Karadeniz Bölgesi | D189: Trabzon | E189: Asus | F189: 400
B190: Hüseyin ALBAYRAK | C190: Karadeniz Bölgesi | D190: Ordu | E190: Dell | F190: 298
B191: Efe YILDIZ | C191: Akdeniz Bölgesi | D191: Adana | E191: Asus | F191: 338
B192: Egemen ATAY | C192: İç Anadolu Bölgesi | D192: Ankara | E192: Asus | F192: 316
B193: İrem DERİN | C193: Güneydoğu Anadolu Bölgesi | D193: Şanlıurfa | E193: MSI | F193: 136
B194: Berkay YALÇIN | C194: Marmara Bölgesi | D194: Bilecik | E194: Dell | F194: 38
B195: Ahmet SEVİNÇ | C195: Karadeniz Bölgesi | D195: Samsun | E195: MSI | F195: 203
B196: Engin AYDOĞAN | C196: Doğu Anadolu Bölgesi | D196: Erzurum | E196: Dell | F196: 425
B197: Nagihan VATANSEVER | C197: Marmara Bölgesi | D197: İstanbul | E197: Dell | F197: 322
B198: Kamil BURLU | C198: Güneydoğu Anadolu Bölgesi | D198: Şanlıurfa | E198: Lenovo | F198: 258
B199: Emel YAŞİN | C199: Ege Bölgesi | D199: Denizli | E199: Lenovo | F199: 318
B200: Mustafa EMEK | C200: Karadeniz Bölgesi | D200: Artvin | E200: Dell | F200: 209
B201: Tuğba TARCAN | C201: Akdeniz Bölgesi | D201: Hatay | E201: Dell | F201: 237
B202: Sevim SARPER | C202: Marmara Bölgesi | D202: Çanakkale | E202: MSI | F202: 97
... 7 more rows

Sheet KoşulluBiçimlendirme1
B2: Koşullu Biçimlendirme
B4: Ürün Kodu | C4: Ürün Miktarı
B5: AX-0000-20156 | C5: 50
B6: AX-0000-20857 | C6: 226
B7: AX-0000-21158 | C7: 59
B8: AX-0000-20159 | C8: 77
B9: AX-0000-20770 | C9: 126
B10: AX-0000-30181 | C10: 123
B11: AX-0000-20162 | C11: 42
B12: AX-0000-20193 | C12: 159
B13: AX-0000-20164 | C13: 158
B14: AX-0000-20125 | C14: 46
B15: AX-0000-28186 | C15: 29
B16: AX-0000-20167 | C16: 144
B17: AX-0000-20168 | C17: 89
B18: AX-0000-20169 | C18: 79
B19: AX-0000-20170 | C19: 19
B20: AX-0000-21191 | C20: 133
B21: AX-0000-20172 | C21: 56
B22: AX-0000-20173 | C22: 33

Sheet KoşulluBiçimlendirme2
B2: Koşullu Biçimlendirme
B4: Firma | D4: Bugün | E4: =TODAY() -> 2026-06-12 | G4: Ürün Kodu | H4: Ürün Miktarı
B5: Grammer | G5: AX-0000-20156 | H5: 75
B6: Renault | D6: Son Ödeme Tarihi | E6: Tutar | G6: AX-0000-20857 | H6: 226
B7: Can Metal | D7: =TODAY() -> 2026-06-12 | E7: 53425 | G7: AX-0000-21158 | H7: 59
B8: Yazaki | D8: =E4+1 -> 2026-06-13 | E8: 33248 | G8: AX-0000-20159 | H8: 197
B9: Matay | D9: =D8+1 -> 2026-06-14 | E9: 90591 | G9: AX-0000-20770 | H9: 126
B10: Continental | D10: =D9+2 -> 2026-06-16 | E10: 40599 | G10: AX-0000-30181 | H10: 73
B11: Monsanto | D11: =E4+1 -> 2026-06-13 | E11: 34805 | G11: AX-0000-20162 | H11: 60
B12: Burulaş | D12: =D11+1 -> 2026-06-14 | E12: 89912 | G12: AX-0000-20193 | H12: 159
B13: Autoneum | D13: =D7+1 -> 2026-06-13 | E13: 100428 | G13: AX-0000-20168 | H13: 89
B14: Nobel | D14: =D13+1 -> 2026-06-14 | E14: 58437 | G14: AX-0000-20169 | H14: 79
B15: Yeşim | D15: 2026-06-15 | E15: 121998 | G15: AX-0000-20170 | H15: 19
B16: =firma -> 0 | D16: =D7+1 -> 2026-06-13 | E16: 140291 | G16: AX-0000-21191 | H16: 133
B17: Durmazlar | D17: =D16+8 -> 2026-06-21 | E17: 69022 | G17: AX-0000-20172 | H17: 56
B18: Aroma | D18: 2026-06-22 | E18: 39246 | G18: AX-0000-20173 | H18: 25
B19: Nestle | G19: AX-0000-20174 | H19: 33
B20: TürkTex | D20: Yarın Yapılacak Ödeme Sayısı | G20: AX-0000-21185 | H20: 81
B21: Chasess Breaks | G21: AX-0000-20176 | H21: 117
B22: Coşkunöz | D22: Yarın Yapılacak Ödeme Tutarı
B23: Leoni
B24: Coats
B25: Weltew
B26: Mengerler
B27: Cornaglia
B28: Nestle
B29: Renault
B30: HB Plastik
B31: Yazaki
B32: Burulaş
B33: Matlı
B34: UİB
B35: Keskinoğlu
B36: Bosch
B37: İnoksan
B38: Bursa Çimento
B39: Sonoco
B40: Besaş
B41: L&L Product
B42: Gökçelik
B43: Çimtaş
B44: Çahan
B45: BTSO
B46: Prysmian
B47: Mastaş
B48: Buski
B49: Erikli

Sheet TarihFonksiyonları 1
B2: Tarih Fonksiyonları
B5: Kısa Tarih | C5: Uzun Tarih | J5: =dtarih -> 00:00:00
B6: =TODAY() -> 2026-06-12 | C6: =B6 -> 2026-06-12 | J6: =TODAY() -> 2026-06-12
G9: =TODAY()
B11: Bugün | C11: =IF(lang_op=2,VLOOKUP(B11,formuller,2,0),IF(lang_op=3,VLOOKUP(B11,formuller,3,0),IF(lang_op=4,VLOOKUP(B11,formuller,4,0),""))) -> TODAY | F11: =IFERROR(_xlfn.FORMULATEXT(D11),"") ->  | G11: =IF(D11>0,G9,"") ->  | J11: =DATEDIF(J5, J6, "Y") & " yıl " & DATEDIF(J5, J6, "YM") & " ay " & DATEDIF(J5, J6, "MD") & " gün" -> 126 yıl 5 ay 12 gün | R11: Tarih
B13: Şimdi | C13: =IF(lang_op=2,VLOOKUP(B13,formuller,2,0),IF(lang_op=3,VLOOKUP(B13,formuller,3,0),IF(lang_op=4,VLOOKUP(B13,formuller,4,0),""))) -> NOW | F13: =IFERROR(_xlfn.FORMULATEXT(D13),"") ->  | G13: =IngFormul(D13) ->  | J13: =IF(AND(MONTH(J5)=1,DAY(J5)>=20),"Kova", IF(AND(MONTH(J5)=2,DAY(J5)<=18),"Kova", IF(AND(MONTH(J5)=2,DAY(J5)>=19),"Balık", IF(AND(MONTH(J5)=3,DAY(J5)<=20),"Balık", IF(AND(MONTH(J5)=3,DAY(J5)>=21),"Koç", IF(AND(MONTH(J5)=4,DAY(J5)<=19),"Koç", IF(AND(MONTH(J5)=4,DAY(J5)>=20),"Boğa", IF(AND(MONTH(J5)=5,DAY(J5)<=20),"Boğa", IF(AND(MONTH(J5)=5,DAY(J5)>=21),"İkizler", IF(AND(MONTH(J5)=6,DAY(J5)<=20),"İkizler", IF(AND(MONTH(J5)=6,DAY(J5)>=21),"Yengeç", IF(AND(MONTH(J5)=7,DAY(J5)<=22),"Yengeç", IF(AND(MONTH(J5)=7,DAY(J5)>=23),"Aslan", IF(AND(MONTH(J5)=8,DAY(J5)<=22),"Aslan", IF(AND(MONTH(J5)=8,DAY(J5)>=23),"Başak", IF(AND(MONTH(J5)=9,DAY(J5)<=22),"Başak", IF(AND(MONTH(J5)=9,DAY(J5)>=23),"Terazi", IF(AND(MONTH(J5)=10,DAY(J5)<=22),"Terazi", IF(AND(MONTH(J5)=10,DAY(J5)>=23),"Akrep", IF(AND(MONTH(J5)=11,DAY(J5)<=21),"Akrep", IF(AND(MONTH(J5)=11,DAY(J5)>=22),"Yay", IF(AND(MONTH(J5)=12,DAY(J5)<=21),"Yay", IF(AND(MONTH(J5)=12,DAY(J5)>=22),"Oğlak", IF(AND(MONTH(J5)=1,DAY(J5)<=19),"Oğlak", "")))))))))))))))))))))))) -> Oğlak | R13: Saat
B29: Başlangıç Saati | C29: Bitiş Saati | D29: Saat Farkı | J29: Hesap
B30: 2024-01-01T08:30:00 | C30: 2024-01-01T17:30:00 | D30: =(C30-B30)*24 -> 9 | F30: =IFERROR(_xlfn.FORMULATEXT(D30),"") -> =(C30-B30)*24 | I30: Ücret | J30: 367
I31: Saat | J31: =(C30-B30)*24 -> 9
D32: Dakika Farkı | I32: Tutar | J32: =J30*J31 -> 3303
D33: =(C30-B30)*1440 -> 540 | F33: =IFERROR(_xlfn.FORMULATEXT(D33),"") -> =(C30-B30)*1440
D35: Saniye Farkı
D36: =(C30-B30)*86400 -> 32400 | F36: =(C30-B30)*86400
D38: Saat Farkı (Sayı Değeri)
D39: =INT((C30-B30)*24) -> 9 | F39: =INT((C30-B30)*24)

Sheet TarihFonksiyonları 2
B2: Tarih Fonksiyonları
B4: Fonksiyon | C4: Gün | E4: Ay | G4: Yıl
B5: =IF(lang_op=1,"",IF(lang_op=2,"İngilizce Karşılığı ---->",IF(lang_op=3,"Fransızca Karşılığı ---->","Almanca Karşılığı ---->"))) -> İngilizce Karşılığı ----> | C5: =IF(lang_op=2,VLOOKUP(C4,formuller,2,0),IF(lang_op=3,VLOOKUP(C4,formuller,3,0),IF(lang_op=4,VLOOKUP(C4,formuller,4,0),""))) -> DAY | E5: =IF(lang_op=2,VLOOKUP(E4,formuller,2,0),IF(lang_op=3,VLOOKUP(E4,formuller,3,0),IF(lang_op=4,VLOOKUP(E4,formuller,4,0),""))) -> MONTH | G5: =IF(lang_op=2,VLOOKUP(G4,formuller,2,0),IF(lang_op=3,VLOOKUP(G4,formuller,3,0),IF(lang_op=4,VLOOKUP(G4,formuller,4,0),""))) -> YEAR | J5: =IF(C6>0,J6,"") -> 
B6: =TODAY() -> 2026-06-12 | J6: =DAY(B6)
B7: =dtarih -> 00:00:00
B8: =B6-95 -> 2026-03-09
B9: =B6+60 -> 2026-08-11
B10: =B8+51 -> 2026-04-29
B11: =B8+45 -> 2026-04-23
C13: =IFERROR(_xlfn.FORMULATEXT(C6),"") ->  | E13: =IFERROR(_xlfn.FORMULATEXT(E6),"") ->  | G13: =IFERROR(_xlfn.FORMULATEXT(F6),"") -> 
E15: =IngFormul(E6) ->  | G15: =IngFormul(F6) -> 

Sheet Örnek1
B2: Örnek 1
B4: Marka | C4: Tür | D4: Satış Türü | E4: Tarih | F4: Şehir | G4: Ödeme Türü | H4: Fiyat | K4: Aylar | L4: 2020 | M4: 2021 | N4: 2022 | O4: 2023
B5: IBM | C5: PC | D5: Mağaza | E5: 2020-01-01 | F5: İstanbul | G5: Peşin | H5: 12542 | J5: 1 | K5: Ocak
B6: HP | C6: Tablet | D6: Mağaza | E6: 2020-01-03 | F6: Ankara | G6: Peşin | H6: 4543 | J6: 2 | K6: Şubat
B7: MSI | C7: PC | D7: Site | E7: 2020-01-05 | F7: Ankara | G7: Kredi Kartı | H7: 20984 | J7: 3 | K7: Mart
B8: DELL | C8: Notebook | D8: Site | E8: 2020-01-13 | F8: Bursa | G8: Kredi Kartı | H8: 35927 | J8: 4 | K8: Nisan
B9: MSI | C9: Tablet | D9: Site | E9: 2020-01-22 | F9: İstanbul | G9: Kredi Kartı | H9: 5647 | J9: 5 | K9: Mayıs
B10: DELL | C10: Tablet | D10: Site | E10: 2020-02-06 | F10: Bursa | G10: Kredi Kartı | H10: 6222 | J10: 6 | K10: Haziran
B11: TOSHIBA | C11: Notebook | D11: Site | E11: 2020-02-06 | F11: Bursa | G11: Kredi Kartı | H11: 26104 | J11: 7 | K11: Temmuz
B12: DELL | C12: Notebook | D12: Mağaza | E12: 2020-02-09 | F12: İstanbul | G12: Peşin | H12: 19257 | J12: 8 | K12: Ağustos
B13: ASUS | C13: Notebook | D13: Site | E13: 2020-02-11 | F13: Bursa | G13: Kredi Kartı | H13: 32911 | J13: 9 | K13: Eylül
B14: HP | C14: Tablet | D14: Site | E14: 2020-02-14 | F14: Bursa | G14: Kredi Kartı | H14: 5256 | J14: 10 | K14: Ekim
B15: DELL | C15: Notebook | D15: Site | E15: 2020-02-15 | F15: İstanbul | G15: Kredi Kartı | H15: 29188 | J15: 11 | K15: Kasım
B16: IBM | C16: PC | D16: Mağaza | E16: 2020-02-17 | F16: Ankara | G16: Peşin | H16: 16736 | J16: 12 | K16: Aralık
B17: ASUS | C17: Notebook | D17: Site | E17: 2020-02-20 | F17: Bursa | G17: Kredi Kartı | H17: 18562
B18: MSI | C18: Tablet | D18: Mağaza | E18: 2020-02-21 | F18: İstanbul | G18: Peşin | H18: 6574 | L18: =IFERROR(_xlfn.FORMULATEXT(L5),"") -> 
B19: IBM | C19: Tablet | D19: Site | E19: 2020-02-28 | F19: Bursa | G19: Kredi Kartı | H19: 8117
B20: IBM | C20: PC | D20: Mağaza | E20: 2020-03-03 | F20: Bursa | G20: Kredi Kartı | H20: 16880 | L20: =IngFormul(L5) -> 
B21: TOSHIBA | C21: Notebook | D21: Mağaza | E21: 2020-03-04 | F21: Bursa | G21: Peşin | H21: 26627
B22: DELL | C22: Notebook | D22: Site | E22: 2020-03-12 | F22: Bursa | G22: Kredi Kartı | H22: 35927
B23: HP | C23: Tablet | D23: Site | E23: 2020-03-16 | F23: Bursa | G23: Kredi Kartı | H23: 5256
B24: HP | C24: Tablet | D24: Mağaza | E24: 2020-03-17 | F24: Bursa | G24: Peşin | H24: 6193
B25: TOSHIBA | C25: Notebook | D25: Site | E25: 2020-03-17 | F25: Bursa | G25: Kredi Kartı | H25: 29834
B26: HP | C26: PC | D26: Mağaza | E26: 2020-03-19 | F26: İstanbul | G26: Peşin | H26: 14147
B27: MSI | C27: PC | D27: Site | E27: 2020-03-22 | F27: Bursa | G27: Kredi Kartı | H27: 14924
B28: HP | C28: Tablet | D28: Mağaza | E28: 2020-03-22 | F28: Ankara | G28: Peşin | H28: 4543
B29: IBM | C29: PC | D29: Mağaza | E29: 2020-03-25 | F29: Ankara | G29: Peşin | H29: 19236
B30: HP | C30: PC | D30: Mağaza | E30: 2020-03-28 | F30: İstanbul | G30: Peşin | H30: 20940
B31: MSI | C31: PC | D31: Mağaza | E31: 2020-04-06 | F31: Ankara | G31: Peşin | H31: 16500
B32: TOSHIBA | C32: Tablet | D32: Site | E32: 2020-04-12 | F32: Bursa | G32: Kredi Kartı | H32: 5865
B33: IBM | C33: Tablet | D33: Site | E33: 2020-04-12 | F33: Bursa | G33: Kredi Kartı | H33: 8117
B34: HP | C34: PC | D34: Mağaza | E34: 2020-04-14 | F34: İstanbul | G34: Peşin | H34: 14147
B35: TOSHIBA | C35: Notebook | D35: Mağaza | E35: 2020-04-19 | F35: Ankara | G35: Peşin | H35: 32915
B36: TOSHIBA | C36: PC | D36: Mağaza | E36: 2020-04-20 | F36: Bursa | G36: Peşin | H36: 21655
B37: TOSHIBA | C37: PC | D37: Site | E37: 2020-05-07 | F37: İstanbul | G37: Kredi Kartı | H37: 21623
B38: HP | C38: PC | D38: Site | E38: 2020-05-12 | F38: Bursa | G38: Kredi Kartı | H38: 12776
B39: MSI | C39: Notebook | D39: Site | E39: 2020-05-13 | F39: Bursa | G39: Kredi Kartı | H39: 22725
B40: TOSHIBA | C40: PC | D40: Mağaza | E40: 2020-05-16 | F40: Ankara | G40: Peşin | H40: 17862
B41: HP | C41: PC | D41: Mağaza | E41: 2020-05-16 | F41: İstanbul | G41: Peşin | H41: 14147
B42: MSI | C42: PC | D42: Site | E42: 2020-05-18 | F42: Ankara | G42: Kredi Kartı | H42: 20984
B43: DELL | C43: PC | D43: Site | E43: 2020-05-22 | F43: Bursa | G43: Kredi Kartı | H43: 13002
B44: IBM | C44: PC | D44: Mağaza | E44: 2020-06-05 | F44: İstanbul | G44: Peşin | H44: 12542
B45: ASUS | C45: Notebook | D45: Mağaza | E45: 2020-06-13 | F45: Ankara | G45: Peşin | H45: 31393
B46: MSI | C46: PC | D46: Mağaza | E46: 2020-06-15 | F46: Ankara | G46: Peşin | H46: 16500
B47: TOSHIBA | C47: PC | D47: Mağaza | E47: 2020-06-18 | F47: İstanbul | G47: Peşin | H47: 19034
B48: HP | C48: PC | D48: Site | E48: 2020-06-20 | F48: İstanbul | G48: Kredi Kartı | H48: 14590
B49: DELL | C49: Notebook | D49: Site | E49: 2020-06-21 | F49: Bursa | G49: Kredi Kartı | H49: 26914
B50: TOSHIBA | C50: PC | D50: Mağaza | E50: 2020-06-25 | F50: İstanbul | G50: Peşin | H50: 19034
B51: HP | C51: PC | D51: Site | E51: 2020-06-26 | F51: Bursa | G51: Kredi Kartı | H51: 22025
B52: TOSHIBA | C52: PC | D52: Mağaza | E52: 2020-06-30 | F52: Bursa | G52: Peşin | H52: 21655
B53: ASUS | C53: Notebook | D53: Mağaza | E53: 2020-07-01 | F53: Ankara | G53: Peşin | H53: 20337
B54: DELL | C54: Notebook | D54: Mağaza | E54: 2020-07-04 | F54: İstanbul | G54: Peşin | H54: 27077
B55: DELL | C55: Notebook | D55: Site | E55: 2020-07-07 | F55: Ankara | G55: Kredi Kartı | H55: 21667
B56: MSI | C56: Tablet | D56: Mağaza | E56: 2020-07-12 | F56: Ankara | G56: Peşin | H56: 6818
B57: DELL | C57: Tablet | D57: Mağaza | E57: 2020-07-15 | F57: Bursa | G57: Peşin | H57: 6446
B58: MSI | C58: PC | D58: Site | E58: 2020-07-16 | F58: Ankara | G58: Kredi Kartı | H58: 20984
B59: ASUS | C59: Notebook | D59: Site | E59: 2020-07-22 | F59: Bursa | G59: Kredi Kartı | H59: 32911
B60: MSI | C60: Tablet | D60: Mağaza | E60: 2020-07-26 | F60: İstanbul | G60: Kredi Kartı | H60: 7730
B61: IBM | C61: Notebook | D61: Site | E61: 2020-08-01 | F61: Bursa | G61: Kredi Kartı | H61: 33206
B62: HP | C62: PC | D62: Mağaza | E62: 2020-08-02 | F62: Bursa | G62: Peşin | H62: 13200
B63: IBM | C63: Notebook | D63: Site | E63: 2020-08-03 | F63: Ankara | G63: Kredi Kartı | H63: 23934
B64: HP | C64: Notebook | D64: Mağaza | E64: 2020-08-05 | F64: Ankara | G64: Peşin | H64: 34208
B65: HP | C65: Notebook | D65: Site | E65: 2020-08-10 | F65: Bursa | G65: Kredi Kartı | H65: 31779
B66: MSI | C66: PC | D66: Site | E66: 2020-08-11 | F66: Bursa | G66: Kredi Kartı | H66: 14924
B67: HP | C67: PC | D67: Mağaza | E67: 2020-08-17 | F67: Ankara | G67: Peşin | H67: 22332
B68: ASUS | C68: Notebook | D68: Site | E68: 2020-08-22 | F68: İstanbul | G68: Kredi Kartı | H68: 28022
B69: HP | C69: PC | D69: Site | E69: 2020-08-25 | F69: Bursa | G69: Kredi Kartı | H69: 12776
B70: ASUS | C70: Notebook | D70: Site | E70: 2020-09-01 | F70: Bursa | G70: Kredi Kartı | H70: 34831
B71: DELL | C71: Tablet | D71: Site | E71: 2020-09-01 | F71: Ankara | G71: Kredi Kartı | H71: 7086
B72: DELL | C72: PC | D72: Site | E72: 2020-09-06 | F72: Ankara | G72: Kredi Kartı | H72: 17805
B73: ASUS | C73: PC | D73: Mağaza | E73: 2020-09-06 | F73: İstanbul | G73: Peşin | H73: 14132
B74: ASUS | C74: Tablet | D74: Site | E74: 2020-09-08 | F74: Bursa | G74: Kredi Kartı | H74: 8545
B75: MSI | C75: Notebook | D75: Site | E75: 2020-09-17 | F75: Bursa | G75: Kredi Kartı | H75: 22725
B76: MSI | C76: Notebook | D76: Mağaza | E76: 2020-09-18 | F76: Bursa | G76: Peşin | H76: 35953
B77: DELL | C77: PC | D77: Site | E77: 2020-09-18 | F77: İstanbul | G77: Kredi Kartı | H77: 20955
B78: IBM | C78: Notebook | D78: Site | E78: 2020-09-23 | F78: Bursa | G78: Kredi Kartı | H78: 27501
B79: MSI | C79: PC | D79: Mağaza | E79: 2020-10-08 | F79: Ankara | G79: Peşin | H79: 16500
B80: ASUS | C80: Notebook | D80: Mağaza | E80: 2020-11-15 | F80: Ankara | G80: Peşin | H80: 31393
B81: ASUS | C81: Notebook | D81: Mağaza | E81: 2020-11-24 | F81: Ankara | G81: Peşin | H81: 20337
B82: IBM | C82: Notebook | D82: Mağaza | E82: 2020-12-03 | F82: Bursa | G82: Kredi Kartı | H82: 20710
B83: DELL | C83: Notebook | D83: Site | E83: 2020-12-05 | F83: İstanbul | G83: Kredi Kartı | H83: 29188
B84: TOSHIBA | C84: Notebook | D84: Site | E84: 2020-12-10 | F84: Bursa | G84: Kredi Kartı | H84: 24011
B85: IBM | C85: Notebook | D85: Site | E85: 2020-12-13 | F85: Bursa | G85: Kredi Kartı | H85: 20723
B86: HP | C86: PC | D86: Site | E86: 2020-12-14 | F86: Bursa | G86: Kredi Kartı | H86: 14122
B87: DELL | C87: PC | D87: Site | E87: 2020-12-17 | F87: İstanbul | G87: Kredi Kartı | H87: 20955
B88: IBM | C88: Tablet | D88: Site | E88: 2020-12-24 | F88: Bursa | G88: Kredi Kartı | H88: 8117
B89: DELL | C89: PC | D89: Mağaza | E89: 2020-12-25 | F89: Ankara | G89: Kredi Kartı | H89: 13788
B90: TOSHIBA | C90: PC | D90: Mağaza | E90: 2020-12-26 | F90: Ankara | G90: Peşin | H90: 17862
B91: TOSHIBA | C91: Tablet | D91: Mağaza | E91: 2020-12-28 | F91: Bursa | G91: Peşin | H91: 3802
B92: DELL | C92: Notebook | D92: Site | E92: 2021-01-03 | F92: Bursa | G92: Kredi Kartı | H92: 35927
B93: TOSHIBA | C93: PC | D93: Site | E93: 2021-01-07 | F93: İstanbul | G93: Kredi Kartı | H93: 23416
B94: IBM | C94: PC | D94: Mağaza | E94: 2021-01-12 | F94: İstanbul | G94: Peşin | H94: 20625
B95: TOSHIBA | C95: Tablet | D95: Site | E95: 2021-01-12 | F95: Bursa | G95: Kredi Kartı | H95: 5865
B96: IBM | C96: PC | D96: Mağaza | E96: 2021-01-13 | F96: İstanbul | G96: Peşin | H96: 17457
B97: HP | C97: Notebook | D97: Site | E97: 2021-01-19 | F97: İstanbul | G97: Kredi Kartı | H97: 27796
B98: DELL | C98: Tablet | D98: Mağaza | E98: 2021-01-23 | F98: Bursa | G98: Kredi Kartı | H98: 4701
B99: DELL | C99: PC | D99: Site | E99: 2021-01-24 | F99: İstanbul | G99: Kredi Kartı | H99: 20955
B100: ASUS | C100: Tablet | D100: Site | E100: 2021-01-27 | F100: Bursa | G100: Kredi Kartı | H100: 5762
B101: TOSHIBA | C101: Notebook | D101: Mağaza | E101: 2021-01-29 | F101: Bursa | G101: Peşin | H101: 26627
B102: IBM | C102: PC | D102: Mağaza | E102: 2021-01-30 | F102: Bursa | G102: Kredi Kartı | H102: 16880
B103: HP | C103: Tablet | D103: Mağaza | E103: 2021-01-30 | F103: Bursa | G103: Peşin | H103: 5137
B104: ASUS | C104: Notebook | D104: Mağaza | E104: 2021-02-03 | F104: Ankara | G104: Peşin | H104: 33061
B105: ASUS | C105: Notebook | D105: Site | E105: 2021-02-07 | F105: Bursa | G105: Kredi Kartı | H105: 18562
B106: ASUS | C106: PC | D106: Site | E106: 2021-02-14 | F106: İstanbul | G106: Kredi Kartı | H106: 12915
B107: HP | C107: PC | D107: Site | E107: 2021-02-17 | F107: Bursa | G107: Kredi Kartı | H107: 12776
B108: IBM | C108: Notebook | D108: Site | E108: 2021-02-23 | F108: Bursa | G108: Kredi Kartı | H108: 33206
B109: DELL | C109: Notebook | D109: Site | E109: 2021-02-24 | F109: Bursa | G109: Kredi Kartı | H109: 26914
B110: IBM | C110: PC | D110: Mağaza | E110: 2021-03-07 | F110: İstanbul | G110: Peşin | H110: 20625
B111: TOSHIBA | C111: Notebook | D111: Mağaza | E111: 2021-03-09 | F111: Ankara | G111: Peşin | H111: 32915
B112: HP | C112: PC | D112: Mağaza | E112: 2021-03-13 | F112: Bursa | G112: Peşin | H112: 12774
B113: HP | C113: PC | D113: Mağaza | E113: 2021-03-14 | F113: Bursa | G113: Peşin | H113: 13200
B114: TOSHIBA | C114: PC | D114: Mağaza | E114: 2021-03-17 | F114: İstanbul | G114: Peşin | H114: 19034
B115: IBM | C115: Tablet | D115: Site | E115: 2021-03-23 | F115: Ankara | G115: Kredi Kartı | H115: 7314
B116: ASUS | C116: Notebook | D116: Site | E116: 2021-03-23 | F116: İstanbul | G116: Kredi Kartı | H116: 28022
B117: DELL | C117: Notebook | D117: Site | E117: 2021-03-23 | F117: Ankara | G117: Kredi Kartı | H117: 21667
B118: TOSHIBA | C118: Tablet | D118: Mağaza | E118: 2021-03-26 | F118: Bursa | G118: Peşin | H118: 3802
B119: DELL | C119: Tablet | D119: Site | E119: 2021-03-30 | F119: Ankara | G119: Kredi Kartı | H119: 7086
B120: MSI | C120: Tablet | D120: Mağaza | E120: 2021-04-02 | F120: İstanbul | G120: Kredi Kartı | H120: 7730
B121: TOSHIBA | C121: Tablet | D121: Site | E121: 2021-04-11 | F121: Bursa | G121: Kredi Kartı | H121: 4827
B122: HP | C122: PC | D122: Site | E122: 2021-04-12 | F122: İstanbul | G122: Kredi Kartı | H122: 23446
B123: TOSHIBA | C123: Notebook | D123: Mağaza | E123: 2021-04-19 | F123: Bursa | G123: Peşin | H123: 25944
B124: HP | C124: Notebook | D124: Site | E124: 2021-04-25 | F124: Bursa | G124: Kredi Kartı | H124: 31779
B125: HP | C125: PC | D125: Site | E125: 2021-04-28 | F125: Bursa | G125: Kredi Kartı | H125: 12776
B126: HP | C126: Notebook | D126: Site | E126: 2021-05-01 | F126: Bursa | G126: Kredi Kartı | H126: 31779
B127: DELL | C127: Notebook | D127: Mağaza | E127: 2021-05-02 | F127: İstanbul | G127: Peşin | H127: 27077
B128: MSI | C128: PC | D128: Site | E128: 2021-05-02 | F128: Bursa | G128: Kredi Kartı | H128: 14924
B129: HP | C129: PC | D129: Site | E129: 2021-05-03 | F129: İstanbul | G129: Kredi Kartı | H129: 23446
B130: DELL | C130: PC | D130: Mağaza | E130: 2021-05-03 | F130: Bursa | G130: Peşin | H130: 19044
B131: IBM | C131: Notebook | D131: Site | E131: 2021-05-06 | F131: Bursa | G131: Kredi Kartı | H131: 20723
B132: HP | C132: PC | D132: Mağaza | E132: 2021-05-06 | F132: Ankara | G132: Peşin | H132: 22332
B133: IBM | C133: Tablet | D133: Site | E133: 2021-05-11 | F133: Ankara | G133: Kredi Kartı | H133: 7314
B134: ASUS | C134: PC | D134: Mağaza | E134: 2021-05-16 | F134: İstanbul | G134: Peşin | H134: 14132
B135: IBM | C135: PC | D135: Mağaza | E135: 2021-05-17 | F135: Ankara | G135: Peşin | H135: 16736
B136: MSI | C136: Tablet | D136: Site | E136: 2021-05-22 | F136: Bursa | G136: Kredi Kartı | H136: 6892
B137: MSI | C137: PC | D137: Site | E137: 2021-05-28 | F137: Bursa | G137: Kredi Kartı | H137: 14357
B138: IBM | C138: Notebook | D138: Site | E138: 2021-05-29 | F138: Ankara | G138: Kredi Kartı | H138: 23934
B139: TOSHIBA | C139: Tablet | D139: Site | E139: 2021-06-02 | F139: Bursa | G139: Kredi Kartı | H139: 4827
B140: ASUS | C140: Notebook | D140: Site | E140: 2021-06-04 | F140: İstanbul | G140: Kredi Kartı | H140: 28022
B141: HP | C141: Tablet | D141: Mağaza | E141: 2021-06-11 | F141: Bursa | G141: Peşin | H141: 6193
B142: HP | C142: PC | D142: Site | E142: 2021-06-13 | F142: İstanbul | G142: Kredi Kartı | H142: 14590
B143: ASUS | C143: Notebook | D143: Site | E143: 2021-06-14 | F143: Bursa | G143: Kredi Kartı | H143: 18562
B144: HP | C144: PC | D144: Site | E144: 2021-06-15 | F144: İstanbul | G144: Kredi Kartı | H144: 23446
B145: ASUS | C145: Notebook | D145: Mağaza | E145: 2021-06-19 | F145: Ankara | G145: Peşin | H145: 20337
B146: TOSHIBA | C146: Tablet | D146: Site | E146: 2021-06-23 | F146: Bursa | G146: Kredi Kartı | H146: 5865
B147: IBM | C147: Tablet | D147: Site | E147: 2021-06-24 | F147: Ankara | G147: Kredi Kartı | H147: 7314
B148: MSI | C148: Tablet | D148: Site | E148: 2021-06-24 | F148: İstanbul | G148: Kredi Kartı | H148: 5647
B149: TOSHIBA | C149: Notebook | D149: Site | E149: 2021-07-04 | F149: Bursa | G149: Kredi Kartı | H149: 26104
B150: HP | C150: PC | D150: Mağaza | E150: 2021-07-11 | F150: Bursa | G150: Peşin | H150: 12774
B151: DELL | C151: Tablet | D151: Site | E151: 2021-07-21 | F151: Ankara | G151: Kredi Kartı | H151: 7086
B152: MSI | C152: Tablet | D152: Mağaza | E152: 2021-07-22 | F152: İstanbul | G152: Peşin | H152: 6574
B153: DELL | C153: Tablet | D153: Mağaza | E153: 2021-07-23 | F153: Bursa | G153: Kredi Kartı | H153: 4701
B154: DELL | C154: Notebook | D154: Mağaza | E154: 2021-07-27 | F154: İstanbul | G154: Peşin | H154: 19257
B155: MSI | C155: Tablet | D155: Mağaza | E155: 2021-07-28 | F155: Ankara | G155: Peşin | H155: 6818
B156: TOSHIBA | C156: PC | D156: Site | E156: 2021-07-28 | F156: İstanbul | G156: Kredi Kartı | H156: 21623
B157: ASUS | C157: Notebook | D157: Mağaza | E157: 2021-07-31 | F157: Ankara | G157: Peşin | H157: 20337
B158: HP | C158: Tablet | D158: Mağaza | E158: 2021-08-03 | F158: Ankara | G158: Kredi Kartı | H158: 7344
B159: TOSHIBA | C159: Notebook | D159: Mağaza | E159: 2021-08-09 | F159: Bursa | G159: Peşin | H159: 26627
B160: DELL | C160: Tablet | D160: Site | E160: 2021-08-17 | F160: Bursa | G160: Kredi Kartı | H160: 6222
B161: MSI | C161: PC | D161: Site | E161: 2021-08-19 | F161: Bursa | G161: Kredi Kartı | H161: 14924
B162: IBM | C162: Notebook | D162: Mağaza | E162: 2021-08-26 | F162: Bursa | G162: Kredi Kartı | H162: 20710
B163: ASUS | C163: PC | D163: Site | E163: 2021-08-27 | F163: İstanbul | G163: Kredi Kartı | H163: 12915
B164: MSI | C164: PC | D164: Site | E164: 2021-08-28 | F164: Bursa | G164: Kredi Kartı | H164: 14357
B165: TOSHIBA | C165: Tablet | D165: Mağaza | E165: 2021-09-04 | F165: Ankara | G165: Peşin | H165: 7475
B166: IBM | C166: PC | D166: Mağaza | E166: 2021-09-06 | F166: İstanbul | G166: Peşin | H166: 17457
B167: HP | C167: PC | D167: Site | E167: 2021-09-07 | F167: Bursa | G167: Kredi Kartı | H167: 14122
B168: ASUS | C168: PC | D168: Mağaza | E168: 2021-09-12 | F168: İstanbul | G168: Peşin | H168: 14132
B169: IBM | C169: Tablet | D169: Site | E169: 2021-09-13 | F169: Bursa | G169: Kredi Kartı | H169: 8117
B170: IBM | C170: Notebook | D170: Mağaza | E170: 2021-09-22 | F170: Bursa | G170: Peşin | H170: 19624
B171: MSI | C171: Tablet | D171: Site | E171: 2021-09-23 | F171: İstanbul | G171: Kredi Kartı | H171: 5647
B172: IBM | C172: Tablet | D172: Mağaza | E172: 2021-09-24 | F172: Ankara | G172: Peşin | H172: 6253
B173: ASUS | C173: Notebook | D173: Site | E173: 2021-09-29 | F173: Bursa | G173: Kredi Kartı | H173: 34831
B174: IBM | C174: PC | D174: Mağaza | E174: 2021-10-08 | F174: Bursa | G174: Kredi Kartı | H174: 16880
B175: IBM | C175: Notebook | D175: Site | E175: 2021-10-17 | F175: Bursa | G175: Kredi Kartı | H175: 27501
B176: HP | C176: PC | D176: Mağaza | E176: 2021-10-25 | F176: Bursa | G176: Peşin | H176: 12774
B177: HP | C177: PC | D177: Site | E177: 2021-10-26 | F177: İstanbul | G177: Kredi Kartı | H177: 23446
B178: IBM | C178: Notebook | D178: Mağaza | E178: 2021-10-27 | F178: Bursa | G178: Peşin | H178: 19624
B179: DELL | C179: PC | D179: Mağaza | E179: 2021-10-30 | F179: Bursa | G179: Peşin | H179: 19044
B180: DELL | C180: PC | D180: Site | E180: 2021-11-07 | F180: Ankara | G180: Kredi Kartı | H180: 17805
B181: MSI | C181: PC | D181: Mağaza | E181: 2021-11-12 | F181: Ankara | G181: Peşin | H181: 16500
B182: ASUS | C182: Notebook | D182: Mağaza | E182: 2021-11-22 | F182: Ankara | G182: Peşin | H182: 31393
B183: TOSHIBA | C183: Notebook | D183: Site | E183: 2021-11-24 | F183: Bursa | G183: Kredi Kartı | H183: 29834
B184: DELL | C184: Notebook | D184: Site | E184: 2021-11-26 | F184: İstanbul | G184: Kredi Kartı | H184: 29188
B185: IBM | C185: Notebook | D185: Site | E185: 2021-11-26 | F185: Bursa | G185: Kredi Kartı | H185: 27501
B186: DELL | C186: Notebook | D186: Site | E186: 2021-11-29 | F186: İstanbul | G186: Kredi Kartı | H186: 29188
B187: DELL | C187: PC | D187: Site | E187: 2021-11-30 | F187: Ankara | G187: Kredi Kartı | H187: 17805
B188: IBM | C188: Notebook | D188: Site | E188: 2021-11-30 | F188: Bursa | G188: Kredi Kartı | H188: 33206
B189: TOSHIBA | C189: Notebook | D189: Mağaza | E189: 2021-12-04 | F189: İstanbul | G189: Kredi Kartı | H189: 27281
B190: DELL | C190: Notebook | D190: Mağaza | E190: 2021-12-14 | F190: İstanbul | G190: Peşin | H190: 19257
B191: HP | C191: Tablet | D191: Site | E191: 2021-12-14 | F191: Bursa | G191: Kredi Kartı | H191: 5256
B192: HP | C192: Tablet | D192: Mağaza | E192: 2021-12-15 | F192: Ankara | G192: Peşin | H192: 4543
B193: DELL | C193: Notebook | D193: Mağaza | E193: 2021-12-15 | F193: İstanbul | G193: Peşin | H193: 28155
B194: DELL | C194: PC | D194: Site | E194: 2021-12-17 | F194: Ankara | G194: Kredi Kartı | H194: 17805
B195: ASUS | C195: Tablet | D195: Site | E195: 2021-12-28 | F195: Bursa | G195: Kredi Kartı | H195: 5762
B196: TOSHIBA | C196: Tablet | D196: Mağaza | E196: 2021-12-29 | F196: Ankara | G196: Peşin | H196: 7475
B197: IBM | C197: PC | D197: Mağaza | E197: 2022-01-03 | F197: Ankara | G197: Peşin | H197: 16736
B198: DELL | C198: Tablet | D198: Mağaza | E198: 2022-01-10 | F198: Bursa | G198: Peşin | H198: 6446
B199: TOSHIBA | C199: Tablet | D199: Mağaza | E199: 2022-01-13 | F199: Bursa | G199: Peşin | H199: 3802
B200: MSI | C200: Notebook | D200: Site | E200: 2022-01-25 | F200: Bursa | G200: Kredi Kartı | H200: 22725
B201: TOSHIBA | C201: PC | D201: Site | E201: 2022-01-29 | F201: İstanbul | G201: Kredi Kartı | H201: 23416
B202: MSI | C202: Notebook | D202: Mağaza | E202: 2022-01-30 | F202: Bursa | G202: Peşin | H202: 35953
... 168 more rows

Sheet TarihFonksiyonları 3
B2: Tarih Fonksiyonları
B5: METNEÇEVİR
B6: =IF(lang_op=2,VLOOKUP(B5,formuller,2,0),IF(lang_op=3,VLOOKUP(B5,formuller,3,0),IF(lang_op=4,VLOOKUP(B5,formuller,4,0),""))) -> TEXT
B7: Tarih | C7: Gün | E7: Ay
B8: =TODAY() -> 2026-06-12
B9: =dtarih -> 00:00:00
B10: =B8-95 -> 2026-03-09
B11: =B8+60 -> 2026-08-11
B12: =B10+51 -> 2026-04-29
B13: =B10+45 -> 2026-04-23
C15: =IFERROR(_xlfn.FORMULATEXT(C8),"") ->  | E15: =IFERROR(_xlfn.FORMULATEXT(E8),"") ->  | K15: =IFERROR(_xlfn.FORMULATEXT(D31),"") -> 
C18: =IngFormul(C8) ->  | E18: =IngFormul(E8) -> 
C29: HAFTANINGÜNÜ | E29: ISOHAFTASAY | G29: HAFTASAY
B30: Tarih | C30: =IF(lang_op=2,VLOOKUP(C29,formuller,2,0),IF(lang_op=3,VLOOKUP(C29,formuller,3,0),IF(lang_op=4,VLOOKUP(C29,formuller,4,0),""))) -> WEEKDAY | E30: =IF(lang_op=2,VLOOKUP(E29,formuller,2,0),IF(lang_op=3,VLOOKUP(E29,formuller,3,0),IF(lang_op=4,VLOOKUP(E29,formuller,4,0),""))) -> ISOWEEKNUM | G30: =IF(lang_op=2,VLOOKUP(G29,formuller,2,0),IF(lang_op=3,VLOOKUP(G29,formuller,3,0),IF(lang_op=4,VLOOKUP(G29,formuller,4,0),""))) -> WEEKNUM
B31: =TODAY() -> 2026-06-12
B32: =dtarih -> 00:00:00
B33: =B31-95 -> 2026-03-09
B34: =B31+60 -> 2026-08-11
B35: =B33+51 -> 2026-04-29
B36: =B33+45 -> 2026-04-23
B39: =IF(C31>0,B41,"") ->  | C39: =IFERROR(_xlfn.FORMULATEXT(C31),"") ->  | E39: =IFERROR(_xlfn.FORMULATEXT(E31),"") ->  | G39: =IFERROR(_xlfn.FORMULATEXT(F31),"") -> 
B41: =WEEKDAY(B31,2) | C41: =B39 ->  | E41: =IngFormul(E31) ->  | G41: =IngFormul(F31) -> 
B44: Proje Başlangıç Tarihi | C44: Proje Bitiş Tarihi | E44: TAMİŞGÜNÜ | H44: TAMİŞGÜNÜ.ULUSL
B45: 2025-01-01 | C45: =B45+364 -> 2025-12-31 | E45: =IF(lang_op=2,VLOOKUP(E44,formuller,2,0),IF(lang_op=3,VLOOKUP(E44,formuller,3,0),IF(lang_op=4,VLOOKUP(E44,formuller,4,0),""))) -> NETWORKDAYS | H45: =IF(lang_op=2,VLOOKUP(H44,formuller,2,0),IF(lang_op=3,VLOOKUP(H44,formuller,3,0),IF(lang_op=4,VLOOKUP(H44,formuller,4,0),""))) -> NETWORKDAYS.INTL
B47: =CONCATENATE(YEAR(buyil)," Resmi Tatil Günleri") -> 2025 Resmi Tatil Günleri
B48: 2025-01-01 | C48: =TEXT(B48,"gggg") -> Çarşamba
B49: 2025-03-30 | C49: =TEXT(B49,"gggg") -> Pazar
B50: 2025-03-31 | C50: Pazartesi | E50: =IFERROR(_xlfn.FORMULATEXT(E46),"") ->  | H50: =IFERROR(_xlfn.FORMULATEXT(H46),"") -> 
B51: 2025-04-01 | C51: Salı
B52: 2025-04-23 | C52: Çarşamba
B53: 2025-05-01 | C53: Perşembe
B54: 2025-05-19 | C54: Pazartesi | E54: =IngFormul(E46) ->  | H54: =IngFormul(H46) -> 
B55: 2025-06-05 | C55: Perşembe
B56: 2025-06-06 | C56: Cuma
B57: 2025-06-07 | C57: Cumartesi
B58: 2025-06-08 | C58: Pazar
B59: 2025-07-15 | C59: Salı
B60: 2025-08-30 | C60: Cumartesi
B61: 2025-10-29 | C61: Çarşamba

Sheet Düşeyara1
B2: DÜŞEYARA | C2: =IF(lang_op=1,"",IF(lang_op=2,"/ İngilizce Karşılığı ---->",IF(lang_op=3,"/ Fransızca Karşılığı ---->","/ Almanca Karşılığı ---->"))) -> / İngilizce Karşılığı ----> | F2: =IF(lang_op=2,VLOOKUP(B2,formuller,2,0),IF(lang_op=3,VLOOKUP(B2,formuller,3,0),IF(lang_op=4,VLOOKUP(B2,formuller,4,0),""))) -> VLOOKUP
B4: Eleman | C4: Egemen ATAY | G4: Sıra No | H4: Eleman | I4: Bölge | J4: Satış Adedi | K4: Satış Tutarı | M4: =IngFormul(C6) -> 
G5: 1 | H5: İlhan IŞIK | I5: İç Anadolu | J5: 20 | K5: 125206 | M5: =IngFormul(C7) -> 
B6: Bölge | G6: 2 | H6: Gökhan YAĞIZ | I6: Akdeniz | J6: 50 | K6: 116783 | M6: =IngFormul(C8) -> 
B7: Satış Adedi | G7: 3 | H7: Fatih TANDOĞAN | I7: Marmara | J7: 40 | K7: 71021
B8: Satış Tutarı | G8: 4 | H8: Seda DEĞİRMENCİ | I8: Karadeniz | J8: 15 | K8: 116818
G9: 5 | H9: Egemen ATAY | I9: Marmara | J9: 68 | K9: 76248
G10: 6 | H10: Mustafa EMEK | I10: Ege | J10: 75 | K10: 75301
B11: =IFERROR(_xlfn.FORMULATEXT(C6),"") ->  | G11: 7 | H11: Yasemin TURGUT | I11: Doğu Anadolu | J11: 63 | K11: 118335
G12: 8 | H12: =IF(isim>0,CONCATENATE(TRIM(isim)," ",UPPER(TRIM(soyisim))),"İsmini Göremedik") -> İsmini Göremedik | I12: Marmara | J12: 36 | K12: 100659
G13: 9 | H13: Efe YILDIZ | I13: Karadeniz | J13: 45 | K13: 75736
B14: =IFERROR(_xlfn.FORMULATEXT(C7),"") ->  | G14: 10 | H14: Emin TEMEL | I14: Akdeniz | J14: 76 | K14: 117062
G15: 11 | H15: Halime AŞAN | I15: Marmara | J15: 55 | K15: 73800
G16: 12 | H16: Nagihan VATANSEVER | I16: Karadeniz | J16: 75 | K16: 79995
B17: =IFERROR(_xlfn.FORMULATEXT(C8),"") ->  | G17: 13 | H17: Zeynep TATLITÜR | I17: Marmara | J17: 89 | K17: 134243
G18: 14 | H18: Gökhan YAĞIZ | I18: Ege | J18: 54 | K18: 89755
G19: 15 | H19: Eren AKTÜRK | I19: Doğu Anadolu | J19: 23 | K19: 87223
G20: 16 | H20: Hüseyin ALBAYRAK | I20: Marmara | J20: 46 | K20: 105429
G21: 17 | H21: Rıza SİLAHLIPODA | I21: Karadeniz | J21: 78 | K21: 83018

Sheet Düşeyara2
B2: DÜŞEYARA | C2: =IF(lang_op=1,"",IF(lang_op=2,"/ İngilizce Karşılığı ---->",IF(lang_op=3,"/ Fransızca Karşılığı ---->","/ Almanca Karşılığı ---->"))) -> / İngilizce Karşılığı ----> | F2: =IF(lang_op=2,VLOOKUP(B2,formuller,2,0),IF(lang_op=3,VLOOKUP(B2,formuller,3,0),IF(lang_op=4,VLOOKUP(B2,formuller,4,0),""))) -> VLOOKUP
B3: EĞERHATA | C3: =IF(B3="","",IF(lang_op=1,"",IF(lang_op=2,"/ İngilizce Karşılığı ---->",IF(lang_op=3,"/ Fransızca Karşılığı ---->","/ Almanca Karşılığı ---->")))) -> / İngilizce Karşılığı ----> | F3: =IFERROR(IF(lang_op=2,VLOOKUP(B3,formuller,2,0),IF(lang_op=3,VLOOKUP(B3,formuller,3,0),IF(lang_op=4,VLOOKUP(B3,formuller,4,0),""))),"") -> IFERROR
B5: Stok Kodu | C5: Ocak | E5: Stok Kodu | F5: Şubat | H5: Stok Kodu | I5: Ocak | J5: Şubat | K5: Toplam
B6: BB-16995-AA | C6: 16 | E6: EE-19525-PB | F6: 71 | H6: CB-18083-JB | K6: =SUM(I6:J6) -> 0
B7: BC-18041-CB | C7: 0 | E7: EE-16100-AA | F7: 54 | H7: BB-16995-AA | K7: 0 | M7: =IFERROR(_xlfn.FORMULATEXT(I6),"") ->  | P7: =IngFormul(I6) -> 
B8: BD-10789-OA | C8: 100 | E8: EE-10715-AA | F8: 38 | H8: BC-18041-CB | K8: 0
B9: CA-16707-KA | C9: 81 | E9: EC-18392-NB | F9: 93 | H9: BC-18268-BB | K9: 0
B10: CB-19367-AA | C10: 35 | E10: EC-10910-FA | F10: 85 | H10: EE-19525-PB | K10: 0
B11: DC-17107-SA | C11: 97 | E11: EB-14559-NA | F11: 40 | H11: CA-16707-KA | K11: 0 | M11: =IFERROR(_xlfn.FORMULATEXT(J6),"") -> 
B12: DC-17921-IA | C12: 89 | E12: EB-11963-UB | F12: 35 | H12: CB-11261-UA | K12: 0 | P12: =IngFormul(J6) -> 
B13: DD-17161-SA | C13: 20 | E13: DD-17161-SA | F13: 54 | H13: AA-16393-FB | K13: 0
B14: EC-10910-FA | C14: 24 | E14: DD-13260-NB | F14: 85 | H14: CB-19367-AA | K14: 0
B15: ED-14865-FA | C15: 54 | E15: DC-17921-IA | F15: 19 | H15: CC-15648-UA | K15: 0
B16: EC-18392-NB | C16: 44 | E16: DC-17107-SA | F16: 100 | H16: CD-12727-HB | K16: 0
B17: EB-11963-UB | C17: 97 | E17: DA-19478-BA | F17: 25 | H17: CE-10318-UB | K17: 0
B18: DD-13260-NB | C18: 67 | E18: CE-10318-UB | F18: 19 | H18: DA-19478-BA | K18: 0
B19: EE-16100-AA | C19: 78 | E19: CD-12727-HB | F19: 45 | H19: DC-17107-SA | K19: 0
B20: EE-10715-AA | C20: 22 | E20: CC-15648-UA | F20: 34 | H20: DC-17921-IA | K20: 0
B21: EB-14559-NA | C21: 83 | E21: CB-19367-AA | F21: 74 | H21: DD-13260-NB | K21: 0
B22: DA-19478-BA | C22: 34 | E22: CB-18083-JB | F22: 21 | H22: DD-17161-SA | K22: 0
B23: CE-10318-UB | C23: 64 | E23: CB-11261-UA | F23: 86 | H23: EB-11963-UB | K23: 0
B24: CD-12727-HB | C24: 84 | E24: BD-10789-OA | F24: 50 | H24: EB-14559-NA | K24: 0
B25: CB-11261-UA | C25: 23 | E25: BC-18268-BB | F25: 46 | H25: EC-10910-FA | K25: 0
B26: BC-18268-BB | C26: 78 | E26: BC-18041-CB | F26: 87 | H26: EC-18392-NB | K26: 0
B27: AA-16393-FB | C27: 36 | E27: BB-16995-AA | F27: 53 | H27: ED-14865-FA | K27: 0
E28: AA-16393-FB | F28: 85 | H28: EE-10715-AA | K28: 0
H29: EE-16100-AA | K29: 0
H30: BD-10789-OA | K30: 0
H31: TOPLAM | I31: =SUM(I6:I30) -> 0 | J31: =SUM(J6:J30) -> 0
H34: Genel Toplam | I34: =SUM(I31:J31) -> 0

Sheet Ocak
A1: Stok Kodu | B1: Ocak
A2: BB-16995-AA | B2: 16
A3: BC-18041-CB | B3: 0
A4: BD-10789-OA | B4: 100
A5: CA-16707-KA | B5: 81
A6: CB-19367-AA | B6: 35
A7: DC-17107-SA | B7: 97
A8: DC-17921-IA | B8: 89
A9: DD-17161-SA | B9: 20
A10: EC-10910-FA | B10: 24
A11: ED-14865-FA | B11: 54
A12: EC-18392-NB | B12: 44
A13: EB-11963-UB | B13: 97
A14: DD-13260-NB | B14: 67
A15: EE-16100-AA | B15: 78
A16: EE-10715-AA | B16: 22
A17: EB-14559-NA | B17: 83
A18: DA-19478-BA | B18: 34
A19: CE-10318-UB | B19: 64
A20: CD-12727-HB | B20: 84
A21: CB-11261-UA | B21: 23
A22: BC-18268-BB | B22: 78
A23: AA-16393-FB | B23: 36

Sheet Şubat
A1: Stok Kodu | B1: Şubat
A2: EE-19525-PB | B2: 71
A3: EE-16100-AA | B3: 54
A4: EE-10715-AA | B4: 38
A5: EC-18392-NB | B5: 93
A6: EC-10910-FA | B6: 85
A7: EB-14559-NA | B7: 40
A8: EB-11963-UB | B8: 35
A9: DD-17161-SA | B9: 54
A10: DD-13260-NB | B10: 85
A11: DC-17921-IA | B11: 19
A12: DC-17107-SA | B12: 100
A13: DA-19478-BA | B13: 25
A14: CE-10318-UB | B14: 19
A15: CD-12727-HB | B15: 45
A16: CC-15648-UA | B16: 34
A17: CB-19367-AA | B17: 74
A18: CB-18083-JB | B18: 21
A19: CB-11261-UA | B19: 86
A20: BD-10789-OA | B20: 50
A21: BC-18268-BB | B21: 46
A22: BC-18041-CB | B22: 87
A23: BB-16995-AA | B23: 53
A24: AA-16393-FB | B24: 85

Sheet Toplam
A1: Stok Kodu | B1: Ocak | C1: Şubat | D1: Toplam | G1: Stok Kodu | H1: Ocak | I1: Şubat | J1: Toplam | M1: Stok Kodu | N1: Ocak | O1: Şubat | P1: Toplam
A2: BB-16995-AA | G2: BB-16995-AA | M2: BB-16995-AA
A3: BC-18041-CB | G3: BC-18041-CB | M3: BC-18041-CB
A4: BD-10789-OA | G4: BD-10789-OA | M4: BD-10789-OA
A5: CA-16707-KA | G5: CA-16707-KA | M5: CA-16707-KA
A6: CB-19367-AA | G6: CB-19367-AA | M6: CB-19367-AA
A7: DC-17107-SA | G7: DC-17107-SA | M7: DC-17107-SA
A8: DC-17921-IA | G8: DC-17921-IA | M8: DC-17921-IA
A9: DD-17161-SA | G9: DD-17161-SA | M9: DD-17161-SA
A10: EC-10910-FA | G10: EC-10910-FA | M10: EC-10910-FA
A11: ED-14865-FA | G11: ED-14865-FA | M11: ED-14865-FA
A12: EC-18392-NB | G12: EC-18392-NB | M12: EC-18392-NB
A13: EB-11963-UB | G13: EB-11963-UB | M13: EB-11963-UB
A14: DD-13260-NB | G14: DD-13260-NB | M14: DD-13260-NB
A15: EE-16100-AA | G15: EE-16100-AA | M15: EE-16100-AA
A16: EE-10715-AA | G16: EE-10715-AA | M16: EE-10715-AA
A17: EB-14559-NA | G17: EB-14559-NA | M17: EB-14559-NA
A18: DA-19478-BA | G18: DA-19478-BA | M18: DA-19478-BA
A19: CE-10318-UB | G19: CE-10318-UB | M19: CE-10318-UB
A20: CD-12727-HB | G20: CD-12727-HB | M20: CD-12727-HB
A21: CB-11261-UA | G21: CB-11261-UA | M21: CB-11261-UA
A22: BC-18268-BB | G22: BC-18268-BB | M22: BC-18268-BB
A23: AA-16393-FB | G23: AA-16393-FB | M23: AA-16393-FB
A24: EE-19525-PB | G24: EE-19525-PB | M24: EE-19525-PB
A25: CC-15648-UA | G25: CC-15648-UA | M25: CC-15648-UA
A26: CB-18083-JB | G26: CB-18083-JB | M26: CB-18083-JB
A27: TOPLAM | G27: TOPLAM | M27: TOPLAM

Sheet Yatayara
B2: YATAYARA | C2: =IF(lang_op=1,"",IF(lang_op=2,"/ İngilizce Karşılığı ---->",IF(lang_op=3,"/ Fransızca Karşılığı ---->","/ Almanca Karşılığı ---->"))) -> / İngilizce Karşılığı ----> | E2: =IF(lang_op=2,VLOOKUP(B2,formuller,2,0),IF(lang_op=3,VLOOKUP(B2,formuller,3,0),IF(lang_op=4,VLOOKUP(B2,formuller,4,0),""))) -> HLOOKUP
B4: Üye Adı | C4: Egemen ATAY
B6: Başlangıç Tarihi | E6: =IFERROR(_xlfn.FORMULATEXT(C6),"") ->  | G6: =IngFormul(C6) -> 
B7: Bitiş Tarihi | E7: =IFERROR(_xlfn.FORMULATEXT(C7),"") ->  | G7: =IngFormul(C7) -> 
B8: Ödeme Tutarı | E8: =IFERROR(_xlfn.FORMULATEXT(C8),"") ->  | G8: =IngFormul(C8) -> 
B10: Üye No | C10: 101003 | D10: 101008 | E10: 101004 | F10: 101005 | G10: 101002 | H10: 101006 | I10: 101009 | J10: 101007 | K10: 101001 | L10: 101010
B11: Üye Adı | C11: İlhan IŞIK | D11: Gökhan YAĞIZ | E11: Fatih TANDOĞAN | F11: Seda DEĞİRMENCİ | G11: Egemen ATAY | H11: Mustafa EMEK | I11: =CONCATENATE(TRIM(isim)," ",UPPER(TRIM(soyisim))) ->  | J11: Neslihan YILMAZ | K11: Efe YILDIZ | L11: Emin TEMEL
B12: Başlangıç Tarihi | C12: 2022-01-25 | D12: 2019-03-04 | E12: 2021-04-09 | F12: 2022-06-17 | G12: 2021-07-03 | H12: 2019-08-04 | I12: 2022-09-07 | J12: 2022-10-10 | K12: 2021-10-12 | L12: 2022-10-18
B13: Bitiş Tarihi | C13: =C12+365 -> 2023-01-25 | D13: 2020-03-03 | E13: 2022-04-09 | F13: 2023-06-17 | G13: 2022-07-03 | H13: 2020-08-03 | I13: 2023-09-07 | J13: 2023-10-10 | K13: 2022-10-12 | L13: 2023-10-18
B14: Ödeme Tutarı | C14: 175 | D14: 120 | E14: 160 | F14: 120 | G14: 150 | H14: 145 | I14: 150 | J14: 130 | K14: 135 | L14: 150

Sheet İndis-Kaçıncı
B2: İNDİS | C2: =IF(lang_op=1,"",IF(lang_op=2,"/ İngilizce Karşılığı ---->",IF(lang_op=3,"/ Fransızca Karşılığı ---->","/ Almanca Karşılığı ---->"))) -> / İngilizce Karşılığı ----> | F2: =IF(lang_op=2,VLOOKUP(B2,formuller,2,0),IF(lang_op=3,VLOOKUP(B2,formuller,3,0),IF(lang_op=4,VLOOKUP(B2,formuller,4,0),""))) -> INDEX
B3: KAÇINCI | C3: =IF(lang_op=1,"",IF(lang_op=2,"/ İngilizce Karşılığı ---->",IF(lang_op=3,"/ Fransızca Karşılığı ---->","/ Almanca Karşılığı ---->"))) -> / İngilizce Karşılığı ----> | F3: =IF(lang_op=2,VLOOKUP(B3,formuller,2,0),IF(lang_op=3,VLOOKUP(B3,formuller,3,0),IF(lang_op=4,VLOOKUP(B3,formuller,4,0),""))) -> MATCH
B5: Eleman | C5: Egemen ATAY | G5: Sıra No | H5: Eleman | I5: Bölge | J5: Satış Adedi | K5: Satış Tutarı | M5: =IngFormul(C7) -> 
G6: 1 | H6: İlhan IŞIK | I6: İç Anadolu | J6: 20 | K6: 125206 | M6: =IngFormul(C8) -> 
B7: Sıra No | G7: 2 | H7: Gökhan YAĞIZ | I7: Akdeniz | J7: 50 | K7: 116783 | M7: =IngFormul(C9) -> 
B8: Bölge | G8: 3 | H8: Fatih TANDOĞAN | I8: Marmara | J8: 40 | K8: 71021
B9: Satış Adedi | G9: 4 | H9: Seda DEĞİRMENCİ | I9: Karadeniz | J9: 15 | K9: 116818
G10: 5 | H10: Egemen ATAY | I10: Marmara | J10: 68 | K10: 76248
G11: 6 | H11: Mustafa EMEK | I11: Ege | J11: 75 | K11: 75301
B12: =IFERROR(_xlfn.FORMULATEXT(C7),"") ->  | G12: 7 | H12: Yasemin TURGUT | I12: Doğu Anadolu | J12: 63 | K12: 118335
G13: 8 | H13: =IF(isim>0,CONCATENATE(TRIM(isim)," ",UPPER(TRIM(soyisim))),"İsmini Göremedik") -> İsmini Göremedik | I13: Marmara | J13: 36 | K13: 100659
G14: 9 | H14: Efe YILDIZ | I14: Karadeniz | J14: 45 | K14: 75736
B15: =IFERROR(_xlfn.FORMULATEXT(C8),"") ->  | G15: 10 | H15: Emin TEMEL | I15: Akdeniz | J15: 76 | K15: 117062
G16: 11 | H16: Halime AŞAN | I16: Marmara | J16: 55 | K16: 73800
G17: 12 | H17: Nagihan VATANSEVER | I17: Karadeniz | J17: 75 | K17: 79995
B18: =IFERROR(_xlfn.FORMULATEXT(C9),"") ->  | G18: 13 | H18: Zeynep TATLITÜR | I18: Marmara | J18: 89 | K18: 134243
G19: 14 | H19: Gökhan YAĞIZ | I19: Ege | J19: 54 | K19: 89755
G20: 15 | H20: Eren AKTÜRK | I20: Doğu Anadolu | J20: 23 | K20: 87223
G21: 16 | H21: Hüseyin ALBAYRAK | I21: Marmara | J21: 46 | K21: 105429
G22: 17 | H22: Rıza SİLAHLIPODA | I22: Karadeniz | J22: 78 | K22: 83018

Sheet Çaprazara
B2: ÇAPRAZARA | D2: =IF(lang_op=1,"",IF(lang_op=2," / İngilizce Karşılığı ---->",IF(lang_op=3," / Fransızca Karşılığı ---->"," / Almanca Karşılığı ---->"))) -> / İngilizce Karşılığı ----> | G2: =IF(lang_op=2,VLOOKUP(B2,formuller,2,0),IF(lang_op=3,VLOOKUP(B2,formuller,3,0),IF(lang_op=4,VLOOKUP(B2,formuller,4,0),""))) -> XLOOKUP
B4: Sıra No | C4: Eleman | D4: Bölge | E4: Satış Adedi | F4: Satış Tutarı | H4: Eleman | I4: Egemen ATAY
B5: 1 | C5: İlhan IŞIK | D5: İç Anadolu | E5: 20 | F5: 125206
B6: 2 | C6: Gökhan YAĞIZ | D6: Akdeniz | E6: 50 | F6: 116783 | H6: Sıra No | I6: Satış Tutarı | J6: Bölge
B7: 3 | C7: Fatih TANDOĞAN | D7: Marmara | E7: 40 | F7: 71021
B8: 4 | C8: Seda DEĞİRMENCİ | D8: Karadeniz | E8: 15 | F8: 116818
B9: 5 | C9: Egemen ATAY | D9: Marmara | E9: 68 | F9: 76248 | H9: =IFERROR(_xlfn.FORMULATEXT(H7),"") -> 
B10: 6 | C10: Mustafa EMEK | D10: Ege | E10: 75 | F10: 75301
B11: 7 | C11: Yasemin TURGUT | D11: Doğu Anadolu | E11: 63 | F11: 118335 | H11: =IngFormul(H7) -> 
B12: 8 | C12: =IF(isim>0,CONCATENATE(TRIM(isim)," ",UPPER(TRIM(soyisim))),"İsmini Göremedik") -> İsmini Göremedik | D12: Marmara | E12: 36 | F12: 100659
B13: 9 | C13: Efe YILDIZ | D13: Karadeniz | E13: 45 | F13: 75736
B14: 10 | C14: Emin TEMEL | D14: Akdeniz | E14: 76 | F14: 117062
B15: 11 | C15: Halime AŞAN | D15: Marmara | E15: 55 | F15: 73800
B16: 12 | C16: Nagihan VATANSEVER | D16: Karadeniz | E16: 75 | F16: 79995
B17: 13 | C17: Zeynep TATLITÜR | D17: Marmara | E17: 89 | F17: 134243
B18: 14 | C18: Gökhan YAĞIZ | D18: Ege | E18: 54 | F18: 89755
B19: 15 | C19: Eren AKTÜRK | D19: Doğu Anadolu | E19: 23 | F19: 87223
B20: 16 | C20: Hüseyin ALBAYRAK | D20: Marmara | E20: 46 | F20: 105429
B21: 17 | C21: Rıza SİLAHLIPODA | D21: Karadeniz | E21: 78 | F21: 83018

Sheet Toplama
B2: TOPLAMA | C2: =IF(B2="","",IF(lang_op=1,"",IF(lang_op=2,"/ İngilizce Karşılığı ---->",IF(lang_op=3,"/ Fransızca Karşılığı ---->","/ Almanca Karşılığı ---->")))) -> / İngilizce Karşılığı ----> | E2: =IFERROR(IF(lang_op=2,VLOOKUP(B2,formuller,2,0),IF(lang_op=3,VLOOKUP(B2,formuller,3,0),IF(lang_op=4,VLOOKUP(B2,formuller,4,0),""))),"") -> AGGREGATE
B4: Stok Kodu | C4: Ocak | D4: Şubat | E4: Toplam | H4: Ocak Toplam | K4: =IFERROR(_xlfn.FORMULATEXT(I4),"") ->  | N4: =IngFormul(I4) -> 
B5: CB-18083-JB | D5: 21 | E5: =SUM(C5:D5) -> 
B6: BB-16995-AA | C6: 16 | D6: 53 | E6: 69 | H6: Şubat Toplam | K6: =IFERROR(_xlfn.FORMULATEXT(I6),"") ->  | N6: =IngFormul(I6) -> 
B7: BC-18041-CB | C7: 80 | D7: 87 | E7: 167
B8: BC-18268-BB | C8: 78 | D8: 46 | E8: 124 | H8: Genel Toplam | K8: =IFERROR(_xlfn.FORMULATEXT(I8),"") ->  | N8: =IngFormul(I8) -> 
B9: EE-19525-PB | D9: 71
B10: CA-16707-KA | C10: 81
B11: CB-11261-UA | C11: 23 | D11: 86 | E11: 109
B12: AA-16393-FB | C12: 36 | D12: 85 | E12: 121
B13: CB-19367-AA | C13: 35 | D13: 74 | E13: 109
B14: CC-15648-UA | D14: 34
B15: CD-12727-HB | C15: 84 | D15: 45 | E15: 129
B16: CE-10318-UB | C16: 64 | D16: 19 | E16: 83
B17: DA-19478-BA | C17: 34 | D17: 25 | E17: 59
B18: DC-17107-SA | C18: 97 | D18: 100 | E18: 197
B19: DC-17921-IA | C19: 89 | D19: 19 | E19: 108
B20: DD-13260-NB | C20: 67 | D20: 85 | E20: 152
B21: DD-17161-SA | C21: 20 | D21: 54 | E21: 74
B22: EB-11963-UB | C22: 97 | D22: 35 | E22: 132
B23: EB-14559-NA | C23: 83 | D23: 40 | E23: 123
B24: EC-10910-FA | C24: 24 | D24: 85 | E24: 109
B25: EC-18392-NB | C25: 44 | D25: 93 | E25: 137
B26: ED-14865-FA | C26: 54
B27: EE-10715-AA | C27: 22 | D27: 38 | E27: 60
B28: EE-16100-AA | C28: 78 | D28: 54 | E28: 132
B29: BD-10789-OA | C29: 100 | D29: 50 | E29: 150

Sheet Alttoplam
B2: ALTTOPLAM
B4: Marka | C4: Tür | D4: Satış Türü | E4: Şehir | F4: Ödeme Türü | G4: Fiyat
B5: HUAWEI | C5: Notebook | D5: Site | E5: Bursa | F5: Kredi Kartı | G5: 502
B6: DELL | C6: PC | D6: Mağaza | E6: Bursa | F6: Peşin | G6: 271
B7: DELL | C7: Tablet | D7: Mağaza | E7: Bursa | F7: Peşin | G7: 1093
B8: HUAWEI | C8: Notebook | D8: Mağaza | E8: Bursa | F8: Peşin | G8: 487
B9: MSI | C9: Tablet | D9: Site | E9: Bursa | F9: Kredi Kartı | G9: 511
B10: DELL | C10: PC | D10: Mağaza | E10: Ankara | F10: Kredi Kartı | G10: 324
B11: HP | C11: Tablet | D11: Mağaza | E11: Ankara | F11: Kredi Kartı | G11: 519
B12: HP | C12: Tablet | D12: Mağaza | E12: Bursa | F12: Peşin | G12: 924
B13: DELL | C13: Notebook | D13: Mağaza | E13: İstanbul | F13: Peşin | G13: 408
B14: MICROSOFT | C14: Notebook | D14: Mağaza | E14: Bursa | F14: Kredi Kartı | G14: 421
B15: HUAWEI | C15: Notebook | D15: Mağaza | E15: Bursa | F15: Peşin | G15: 608
B16: HUAWEI | C16: Notebook | D16: Mağaza | E16: Ankara | F16: Peşin | G16: 736
B17: ASUS | C17: Tablet | D17: Site | E17: Bursa | F17: Kredi Kartı | G17: 1116
B18: DELL | C18: Tablet | D18: Mağaza | E18: Bursa | F18: Kredi Kartı | G18: 870
B19: HP | C19: PC | D19: Site | E19: İstanbul | F19: Kredi Kartı | G19: 1169
B20: HP | C20: Tablet | D20: Mağaza | E20: Ankara | F20: Peşin | G20: 1438
B21: MSI | C21: PC | D21: Mağaza | E21: İstanbul | F21: Peşin | G21: 1461
B22: MSI | C22: Tablet | D22: Mağaza | E22: İstanbul | F22: Kredi Kartı | G22: 354
B23: HUAWEI | C23: Notebook | D23: Site | E23: İstanbul | F23: Kredi Kartı | G23: 873
B24: DELL | C24: Tablet | D24: Mağaza | E24: Bursa | F24: Kredi Kartı | G24: 1282
B25: MSI | C25: PC | D25: Site | E25: İstanbul | F25: Kredi Kartı | G25: 1299
B26: MSI | C26: Tablet | D26: Mağaza | E26: Bursa | F26: Peşin | G26: 1042
B27: HUAWEI | C27: Notebook | D27: Site | E27: İstanbul | F27: Kredi Kartı | G27: 752
B28: MSI | C28: Tablet | D28: Mağaza | E28: Ankara | F28: Peşin | G28: 740
B29: MSI | C29: Notebook | D29: Site | E29: Bursa | F29: Kredi Kartı | G29: 1201
B30: ACER | C30: PC | D30: Mağaza | E30: Bursa | F30: Kredi Kartı | G30: 592
B31: ASUS | C31: Notebook | D31: Site | E31: Bursa | F31: Kredi Kartı | G31: 568
B32: ASUS | C32: PC | D32: Mağaza | E32: İstanbul | F32: Peşin | G32: 1193
B33: HUAWEI | C33: Notebook | D33: Mağaza | E33: Ankara | F33: Peşin | G33: 1468
B34: MSI | C34: Tablet | D34: Site | E34: İstanbul | F34: Kredi Kartı | G34: 615
B35: DELL | C35: Notebook | D35: Mağaza | E35: İstanbul | F35: Peşin | G35: 518
B36: HP | C36: PC | D36: Mağaza | E36: Bursa | F36: Peşin | G36: 483
B37: MICROSOFT | C37: Notebook | D37: Mağaza | E37: Ankara | F37: Peşin | G37: 706
B38: HP | C38: PC | D38: Mağaza | E38: Ankara | F38: Peşin | G38: 1333
B39: MSI | C39: PC | D39: Site | E39: Bursa | F39: Kredi Kartı | G39: 1319
B40: MSI | C40: PC | D40: Site | E40: Ankara | F40: Kredi Kartı | G40: 635
B41: HP | C41: PC | D41: Site | E41: Bursa | F41: Kredi Kartı | G41: 279
B42: ACER | C42: PC | D42: Mağaza | E42: İstanbul | F42: Peşin | G42: 843
B43: ACER | C43: Notebook | D43: Site | E43: Bursa | F43: Kredi Kartı | G43: 251
B44: MSI | C44: Notebook | D44: Mağaza | E44: Bursa | F44: Peşin | G44: 1324
B45: MSI | C45: Notebook | D45: Site | E45: Bursa | F45: Kredi Kartı | G45: 291
B46: HUAWEI | C46: Notebook | D46: Mağaza | E46: Bursa | F46: Peşin | G46: 916
B47: MSI | C47: Tablet | D47: Mağaza | E47: Ankara | F47: Peşin | G47: 1390
B48: ASUS | C48: Tablet | D48: Site | E48: Bursa | F48: Kredi Kartı | G48: 460
B49: DELL | C49: Tablet | D49: Site | E49: Ankara | F49: Kredi Kartı | G49: 930
B50: MICROSOFT | C50: PC | D50: Mağaza | E50: İstanbul | F50: Peşin | G50: 966
B51: MICROSOFT | C51: Notebook | D51: Site | E51: Bursa | F51: Kredi Kartı | G51: 1370
B52: MSI | C52: Tablet | D52: Site | E52: Bursa | F52: Kredi Kartı | G52: 896
B53: MSI | C53: Notebook | D53: Mağaza | E53: Bursa | F53: Peşin | G53: 1029
B54: HP | C54: PC | D54: Site | E54: Bursa | F54: Kredi Kartı | G54: 355
B55: MSI | C55: Tablet | D55: Site | E55: Bursa | F55: Kredi Kartı | G55: 785
B56: MICROSOFT | C56: PC | D56: Site | E56: İstanbul | F56: Kredi Kartı | G56: 419
B57: MSI | C57: PC | D57: Site | E57: Bursa | F57: Kredi Kartı | G57: 1260
B58: DELL | C58: Notebook | D58: Site | E58: Bursa | F58: Kredi Kartı | G58: 354
B59: HP | C59: Tablet | D59: Site | E59: Bursa | F59: Kredi Kartı | G59: 776
B60: DELL | C60: PC | D60: Site | E60: Bursa | F60: Kredi Kartı | G60: 596
B61: MSI | C61: PC | D61: Site | E61: Ankara | F61: Kredi Kartı | G61: 1138
B62: MSI | C62: Notebook | D62: Mağaza | E62: Ankara | F62: Kredi Kartı | G62: 1396
B63: MSI | C63: Notebook | D63: Site | E63: Bursa | F63: Kredi Kartı | G63: 1442
B64: MICROSOFT | C64: PC | D64: Mağaza | E64: İstanbul | F64: Peşin | G64: 1390
B65: HUAWEI | C65: PC | D65: Mağaza | E65: Ankara | F65: Peşin | G65: 1278
B66: ASUS | C66: Notebook | D66: Site | E66: Bursa | F66: Kredi Kartı | G66: 1293
B67: HP | C67: Notebook | D67: Site | E67: Bursa | F67: Kredi Kartı | G67: 634
B68: ASUS | C68: Notebook | D68: Mağaza | E68: Ankara | F68: Peşin | G68: 268
B69: MSI | C69: Tablet | D69: Mağaza | E69: İstanbul | F69: Peşin | G69: 1212
B70: MSI | C70: PC | D70: Site | E70: İstanbul | F70: Kredi Kartı | G70: 802
B71: ASUS | C71: Notebook | D71: Site | E71: Bursa | F71: Kredi Kartı | G71: 375
B72: HP | C72: Notebook | D72: Mağaza | E72: Ankara | F72: Peşin | G72: 499
B73: HP | C73: PC | D73: Site | E73: İstanbul | F73: Kredi Kartı | G73: 910
B74: HP | C74: PC | D74: Mağaza | E74: İstanbul | F74: Peşin | G74: 598
B75: ASUS | C75: Notebook | D75: Mağaza | E75: Ankara | F75: Peşin | G75: 1395
B76: HP | C76: PC | D76: Site | E76: Bursa | F76: Kredi Kartı | G76: 1250
B77: MSI | C77: PC | D77: Mağaza | E77: Ankara | F77: Peşin | G77: 791
B78: DELL | C78: Notebook | D78: Site | E78: Bursa | F78: Kredi Kartı | G78: 1231
B79: DELL | C79: Notebook | D79: Mağaza | E79: Bursa | F79: Kredi Kartı | G79: 530
B80: HP | C80: PC | D80: Mağaza | E80: İstanbul | F80: Peşin | G80: 766
B81: HP | C81: PC | D81: Mağaza | E81: Bursa | F81: Peşin | G81: 1163
B82: MSI | C82: PC | D82: Mağaza | E82: Bursa | F82: Peşin | G82: 1416
B83: MSI | C83: Notebook | D83: Mağaza | E83: İstanbul | F83: Kredi Kartı | G83: 1450
B84: HUAWEI | C84: Notebook | D84: Site | E84: Bursa | F84: Kredi Kartı | G84: 1394
B85: HUAWEI | C85: Notebook | D85: Mağaza | E85: Bursa | F85: Kredi Kartı | G85: 317
B86: ASUS | C86: Notebook | D86: Mağaza | E86: Ankara | F86: Peşin | G86: 994
B87: ASUS | C87: PC | D87: Site | E87: İstanbul | F87: Kredi Kartı | G87: 690
B88: DELL | C88: Notebook | D88: Site | E88: Ankara | F88: Kredi Kartı | G88: 441
B89: ASUS | C89: PC | D89: Mağaza | E89: Bursa | F89: Peşin | G89: 1196
B90: DELL | C90: Notebook | D90: Mağaza | E90: İstanbul | F90: Peşin | G90: 1474
B91: DELL | C91: Tablet | D91: Site | E91: Bursa | F91: Kredi Kartı | G91: 925
B92: MICROSOFT | C92: Notebook | D92: Site | E92: Bursa | F92: Kredi Kartı | G92: 1137
B93: MSI | C93: Notebook | D93: Site | E93: Bursa | F93: Kredi Kartı | G93: 1355
B94: HP | C94: Tablet | D94: Mağaza | E94: Bursa | F94: Peşin | G94: 1212
B95: MSI | C95: PC | D95: Mağaza | E95: Ankara | F95: Peşin | G95: 512
B96: DELL | C96: PC | D96: Site | E96: Ankara | F96: Kredi Kartı | G96: 668
B97: HP | C97: Notebook | D97: Site | E97: İstanbul | F97: Kredi Kartı | G97: 791
B98: MICROSOFT | C98: Notebook | D98: Site | E98: Ankara | F98: Kredi Kartı | G98: 1002
B99: ASUS | C99: Notebook | D99: Site | E99: İstanbul | F99: Kredi Kartı | G99: 1046
B100: HUAWEI | C100: Notebook | D100: Site | E100: Ankara | F100: Kredi Kartı | G100: 860

Sheet PivotTablo
B2: Pivot Tablo
B4: Satış Elemanı | C4: Marka | D4: Tür | E4: Tarih | F4: Şehir | G4: Ödeme Türü | H4: Fiyat
B5: Kemal ÇINAR | C5: HP | D5: PC | E5: 2019-01-15 | F5: Antalya | G5: Nakit | H5: 12752
B6: Hasan YILDIZ | C6: MSI | D6: PC | E6: 2019-01-16 | F6: Bursa | G6: Kredi Kartı | H6: 11573
B7: Emel YOLCU | C7: ASUS | D7: PC | E7: 2019-01-26 | F7: Bursa | G7: Nakit | H7: 12238
B8: Sabiha YILMAZ | C8: HP | D8: Notebook | E8: 2019-01-31 | F8: Ankara | G8: Kredi Kartı | H8: 10493
B9: Kemal ÇINAR | C9: DELL | D9: PC | E9: 2019-02-15 | F9: Antalya | G9: Nakit | H9: 12978
B10: Kemal ÇINAR | C10: MSI | D10: PC | E10: 2019-02-19 | F10: Antalya | G10: Kredi Kartı | H10: 13244
B11: Emre TEKİN | C11: MICROSOFT | D11: Notebook | E11: 2019-03-11 | F11: Ankara | G11: Nakit | H11: 12263
B12: Barış KESKİN | C12: MSI | D12: Notebook | E12: 2019-03-15 | F12: İzmir | G12: Nakit | H12: 12281
B13: Mustafa EMEK | C13: MICROSOFT | D13: Notebook | E13: 2019-03-17 | F13: İzmir | G13: Kredi Kartı | H13: 10067
B14: Gamze YOKUŞ | C14: LENOVO | D14: Notebook | E14: 2019-03-26 | F14: Antalya | G14: Kredi Kartı | H14: 12937
B15: Gamze YOKUŞ | C15: ASUS | D15: Notebook | E15: 2019-03-30 | F15: Antalya | G15: Nakit | H15: 11832
B16: Kemal ÇINAR | C16: HUAWEI | D16: Notebook | E16: 2019-04-05 | F16: Antalya | G16: Nakit | H16: 31766
B17: Emre TEKİN | C17: DELL | D17: Notebook | E17: 2019-04-14 | F17: Ankara | G17: Kredi Kartı | H17: 13865
B18: Sabiha YILMAZ | C18: LENOVO | D18: PC | E18: 2019-05-17 | F18: Ankara | G18: Kredi Kartı | H18: 10965
B19: Emel YOLCU | C19: MICROSOFT | D19: Notebook | E19: 2019-06-04 | F19: Bursa | G19: Nakit | H19: 9743
B20: Erol BIÇKIN | C20: HP | D20: Notebook | E20: 2019-06-04 | F20: İzmir | G20: Nakit | H20: 10423
B21: Erol BIÇKIN | C21: MSI | D21: PC | E21: 2019-06-04 | F21: İzmir | G21: Nakit | H21: 10293
B22: Emel YOLCU | C22: MSI | D22: PC | E22: 2019-06-09 | F22: Bursa | G22: Kredi Kartı | H22: 10618
B23: Murat UMAR | C23: DELL | D23: Notebook | E23: 2019-06-21 | F23: İstanbul | G23: Kredi Kartı | H23: 11285
B24: İlhan IŞIK | C24: DELL | D24: PC | E24: 2019-06-23 | F24: İstanbul | G24: Kredi Kartı | H24: 14069
B25: Efe TEMEL | C25: LENOVO | D25: PC | E25: 2019-06-25 | F25: Ankara | G25: Kredi Kartı | H25: 11245
B26: Sabiha YILMAZ | C26: MSI | D26: Notebook | E26: 2019-06-27 | F26: Ankara | G26: Kredi Kartı | H26: 14335
B27: Erol BIÇKIN | C27: DELL | D27: PC | E27: 2019-07-03 | F27: İzmir | G27: Kredi Kartı | H27: 12967
B28: Sabiha YILMAZ | C28: MSI | D28: Notebook | E28: 2019-07-09 | F28: Ankara | G28: Nakit | H28: 11563
B29: Emel YOLCU | C29: LENOVO | D29: Notebook | E29: 2022-07-10 | F29: Bursa | G29: Kredi Kartı | H29: 14094
B30: Mustafa ÖNDER | C30: MSI | D30: Notebook | E30: 2019-07-13 | F30: Bursa | G30: Kredi Kartı | H30: 26208
B31: Sabiha YILMAZ | C31: MICROSOFT | D31: Notebook | E31: 2019-07-17 | F31: Ankara | G31: Kredi Kartı | H31: 31128
B32: Mustafa EMEK | C32: MSI | D32: Notebook | E32: 2019-07-20 | F32: İzmir | G32: Kredi Kartı | H32: 10114
B33: Efe TEMEL | C33: DELL | D33: PC | E33: 2019-07-25 | F33: Ankara | G33: Kredi Kartı | H33: 11913
B34: Murat UMAR | C34: MSI | D34: PC | E34: 2019-08-01 | F34: İstanbul | G34: Kredi Kartı | H34: 13803
B35: Hasan YILDIZ | C35: LENOVO | D35: Notebook | E35: 2019-08-13 | F35: Bursa | G35: Kredi Kartı | H35: 12469
B36: Kemal ÇINAR | C36: LENOVO | D36: PC | E36: 2019-08-18 | F36: Antalya | G36: Nakit | H36: 13608
B37: Hasan YILDIZ | C37: LENOVO | D37: Notebook | E37: 2019-08-20 | F37: Bursa | G37: Kredi Kartı | H37: 10987
B38: Murat UMAR | C38: LENOVO | D38: PC | E38: 2022-08-21 | F38: İstanbul | G38: Nakit | H38: 11612
B39: İlhan IŞIK | C39: HP | D39: PC | E39: 2019-08-24 | F39: İstanbul | G39: Kredi Kartı | H39: 13236
B40: Ergin EMRE | C40: HP | D40: Notebook | E40: 2019-09-01 | F40: İstanbul | G40: Nakit | H40: 13315
B41: Emre TEKİN | C41: ASUS | D41: Notebook | E41: 2019-09-14 | F41: Ankara | G41: Kredi Kartı | H41: 29714
B42: Erol BIÇKIN | C42: ASUS | D42: Notebook | E42: 2019-09-26 | F42: İzmir | G42: Kredi Kartı | H42: 38488
B43: Emel YOLCU | C43: LENOVO | D43: Notebook | E43: 2019-10-01 | F43: Bursa | G43: Kredi Kartı | H43: 12894
B44: Erol BIÇKIN | C44: HP | D44: Notebook | E44: 2019-10-08 | F44: İzmir | G44: Nakit | H44: 38100
B45: İlhan IŞIK | C45: LENOVO | D45: PC | E45: 2022-10-12 | F45: İstanbul | G45: Kredi Kartı | H45: 13884
B46: Efe TEMEL | C46: HP | D46: PC | E46: 2019-10-13 | F46: Ankara | G46: Nakit | H46: 11653
B47: Hasan YILDIZ | C47: DELL | D47: Notebook | E47: 2022-10-17 | F47: Bursa | G47: Kredi Kartı | H47: 38954
B48: Kemal ÇINAR | C48: DELL | D48: Notebook | E48: 2019-10-20 | F48: Antalya | G48: Nakit | H48: 30518
B49: İlhan IŞIK | C49: HP | D49: PC | E49: 2019-10-23 | F49: İstanbul | G49: Nakit | H49: 13430
B50: Ergin EMRE | C50: MSI | D50: PC | E50: 2019-10-26 | F50: İstanbul | G50: Nakit | H50: 11183
B51: Murat UMAR | C51: HP | D51: PC | E51: 2019-10-28 | F51: İstanbul | G51: Nakit | H51: 12454
B52: Mustafa EMEK | C52: LENOVO | D52: PC | E52: 2019-11-02 | F52: İzmir | G52: Nakit | H52: 11413
B53: Gamze YOKUŞ | C53: MSI | D53: Notebook | E53: 2019-11-08 | F53: Antalya | G53: Nakit | H53: 14099
B54: Efe TEMEL | C54: HP | D54: PC | E54: 2019-11-13 | F54: Ankara | G54: Nakit | H54: 10826
B55: Mustafa EMEK | C55: LENOVO | D55: PC | E55: 2019-11-20 | F55: İzmir | G55: Nakit | H55: 12946
B56: Gamze YOKUŞ | C56: HP | D56: PC | E56: 2019-12-08 | F56: Antalya | G56: Kredi Kartı | H56: 14317
B57: Mustafa ÖNDER | C57: MSI | D57: Notebook | E57: 2019-12-11 | F57: Bursa | G57: Kredi Kartı | H57: 13075
B58: Gamze YOKUŞ | C58: MSI | D58: Notebook | E58: 2019-12-31 | F58: Antalya | G58: Kredi Kartı | H58: 38726
B59: Gamze YOKUŞ | C59: MSI | D59: Notebook | E59: 2020-01-01 | F59: Antalya | G59: Nakit | H59: 9529
B60: İlhan IŞIK | C60: HP | D60: PC | E60: 2020-01-05 | F60: İstanbul | G60: Nakit | H60: 13984
B61: Mustafa ÖNDER | C61: HUAWEI | D61: Notebook | E61: 2020-01-10 | F61: Bursa | G61: Kredi Kartı | H61: 36518
B62: Kemal ÇINAR | C62: MSI | D62: PC | E62: 2020-02-04 | F62: Antalya | G62: Kredi Kartı | H62: 11424
B63: Mustafa ÖNDER | C63: HP | D63: Notebook | E63: 2020-02-06 | F63: Bursa | G63: Kredi Kartı | H63: 14059
B64: Gamze YOKUŞ | C64: ASUS | D64: Notebook | E64: 2020-02-07 | F64: Antalya | G64: Kredi Kartı | H64: 14163
B65: Efe TEMEL | C65: MSI | D65: Notebook | E65: 2020-02-14 | F65: Ankara | G65: Kredi Kartı | H65: 13055
B66: Sabiha YILMAZ | C66: LENOVO | D66: PC | E66: 2020-02-17 | F66: Ankara | G66: Nakit | H66: 11507
B67: Emel YOLCU | C67: MICROSOFT | D67: Notebook | E67: 2020-02-19 | F67: Bursa | G67: Nakit | H67: 9590
B68: Gamze YOKUŞ | C68: ASUS | D68: Notebook | E68: 2020-02-27 | F68: Antalya | G68: Kredi Kartı | H68: 14329
B69: Emel YOLCU | C69: LENOVO | D69: Notebook | E69: 2020-02-29 | F69: Bursa | G69: Kredi Kartı | H69: 26665
B70: Mustafa EMEK | C70: HP | D70: PC | E70: 2020-03-01 | F70: İzmir | G70: Kredi Kartı | H70: 12753
B71: Mustafa EMEK | C71: MSI | D71: PC | E71: 2020-03-04 | F71: İzmir | G71: Nakit | H71: 14164
B72: Kemal ÇINAR | C72: HP | D72: PC | E72: 2020-03-20 | F72: Antalya | G72: Kredi Kartı | H72: 14077
B73: Emre TEKİN | C73: LENOVO | D73: PC | E73: 2020-04-01 | F73: Ankara | G73: Kredi Kartı | H73: 10327
B74: İlhan IŞIK | C74: LENOVO | D74: PC | E74: 2020-04-01 | F74: İstanbul | G74: Kredi Kartı | H74: 10873
B75: Hasan YILDIZ | C75: LENOVO | D75: Notebook | E75: 2020-04-07 | F75: Bursa | G75: Kredi Kartı | H75: 12183
B76: Barış KESKİN | C76: LENOVO | D76: PC | E76: 2020-04-08 | F76: İzmir | G76: Kredi Kartı | H76: 12056
B77: Emel YOLCU | C77: ASUS | D77: Notebook | E77: 2020-05-10 | F77: Bursa | G77: Nakit | H77: 9630
B78: Barış KESKİN | C78: MSI | D78: PC | E78: 2020-05-19 | F78: İzmir | G78: Nakit | H78: 9752
B79: Gamze YOKUŞ | C79: ASUS | D79: PC | E79: 2020-05-25 | F79: Antalya | G79: Kredi Kartı | H79: 13128
B80: Gamze YOKUŞ | C80: MSI | D80: PC | E80: 2020-05-26 | F80: Antalya | G80: Nakit | H80: 10433
B81: Emre TEKİN | C81: HP | D81: Notebook | E81: 2020-05-27 | F81: Ankara | G81: Kredi Kartı | H81: 12338
B82: Murat UMAR | C82: MSI | D82: PC | E82: 2020-05-30 | F82: İstanbul | G82: Kredi Kartı | H82: 12846
B83: Ergin EMRE | C83: DELL | D83: PC | E83: 2020-06-04 | F83: İstanbul | G83: Nakit | H83: 12369
B84: Efe TEMEL | C84: MSI | D84: PC | E84: 2020-06-08 | F84: Ankara | G84: Kredi Kartı | H84: 14089
B85: Mustafa ÖNDER | C85: LENOVO | D85: Notebook | E85: 2021-06-11 | F85: Bursa | G85: Kredi Kartı | H85: 12178
B86: Efe TEMEL | C86: MSI | D86: PC | E86: 2020-06-12 | F86: Ankara | G86: Kredi Kartı | H86: 13494
B87: Kemal ÇINAR | C87: DELL | D87: PC | E87: 2020-06-24 | F87: Antalya | G87: Kredi Kartı | H87: 14044
B88: Murat UMAR | C88: MSI | D88: PC | E88: 2020-07-07 | F88: İstanbul | G88: Kredi Kartı | H88: 9639
B89: Sabiha YILMAZ | C89: ASUS | D89: Notebook | E89: 2020-07-07 | F89: Ankara | G89: Nakit | H89: 13160
B90: İlhan IŞIK | C90: DELL | D90: PC | E90: 2020-07-08 | F90: İstanbul | G90: Kredi Kartı | H90: 10680
B91: Murat UMAR | C91: MSI | D91: PC | E91: 2020-07-11 | F91: İstanbul | G91: Nakit | H91: 10125
B92: Barış KESKİN | C92: HUAWEI | D92: Notebook | E92: 2020-07-13 | F92: İzmir | G92: Nakit | H92: 12469
B93: İlhan IŞIK | C93: MSI | D93: Notebook | E93: 2020-07-20 | F93: İstanbul | G93: Nakit | H93: 12846
B94: Mustafa ÖNDER | C94: DELL | D94: Notebook | E94: 2020-07-28 | F94: Bursa | G94: Kredi Kartı | H94: 12234
B95: Emel YOLCU | C95: MSI | D95: Notebook | E95: 2020-07-30 | F95: Bursa | G95: Nakit | H95: 14114
B96: Mustafa EMEK | C96: MSI | D96: PC | E96: 2020-07-30 | F96: İzmir | G96: Kredi Kartı | H96: 10913
B97: Mustafa ÖNDER | C97: DELL | D97: Notebook | E97: 2020-07-31 | F97: Bursa | G97: Kredi Kartı | H97: 10048
B98: Efe TEMEL | C98: LENOVO | D98: Notebook | E98: 2020-08-02 | F98: Ankara | G98: Kredi Kartı | H98: 11362
B99: İlhan IŞIK | C99: HP | D99: Notebook | E99: 2020-08-03 | F99: İstanbul | G99: Kredi Kartı | H99: 12239
B100: Erol BIÇKIN | C100: ASUS | D100: PC | E100: 2020-08-03 | F100: İzmir | G100: Kredi Kartı | H100: 14279
B101: Sabiha YILMAZ | C101: MSI | D101: PC | E101: 2020-08-15 | F101: Ankara | G101: Nakit | H101: 11729
B102: Barış KESKİN | C102: MICROSOFT | D102: Notebook | E102: 2020-08-24 | F102: İzmir | G102: Nakit | H102: 13275
B103: Barış KESKİN | C103: LENOVO | D103: PC | E103: 2020-09-13 | F103: İzmir | G103: Nakit | H103: 10513
B104: Emre TEKİN | C104: HP | D104: PC | E104: 2020-09-19 | F104: Ankara | G104: Kredi Kartı | H104: 13428
B105: Mustafa ÖNDER | C105: MSI | D105: PC | E105: 2020-09-19 | F105: Bursa | G105: Kredi Kartı | H105: 10556
B106: Hasan YILDIZ | C106: MSI | D106: PC | E106: 2020-10-01 | F106: Bursa | G106: Kredi Kartı | H106: 11535
B107: Mustafa ÖNDER | C107: HP | D107: Notebook | E107: 2020-10-02 | F107: Bursa | G107: Kredi Kartı | H107: 37970
B108: Emre TEKİN | C108: MSI | D108: Notebook | E108: 2020-10-09 | F108: Ankara | G108: Nakit | H108: 33211
B109: Barış KESKİN | C109: MSI | D109: Notebook | E109: 2020-10-11 | F109: İzmir | G109: Nakit | H109: 9835
B110: İlhan IŞIK | C110: ASUS | D110: PC | E110: 2020-10-17 | F110: İstanbul | G110: Nakit | H110: 10648
B111: Mustafa EMEK | C111: LENOVO | D111: Notebook | E111: 2020-10-23 | F111: İzmir | G111: Kredi Kartı | H111: 13828
B112: Efe TEMEL | C112: LENOVO | D112: PC | E112: 2020-10-26 | F112: Ankara | G112: Nakit | H112: 12313
B113: Efe TEMEL | C113: ASUS | D113: Notebook | E113: 2020-10-27 | F113: Ankara | G113: Kredi Kartı | H113: 14246
B114: Emre TEKİN | C114: MSI | D114: PC | E114: 2020-11-18 | F114: Ankara | G114: Nakit | H114: 14259
B115: Ergin EMRE | C115: HP | D115: Notebook | E115: 2020-11-26 | F115: İstanbul | G115: Nakit | H115: 14360
B116: Ergin EMRE | C116: LENOVO | D116: PC | E116: 2020-12-06 | F116: İstanbul | G116: Nakit | H116: 10004
B117: Hasan YILDIZ | C117: LENOVO | D117: Notebook | E117: 2020-12-08 | F117: Bursa | G117: Kredi Kartı | H117: 28706
B118: Erol BIÇKIN | C118: ASUS | D118: Notebook | E118: 2020-12-13 | F118: İzmir | G118: Kredi Kartı | H118: 13893
B119: Erol BIÇKIN | C119: DELL | D119: PC | E119: 2020-12-26 | F119: İzmir | G119: Kredi Kartı | H119: 11666
B120: Hasan YILDIZ | C120: LENOVO | D120: PC | E120: 2020-12-29 | F120: Bursa | G120: Nakit | H120: 13448
B121: İlhan IŞIK | C121: HP | D121: PC | E121: 2021-01-06 | F121: İstanbul | G121: Nakit | H121: 10438
B122: Efe TEMEL | C122: DELL | D122: Notebook | E122: 2021-01-10 | F122: Ankara | G122: Kredi Kartı | H122: 13184
B123: Gamze YOKUŞ | C123: MICROSOFT | D123: Notebook | E123: 2021-01-16 | F123: Antalya | G123: Nakit | H123: 12622
B124: Efe TEMEL | C124: MSI | D124: PC | E124: 2021-01-21 | F124: Ankara | G124: Nakit | H124: 13142
B125: Hasan YILDIZ | C125: DELL | D125: Notebook | E125: 2021-01-26 | F125: Bursa | G125: Kredi Kartı | H125: 26388
B126: Sabiha YILMAZ | C126: ASUS | D126: Notebook | E126: 2021-02-02 | F126: Ankara | G126: Kredi Kartı | H126: 10379
B127: Mustafa ÖNDER | C127: DELL | D127: PC | E127: 2021-02-10 | F127: Bursa | G127: Kredi Kartı | H127: 11273
B128: Emre TEKİN | C128: MSI | D128: Notebook | E128: 2021-02-10 | F128: Ankara | G128: Nakit | H128: 13699
B129: Emre TEKİN | C129: HP | D129: Notebook | E129: 2021-02-11 | F129: Ankara | G129: Nakit | H129: 12284
B130: Mustafa EMEK | C130: DELL | D130: Notebook | E130: 2021-02-19 | F130: İzmir | G130: Kredi Kartı | H130: 14157
B131: Mustafa EMEK | C131: HP | D131: PC | E131: 2021-03-13 | F131: İzmir | G131: Kredi Kartı | H131: 13457
B132: Mustafa ÖNDER | C132: HP | D132: Notebook | E132: 2021-03-17 | F132: Bursa | G132: Nakit | H132: 10511
B133: Mustafa EMEK | C133: MSI | D133: PC | E133: 2021-03-20 | F133: İzmir | G133: Kredi Kartı | H133: 13064
B134: Gamze YOKUŞ | C134: HP | D134: PC | E134: 2021-03-26 | F134: Antalya | G134: Kredi Kartı | H134: 13562
B135: Mustafa EMEK | C135: HUAWEI | D135: Notebook | E135: 2021-03-31 | F135: İzmir | G135: Kredi Kartı | H135: 13299
B136: İlhan IŞIK | C136: MSI | D136: PC | E136: 2021-04-01 | F136: İstanbul | G136: Kredi Kartı | H136: 13519
B137: Emre TEKİN | C137: HP | D137: Notebook | E137: 2021-04-05 | F137: Ankara | G137: Nakit | H137: 14484
B138: Efe TEMEL | C138: MSI | D138: PC | E138: 2021-04-08 | F138: Ankara | G138: Kredi Kartı | H138: 13787
B139: Ergin EMRE | C139: MSI | D139: PC | E139: 2021-04-14 | F139: İstanbul | G139: Nakit | H139: 11804
B140: Emel YOLCU | C140: HP | D140: PC | E140: 2021-04-26 | F140: Bursa | G140: Kredi Kartı | H140: 12582
B141: Emre TEKİN | C141: DELL | D141: Notebook | E141: 2021-04-27 | F141: Ankara | G141: Kredi Kartı | H141: 14076
B142: Mustafa ÖNDER | C142: ASUS | D142: PC | E142: 2021-05-03 | F142: Bursa | G142: Nakit | H142: 10445
B143: Efe TEMEL | C143: MSI | D143: Notebook | E143: 2021-05-05 | F143: Ankara | G143: Kredi Kartı | H143: 10446
B144: Efe TEMEL | C144: MSI | D144: Notebook | E144: 2021-05-06 | F144: Ankara | G144: Kredi Kartı | H144: 10494
B145: İlhan IŞIK | C145: MICROSOFT | D145: Notebook | E145: 2021-05-10 | F145: İstanbul | G145: Kredi Kartı | H145: 33954
B146: Kemal ÇINAR | C146: HP | D146: PC | E146: 2021-05-12 | F146: Antalya | G146: Kredi Kartı | H146: 11171
B147: Hasan YILDIZ | C147: MSI | D147: Notebook | E147: 2021-05-12 | F147: Bursa | G147: Nakit | H147: 11787
B148: Mustafa EMEK | C148: MSI | D148: PC | E148: 2021-05-21 | F148: İzmir | G148: Kredi Kartı | H148: 9929
B149: Emre TEKİN | C149: MSI | D149: Notebook | E149: 2021-05-30 | F149: Ankara | G149: Nakit | H149: 11611
B150: Emre TEKİN | C150: ASUS | D150: Notebook | E150: 2021-06-05 | F150: Ankara | G150: Kredi Kartı | H150: 10374
B151: Mustafa ÖNDER | C151: LENOVO | D151: PC | E151: 2021-06-14 | F151: Bursa | G151: Nakit | H151: 14190
B152: Hasan YILDIZ | C152: DELL | D152: Notebook | E152: 2021-06-17 | F152: Bursa | G152: Kredi Kartı | H152: 11006
B153: Mustafa ÖNDER | C153: HP | D153: Notebook | E153: 2021-06-21 | F153: Bursa | G153: Kredi Kartı | H153: 13940
B154: Hasan YILDIZ | C154: ASUS | D154: PC | E154: 2021-06-22 | F154: Bursa | G154: Kredi Kartı | H154: 10089
B155: Kemal ÇINAR | C155: HP | D155: PC | E155: 2021-06-28 | F155: Antalya | G155: Kredi Kartı | H155: 10217
B156: Efe TEMEL | C156: MSI | D156: PC | E156: 2021-07-02 | F156: Ankara | G156: Kredi Kartı | H156: 12319
B157: Emel YOLCU | C157: MICROSOFT | D157: Notebook | E157: 2021-07-02 | F157: Bursa | G157: Kredi Kartı | H157: 27063
B158: Erol BIÇKIN | C158: HUAWEI | D158: Notebook | E158: 2021-07-07 | F158: İzmir | G158: Kredi Kartı | H158: 24987
B159: Efe TEMEL | C159: LENOVO | D159: Notebook | E159: 2021-07-07 | F159: Ankara | G159: Kredi Kartı | H159: 11690
B160: Murat UMAR | C160: MSI | D160: Notebook | E160: 2021-07-19 | F160: İstanbul | G160: Kredi Kartı | H160: 26797
B161: Murat UMAR | C161: HP | D161: PC | E161: 2021-07-28 | F161: İstanbul | G161: Kredi Kartı | H161: 13091
B162: Ergin EMRE | C162: DELL | D162: Tablet | E162: 2021-08-01 | F162: İstanbul | G162: Nakit | H162: 12192
B163: Murat UMAR | C163: LENOVO | D163: PC | E163: 2021-08-04 | F163: İstanbul | G163: Kredi Kartı | H163: 13936
B164: Efe TEMEL | C164: HP | D164: Notebook | E164: 2021-08-05 | F164: Ankara | G164: Nakit | H164: 13186
B165: Emel YOLCU | C165: DELL | D165: Notebook | E165: 2021-08-16 | F165: Bursa | G165: Nakit | H165: 42083
B166: Hasan YILDIZ | C166: LENOVO | D166: Notebook | E166: 2021-08-20 | F166: Bursa | G166: Kredi Kartı | H166: 35653
B167: Mustafa ÖNDER | C167: LENOVO | D167: Notebook | E167: 2021-08-23 | F167: Bursa | G167: Kredi Kartı | H167: 31097
B168: Emre TEKİN | C168: MSI | D168: Notebook | E168: 2021-08-27 | F168: Ankara | G168: Nakit | H168: 11094
B169: İlhan IŞIK | C169: LENOVO | D169: Notebook | E169: 2021-09-04 | F169: İstanbul | G169: Kredi Kartı | H169: 34047
B170: Kemal ÇINAR | C170: MSI | D170: PC | E170: 2021-09-08 | F170: Antalya | G170: Kredi Kartı | H170: 13057
B171: Gamze YOKUŞ | C171: ASUS | D171: PC | E171: 2021-09-11 | F171: Antalya | G171: Kredi Kartı | H171: 13156
B172: Kemal ÇINAR | C172: HP | D172: PC | E172: 2021-09-24 | F172: Antalya | G172: Kredi Kartı | H172: 12742
B173: Barış KESKİN | C173: MSI | D173: PC | E173: 2021-09-24 | F173: İzmir | G173: Nakit | H173: 10122
B174: İlhan IŞIK | C174: HUAWEI | D174: Notebook | E174: 2021-09-27 | F174: İstanbul | G174: Kredi Kartı | H174: 10756
B175: Hasan YILDIZ | C175: HUAWEI | D175: Notebook | E175: 2021-10-04 | F175: Bursa | G175: Nakit | H175: 11068
B176: Efe TEMEL | C176: ASUS | D176: Notebook | E176: 2021-10-30 | F176: Ankara | G176: Kredi Kartı | H176: 13134
B177: Murat UMAR | C177: HP | D177: PC | E177: 2021-10-31 | F177: İstanbul | G177: Nakit | H177: 12808
B178: Efe TEMEL | C178: HP | D178: PC | E178: 2021-11-08 | F178: Ankara | G178: Nakit | H178: 13494
B179: Efe TEMEL | C179: HP | D179: PC | E179: 2021-11-09 | F179: Ankara | G179: Nakit | H179: 11936
B180: Erol BIÇKIN | C180: DELL | D180: PC | E180: 2021-11-14 | F180: İzmir | G180: Nakit | H180: 12926
B181: Erol BIÇKIN | C181: MSI | D181: PC | E181: 2021-11-25 | F181: İzmir | G181: Nakit | H181: 11672
B182: Emel YOLCU | C182: DELL | D182: Notebook | E182: 2021-11-28 | F182: Bursa | G182: Nakit | H182: 40941
B183: Erol BIÇKIN | C183: LENOVO | D183: PC | E183: 2021-11-28 | F183: İzmir | G183: Kredi Kartı | H183: 13862
B184: Emel YOLCU | C184: MSI | D184: PC | E184: 2021-12-01 | F184: Bursa | G184: Kredi Kartı | H184: 13918
B185: Erol BIÇKIN | C185: MSI | D185: Notebook | E185: 2021-12-18 | F185: İzmir | G185: Kredi Kartı | H185: 31385
B186: Mustafa EMEK | C186: ASUS | D186: Notebook | E186: 2021-12-19 | F186: İzmir | G186: Nakit | H186: 14308
B187: Barış KESKİN | C187: MSI | D187: Notebook | E187: 2021-12-27 | F187: İzmir | G187: Nakit | H187: 10870
B188: Emel YOLCU | C188: MSI | D188: PC | E188: 2022-01-04 | F188: Bursa | G188: Kredi Kartı | H188: 12581
B189: Mustafa EMEK | C189: MSI | D189: Notebook | E189: 2022-01-05 | F189: İzmir | G189: Kredi Kartı | H189: 11991
B190: Barış KESKİN | C190: MSI | D190: Notebook | E190: 2022-01-06 | F190: İzmir | G190: Nakit | H190: 31477
B191: Murat UMAR | C191: DELL | D191: Notebook | E191: 2022-01-09 | F191: İstanbul | G191: Nakit | H191: 13164
B192: Sabiha YILMAZ | C192: LENOVO | D192: Notebook | E192: 2022-01-13 | F192: Ankara | G192: Nakit | H192: 11195
B193: Barış KESKİN | C193: MSI | D193: Notebook | E193: 2022-01-19 | F193: İzmir | G193: Nakit | H193: 10105
B194: Barış KESKİN | C194: MSI | D194: Notebook | E194: 2022-01-21 | F194: İzmir | G194: Kredi Kartı | H194: 14349
B195: Barış KESKİN | C195: MSI | D195: Notebook | E195: 2022-01-22 | F195: İzmir | G195: Kredi Kartı | H195: 32822
B196: Barış KESKİN | C196: MSI | D196: PC | E196: 2022-01-31 | F196: İzmir | G196: Nakit | H196: 14417
B197: Mustafa ÖNDER | C197: DELL | D197: Notebook | E197: 2022-02-01 | F197: Bursa | G197: Kredi Kartı | H197: 14042
B198: Efe TEMEL | C198: ASUS | D198: Notebook | E198: 2022-02-09 | F198: Ankara | G198: Kredi Kartı | H198: 9672
B199: Barış KESKİN | C199: HP | D199: PC | E199: 2022-02-23 | F199: İzmir | G199: Nakit | H199: 10754
B200: Erol BIÇKIN | C200: HP | D200: PC | E200: 2022-02-27 | F200: İzmir | G200: Kredi Kartı | H200: 10028
B201: Ergin EMRE | C201: DELL | D201: PC | E201: 2022-03-08 | F201: İstanbul | G201: Kredi Kartı | H201: 13070
B202: Erol BIÇKIN | C202: ASUS | D202: PC | E202: 2022-03-11 | F202: İzmir | G202: Nakit | H202: 12955
... 47 more rows

Sheet HedefAra
B2: Hedef Ara
B5: Ürün | C5: Adet | D5: Birim Fiyatı | E5: Toplam Tutar | G5: Faiz Oranı | H5: 0.0139
B6: Ürün 1 | C6: 21 | D6: 150 | E6: =D6*C6 -> 3150 | G6: Vade Sayısı | H6: 48
B7: Ürün 2 | D7: 465 | E7: =D7*C7 -> 0 | G7: Ana Para | H7: 95000
B8: Ürün 3 | C8: 23 | D8: 320 | E8: =D8*C8 -> 7360
G9: Aylık Ödeme | H9: =-PMT(H5,H6,H7) -> 2725.526412
D10: Toplam | E10: =SUM(E6:E8) -> 10510 | G10: Toplam Ödeme | H10: =H9*H6 -> 130825.2678

Sheet Grafikler
B2: Grafikler
B5: Marka | C5: Satış Oranı | D5: Satış Tutarı | F5: ÜRÜN | G5: OCAK | I5: ÜRÜN | J5: OCAK | K5: ŞUBAT | L5: MART | M5: NİSAN | N5: MAYIS | O5: HAZİRAN | P5: TEMMUZ | Q5: AĞUSTOS | R5: EYLÜL | S5: EKİM | T5: KASIM | U5: ARALIK
B6: HP | C6: =D6/SUM($D$6:$D$11) -> 0.1178944652 | D6: 40196 | F6: Notebook | G6: 63 | I6: Notebook | J6: 24 | K6: 29 | L6: 18 | M6: 24 | N6: 43 | O6: 16 | P6: 33 | Q6: 30 | R6: 38 | S6: 20 | T6: 34 | U6: 36
B7: DELL | C7: 0.2072861337 | D7: 70674 | F7: Tablet | G7: 91 | I7: PC | J7: 20 | K7: 31 | L7: 20 | M7: 36 | N7: 20 | O7: 21 | P7: 34 | Q7: 32 | R7: 43 | S7: 29 | T7: 42 | U7: 23
B8: TOSHIBA | C8: 0.2214876712 | D8: 75516 | F8: PC | G8: 62 | I8: Tablet | J8: 25 | K8: 28 | L8: 42 | M8: 38 | N8: 20 | O8: 25 | P8: 41 | Q8: 28 | R8: 25 | S8: 17 | T8: 37 | U8: 40
B9: ASUS | C9: 0.1912045497 | D9: 65191 | F9: Telefon | G9: 90
B10: IBM | C10: 0.2175574646 | D10: 74176 | F10: TV | G10: 72
B11: MSI | C11: 0.04456971571 | D11: 15196 | F11: Oyun Konsolu | G11: 53

Sheet Grafikler (Bilgi)
B2: Grafikler
B4: Grafik Seçerken Dikkat Edilmesi Gerekenler:
B6: Veri Türü: Sayısal mı, kategorik mi?
B7: Göstermek İstediğiniz Bilgi: Farklılık, değişim, oran, ilişki?
B8: İzleyiciniz: Teknik bilgi düzeyleri ne?
B9: Veri Miktarı: Çok fazla veri mi, az mı?
B11: 1. Sütun Grafiği:
B13: Ne zaman kullanılır: Kategorik veriler arasındaki farklılıkları karşılaştırmak için idealdir.
B14: Örnek: Farklı meyvelerin satış miktarlarını karşılaştırmak, farklı departmanların aylık satışlarını göstermek.
B16: 2. Çizgi Grafiği:
B18: Ne zaman kullanılır: Sürekli değişen verileri zaman içinde takip etmek için kullanılır.
B19: Örnek: Bir şirketin aylık karını zaman içinde göstermek, bir ürünün satışlarının zaman içindeki değişimini takip etmek.
B21: 3. Pasta Grafiği:
B23: Ne zaman kullanılır: Bir bütünün parçalarına oranını göstermek için kullanılır.
B24: Örnek: Bir şirketin toplam gelir içindeki farklı ürünlerin payını göstermek, bir bütçenin farklı kalemlere dağılımını göstermek.
B26: 4. Dağılım Grafiği (XY Grafiği):
B28: Ne zaman kullanılır: İki sayısal değişken arasındaki ilişkiyi göstermek için kullanılır.
B29: Örnek: Ürün fiyatlarının satış miktarı ile olan ilişkisini göstermek, öğrencilerin notları ile çalışma süreleri arasındaki ilişkiyi göstermek.
B31: 5. Alan Grafiği:
B33: Ne zaman kullanılır: Zaman içindeki değişimleri ve toplamları göstermek için kullanılır.
B34: Örnek: Farklı ürünlerin toplam satışlarının zaman içindeki değişimini göstermek.
B36: Diğer Grafik Türleri:
B38: Halkalı Grafik: Pasta grafinin bir varyasyonu olup, iç içe geçmiş daireler şeklindedir.
B39: Kabarcık Grafiği: Dağılım grafiğine benzer, ancak her veri noktasının büyüklüğü üçüncü bir değişkenle temsil edilir.
B40: Coğrafi Harita: Coğrafi verilere dayalı görselleştirmeler için kullanılır.
B41: Hisogram: Verilerin frekans dağılımını göstermek için kullanılır.

Sheet Uygulama 1
B2: Uygulama 1
B4: SİPARİŞ FORMU
G6: Tarih
B8: Sıra No | C8: Ürün Kodu | D8: Marka | E8: Tür | F8: Birim Fiyat | G8: Adet | H8: Tutar | J8: İşlem Adımları | K8: Durum | L8: Formül
B9: =IF(C9>0,COUNTA($C$9:C9),"") ->  | J9: Tarih Otomatik Gelsin | K9: FALSE | L9: =IF(K9,"BUGÜN()","") -> 
B10: =IF(C10>0,COUNTA($C$9:C10),"") ->  | J10: Sıra Numaraları Otomatik Gelsin | K10: FALSE | L10: =IF(K10,"EĞER - BAĞ_DEĞ_DOLU_SAY()","") -> 
B11: =IF(C11>0,COUNTA($C$9:C11),"") ->  | J11: Ürün Kodları Listeden Seçilsin | K11: FALSE | L11: =IF(K11,"Veri Doğrulama","") -> 
B12: =IF(C12>0,COUNTA($C$9:C12),"") ->  | J12: Liste Dinamik Olsun | K12: FALSE | L12: =IF(K12,"KIRPARALIĞI()","") -> 
B13: =IF(C13>0,COUNTA($C$9:C13),"") ->  | J13: Kod Seçildiğinde Ürün Bilgileri Gelsin | K13: FALSE | L13: =IF(K13,"DÜŞEYARA()","") -> 
B14: =IF(C14>0,COUNTA($C$9:C14),"") ->  | J14: Kod Seçilmediğinde Hücre Boş Kalsın | K14: FALSE | L14: =IF(K14,"EĞERHATA()","") -> 
B15: =IF(C15>0,COUNTA($C$9:C15),"") ->  | J15: Tutar Hesaplansın | K15: FALSE | L15: =IF(K15,"TOPLA()","") -> 
B16: =IF(C16>0,COUNTA($C$9:C16),"") ->  | J16: Toplam Hesaplansın | K16: FALSE | L16: =IF(K16,"TOPLA()","") -> 
B17: =IF(C17>0,COUNTA($C$9:C17),"") ->  | J17: KDV Hesaplansın | K17: FALSE | L17: =IF(K17,"Toplam *20%","") -> 
B18: =IF(C18>0,COUNTA($C$9:C18),"") ->  | J18: Toplam Tutar Hesaplansın | K18: FALSE | L18: =IF(K18,"TOPLA()","") -> 
G20: Toplam
G22: KDV
G24: Toplam Tutar

Sheet Uygulama 1 Verileri
B2: Uygulama 1 Veriler
B4: Ürün Kodu | C4: Marka | D4: Tür | E4: Birim Fiyat
B5: ND-1352 | C5: Dell | D5: Notebook | E5: 3500
B6: RL-1210 | C6: Lenovo | D6: PC | E6: 1850
B7: NT-1468 | C7: Dell | D7: Notebook | E7: 3860
B8: PL-1219 | C8: Lenovo | D8: PC | E8: 1480
B9: XL-1105 | C9: Lenovo | D9: Tablet | E9: 350
B10: TS-1236 | C10: MSI | D10: Tablet | E10: 575
B11: PH-1269 | C11: HP | D11: PC | E11: 1945
B12: ZD-1220 | C12: MSI | D12: Notebook | E12: 2200
B13: ND-1247 | C13: Dell | D13: Notebook | E13: 4260
B14: TA-1365 | C14: Asus | D14: Tablet | E14: 1350
B15: TH-1382 | C15: HP | D15: Tablet | E15: 1500
B16: PH-1244 | C16: HP | D16: PC | E16: 2100
B17: ND-1499 | C17: Dell | D17: Notebook | E17: 3000
B18: KL-1052 | C18: Lenovo | D18: Notebook | E18: 4600
B19: PT-1364 | C19: Dell | D19: PC | E19: 3000
B20: NA-1100 | C20: Asus | D20: Notebook | E20: 5630
B21: QD-1052 | C21: Dell | D21: PC | E21: 2450
B22: PH-1432 | C22: HP | D22: PC | E22: 2230
B23: TH-1471 | C23: HP | D23: Tablet | E23: 750

Sheet Uygulama2 (hidden)
B2: Uygulama 2
B5: Sıra No | C5: Marka | D5: Tür | E5: Satış Türü | F5: Tarih | G5: Şehir | H5: Ödeme Türü | I5: Fiyat

Sheet Uygulama 2 Verileri (hidden)
B2: Uygulama 2 Veriler
B4: Marka | C4: Tür | D4: Satış Türü | E4: Tarih | F4: Şehir | G4: Ödeme Türü | H4: Fiyat
B5: ASUS | C5: Notebook | D5: Site | E5: 2019-08-04 | F5: İstanbul | G5: Kredi Kartı | H5: 7319
B6: HP | C6: Tablet | D6: Mağaza | E6: 2018-08-24 | F6: Ankara | G6: Peşin | H6: 8354
B7: DELL | C7: Notebook | D7: Mağaza | E7: 2018-06-13 | F7: Bursa | G7: Kredi Kartı | H7: 4696
B8: HP | C8: Notebook | D8: Mağaza | E8: 2018-03-19 | F8: Ankara | G8: Peşin | H8: 4773
B9: HP | C9: PC | D9: Site | E9: 2019-11-22 | F9: İstanbul | G9: Kredi Kartı | H9: 5432
B10: DELL | C10: Notebook | D10: Site | E10: 2019-11-30 | F10: Bursa | G10: Kredi Kartı | H10: 6238
B11: MSI | C11: Notebook | D11: Site | E11: 2018-06-23 | F11: Bursa | G11: Kredi Kartı | H11: 9195
B12: DELL | C12: Tablet | D12: Site | E12: 2018-03-16 | F12: Bursa | G12: Kredi Kartı | H12: 6240
B13: MSI | C13: Tablet | D13: Mağaza | E13: 2018-02-13 | F13: İstanbul | G13: Peşin | H13: 5284
B14: TOSHIBA | C14: PC | D14: Site | E14: 2018-11-25 | F14: İstanbul | G14: Kredi Kartı | H14: 8855
B15: MSI | C15: Tablet | D15: Site | E15: 2018-09-18 | F15: Ankara | G15: Kredi Kartı | H15: 4202
B16: MSI | C16: PC | D16: Mağaza | E16: 2019-01-31 | F16: Ankara | G16: Peşin | H16: 6655
B17: MSI | C17: PC | D17: Mağaza | E17: 2018-02-05 | F17: Ankara | G17: Peşin | H17: 7689
B18: TOSHIBA | C18: PC | D18: Site | E18: 2018-09-03 | F18: Ankara | G18: Kredi Kartı | H18: 7241
B19: TOSHIBA | C19: Notebook | D19: Site | E19: 2018-04-30 | F19: Bursa | G19: Kredi Kartı | H19: 7692
B20: ASUS | C20: Notebook | D20: Site | E20: 2018-04-26 | F20: Bursa | G20: Kredi Kartı | H20: 7950
B21: DELL | C21: PC | D21: Mağaza | E21: 2019-03-29 | F21: Bursa | G21: Peşin | H21: 5984
B22: MSI | C22: PC | D22: Mağaza | E22: 2018-03-20 | F22: Bursa | G22: Kredi Kartı | H22: 4652
B23: MSI | C23: PC | D23: Mağaza | E23: 2019-05-20 | F23: Bursa | G23: Kredi Kartı | H23: 9326
B24: MSI | C24: PC | D24: Site | E24: 2019-07-03 | F24: İstanbul | G24: Kredi Kartı | H24: 5738
B25: ASUS | C25: Notebook | D25: Mağaza | E25: 2018-10-17 | F25: Ankara | G25: Peşin | H25: 5064
B26: ASUS | C26: Tablet | D26: Site | E26: 2018-10-02 | F26: Bursa | G26: Kredi Kartı | H26: 9233
B27: ASUS | C27: Tablet | D27: Site | E27: 2019-10-22 | F27: Bursa | G27: Kredi Kartı | H27: 6872
B28: MSI | C28: PC | D28: Site | E28: 2019-09-17 | F28: Ankara | G28: Kredi Kartı | H28: 6472
B29: DELL | C29: Notebook | D29: Site | E29: 2018-01-09 | F29: Ankara | G29: Kredi Kartı | H29: 6071
B30: TOSHIBA | C30: PC | D30: Site | E30: 2018-03-24 | F30: İstanbul | G30: Kredi Kartı | H30: 9227
B31: MSI | C31: PC | D31: Mağaza | E31: 2018-08-16 | F31: Ankara | G31: Peşin | H31: 4715
B32: ASUS | C32: Notebook | D32: Mağaza | E32: 2018-07-21 | F32: Ankara | G32: Peşin | H32: 4747
B33: HP | C33: PC | D33: Site | E33: 2019-05-27 | F33: İstanbul | G33: Kredi Kartı | H33: 5980
B34: HP | C34: Notebook | D34: Site | E34: 2019-07-19 | F34: Bursa | G34: Kredi Kartı | H34: 6991
B35: HP | C35: PC | D35: Mağaza | E35: 2019-01-22 | F35: Bursa | G35: Peşin | H35: 9254
B36: MSI | C36: Tablet | D36: Mağaza | E36: 2018-09-14 | F36: Ankara | G36: Peşin | H36: 7689
B37: MSI | C37: PC | D37: Mağaza | E37: 2019-03-08 | F37: İstanbul | G37: Peşin | H37: 7099
B38: MSI | C38: Notebook | D38: Site | E38: 2019-06-13 | F38: Bursa | G38: Kredi Kartı | H38: 7085
B39: DELL | C39: PC | D39: Site | E39: 2019-02-13 | F39: İstanbul | G39: Kredi Kartı | H39: 7497
B40: DELL | C40: PC | D40: Site | E40: 2018-01-13 | F40: Ankara | G40: Kredi Kartı | H40: 6412
B41: ASUS | C41: PC | D41: Site | E41: 2019-09-09 | F41: İstanbul | G41: Kredi Kartı | H41: 6676
B42: MSI | C42: Tablet | D42: Site | E42: 2019-05-23 | F42: Bursa | G42: Kredi Kartı | H42: 9287
B43: MSI | C43: PC | D43: Mağaza | E43: 2019-12-20 | F43: İstanbul | G43: Peşin | H43: 9053
B44: ASUS | C44: PC | D44: Mağaza | E44: 2018-07-15 | F44: Bursa | G44: Peşin | H44: 3999
B45: MSI | C45: Tablet | D45: Site | E45: 2018-01-31 | F45: İstanbul | G45: Kredi Kartı | H45: 4430
B46: TOSHIBA | C46: Tablet | D46: Site | E46: 2018-12-11 | F46: Bursa | G46: Kredi Kartı | H46: 5730
B47: HP | C47: PC | D47: Mağaza | E47: 2019-01-05 | F47: İstanbul | G47: Peşin | H47: 5722
B48: MSI | C48: PC | D48: Site | E48: 2018-10-29 | F48: Bursa | G48: Kredi Kartı | H48: 8578
B49: MSI | C49: Notebook | D49: Site | E49: 2019-07-22 | F49: Ankara | G49: Kredi Kartı | H49: 7401
B50: DELL | C50: Notebook | D50: Site | E50: 2018-03-11 | F50: Bursa | G50: Kredi Kartı | H50: 4664
B51: HP | C51: PC | D51: Mağaza | E51: 2018-01-12 | F51: Bursa | G51: Peşin | H51: 9158
B52: HP | C52: Tablet | D52: Site | E52: 2019-07-17 | F52: Bursa | G52: Kredi Kartı | H52: 5428
B53: HP | C53: Tablet | D53: Mağaza | E53: 2018-05-04 | F53: Bursa | G53: Peşin | H53: 8352
B54: MSI | C54: Notebook | D54: Mağaza | E54: 2019-08-28 | F54: Bursa | G54: Peşin | H54: 7172
B55: TOSHIBA | C55: Notebook | D55: Site | E55: 2018-04-13 | F55: Bursa | G55: Kredi Kartı | H55: 7397
B56: TOSHIBA | C56: Notebook | D56: Mağaza | E56: 2018-12-31 | F56: Ankara | G56: Peşin | H56: 4382
B57: TOSHIBA | C57: Tablet | D57: Site | E57: 2019-07-25 | F57: Bursa | G57: Kredi Kartı | H57: 6718
B58: ASUS | C58: PC | D58: Mağaza | E58: 2018-11-25 | F58: İstanbul | G58: Peşin | H58: 7352
B59: MSI | C59: Notebook | D59: Mağaza | E59: 2018-11-10 | F59: Bursa | G59: Peşin | H59: 7168
B60: HP | C60: Tablet | D60: Mağaza | E60: 2019-05-05 | F60: Bursa | G60: Peşin | H60: 5124
B61: ASUS | C61: Notebook | D61: Site | E61: 2018-11-19 | F61: Bursa | G61: Kredi Kartı | H61: 6994
B62: TOSHIBA | C62: Tablet | D62: Mağaza | E62: 2019-07-30 | F62: Bursa | G62: Peşin | H62: 6375
B63: MSI | C63: Notebook | D63: Site | E63: 2019-02-25 | F63: Bursa | G63: Kredi Kartı | H63: 5844
B64: HP | C64: Tablet | D64: Mağaza | E64: 2019-11-11 | F64: Ankara | G64: Kredi Kartı | H64: 8419
B65: TOSHIBA | C65: Tablet | D65: Mağaza | E65: 2019-09-24 | F65: Ankara | G65: Peşin | H65: 4919
B66: MSI | C66: Tablet | D66: Mağaza | E66: 2018-11-09 | F66: İstanbul | G66: Kredi Kartı | H66: 7091
B67: DELL | C67: Tablet | D67: Mağaza | E67: 2018-07-12 | F67: Bursa | G67: Kredi Kartı | H67: 7682
B68: MSI | C68: Tablet | D68: Site | E68: 2018-12-03 | F68: Bursa | G68: Kredi Kartı | H68: 4135
B69: DELL | C69: PC | D69: Site | E69: 2018-09-19 | F69: Bursa | G69: Kredi Kartı | H69: 6570
B70: TOSHIBA | C70: PC | D70: Mağaza | E70: 2018-01-29 | F70: İstanbul | G70: Peşin | H70: 7283
B71: DELL | C71: PC | D71: Mağaza | E71: 2018-02-13 | F71: Ankara | G71: Kredi Kartı | H71: 5363
B72: TOSHIBA | C72: Notebook | D72: Site | E72: 2019-01-12 | F72: Bursa | G72: Kredi Kartı | H72: 8702
B73: DELL | C73: Notebook | D73: Site | E73: 2018-03-12 | F73: İstanbul | G73: Kredi Kartı | H73: 9464
B74: HP | C74: PC | D74: Site | E74: 2018-04-17 | F74: Bursa | G74: Kredi Kartı | H74: 9112
B75: MSI | C75: PC | D75: Mağaza | E75: 2019-03-19 | F75: İstanbul | G75: Peşin | H75: 6434
B76: MSI | C76: Tablet | D76: Mağaza | E76: 2019-05-12 | F76: Ankara | G76: Peşin | H76: 4446
B77: DELL | C77: Tablet | D77: Site | E77: 2019-03-01 | F77: Ankara | G77: Kredi Kartı | H77: 7642
B78: MSI | C78: Notebook | D78: Mağaza | E78: 2019-02-09 | F78: Bursa | G78: Peşin | H78: 7830
B79: TOSHIBA | C79: Notebook | D79: Mağaza | E79: 2019-02-23 | F79: Bursa | G79: Peşin | H79: 7490
B80: DELL | C80: Tablet | D80: Mağaza | E80: 2019-06-05 | F80: Bursa | G80: Peşin | H80: 6450
B81: MSI | C81: Notebook | D81: Site | E81: 2019-06-20 | F81: Bursa | G81: Kredi Kartı | H81: 6780
B82: TOSHIBA | C82: PC | D82: Mağaza | E82: 2018-02-08 | F82: Bursa | G82: Peşin | H82: 7063
B83: DELL | C83: Notebook | D83: Mağaza | E83: 2018-03-28 | F83: İstanbul | G83: Peşin | H83: 5454
B84: HP | C84: PC | D84: Mağaza | E84: 2019-11-18 | F84: İstanbul | G84: Peşin | H84: 9472
B85: HP | C85: PC | D85: Site | E85: 2018-03-02 | F85: Bursa | G85: Kredi Kartı | H85: 8156
B86: ASUS | C86: Notebook | D86: Site | E86: 2019-12-25 | F86: Bursa | G86: Kredi Kartı | H86: 3879
B87: TOSHIBA | C87: Notebook | D87: Mağaza | E87: 2018-11-21 | F87: Bursa | G87: Peşin | H87: 5721
B88: TOSHIBA | C88: Notebook | D88: Mağaza | E88: 2019-03-25 | F88: Ankara | G88: Kredi Kartı | H88: 3932
B89: TOSHIBA | C89: Notebook | D89: Mağaza | E89: 2019-10-17 | F89: İstanbul | G89: Kredi Kartı | H89: 5281
B90: HP | C90: PC | D90: Mağaza | E90: 2018-04-22 | F90: Ankara | G90: Peşin | H90: 7062
B91: DELL | C91: Notebook | D91: Mağaza | E91: 2019-06-08 | F91: İstanbul | G91: Peşin | H91: 6228
B92: MSI | C92: Notebook | D92: Site | E92: 2018-09-25 | F92: Bursa | G92: Kredi Kartı | H92: 8949
B93: ASUS | C93: Notebook | D93: Mağaza | E93: 2019-06-11 | F93: Ankara | G93: Peşin | H93: 5045
B94: TOSHIBA | C94: PC | D94: Mağaza | E94: 2019-05-14 | F94: Ankara | G94: Peşin | H94: 9175
B95: MSI | C95: PC | D95: Site | E95: 2018-11-10 | F95: Bursa | G95: Kredi Kartı | H95: 6251
B96: HP | C96: PC | D96: Site | E96: 2019-10-11 | F96: Bursa | G96: Kredi Kartı | H96: 5911
B97: DELL | C97: Tablet | D97: Mağaza | E97: 2019-12-29 | F97: Bursa | G97: Kredi Kartı | H97: 6621
B98: HP | C98: Notebook | D98: Site | E98: 2019-03-02 | F98: İstanbul | G98: Kredi Kartı | H98: 5076
B99: MSI | C99: Notebook | D99: Mağaza | E99: 2019-04-05 | F99: Bursa | G99: Kredi Kartı | H99: 9184
B100: ASUS | C100: Tablet | D100: Site | E100: 2019-12-19 | F100: Bursa | G100: Kredi Kartı | H100: 8066
B101: ASUS | C101: Notebook | D101: Site | E101: 2018-10-15 | F101: İstanbul | G101: Kredi Kartı | H101: 4421
B102: HP | C102: Tablet | D102: Mağaza | E102: 2018-09-22 | F102: Ankara | G102: Peşin | H102: 4677
B103: DELL | C103: Notebook | D103: Mağaza | E103: 2018-10-11 | F103: Bursa | G103: Kredi Kartı | H103: 6965
B104: HP | C104: Notebook | D104: Mağaza | E104: 2018-11-19 | F104: Ankara | G104: Peşin | H104: 7335
B105: HP | C105: PC | D105: Site | E105: 2019-03-27 | F105: İstanbul | G105: Kredi Kartı | H105: 4752
B106: DELL | C106: Notebook | D106: Site | E106: 2019-07-26 | F106: Bursa | G106: Kredi Kartı | H106: 6376
B107: MSI | C107: Notebook | D107: Site | E107: 2018-08-11 | F107: Bursa | G107: Kredi Kartı | H107: 5569
B108: DELL | C108: Tablet | D108: Site | E108: 2018-04-27 | F108: Bursa | G108: Kredi Kartı | H108: 8931
B109: MSI | C109: Tablet | D109: Mağaza | E109: 2018-01-31 | F109: İstanbul | G109: Peşin | H109: 4992
B110: TOSHIBA | C110: PC | D110: Site | E110: 2018-08-14 | F110: İstanbul | G110: Kredi Kartı | H110: 8266
B111: MSI | C111: Tablet | D111: Site | E111: 2019-08-28 | F111: Ankara | G111: Kredi Kartı | H111: 4001
B112: MSI | C112: PC | D112: Mağaza | E112: 2018-12-17 | F112: Ankara | G112: Peşin | H112: 6258
B113: MSI | C113: PC | D113: Mağaza | E113: 2018-06-15 | F113: Ankara | G113: Peşin | H113: 7552
B114: TOSHIBA | C114: PC | D114: Site | E114: 2019-05-02 | F114: Ankara | G114: Kredi Kartı | H114: 7336
B115: TOSHIBA | C115: Notebook | D115: Site | E115: 2019-06-05 | F115: Bursa | G115: Kredi Kartı | H115: 8023
B116: ASUS | C116: Notebook | D116: Site | E116: 2019-11-10 | F116: Bursa | G116: Kredi Kartı | H116: 3963
B117: DELL | C117: PC | D117: Mağaza | E117: 2019-12-11 | F117: Bursa | G117: Peşin | H117: 7663
B118: MSI | C118: PC | D118: Mağaza | E118: 2018-04-01 | F118: Bursa | G118: Kredi Kartı | H118: 6084
B119: MSI | C119: PC | D119: Mağaza | E119: 2018-07-29 | F119: Bursa | G119: Kredi Kartı | H119: 6260
B120: MSI | C120: PC | D120: Site | E120: 2018-08-12 | F120: İstanbul | G120: Kredi Kartı | H120: 8739
B121: ASUS | C121: Notebook | D121: Mağaza | E121: 2019-03-12 | F121: Ankara | G121: Peşin | H121: 4804
B122: ASUS | C122: Tablet | D122: Site | E122: 2018-11-18 | F122: Bursa | G122: Kredi Kartı | H122: 8628
B123: ASUS | C123: Tablet | D123: Site | E123: 2018-09-01 | F123: Bursa | G123: Kredi Kartı | H123: 8109
B124: MSI | C124: PC | D124: Site | E124: 2018-12-16 | F124: Ankara | G124: Kredi Kartı | H124: 9497
B125: DELL | C125: Notebook | D125: Site | E125: 2018-10-24 | F125: Ankara | G125: Kredi Kartı | H125: 8463
B126: TOSHIBA | C126: PC | D126: Site | E126: 2018-10-21 | F126: İstanbul | G126: Kredi Kartı | H126: 5250
B127: MSI | C127: PC | D127: Mağaza | E127: 2018-09-22 | F127: Ankara | G127: Peşin | H127: 7361
B128: ASUS | C128: Notebook | D128: Mağaza | E128: 2018-06-20 | F128: Ankara | G128: Peşin | H128: 9178
B129: HP | C129: PC | D129: Site | E129: 2019-05-22 | F129: İstanbul | G129: Kredi Kartı | H129: 5302
B130: HP | C130: Notebook | D130: Site | E130: 2018-11-15 | F130: Bursa | G130: Kredi Kartı | H130: 4205
B131: HP | C131: PC | D131: Mağaza | E131: 2019-08-27 | F131: Bursa | G131: Peşin | H131: 6608
B132: MSI | C132: Tablet | D132: Mağaza | E132: 2018-07-27 | F132: Ankara | G132: Peşin | H132: 7642
B133: MSI | C133: PC | D133: Mağaza | E133: 2019-05-28 | F133: İstanbul | G133: Peşin | H133: 6752
B134: MSI | C134: Notebook | D134: Site | E134: 2019-05-21 | F134: Bursa | G134: Kredi Kartı | H134: 9152
B135: DELL | C135: PC | D135: Site | E135: 2019-10-12 | F135: İstanbul | G135: Kredi Kartı | H135: 5285
B136: DELL | C136: PC | D136: Site | E136: 2019-11-21 | F136: Ankara | G136: Kredi Kartı | H136: 5247
B137: ASUS | C137: PC | D137: Site | E137: 2019-05-08 | F137: İstanbul | G137: Kredi Kartı | H137: 4484
B138: MSI | C138: Tablet | D138: Site | E138: 2018-06-18 | F138: Bursa | G138: Kredi Kartı | H138: 9416
B139: MSI | C139: PC | D139: Mağaza | E139: 2019-10-25 | F139: İstanbul | G139: Peşin | H139: 7111
B140: ASUS | C140: PC | D140: Mağaza | E140: 2018-06-13 | F140: Bursa | G140: Peşin | H140: 9357
B141: MSI | C141: Tablet | D141: Site | E141: 2018-04-11 | F141: İstanbul | G141: Kredi Kartı | H141: 7857
B142: TOSHIBA | C142: Tablet | D142: Site | E142: 2018-10-30 | F142: Bursa | G142: Kredi Kartı | H142: 7674
B143: HP | C143: PC | D143: Mağaza | E143: 2018-07-03 | F143: İstanbul | G143: Peşin | H143: 5285
B144: MSI | C144: PC | D144: Site | E144: 2019-03-10 | F144: Bursa | G144: Kredi Kartı | H144: 8061
B145: MSI | C145: Notebook | D145: Site | E145: 2019-07-13 | F145: Ankara | G145: Kredi Kartı | H145: 7100
B146: DELL | C146: Notebook | D146: Site | E146: 2019-09-17 | F146: Bursa | G146: Kredi Kartı | H146: 5768
B147: HP | C147: PC | D147: Mağaza | E147: 2018-01-06 | F147: Bursa | G147: Peşin | H147: 7008
B148: HP | C148: Tablet | D148: Site | E148: 2019-10-01 | F148: Bursa | G148: Kredi Kartı | H148: 6266
B149: HP | C149: Tablet | D149: Mağaza | E149: 2018-08-28 | F149: Bursa | G149: Peşin | H149: 9419
B150: MSI | C150: Notebook | D150: Mağaza | E150: 2019-10-02 | F150: Bursa | G150: Peşin | H150: 3982
B151: TOSHIBA | C151: Notebook | D151: Site | E151: 2019-01-10 | F151: Bursa | G151: Kredi Kartı | H151: 7046
B152: TOSHIBA | C152: Notebook | D152: Mağaza | E152: 2019-09-07 | F152: Ankara | G152: Peşin | H152: 7342
B153: TOSHIBA | C153: Tablet | D153: Site | E153: 2019-02-09 | F153: Bursa | G153: Kredi Kartı | H153: 7474
B154: ASUS | C154: PC | D154: Mağaza | E154: 2019-02-04 | F154: İstanbul | G154: Peşin | H154: 9362
B155: MSI | C155: Notebook | D155: Mağaza | E155: 2019-02-24 | F155: Bursa | G155: Peşin | H155: 5727
B156: HP | C156: Tablet | D156: Mağaza | E156: 2018-10-29 | F156: Bursa | G156: Peşin | H156: 7343
B157: ASUS | C157: Notebook | D157: Site | E157: 2019-09-08 | F157: Bursa | G157: Kredi Kartı | H157: 6245
B158: TOSHIBA | C158: Tablet | D158: Mağaza | E158: 2018-10-16 | F158: Bursa | G158: Peşin | H158: 8594
B159: MSI | C159: Notebook | D159: Site | E159: 2018-04-18 | F159: Bursa | G159: Kredi Kartı | H159: 4437
B160: HP | C160: Tablet | D160: Mağaza | E160: 2019-10-30 | F160: Ankara | G160: Kredi Kartı | H160: 9244
B161: TOSHIBA | C161: Tablet | D161: Mağaza | E161: 2018-10-13 | F161: Ankara | G161: Peşin | H161: 8112
B162: MSI | C162: Tablet | D162: Mağaza | E162: 2018-01-11 | F162: İstanbul | G162: Kredi Kartı | H162: 4519
B163: DELL | C163: Tablet | D163: Mağaza | E163: 2019-11-05 | F163: Bursa | G163: Kredi Kartı | H163: 8445
B164: MSI | C164: Tablet | D164: Site | E164: 2018-02-05 | F164: Bursa | G164: Kredi Kartı | H164: 8801
B165: DELL | C165: PC | D165: Site | E165: 2019-08-28 | F165: Bursa | G165: Kredi Kartı | H165: 4243
B166: TOSHIBA | C166: PC | D166: Mağaza | E166: 2018-10-20 | F166: İstanbul | G166: Peşin | H166: 8207
B167: DELL | C167: PC | D167: Mağaza | E167: 2018-11-06 | F167: Ankara | G167: Kredi Kartı | H167: 7457
B168: TOSHIBA | C168: Notebook | D168: Site | E168: 2018-08-13 | F168: Bursa | G168: Kredi Kartı | H168: 7660
B169: DELL | C169: Notebook | D169: Site | E169: 2018-09-29 | F169: İstanbul | G169: Kredi Kartı | H169: 7642
B170: HP | C170: PC | D170: Site | E170: 2019-05-01 | F170: Bursa | G170: Kredi Kartı | H170: 8807
B171: MSI | C171: PC | D171: Mağaza | E171: 2018-05-24 | F171: İstanbul | G171: Peşin | H171: 7392
B172: MSI | C172: Tablet | D172: Mağaza | E172: 2018-04-28 | F172: Ankara | G172: Peşin | H172: 7512
B173: DELL | C173: Tablet | D173: Site | E173: 2018-09-01 | F173: Ankara | G173: Kredi Kartı | H173: 6142
B174: MSI | C174: Notebook | D174: Mağaza | E174: 2018-09-18 | F174: Bursa | G174: Peşin | H174: 5000
B175: TOSHIBA | C175: Notebook | D175: Mağaza | E175: 2019-01-12 | F175: Bursa | G175: Peşin | H175: 7654
B176: DELL | C176: Tablet | D176: Mağaza | E176: 2018-05-20 | F176: Bursa | G176: Peşin | H176: 6623
B177: MSI | C177: Notebook | D177: Site | E177: 2018-09-12 | F177: Bursa | G177: Kredi Kartı | H177: 5416
B178: TOSHIBA | C178: PC | D178: Mağaza | E178: 2019-10-16 | F178: Bursa | G178: Peşin | H178: 8365
B179: DELL | C179: Notebook | D179: Mağaza | E179: 2019-09-17 | F179: İstanbul | G179: Peşin | H179: 4978
B180: HP | C180: PC | D180: Mağaza | E180: 2018-07-31 | F180: İstanbul | G180: Peşin | H180: 6063
B181: HP | C181: PC | D181: Site | E181: 2019-09-09 | F181: Bursa | G181: Kredi Kartı | H181: 7428
B182: ASUS | C182: Notebook | D182: Site | E182: 2019-09-09 | F182: Bursa | G182: Kredi Kartı | H182: 5325
B183: TOSHIBA | C183: Notebook | D183: Mağaza | E183: 2019-05-30 | F183: Bursa | G183: Peşin | H183: 7882
B184: TOSHIBA | C184: Notebook | D184: Mağaza | E184: 2019-11-01 | F184: Ankara | G184: Kredi Kartı | H184: 7430
B185: TOSHIBA | C185: Notebook | D185: Mağaza | E185: 2019-05-30 | F185: İstanbul | G185: Kredi Kartı | H185: 5281
B186: HP | C186: PC | D186: Mağaza | E186: 2019-07-11 | F186: Ankara | G186: Peşin | H186: 3894
B187: DELL | C187: Notebook | D187: Mağaza | E187: 2018-11-07 | F187: İstanbul | G187: Peşin | H187: 8208
B188: MSI | C188: Notebook | D188: Site | E188: 2019-12-01 | F188: Bursa | G188: Kredi Kartı | H188: 9057
B189: ASUS | C189: Notebook | D189: Mağaza | E189: 2019-04-30 | F189: Ankara | G189: Peşin | H189: 6408
B190: TOSHIBA | C190: PC | D190: Mağaza | E190: 2018-10-20 | F190: Ankara | G190: Peşin | H190: 8967
B191: MSI | C191: PC | D191: Site | E191: 2018-01-12 | F191: Bursa | G191: Kredi Kartı | H191: 4896
B192: HP | C192: PC | D192: Site | E192: 2018-03-05 | F192: Bursa | G192: Kredi Kartı | H192: 9416
B193: DELL | C193: Tablet | D193: Mağaza | E193: 2018-10-10 | F193: Bursa | G193: Kredi Kartı | H193: 9016
B194: HP | C194: Notebook | D194: Site | E194: 2018-12-07 | F194: İstanbul | G194: Kredi Kartı | H194: 8118
B195: MSI | C195: Notebook | D195: Mağaza | E195: 2018-08-24 | F195: Bursa | G195: Kredi Kartı | H195: 6472
B196: ASUS | C196: Tablet | D196: Site | E196: 2019-01-25 | F196: Bursa | G196: Kredi Kartı | H196: 7761

Sheet Liste (Bilgi)
B2: Pivot Tablo
B4: Tarih | C4: Şehir | D4: Satış Elemanı | E4: Ürün | F4: Marka | G4: Tür | H4: Adet | I4: Birim Fiyat | J4: Tutar | K4: Ödeme Türü
B5: 2023-11-25 | C5: Bursa | D5: Sabiha YALIN | E5: Tablet | F5: Lenovo | G5: 12' | H5: 1 | I5: 4000 | J5: =H5*I5 -> 4000 | K5: Nakit | R5: Ürün KPI'ları*
B6: 2024-07-28 | C6: İstanbul | D6: Emre DEMİR | E6: Kulaklık | F6: Jabra | G6: Kulak İçi Bluetoth | H6: 1 | I6: 2500 | J6: =H6*I6 -> 2500 | K6: Nakit
B7: 2022-05-20 | C7: Ankara | D7: Emel YOLCU | E7: Bilgisayar | F7: HP | G7: PC | H7: 2 | I7: 22134 | J7: 44268 | K7: Kredi Kartı | R7: Satış Hacmi: Her bir ürünün toplam satış hacmi.
B8: 2019-04-07 | C8: İzmir | D8: Kemal ARGAN | E8: Bilgisayar | F8: HP | G8: Game Notebook | H8: 2 | I8: 34982 | J8: 69964 | K8: Kredi Kartı | R8: Kar Marjı: Her bir ürünün kar marjı.
B9: 2021-12-15 | C9: Bursa | D9: Sabiha YALIN | E9: Bilgisayar | F9: HP | G9: Game Notebook | H9: 1 | I9: 62971 | J9: 62971 | K9: Kredi Kartı | R9: En Çok Satan Ürünler: Belirli bir dönemdeki en çok satan ürünler.
B10: 2021-05-17 | C10: İstanbul | D10: Emre DEMİR | E10: Bilgisayar | F10: HP | G10: Notebook | H10: 1 | I10: 34773 | J10: 34773 | K10: Kredi Kartı | R10: En Az Satan Ürünler: Belirli bir dönemdeki en az satan ürünler.
B11: 2019-12-09 | C11: Bursa | D11: Sabiha YALIN | E11: Kulaklık | F11: Sennheiser | G11: Kulak İçi Bluetoth | H11: 2 | I11: 8568 | J11: 17136 | K11: Nakit
B12: 2021-07-22 | C12: Bursa | D12: Mustafa YILDIZ | E12: Tablet | F12: Xiomi | G12: 14.1' | H12: 1 | I12: 4909 | J12: 4909 | K12: Nakit | R12: Müşteri KPI'ları
B13: 2020-10-04 | C13: Ankara | D13: Emel YOLCU | E13: Kulaklık | F13: Xiomi | G13: Kulak İçi Bluetoth | H13: 1 | I13: 3249 | J13: 3249 | K13: Nakit
B14: 2023-09-08 | C14: Bursa | D14: Sabiha YALIN | E14: Bilgisayar | F14: Lenovo | G14: Notebook | H14: 2 | I14: 47126 | J14: 94252 | K14: Havale / EFT | R14: Müşteri Kazanım Oranı: Belirli bir dönemde kazanılan yeni müşteri sayısı.
B15: 2020-12-12 | C15: Bursa | D15: Sabiha YALIN | E15: Bilgisayar | F15: MSI | G15: PC | H15: 5 | I15: 51024 | J15: 255120 | K15: Havale / EFT | R15: Müşteri Kayıp Oranı: Belirli bir dönemde kaybedilen müşteri sayısı.
B16: 2022-08-09 | C16: İzmir | D16: Ergin ŞANLI | E16: Tablet | F16: Huawei | G16: 13.5' | H16: 1 | I16: 7608 | J16: 7608 | K16: Nakit | R16: Ortalama Sipariş Değeri: Müşterilerin ortalama sipariş değeri.
B17: 2024-04-16 | C17: Bursa | D17: Mustafa YILDIZ | E17: Bilgisayar | F17: Lenovo | G17: Workstation | H17: 3 | I17: 93102 | J17: 279306 | K17: Havale / EFT | R17: Müşteri Yaşam Boyu Değeri: Bir müşterinin işletmeye sağladığı toplam gelir.
B18: 2021-05-09 | C18: Antalya | D18: İlhan IŞIK | E18: Kulaklık | F18: Marshall | G18: Kulak İçi | H18: 1 | I18: 5097 | J18: 5097 | K18: Nakit
B19: 2021-03-22 | C19: Bursa | D19: Mustafa YILDIZ | E19: Bilgisayar | F19: Lenovo | G19: PC | H19: 1 | I19: 64353 | J19: 64353 | K19: Kredi Kartı | R19: Satış Kanalı KPI'ları
B20: 2023-11-02 | C20: İzmir | D20: Erol HÜSEYİN | E20: Kulaklık | F20: Huawei | G20: Kulak İçi | H20: 2 | I20: 5333 | J20: 10666 | K20: Nakit
B21: 2022-02-16 | C21: Mersin | D21: Efe MUTLU | E21: Bilgisayar | F21: Asus | G21: Game PC | H21: 2 | I21: 39550 | J21: 79100 | K21: Havale / EFT | R21: Online Satış Oranı: Toplam satış içindeki online satış oranı.
B22: 2022-01-06 | C22: Bursa | D22: Mustafa YILDIZ | E22: Yazıcı | F22: Epson | G22: Tarayıcı + Yazıcı + Fotokopi | H22: 1 | I22: 4603 | J22: 4603 | K22: Nakit | R22: Mağaza Satış Oranı: Toplam satış içindeki mağaza satış oranı.
B23: 2021-04-27 | C23: Antalya | D23: İlhan IŞIK | E23: Yazıcı | F23: HP | G23: Tarayıcı + Yazıcı + Fotokopi | H23: 1 | I23: 4782 | J23: 4782 | K23: Nakit | R23: Kanal Başına Ortalama Sipariş Değeri: Her bir satış kanalının ortalama sipariş değeri.
B24: 2024-04-09 | C24: Ankara | D24: Barış KESKİN | E24: Bilgisayar | F24: Lenovo | G24: PC | H24: 2 | I24: 63396 | J24: 126792 | K24: Havale / EFT
B25: 2023-01-12 | C25: Antalya | D25: İlhan IŞIK | E25: Tablet | F25: Huawei | G25: 13.5' | H25: 1 | I25: 6836 | J25: 6836 | K25: Nakit
B26: 2023-09-04 | C26: İzmir | D26: Kemal ARGAN | E26: Kulaklık | F26: Xiomi | G26: Kulak Üstü | H26: 1 | I26: 2158 | J26: 2158 | K26: Nakit | R26: KPI'ları Oluştururken Dikkat Edilmesi Gerekenler:
B27: 2021-04-09 | C27: Mersin | D27: Efe MUTLU | E27: Yazıcı | F27: HP | G27: Tarayıcı + Yazıcı + Fotokopi | H27: 2 | I27: 6050 | J27: 12100 | K27: Nakit
B28: 2023-04-24 | C28: Ankara | D28: Barış KESKİN | E28: Kulaklık | F28: Xiomi | G28: Kulak İçi Bluetoth | H28: 5 | I28: 5533 | J28: 27665 | K28: Kredi Kartı | R28: SMART Prensibi: KPI'larınız Specific (Belirli), Measurable (Ölçülebilir), Achievable (Ulaşılabilir), Relevant (İlgili) ve Time-bound (Zamana Bağlı) olmalıdır.
B29: 2021-09-21 | C29: İzmir | D29: Erol HÜSEYİN | E29: Kulaklık | F29: Xiomi | G29: Kulak Üstü Bluetoth | H29: 1 | I29: 4453 | J29: 4453 | K29: Nakit | R29: Veri Kalitesi: Verilerinizin doğru ve tutarlı olduğundan emin olun.
B30: 2022-04-23 | C30: Antalya | D30: İlhan IŞIK | E30: Bilgisayar | F30: HP | G30: PC | H30: 3 | I30: 34240 | J30: 102720 | K30: Havale / EFT | R30: Hedef Belirleme: Her bir KPI için gerçekçi ve ulaşılabilir hedefler belirleyin.
B31: 2020-07-29 | C31: Mersin | D31: Tunç ERGİN | E31: Kulaklık | F31: Marshall | G31: Kulak Üstü Bluetoth | H31: 1 | I31: 5340 | J31: 5340 | K31: Nakit | R31: Düzenli Takip: KPI'larınızı düzenli olarak takip edin ve gerekli durumlarda hedeflerinizi güncelleyin.
B32: 2023-12-23 | C32: İzmir | D32: Ergin ŞANLI | E32: Kulaklık | F32: Xiomi | G32: Kulak İçi Bluetoth | H32: 1 | I32: 5651 | J32: 5651 | K32: Nakit
B33: 2022-12-06 | C33: Balıkesir | D33: Efe DEMİR | E33: Bilgisayar | F33: HP | G33: PC | H33: 2 | I33: 43464 | J33: 86928 | K33: Havale / EFT
B34: 2023-10-31 | C34: Antalya | D34: İlhan IŞIK | E34: Bilgisayar | F34: HP | G34: Game PC | H34: 2 | I34: 40168 | J34: 80336 | K34: Havale / EFT
B35: 2022-12-05 | C35: Bursa | D35: Mustafa YILDIZ | E35: Kulaklık | F35: Phillips | G35: Kulak Üstü | H35: 1 | I35: 6856 | J35: 6856 | K35: Nakit
B36: 2023-08-15 | C36: İzmir | D36: Ergin ŞANLI | E36: Bilgisayar | F36: HP | G36: PC | H36: 1 | I36: 43301 | J36: 43301 | K36: Kredi Kartı
B37: 2019-03-27 | C37: Balıkesir | D37: Efe DEMİR | E37: Yazıcı | F37: HP | G37: Tarayıcı + Yazıcı + Fotokopi | H37: 2 | I37: 5189 | J37: 10378 | K37: Nakit
B38: 2019-11-19 | C38: Antalya | D38: İlhan IŞIK | E38: Yazıcı | F38: HP | G38: Tarayıcı + Yazıcı | H38: 1 | I38: 3666 | J38: 3666 | K38: Nakit
B39: 2024-01-20 | C39: Bursa | D39: Mustafa YILDIZ | E39: Kulaklık | F39: Phillips | G39: Kulak Üstü | H39: 1 | I39: 10775 | J39: 10775 | K39: Nakit
B40: 2019-01-05 | C40: Bursa | D40: Sabiha YALIN | E40: Bilgisayar | F40: MSI | G40: Notebook | H40: 2 | I40: 59101 | J40: 118202 | K40: Havale / EFT
B41: 2023-02-27 | C41: Ankara | D41: Emel YOLCU | E41: Bilgisayar | F41: Asus | G41: Game Notebook | H41: 5 | I41: 48960 | J41: 244800 | K41: Havale / EFT
B42: 2024-04-26 | C42: İzmir | D42: Ergin ŞANLI | E42: Kulaklık | F42: Marshall | G42: Kulak Üstü Bluetoth | H42: 1 | I42: 5716 | J42: 5716 | K42: Nakit
B43: 2019-01-25 | C43: Bursa | D43: Mustafa YILDIZ | E43: Kulaklık | F43: Beats | G43: Kulak Üstü Bluetoth | H43: 3 | I43: 7912 | J43: 23736 | K43: Nakit
B44: 2022-09-28 | C44: Mersin | D44: Tunç ERGİN | E44: Bilgisayar | F44: MSI | G44: PC | H44: 1 | I44: 47204 | J44: 47204 | K44: Kredi Kartı
B45: 2023-02-09 | C45: İzmir | D45: Ergin ŞANLI | E45: Tablet | F45: Lenovo | G45: 12' | H45: 1 | I45: 5310 | J45: 5310 | K45: Nakit
B46: 2024-02-22 | C46: Antalya | D46: İlhan IŞIK | E46: Kulaklık | F46: Jabra | G46: Kulak İçi Bluetoth | H46: 2 | I46: 4623 | J46: 9246 | K46: Nakit
B47: 2020-10-13 | C47: Mersin | D47: Efe MUTLU | E47: Kulaklık | F47: Huawei | G47: Kulak Üstü | H47: 2 | I47: 7016 | J47: 14032 | K47: Nakit
B48: 2022-02-09 | C48: İzmir | D48: Erol HÜSEYİN | E48: Kulaklık | F48: Sennheiser | G48: Kulak İçi Bluetoth | H48: 1 | I48: 4486 | J48: 4486 | K48: Nakit
B49: 2020-11-14 | C49: Bursa | D49: Sabiha YALIN | E49: Bilgisayar | F49: Asus | G49: Game Notebook | H49: 1 | I49: 58950 | J49: 58950 | K49: Kredi Kartı
B50: 2022-08-07 | C50: Balıkesir | D50: Efe DEMİR | E50: Bilgisayar | F50: Lenovo | G50: Notebook | H50: 2 | I50: 26385 | J50: 52770 | K50: Kredi Kartı
B51: 2023-05-06 | C51: Ankara | D51: Barış KESKİN | E51: Yazıcı | F51: Epson | G51: Renki | H51: 1 | I51: 6101 | J51: 6101 | K51: Nakit
B52: 2023-03-29 | C52: İzmir | D52: Erol HÜSEYİN | E52: Kulaklık | F52: Sennheiser | G52: Kulak İçi Bluetoth | H52: 1 | I52: 10620 | J52: 10620 | K52: Nakit
B53: 2020-10-17 | C53: İstanbul | D53: Emre DEMİR | E53: Bilgisayar | F53: Asus | G53: Game Notebook | H53: 2 | I53: 38460 | J53: 76920 | K53: Havale / EFT
B54: 2023-05-23 | C54: Ankara | D54: Barış KESKİN | E54: Bilgisayar | F54: Lenovo | G54: PC | H54: 5 | I54: 39104 | J54: 195520 | K54: Havale / EFT
B55: 2023-11-14 | C55: Antalya | D55: İlhan IŞIK | E55: Yazıcı | F55: Epson | G55: Renki | H55: 1 | I55: 3795 | J55: 3795 | K55: Nakit
B56: 2019-01-04 | C56: Bursa | D56: Sabiha YALIN | E56: Yazıcı | F56: Epson | G56: Renki | H56: 3 | I56: 5306 | J56: 15918 | K56: Nakit
B57: 2020-03-21 | C57: Ankara | D57: Şule SEZGİN | E57: Bilgisayar | F57: HP | G57: PC | H57: 2 | I57: 22371 | J57: 44742 | K57: Kredi Kartı
B58: 2019-11-15 | C58: Ankara | D58: Şule SEZGİN | E58: Tablet | F58: Huawei | G58: 13.5' | H58: 1 | I58: 4765 | J58: 4765 | K58: Nakit
B59: 2021-09-26 | C59: Ankara | D59: Emel YOLCU | E59: Bilgisayar | F59: Lenovo | G59: PC | H59: 1 | I59: 56744 | J59: 56744 | K59: Kredi Kartı
B60: 2023-11-21 | C60: Mersin | D60: Efe MUTLU | E60: Tablet | F60: Samsung | G60: 14' | H60: 2 | I60: 6264 | J60: 12528 | K60: Nakit
B61: 2020-02-19 | C61: Ankara | D61: Şule SEZGİN | E61: Kulaklık | F61: Xiomi | G61: Kulak Üstü | H61: 1 | I61: 5549 | J61: 5549 | K61: Nakit
B62: 2020-12-09 | C62: İzmir | D62: Ergin ŞANLI | E62: Bilgisayar | F62: HP | G62: Game Notebook | H62: 2 | I62: 24598 | J62: 49196 | K62: Kredi Kartı
B63: 2023-04-10 | C63: Ankara | D63: Şule SEZGİN | E63: Bilgisayar | F63: Lenovo | G63: Notebook | H63: 1 | I63: 35074 | J63: 35074 | K63: Kredi Kartı
B64: 2020-12-15 | C64: İstanbul | D64: Emre DEMİR | E64: Bilgisayar | F64: MSI | G64: Game PC | H64: 1 | I64: 53596 | J64: 53596 | K64: Kredi Kartı
B65: 2019-01-09 | C65: Antalya | D65: İlhan IŞIK | E65: Bilgisayar | F65: Lenovo | G65: Workstation | H65: 6 | I65: 69793 | J65: 418758 | K65: Havale / EFT
B66: 2019-10-20 | C66: İzmir | D66: Ergin ŞANLI | E66: Kulaklık | F66: Huawei | G66: Kulak Üstü | H66: 1 | I66: 4147 | J66: 4147 | K66: Nakit
B67: 2019-08-26 | C67: İzmir | D67: Erol HÜSEYİN | E67: Kulaklık | F67: Xiomi | G67: Kulak Üstü Bluetoth | H67: 3 | I67: 8966 | J67: 26898 | K67: Kredi Kartı
B68: 2023-10-25 | C68: Ankara | D68: Barış KESKİN | E68: Yazıcı | F68: Epson | G68: Renki | H68: 2 | I68: 6327 | J68: 12654 | K68: Nakit
B69: 2022-04-29 | C69: İzmir | D69: Kemal ARGAN | E69: Bilgisayar | F69: MSI | G69: PC | H69: 1 | I69: 34672 | J69: 34672 | K69: Kredi Kartı
B70: 2023-10-16 | C70: İstanbul | D70: Emre DEMİR | E70: Kulaklık | F70: Marshall | G70: Kulak İçi | H70: 1 | I70: 7673 | J70: =H70*I70 -> 7673 | K70: Nakit
B71: 2023-05-25 | C71: Bursa | D71: Sabiha YALIN | E71: Bilgisayar | F71: MSI | G71: PC | H71: 2 | I71: 46035 | J71: 92070 | K71: Havale / EFT
B72: 2019-12-22 | C72: Mersin | D72: Efe MUTLU | E72: Kulaklık | F72: Phillips | G72: Kulak Üstü | H72: 1 | I72: 11771 | J72: 11771 | K72: Nakit
B73: 2022-08-21 | C73: Ankara | D73: Barış KESKİN | E73: Bilgisayar | F73: Lenovo | G73: PC | H73: 2 | I73: 26830 | J73: 53660 | K73: Kredi Kartı
B74: 2019-05-12 | C74: Mersin | D74: Tunç ERGİN | E74: Tablet | F74: Lenovo | G74: 12' | H74: 1 | I74: 4900 | J74: 4900 | K74: Nakit
B75: 2022-09-11 | C75: Mersin | D75: Tunç ERGİN | E75: Bilgisayar | F75: Asus | G75: PC | H75: 1 | I75: 43352 | J75: 43352 | K75: Kredi Kartı
B76: 2024-01-07 | C76: İzmir | D76: Erol HÜSEYİN | E76: Yazıcı | F76: HP | G76: Tarayıcı + Yazıcı | H76: 1 | I76: 6379 | J76: 6379 | K76: Nakit
B77: 2020-10-31 | C77: İzmir | D77: Ergin ŞANLI | E77: Kulaklık | F77: Beats | G77: Kulak Üstü Bluetoth | H77: 3 | I77: 11618 | J77: 34854 | K77: Kredi Kartı
B78: 2019-02-05 | C78: İstanbul | D78: Hasan TUNÇ | E78: Bilgisayar | F78: HP | G78: Game PC | H78: 2 | I78: 24773 | J78: 49546 | K78: Kredi Kartı
B79: 2021-12-13 | C79: Ankara | D79: Şule SEZGİN | E79: Bilgisayar | F79: MSI | G79: Game PC | H79: 1 | I79: 27439 | J79: 27439 | K79: Kredi Kartı
B80: 2021-07-29 | C80: Bursa | D80: Mustafa YILDIZ | E80: Yazıcı | F80: HP | G80: Tarayıcı + Yazıcı + Fotokopi | H80: 1 | I80: 4019 | J80: 4019 | K80: Nakit
B81: 2020-12-16 | C81: Mersin | D81: Tunç ERGİN | E81: Kulaklık | F81: Xiomi | G81: Kulak Üstü Bluetoth | H81: 2 | I81: 9645 | J81: 19290 | K81: Nakit
B82: 2022-12-17 | C82: Ankara | D82: Barış KESKİN | E82: Yazıcı | F82: HP | G82: Tarayıcı + Yazıcı | H82: 1 | I82: 4675 | J82: 4675 | K82: Nakit
B83: 2019-11-08 | C83: İstanbul | D83: Hasan TUNÇ | E83: Yazıcı | F83: HP | G83: Tarayıcı + Yazıcı + Fotokopi | H83: 2 | I83: 4690 | J83: 9380 | K83: Nakit
B84: 2021-07-26 | C84: İzmir | D84: Kemal ARGAN | E84: Yazıcı | F84: Epson | G84: Tarayıcı + Yazıcı + Fotokopi | H84: 1 | I84: 6454 | J84: 6454 | K84: Nakit
B85: 2020-08-24 | C85: Ankara | D85: Emel YOLCU | E85: Tablet | F85: Lenovo | G85: 13.5' | H85: 1 | I85: 7500 | J85: 7500 | K85: Nakit
B86: 2019-01-14 | C86: İzmir | D86: Erol HÜSEYİN | E86: Bilgisayar | F86: HP | G86: Notebook | H86: 1 | I86: 36174 | J86: 36174 | K86: Kredi Kartı
B87: 2021-07-03 | C87: İzmir | D87: Erol HÜSEYİN | E87: Kulaklık | F87: Sennheiser | G87: Kulak İçi Bluetoth | H87: 3 | I87: 8379 | J87: 25137 | K87: Kredi Kartı
B88: 2024-04-20 | C88: İstanbul | D88: Emre DEMİR | E88: Yazıcı | F88: Epson | G88: Tarayıcı + Yazıcı + Fotokopi | H88: 2 | I88: 3464 | J88: 6928 | K88: Nakit
B89: 2021-07-12 | C89: İzmir | D89: Kemal ARGAN | E89: Bilgisayar | F89: MSI | G89: Notebook | H89: 1 | I89: 64613 | J89: 64613 | K89: Kredi Kartı
B90: 2022-02-10 | C90: Bursa | D90: Sabiha YALIN | E90: Kulaklık | F90: Marshall | G90: Kulak Üstü Bluetoth | H90: 1 | I90: 11141 | J90: 11141 | K90: Nakit
B91: 2022-12-08 | C91: Ankara | D91: Barış KESKİN | E91: Yazıcı | F91: Epson | G91: Renki | H91: 2 | I91: 3793 | J91: 7586 | K91: Nakit
B92: 2022-04-14 | C92: Bursa | D92: Sabiha YALIN | E92: Kulaklık | F92: Phillips | G92: Kulak Üstü | H92: 1 | I92: 11116 | J92: 11116 | K92: Nakit
B93: 2024-03-29 | C93: Antalya | D93: İlhan IŞIK | E93: Kulaklık | F93: Beats | G93: Kulak İçi | H93: 2 | I93: 4680 | J93: 9360 | K93: Nakit
B94: 2020-04-02 | C94: İstanbul | D94: Hasan TUNÇ | E94: Kulaklık | F94: Marshall | G94: Kulak Üstü Bluetoth | H94: 1 | I94: 11141 | J94: 11141 | K94: Nakit
B95: 2023-08-03 | C95: Mersin | D95: Efe MUTLU | E95: Bilgisayar | F95: Lenovo | G95: Notebook | H95: 1 | I95: 43494 | J95: 43494 | K95: Kredi Kartı
B96: 2021-04-25 | C96: İstanbul | D96: Emre DEMİR | E96: Tablet | F96: Samsung | G96: 14' | H96: 1 | I96: 8445 | J96: 8445 | K96: Nakit
B97: 2023-07-29 | C97: Bursa | D97: Mustafa YILDIZ | E97: Bilgisayar | F97: Asus | G97: Notebook | H97: 3 | I97: 30668 | J97: 92004 | K97: Havale / EFT
B98: 2022-04-20 | C98: İzmir | D98: Ergin ŞANLI | E98: Kulaklık | F98: Jabra | G98: Kulak İçi Bluetoth | H98: 2 | I98: 2480 | J98: 4960 | K98: Nakit
B99: 2020-01-07 | C99: İzmir | D99: Kemal ARGAN | E99: Bilgisayar | F99: Asus | G99: Game Notebook | H99: 1 | I99: 55740 | J99: 55740 | K99: Kredi Kartı
B100: 2024-07-26 | C100: Bursa | D100: Sabiha YALIN | E100: Kulaklık | F100: Beats | G100: Kulak Üstü Bluetoth | H100: 1 | I100: 11434 | J100: 11434 | K100: Nakit
B101: 2020-05-21 | C101: Ankara | D101: Barış KESKİN | E101: Bilgisayar | F101: MSI | G101: Notebook | H101: 2 | I101: 41557 | J101: 83114 | K101: Havale / EFT
B102: 2020-06-10 | C102: Mersin | D102: Tunç ERGİN | E102: Kulaklık | F102: Huawei | G102: kulak Üstü | H102: 1 | I102: 2495 | J102: 2495 | K102: Nakit
B103: 2023-09-28 | C103: İstanbul | D103: Hasan TUNÇ | E103: Bilgisayar | F103: Asus | G103: Game Notebook | H103: 2 | I103: 37097 | J103: 74194 | K103: Havale / EFT
B104: 2022-11-27 | C104: Bursa | D104: Mustafa YILDIZ | E104: Tablet | F104: Xiomi | G104: 14.1' | H104: 1 | I104: 6394 | J104: 6394 | K104: Nakit
B105: 2021-02-19 | C105: Ankara | D105: Barış KESKİN | E105: Kulaklık | F105: Sennheiser | G105: Kulak Üstü | H105: 1 | I105: 12215 | J105: 12215 | K105: Nakit
B106: 2024-03-23 | C106: Balıkesir | D106: Efe DEMİR | E106: Tablet | F106: Asus | G106: 14' | H106: 1 | I106: 6559 | J106: 6559 | K106: Nakit
B107: 2019-01-09 | C107: İstanbul | D107: Emre DEMİR | E107: Yazıcı | F107: HP | G107: Tarayıcı + Yazıcı | H107: 2 | I107: 3575 | J107: 7150 | K107: Nakit
B108: 2023-06-23 | C108: İstanbul | D108: Emre DEMİR | E108: Yazıcı | F108: Epson | G108: Tarayıcı + Yazıcı + Fotokopi | H108: 1 | I108: 3259 | J108: 3259 | K108: Nakit
B109: 2023-04-02 | C109: Balıkesir | D109: Efe DEMİR | E109: Bilgisayar | F109: MSI | G109: PC | H109: 2 | I109: 60783 | J109: 121566 | K109: Havale / EFT
B110: 2020-09-03 | C110: İstanbul | D110: Emre DEMİR | E110: Bilgisayar | F110: HP | G110: Game Notebook | H110: 1 | I110: 47735 | J110: 47735 | K110: Kredi Kartı
B111: 2022-12-05 | C111: Mersin | D111: Efe MUTLU | E111: Bilgisayar | F111: HP | G111: PC | H111: 1 | I111: 41811 | J111: 41811 | K111: Kredi Kartı
B112: 2024-01-30 | C112: İstanbul | D112: Emre DEMİR | E112: Bilgisayar | F112: Lenovo | G112: Workstation | H112: 4 | I112: 83156 | J112: 332624 | K112: Havale / EFT
B113: 2024-03-05 | C113: Balıkesir | D113: Efe DEMİR | E113: Bilgisayar | F113: Asus | G113: Game Notebook | H113: 1 | I113: 62742 | J113: 62742 | K113: Kredi Kartı
B114: 2022-08-20 | C114: İstanbul | D114: Emre DEMİR | E114: Bilgisayar | F114: MSI | G114: Notebook | H114: 3 | I114: 30165 | J114: 90495 | K114: Havale / EFT
B115: 2024-03-13 | C115: Bursa | D115: Mustafa YILDIZ | E115: Kulaklık | F115: Xiomi | G115: Kulak İçi Bluetoth | H115: 2 | I115: 3514 | J115: 7028 | K115: Nakit
B116: 2022-12-16 | C116: İzmir | D116: Ergin ŞANLI | E116: Kulaklık | F116: Marshall | G116: Kulak İçi | H116: 1 | I116: 5097 | J116: 5097 | K116: Nakit
B117: 2019-09-20 | C117: Ankara | D117: Barış KESKİN | E117: Kulaklık | F117: Sennheiser | G117: Kulak İçi Bluetoth | H117: 1 | I117: 11751 | J117: 11751 | K117: Nakit
B118: 2020-02-19 | C118: İzmir | D118: Erol HÜSEYİN | E118: Bilgisayar | F118: Asus | G118: Notebook | H118: 2 | I118: 38950 | J118: 77900 | K118: Havale / EFT
B119: 2021-10-13 | C119: Ankara | D119: Şule SEZGİN | E119: Bilgisayar | F119: Asus | G119: Notebook | H119: 1 | I119: 21516 | J119: 21516 | K119: Nakit
B120: 2022-04-10 | C120: İstanbul | D120: Hasan TUNÇ | E120: Tablet | F120: HP | G120: 13' | H120: 2 | I120: 5000 | J120: 10000 | K120: Nakit
B121: 2022-11-12 | C121: Mersin | D121: Efe MUTLU | E121: Kulaklık | F121: Jabra | G121: Kulak İçi Bluetoth | H121: 1 | I121: 5500 | J121: 5500 | K121: Nakit
B122: 2020-05-30 | C122: İzmir | D122: Ergin ŞANLI | E122: Kulaklık | F122: Xiomi | G122: Kulak İçi Bluetoth | H122: 1 | I122: 10154 | J122: 10154 | K122: Nakit
B123: 2024-04-27 | C123: İzmir | D123: Erol HÜSEYİN | E123: Tablet | F123: Huawei | G123: 13.5' | H123: 1 | I123: 4250 | J123: 4250 | K123: Nakit
B124: 2022-09-06 | C124: İzmir | D124: Kemal ARGAN | E124: Yazıcı | F124: HP | G124: Tarayıcı + Yazıcı | H124: 3 | I124: 6015 | J124: 18045 | K124: Nakit
B125: 2019-05-31 | C125: Bursa | D125: Sabiha YALIN | E125: Tablet | F125: Xiomi | G125: 14.1' | H125: 2 | I125: 5987 | J125: 11974 | K125: Nakit
B126: 2019-03-13 | C126: Bursa | D126: Mustafa YILDIZ | E126: Kulaklık | F126: Jabra | G126: Kulak İçi Bluetoth | H126: 1 | I126: 4550 | J126: 4550 | K126: Nakit
B127: 2020-03-31 | C127: Ankara | D127: Barış KESKİN | E127: Bilgisayar | F127: MSI | G127: Game PC | H127: 1 | I127: 40306 | J127: 40306 | K127: Kredi Kartı
B128: 2020-08-16 | C128: Balıkesir | D128: Efe DEMİR | E128: Bilgisayar | F128: Lenovo | G128: PC | H128: 2 | I128: 26579 | J128: 53158 | K128: Kredi Kartı
B129: 2022-10-24 | C129: Ankara | D129: Emel YOLCU | E129: Kulaklık | F129: Sennheiser | G129: Kulak İçi Bluetoth | H129: 1 | I129: 8530 | J129: 8530 | K129: Nakit
B130: 2022-02-24 | C130: İzmir | D130: Erol HÜSEYİN | E130: Bilgisayar | F130: Lenovo | G130: Notebook | H130: 2 | I130: 48387 | J130: 96774 | K130: Havale / EFT
B131: 2019-09-07 | C131: Bursa | D131: Mustafa YILDIZ | E131: Bilgisayar | F131: Asus | G131: Game Notebook | H131: 1 | I131: 35650 | J131: 35650 | K131: Kredi Kartı
B132: 2024-02-06 | C132: İzmir | D132: Kemal ARGAN | E132: Bilgisayar | F132: Asus | G132: PC | H132: 1 | I132: 56864 | J132: 56864 | K132: Kredi Kartı
B133: 2024-03-10 | C133: İzmir | D133: Kemal ARGAN | E133: Kulaklık | F133: Xiomi | G133: Kulak Üstü Bluetoth | H133: 1 | I133: 5469 | J133: 5469 | K133: Nakit
B134: 2021-01-21 | C134: Antalya | D134: İlhan IŞIK | E134: Tablet | F134: Asus | G134: 13' | H134: 3 | I134: 6559 | J134: =H134*I134 -> 19677 | K134: Nakit
B135: 2024-05-01 | C135: Balıkesir | D135: Efe DEMİR | E135: Kulaklık | F135: Huawei | G135: Kulak İçi | H135: 2 | I135: 6077 | J135: 12154 | K135: Nakit
B136: 2020-03-03 | C136: Ankara | D136: Barış KESKİN | E136: Bilgisayar | F136: MSI | G136: Notebook | H136: 1 | I136: 59990 | J136: 59990 | K136: Kredi Kartı
B137: 2020-09-25 | C137: Balıkesir | D137: Efe DEMİR | E137: Tablet | F137: Asus | G137: 14.1' | H137: 1 | I137: 8222 | J137: 8222 | K137: Nakit
B138: 2019-01-21 | C138: Antalya | D138: İlhan IŞIK | E138: Kulaklık | F138: Sennheiser | G138: Kulak Üstü | H138: 2 | I138: 9345 | J138: 18690 | K138: Nakit
B139: 2021-12-25 | C139: Bursa | D139: Sabiha YALIN | E139: Bilgisayar | F139: Lenovo | G139: Notebook | H139: 1 | I139: 63261 | J139: 63261 | K139: Kredi Kartı
B140: 2019-11-28 | C140: İstanbul | D140: Emre DEMİR | E140: Yazıcı | F140: HP | G140: Tarayıcı + Yazıcı + Fotokopi | H140: 2 | I140: 5489 | J140: 10978 | K140: Nakit
B141: 2020-06-13 | C141: İstanbul | D141: Emre DEMİR | E141: Bilgisayar | F141: Asus | G141: Notebook | H141: 1 | I141: 27022 | J141: 27022 | K141: Kredi Kartı
B142: 2020-08-12 | C142: İstanbul | D142: Emre DEMİR | E142: Kulaklık | F142: Xiomi | G142: Kulak Üstü Bluetoth | H142: 1 | I142: 3332 | J142: 3332 | K142: Nakit
B143: 2020-01-22 | C143: Antalya | D143: İlhan IŞIK | E143: Bilgisayar | F143: HP | G143: Game PC | H143: 1 | I143: 55295 | J143: 55295 | K143: Kredi Kartı
B144: 2024-02-04 | C144: Ankara | D144: Şule SEZGİN | E144: Bilgisayar | F144: HP | G144: Notebook | H144: 3 | I144: 42432 | J144: 127296 | K144: Havale / EFT
B145: 2022-09-01 | C145: İzmir | D145: Kemal ARGAN | E145: Kulaklık | F145: Marshall | G145: Kulak İçi | H145: 2 | I145: 12230 | J145: 24460 | K145: Nakit
B146: 2021-03-03 | C146: İstanbul | D146: Hasan TUNÇ | E146: Bilgisayar | F146: MSI | G146: Notebook | H146: 1 | I146: 25349 | J146: 25349 | K146: Kredi Kartı
B147: 2023-02-04 | C147: Ankara | D147: Barış KESKİN | E147: Bilgisayar | F147: HP | G147: Game PC | H147: 1 | I147: 27404 | J147: 27404 | K147: Kredi Kartı
B148: 2023-05-17 | C148: İzmir | D148: Kemal ARGAN | E148: Tablet | F148: Samsung | G148: 14' | H148: 2 | I148: 7619 | J148: 15238 | K148: Nakit
B149: 2021-01-13 | C149: Mersin | D149: Tunç ERGİN | E149: Bilgisayar | F149: Asus | G149: Game PC | H149: 1 | I149: 61524 | J149: 61524 | K149: Kredi Kartı
B150: 2024-06-18 | C150: Antalya | D150: İlhan IŞIK | E150: Bilgisayar | F150: HP | G150: Game Notebook | H150: 2 | I150: 48560 | J150: 97120 | K150: Havale / EFT
B151: 2023-10-06 | C151: Ankara | D151: Barış KESKİN | E151: Kulaklık | F151: Xiomi | G151: Kulak İçi Bluetoth | H151: 1 | I151: 11107 | J151: 11107 | K151: Nakit
B152: 2021-12-09 | C152: Ankara | D152: Emel YOLCU | E152: Tablet | F152: Xiomi | G152: 14.1' | H152: 1 | I152: 4821 | J152: 4821 | K152: Nakit
B153: 2019-12-13 | C153: İzmir | D153: Erol HÜSEYİN | E153: Bilgisayar | F153: Asus | G153: Game PC | H153: 1 | I153: 38029 | J153: 38029 | K153: Kredi Kartı
B154: 2023-03-30 | C154: İzmir | D154: Kemal ARGAN | E154: Kulaklık | F154: Beats | G154: Kulak İçi | H154: 1 | I154: 11649 | J154: 11649 | K154: Nakit
B155: 2021-10-24 | C155: İzmir | D155: Erol HÜSEYİN | E155: Bilgisayar | F155: HP | G155: Game PC | H155: 2 | I155: 26601 | J155: 53202 | K155: Kredi Kartı
B156: 2019-01-28 | C156: İstanbul | D156: Hasan TUNÇ | E156: Bilgisayar | F156: Lenovo | G156: Workstation | H156: 5 | I156: 84732 | J156: 423660 | K156: Havale / EFT
B157: 2020-11-11 | C157: İzmir | D157: Kemal ARGAN | E157: Bilgisayar | F157: HP | G157: Game Notebook | H157: 1 | I157: 36016 | J157: 36016 | K157: Kredi Kartı
B158: 2019-01-21 | C158: İzmir | D158: Ergin ŞANLI | E158: Bilgisayar | F158: Asus | G158: Notebook | H158: 1 | I158: 49027 | J158: 49027 | K158: Kredi Kartı
B159: 2020-11-10 | C159: Ankara | D159: Şule SEZGİN | E159: Kulaklık | F159: Sennheiser | G159: Kulak İçi Bluetoth | H159: 1 | I159: 10836 | J159: 10836 | K159: Nakit
B160: 2023-08-14 | C160: İstanbul | D160: Emre DEMİR | E160: Bilgisayar | F160: HP | G160: PC | H160: 3 | I160: 54801 | J160: 164403 | K160: Havale / EFT
B161: 2022-07-26 | C161: Mersin | D161: Tunç ERGİN | E161: Kulaklık | F161: Beats | G161: Kulak Üstü Bluetoth | H161: 2 | I161: 6500 | J161: 13000 | K161: Nakit
B162: 2021-03-13 | C162: İzmir | D162: Erol HÜSEYİN | E162: Bilgisayar | F162: HP | G162: Notebook | H162: 1 | I162: 21235 | J162: 21235 | K162: Nakit
B163: 2022-08-18 | C163: Mersin | D163: Efe MUTLU | E163: Tablet | F163: Huawei | G163: 13.5' | H163: 1 | I163: 5856 | J163: 5856 | K163: Nakit
B164: 2019-12-17 | C164: İzmir | D164: Kemal ARGAN | E164: Bilgisayar | F164: MSI | G164: PC | H164: 2 | I164: 20396 | J164: 40792 | K164: Kredi Kartı
B165: 2022-03-02 | C165: Ankara | D165: Barış KESKİN | E165: Bilgisayar | F165: MSI | G165: Notebook | H165: 1 | I165: 54526 | J165: 54526 | K165: Kredi Kartı
B166: 2021-10-28 | C166: İzmir | D166: Erol HÜSEYİN | E166: Bilgisayar | F166: MSI | G166: Game PC | H166: 2 | I166: 50024 | J166: 100048 | K166: Havale / EFT
B167: 2023-07-16 | C167: Ankara | D167: Şule SEZGİN | E167: Kulaklık | F167: Sennheiser | G167: Kulak İçi Bluetoth | H167: 1 | I167: 1475 | J167: 1475 | K167: Nakit
B168: 2023-09-16 | C168: Balıkesir | D168: Efe DEMİR | E168: Yazıcı | F168: HP | G168: Tarayıcı + Yazıcı + Fotokopi | H168: 1 | I168: 3494 | J168: 3494 | K168: Nakit
B169: 2021-09-04 | C169: İzmir | D169: Erol HÜSEYİN | E169: Bilgisayar | F169: Asus | G169: Notebook | H169: 1 | I169: 36322 | J169: 36322 | K169: Kredi Kartı
B170: 2021-04-06 | C170: Bursa | D170: Mustafa YILDIZ | E170: Bilgisayar | F170: Asus | G170: Notebook | H170: 1 | I170: 53001 | J170: 53001 | K170: Kredi Kartı
B171: 2021-08-21 | C171: Balıkesir | D171: Efe DEMİR | E171: Tablet | F171: HP | G171: 13' | H171: 2 | I171: 4255 | J171: 8510 | K171: Nakit
B172: 2019-10-14 | C172: İstanbul | D172: Hasan TUNÇ | E172: Bilgisayar | F172: HP | G172: Game Notebook | H172: 1 | I172: 65000 | J172: 65000 | K172: Kredi Kartı
B173: 2019-03-25 | C173: Mersin | D173: Tunç ERGİN | E173: Tablet | F173: Lenovo | G173: 14.1' | H173: 1 | I173: 4940 | J173: 4940 | K173: Nakit
B174: 2021-01-03 | C174: Antalya | D174: İlhan IŞIK | E174: Kulaklık | F174: Beats | G174: Kulak Üstü Bluetoth | H174: 1 | I174: 7856 | J174: 7856 | K174: Nakit
B175: 2021-03-30 | C175: Balıkesir | D175: Efe DEMİR | E175: Kulaklık | F175: Xiomi | G175: Kulak İçi Bluetoth | H175: 3 | I175: 7632 | J175: 22896 | K175: Nakit
B176: 2020-03-07 | C176: İzmir | D176: Kemal ARGAN | E176: Bilgisayar | F176: Asus | G176: PC | H176: 2 | I176: 41474 | J176: 82948 | K176: Havale / EFT
B177: 2023-07-21 | C177: Ankara | D177: Emel YOLCU | E177: Yazıcı | F177: Epson | G177: Renki | H177: 1 | I177: 4667 | J177: 4667 | K177: Nakit
B178: 2021-11-12 | C178: Mersin | D178: Efe MUTLU | E178: Bilgisayar | F178: MSI | G178: Game PC | H178: 1 | I178: 21375 | J178: 21375 | K178: Nakit
B179: 2022-11-11 | C179: Ankara | D179: Şule SEZGİN | E179: Kulaklık | F179: Sennheiser | G179: Kulak İçi Bluetoth | H179: 2 | I179: 2708 | J179: 5416 | K179: Nakit
B180: 2021-01-31 | C180: Mersin | D180: Tunç ERGİN | E180: Bilgisayar | F180: Asus | G180: Notebook | H180: 1 | I180: 43529 | J180: 43529 | K180: Kredi Kartı
B181: 2023-05-03 | C181: Balıkesir | D181: Efe DEMİR | E181: Bilgisayar | F181: Asus | G181: Game PC | H181: 2 | I181: 62927 | J181: 125854 | K181: Havale / EFT
B182: 2022-03-13 | C182: İzmir | D182: Erol HÜSEYİN | E182: Kulaklık | F182: Sennheiser | G182: Kulak Üstü | H182: 1 | I182: 2595 | J182: 2595 | K182: Nakit
B183: 2019-02-18 | C183: Mersin | D183: Tunç ERGİN | E183: Tablet | F183: Asus | G183: 13' | H183: 1 | I183: 3500 | J183: 3500 | K183: Nakit
B184: 2020-03-13 | C184: İstanbul | D184: Emre DEMİR | E184: Bilgisayar | F184: HP | G184: Game PC | H184: 1 | I184: 31856 | J184: 31856 | K184: Kredi Kartı
B185: 2023-08-24 | C185: Mersin | D185: Tunç ERGİN | E185: Kulaklık | F185: Xiomi | G185: Kulak İçi Bluetoth | H185: 1 | I185: 11380 | J185: 11380 | K185: Nakit
B186: 2021-04-01 | C186: İstanbul | D186: Emre DEMİR | E186: Bilgisayar | F186: HP | G186: Game PC | H186: 2 | I186: 62776 | J186: 125552 | K186: Havale / EFT
B187: 2021-11-29 | C187: İzmir | D187: Ergin ŞANLI | E187: Kulaklık | F187: Xiomi | G187: Kulak İçi Bluetoth | H187: 1 | I187: 4293 | J187: 4293 | K187: Nakit
B188: 2020-04-12 | C188: İzmir | D188: Erol HÜSEYİN | E188: Tablet | F188: Lenovo | G188: 12' | H188: 1 | I188: 7100 | J188: 7100 | K188: Nakit
B189: 2020-07-21 | C189: İstanbul | D189: Hasan TUNÇ | E189: Bilgisayar | F189: Lenovo | G189: Workstation | H189: 12 | I189: 91568 | J189: 1098816 | K189: Havale / EFT
B190: 2024-05-02 | C190: Bursa | D190: Mustafa YILDIZ | E190: Kulaklık | F190: Marshall | G190: Kulak İçi | H190: 3 | I190: 10847 | J190: 32541 | K190: Kredi Kartı
B191: 2022-02-03 | C191: Bursa | D191: Sabiha YALIN | E191: Bilgisayar | F191: MSI | G191: Game PC | H191: 2 | I191: 22437 | J191: 44874 | K191: Kredi Kartı
B192: 2021-07-02 | C192: İstanbul | D192: Emre DEMİR | E192: Kulaklık | F192: Xiomi | G192: Kulak Üstü | H192: 1 | I192: 8114 | J192: 8114 | K192: Nakit
B193: 2020-12-04 | C193: Ankara | D193: Emel YOLCU | E193: Bilgisayar | F193: Asus | G193: PC | H193: 1 | I193: 40391 | J193: 40391 | K193: Kredi Kartı
B194: 2024-07-03 | C194: Balıkesir | D194: Efe DEMİR | E194: Bilgisayar | F194: Asus | G194: PC | H194: 2 | I194: 34811 | J194: 69622 | K194: Kredi Kartı
B195: 2019-12-09 | C195: İzmir | D195: Erol HÜSEYİN | E195: Tablet | F195: Lenovo | G195: 12' | H195: 1 | I195: 6250 | J195: 6250 | K195: Nakit
B196: 2020-01-26 | C196: Antalya | D196: İlhan IŞIK | E196: Bilgisayar | F196: HP | G196: Game PC | H196: 2 | I196: 62552 | J196: 125104 | K196: Havale / EFT
B197: 2021-05-15 | C197: Ankara | D197: Şule SEZGİN | E197: Bilgisayar | F197: Lenovo | G197: PC | H197: 1 | I197: 32774 | J197: 32774 | K197: Kredi Kartı
B198: 2024-04-07 | C198: Ankara | D198: Barış KESKİN | E198: Yazıcı | F198: Epson | G198: Renki | H198: 1 | I198: 3749 | J198: =H198*I198 -> 3749 | K198: Nakit
B199: 2023-03-25 | C199: Mersin | D199: Tunç ERGİN | E199: Kulaklık | F199: Xiomi | G199: Kulak İçi Bluetoth | H199: 1 | I199: 3992 | J199: 3992 | K199: Nakit
B200: 2021-06-17 | C200: Mersin | D200: Tunç ERGİN | E200: Bilgisayar | F200: MSI | G200: Game PC | H200: 1 | I200: 44572 | J200: 44572 | K200: Kredi Kartı
B201: 2019-07-08 | C201: Ankara | D201: Barış KESKİN | E201: Bilgisayar | F201: HP | G201: Notebook | H201: 2 | I201: 33981 | J201: 67962 | K201: Kredi Kartı
B202: 2024-01-25 | C202: İstanbul | D202: Hasan TUNÇ | E202: Bilgisayar | F202: Asus | G202: Notebook | H202: 1 | I202: 30418 | J202: 30418 | K202: Kredi Kartı
... 52 more rows

Sheet Formüller
B2: Tüm Formüller
B5: Fonksiyon Seçiniz | C5: ABDDOLAR
C7: =VLOOKUP($C$5,$B$13:$E$500,2,0) -> USDOLLAR | D7: =VLOOKUP($C$5,$B$13:$E$500,3,0) -> USDOLLAR | E7: =VLOOKUP($C$5,$B$13:$E$500,4,0) -> USDOLLAR
C9: =IFERROR(C7,"") -> USDOLLAR | D9: =IFERROR(D7,"") -> USDOLLAR | E9: =IFERROR(E7,"") -> USDOLLAR
B13: Türkçe | C13: English | D13: French | E13: German
B14: ABDDOLAR | C14: USDOLLAR | D14: USDOLLAR | E14: USDOLLAR
B15: ACOS | C15: ACOS | D15: ACOS | E15: ARCCOS
B16: ACOSH | C16: ACOSH | D16: ACOSH | E16: ARCCOSHYP
B17: ACOT | C17: ACOT | D17: ACOT | E17: ARCCOT
B18: ACOTH | C18: ACOTH | D18: ACOTH | E18: ARCCOTHYP
B19: ADRES | C19: ADDRESS | D19: ADRESSE | E19: ADRESSE
B20: AİÇVERİMORANI | C20: XIRR | D20: TRI.PAIEMENTS | E20: XINTZINSFUSS
B21: ALANSAY | C21: AREAS | D21: ZONES | E21: BEREICHE
B22: ALTTOPLAM | C22: SUBTOTAL | D22: SOUS.TOTAL | E22: TEILERGEBNIS
B23: AMORDEGRC | C23: AMORDEGRC | D23: AMORDEGRC | E23: AMORDEGRK
B24: AMORLINC | C24: AMORLINC | D24: AMORLINC | E24: AMORLINEARK
B25: ANA_PARA_ÖDEMESİ | C25: PPMT | D25: PRINCPER | E25: KAPZ
B26: ANBD | C26: XNPV | D26: VAN.PAIEMENTS | E26: XKAPITALWERT
B27: ARA | C27: LOOKUP | D27: RECHERCHE | E27: VERWEIS
B28: ARAB | C28: SEARCHB | D28: CHERCHERB | E28: SUCHENB
B29: ARALIKBİRLEŞTİR | C29: CONCAT | D29: CONCAT | E29: TEXTKETTE
B30: ARAP | C30: ARABIC | D30: CHIFFRE.ARABE | E30: ARABISCH
B31: ASC | C31: ASC | D31: ASC | E31: ASC
B32: ASİN | C32: ASIN | D32: ASIN | E32: ARCSIN
B33: ASİNH | C33: ASINH | D33: ASINH | E33: ARCSINHYP
B34: AŞAĞIYUVARLA | C34: ROUNDDOWN | D34: ARRONDI.INF | E34: ABRUNDEN
B35: ATAN | C35: ATAN | D35: ATAN | E35: ARCTAN
B36: ATAN2 | C36: ATAN2 | D36: ATAN2 | E36: ARCTAN2
B37: ATANH | C37: ATANH | D37: ATANH | E37: ARCTANHYP
B38: AY | C38: MONTH | D38: MOIS | E38: MONAT
B39: AZALANBAKİYE | C39: DB | D39: DB | E39: GDA2
B40: BAĞ_DEĞ_DOLU_SAY | C40: COUNTA | D40: NBVAL | E40: ANZAHL2
B41: BAĞ_DEĞ_SAY | C41: COUNT | D41: NB | E41: ANZAHL
B42: BAHTAŞAĞIYUVARLA | C42: ROUNDBAHTDOWN | D42: ROUNDBAHTDOWN | E42: BAHTABRUNDEN
B43: BAHTMETİN | C43: BAHTTEXT | D43: BAHTTEXT | E43: BAHTTEXT
B44: BAHTYUKARIYUVARLA | C44: ROUNDBAHTUP | D44: ROUNDBAHTUP | E44: BAHTAUFRUNDEN
B45: BASIKLIK | C45: KURT | D45: KURTOSIS | E45: KURT
B46: BD | C46: PV | D46: VA | E46: BW
B47: BESINIR | C47: GESTEP | D47: SUP.SEUIL | E47: GGANZZAHL
B48: BESSELI | C48: BESSELI | D48: BESSELI | E48: BESSELI
B49: BESSELJ | C49: BESSELJ | D49: BESSELJ | E49: BESSELJ
B50: BESSELK | C50: BESSELK | D50: BESSELK | E50: BESSELK
B51: BESSELY | C51: BESSELY | D51: BESSELY | E51: BESSELY
B52: BETA.DAĞ | C52: BETA.DIST | D52: LOI.BETA.N | E52: BETA.VERT
B53: BETA.TERS | C53: BETA.INV | D53: BETA.INVERSE.N | E53: BETA.INV
B54: BETADAĞ | C54: BETADIST | D54: LOI.BETA | E54: BETAVERT
B55: BETATERS | C55: BETAINV | D55: BETA.INVERSE | E55: BETAINV
B56: BIN2DEC | C56: BIN2DEC | D56: BINDEC | E56: BININDEZ
B57: BIN2HEX | C57: BIN2HEX | D57: BINHEX | E57: BININHEX
B58: BIN2OCT | C58: BIN2OCT | D58: BINOCT | E58: BININOKT
B59: BİLGİ | C59: INFO | D59: INFORMATIONS | E59: INFO
B60: BİNOM.DAĞ | C60: BINOM.DIST | D60: LOI.BINOMIALE.N | E60: BINOM.VERT
B61: BİNOM.DAĞ.ARALIK | C61: BINOM.DIST.RANGE | D61: LOI.BINOMIALE.SERIE | E61: BINOM.VERT.BEREICH
B62: BİNOM.TERS | C62: BINOM.INV | D62: LOI.BINOMIALE.INVERSE | E62: BINOM.INV
B63: BİNOMDAĞ | C63: BINOMDIST | D63: LOI.BINOMIALE | E63: BINOMVERT
B64: BİRİMMATRİS | C64: MUNIT | D64: MATRICE.UNITAIRE | E64: MEINHEIT
B65: BİRLEŞTİR | C65: CONCATENATE | D65: CONCATENER | E65: VERKETTEN
B66: BİTÖZELVEYA | C66: BITXOR | D66: BITOUEXCLUSIF | E66: BITXODER
B67: BİTSAĞAKAYDIR | C67: BITRSHIFT | D67: BITDECALD | E67: BITRVERSCHIEB
B68: BİTSOLAKAYDIR | C68: BITLSHIFT | D68: BITDECALG | E68: BITLVERSCHIEB
B69: BİTVE | C69: BITAND | D69: BITET | E69: BITUND
B70: BİTVEYA | C70: BITOR | D70: BITOU | E70: BITODER
B71: BOŞLUKSAY | C71: COUNTBLANK | D71: NB.VIDE | E71: ANZAHLLEEREZELLEN
B72: BÖLÜM | C72: QUOTIENT | D72: QUOTIENT | E72: QUOTIENT
B73: BUGÜN | C73: TODAY | D73: AUJOURDHUI | E73: HEUTE
B74: BUL | C74: FIND | D74: TROUVE | E74: FINDEN
B75: BULB | C75: FINDB | D75: TROUVERB | E75: FINDENB
B76: BÜYÜK | C76: LARGE | D76: GRANDE.VALEUR | E76: KGRÖSSTE
B77: BÜYÜKHARF | C77: UPPER | D77: MAJUSCULE | E77: GROSS
B78: BÜYÜME | C78: GROWTH | D78: CROISSANCE | E78: VARIATION
B79: COS | C79: COS | D79: COS | E79: COS
B80: COSH | C80: COSH | D80: COSH | E80: COSHYP
B81: COT | C81: COT | D81: COT | E81: COT
B82: COTH | C82: COTH | D82: COTH | E82: COTHYP
B83: CSC | C83: CSC | D83: CSC | E83: COSEC
B84: CSCH | C84: CSCH | D84: CSCH | E84: COSECHYP
B85: ÇARPIKLIK | C85: SKEW | D85: COEFFICIENT.ASYMETRIE | E85: SCHIEFE
B86: ÇARPIKLIK.P | C86: SKEW.P | D86: COEFFICIENT.ASYMETRIE.P | E86: SCHIEFE.P
B87: ÇARPIM | C87: PRODUCT | D87: PRODUIT | E87: PRODUKT
B88: ÇARPINIM | C88: FACT | D88: FACT | E88: FAKULTÄT
B89: ÇEVİR | C89: CONVERT | D89: CONVERT | E89: UMWANDELN
B90: ÇİFT | C90: EVEN | D90: PAIR | E90: GERADE
B91: ÇİFTAZALANBAKİYE | C91: DDB | D91: DDB | E91: GDA
B92: ÇİFTFAKTÖR | C92: FACTDOUBLE | D92: FACTDOUBLE | E92: ZWEIFAKULTÄT
B93: ÇİFTMİ | C93: ISEVEN | D93: EST.PAIR | E93: ISTGERADE
B94: ÇOKEĞER | C94: IFS | D94: SI.CONDITIONS | E94: WENNS
B95: ÇOKEĞERMAK | C95: MAXIFS | D95: MAX.SI | E95: MAXWENNS
B96: ÇOKEĞERMİN | C96: MINIFS | D96: MIN.SI | E96: MINWENNS
B97: ÇOKEĞERORTALAMA | C97: AVERAGEIFS | D97: MOYENNE.SI.ENS | E97: MITTELWERTWENNS
B98: ÇOKEĞERSAY | C98: COUNTIFS | D98: NB.SI.ENS | E98: ZÄHLENWENNS
B99: ÇOKETOPLA | C99: SUMIFS | D99: SOMME.SI.ENS | E99: SUMMEWENNS
B100: ÇOKTERİMLİ | C100: MULTINOMIAL | D100: MULTINOMIALE | E100: POLYNOMIAL
B101: D_İÇ_VERİM_ORANI | C101: MIRR | D101: TRIM | E101: QIKV
B102: DA | C102: SLN | D102: AMORLIN | E102: LIA
B103: DAB | C103: VDB | D103: VDB | E103: VDB
B104: DAKİKA | C104: MINUTE | D104: MINUTE | E104: MINUTE
B105: DAMGA | C105: CHAR | D105: CAR | E105: ZEICHEN
B106: DBCS | C106: DBCS | D106: DBCS | E106: DBCS
B107: DÇARP | C107: MMULT | D107: PRODUITMAT | E107: MMULT
B108: DEC2BIN | C108: DEC2BIN | D108: DECBIN | E108: DEZINBIN
B109: DEC2HEX | C109: DEC2HEX | D109: DECHEX | E109: DEZINHEX
B110: DEC2OCT | C110: DEC2OCT | D110: DECOCT | E110: DEZINOKT
B111: DEĞER | C111: PRICE | D111: PRIX.TITRE | E111: KURS
B112: DEĞERİND | C112: PRICEDISC | D112: VALEUR.ENCAISSEMENT | E112: KURSDISAGIO
B113: DEĞERVADE | C113: PRICEMAT | D113: PRIX.TITRE.ECHEANCE | E113: KURSFÄLLIG
B114: DEĞİL | C114: NOT | D114: NON | E114: NICHT
B115: DEĞİŞTİR | C115: REPLACE | D115: REMPLACER | E115: ERSETZEN
B116: DEĞİŞTİRB | C116: REPLACEB | D116: REMPLACERB | E116: ERSETZENB
B117: DELTA | C117: DELTA | D117: DELTA | E117: DELTA
B118: DERECE | C118: DEGREES | D118: DEGRES | E118: GRAD
B119: DERECELİKÜPÜYESİ | C119: CUBERANKEDMEMBER | D119: RANGMEMBRECUBE | E119: CUBERANGELEMENT
B120: DETERMİNANT | C120: MDETERM | D120: DETERMAT | E120: MDET
B121: DEVRESEL_ÖDEME | C121: PMT | D121: VPM | E121: RMZ
B122: DEVRİK_DÖNÜŞÜM | C122: TRANSPOSE | D122: TRANSPOSE | E122: MTRANS
B123: DİZEY_TERS | C123: MINVERSE | D123: INVERSEMAT | E123: MINV
B124: DOLAYLI | C124: INDIRECT | D124: INDIRECT | E124: INDIREKT
B125: DOT | C125: LINEST | D125: DROITEREG | E125: RGP
B126: DÖRTTEBİRLİK | C126: QUARTILE | D126: QUARTILE | E126: QUARTILE
B127: DÖRTTEBİRLİK.DHL | C127: QUARTILE.INC | D127: QUARTILE.INCLURE | E127: QUARTILE.INKL
B128: DÖRTTEBİRLİK.HRC | C128: QUARTILE.EXC | D128: QUARTILE.EXCLURE | E128: QUARTILE.EXKL
B129: DÜŞEYARA | C129: VLOOKUP | D129: RECHERCHEV | E129: SVERWEIS
B130: EBOŞSA | C130: ISBLANK | D130: ESTVIDE | E130: ISTLEER
B131: ECMA.TAVAN | C131: ECMA.CEILING | D131: ECMA.PLAFOND | E131: ECMA.OBERGRENZE
B132: EFORMÜLSE | C132: ISFORMULA | D132: ESTFORMULE | E132: ISTFORMEL
B133: EĞER | C133: IF | D133: SI | E133: WENN
B134: EĞERHATA | C134: IFERROR | D134: SIERREUR | E134: WENNFEHLER
B135: EĞERORTALAMA | C135: AVERAGEIF | D135: MOYENNE.SI | E135: MITTELWERTWENN
B136: EĞERSAY | C136: COUNTIF | D136: NB.SI | E136: ZÄHLENWENN
B137: EĞERYOKSA | C137: IFNA | D137: SI.NON.DISP | E137: WENNNV
B138: EĞİLİM | C138: TREND | D138: TENDANCE | E138: TREND
B139: EĞİM | C139: SLOPE | D139: PENTE | E139: STEIGUNG
B140: EHATA | C140: ISERR | D140: ESTERR | E140: ISTFEHL
B141: EHATALIYSA | C141: ISERROR | D141: ESTERREUR | E141: ISTFEHLER
B142: ELEMAN | C142: CHOOSE | D142: CHOISIR | E142: WAHL
B143: EMANTIKSALSA | C143: ISLOGICAL | D143: ESTLOGIQUE | E143: ISTLOG
B144: EMETİNDEĞİLSE | C144: ISNONTEXT | D144: ESTNONTEXTE | E144: ISTKTEXT
B145: EMETİNSE | C145: ISTEXT | D145: ESTTEXTE | E145: ISTTEXT
B146: ENÇOK_OLAN | C146: MODE | D146: MODE | E146: MODALWERT
B147: ENÇOK_OLAN.ÇOK | C147: MODE.MULT | D147: MODE.MULTIPLE | E147: MODUS.VIELF
B148: ENÇOK_OLAN.TEK | C148: MODE.SNGL | D148: MODE.SIMPLE | E148: MODUS.EINF
B149: EREFSE | C149: ISREF | D149: ESTREF | E149: ISTBEZUG
B150: ESAYIYSA | C150: ISNUMBER | D150: ESTNUM | E150: ISTZAHL
B151: ETARİHLİ | C151: DATEDIF | D151: DATEDIF | E151: DATEDIF
B152: ETKİN | C152: EFFECT | D152: TAUX.EFFECTIF | E152: EFFEKTIV
B153: ETOPLA | C153: SUMIF | D153: SOMME.SI | E153: SUMMEWENN
B154: EYOKSA | C154: ISNA | D154: ESTNA | E154: ISTNV
B155: F.DAĞ | C155: F.DIST | D155: LOI.F.N | E155: F.VERT
B156: F.DAĞ.SAĞK | C156: F.DIST.RT | D156: LOI.F.DROITE | E156: F.VERT.RE
B157: F.TERS | C157: F.INV | D157: INVERSE.LOI.F.N | E157: F.INV
B158: F.TERS.SAĞK | C158: F.INV.RT | D158: INVERSE.LOI.F.DROITE | E158: F.INV.RE
B159: F.TEST | C159: F.TEST | D159: F.TEST | E159: F.TEST
B160: FAİZ_ORANI | C160: RATE | D160: TAUX | E160: ZINS
B161: FAİZORANI | C161: INTRATE | D161: TAUX.INTERET | E161: ZINSSATZ
B162: FAİZTUTARI | C162: IPMT | D162: INTPER | E162: ZINSZ
B163: FDAĞ | C163: FDIST | D163: LOI.F | E163: FVERT
B164: FISHER | C164: FISHER | D164: FISHER | E164: FISHER
B165: FISHERTERS | C165: FISHERINV | D165: FISHER.INVERSE | E165: FISHERINV
B166: FORMÜLMETNİ | C166: FORMULATEXT | D166: FORMULETEXTE | E166: FORMELTEXT
B167: FTERS | C167: FINV | D167: INVERSE.LOI.F | E167: FINV
B168: FTEST | C168: FTEST | D168: TEST.F | E168: FTEST
B169: GAMA | C169: GAMMA | D169: GAMMA | E169: GAMMA
B170: GAMA.DAĞ | C170: GAMMA.DIST | D170: LOI.GAMMA.N | E170: GAMMA.VERT
B171: GAMA.TERS | C171: GAMMA.INV | D171: LOI.GAMMA.INVERSE.N | E171: GAMMA.INV
B172: GAMADAĞ | C172: GAMMADIST | D172: LOI.GAMMA | E172: GAMMAVERT
B173: GAMALN | C173: GAMMALN | D173: LNGAMMA | E173: GAMMALN
B174: GAMALN.DUYARLI | C174: GAMMALN.PRECISE | D174: LNGAMMA.PRECIS | E174: GAMMALN.GENAU
B175: GAMATERS | C175: GAMMAINV | D175: LOI.GAMMA.INVERSE | E175: GAMMAINV
B176: GAUSS | C176: GAUSS | D176: GAUSS | E176: GAUSS
B177: GD | C177: FV | D177: VC | E177: ZW
B178: GDPROGRAM | C178: FVSCHEDULE | D178: VC.PAIEMENTS | E178: ZW2
B179: GEOORT | C179: GEOMEAN | D179: MOYENNE.GEOMETRIQUE | E179: GEOMITTEL
B180: GERÇEKFAİZ | C180: ACCRINT | D180: INTERET.ACC | E180: AUFGELZINS
B181: GERÇEKFAİZV | C181: ACCRINTM | D181: INTERET.ACC.MAT | E181: AUFGELZINSF
B182: GERÇEKLEŞENYATIRIMGETİRİSİ | C182: RRI | D182: TAUX.INT.EQUIV | E182: ZSATZINVEST
B183: GETİRİ | C183: RECEIVED | D183: VALEUR.NOMINALE | E183: AUSZAHLUNG
B184: GÜN | C184: DAY | D184: JOUR | E184: TAG
B185: GÜN360 | C185: DAYS360 | D185: JOURS360 | E185: TAGE360
B186: GÜNSAY | C186: DAYS | D186: JOURS | E186: TAGE
B187: GÜVENİLİRLİK.NORM | C187: CONFIDENCE.NORM | D187: INTERVALLE.CONFIANCE.NORMAL | E187: KONFIDENZ.NORM
B188: GÜVENİLİRLİK.T | C188: CONFIDENCE.T | D188: INTERVALLE.CONFIANCE.STUDENT | E188: KONFIDENZ.T
B189: GÜVENİRLİK | C189: CONFIDENCE | D189: INTERVALLE.CONFIANCE | E189: KONFIDENZ
B190: GZV | C190: RTD | D190: RTD | E190: RTD
B191: HAFTANINGÜNÜ | C191: WEEKDAY | D191: JOURSEM | E191: WOCHENTAG
B192: HAFTASAY | C192: WEEKNUM | D192: NO.SEMAINE | E192: KALENDERWOCHE
B193: HARORT | C193: HARMEAN | D193: MOYENNE.HARMONIQUE | E193: HARMITTEL
B194: HATA.TİPİ | C194: ERROR.TYPE | D194: TYPE.ERREUR | E194: FEHLER.TYP
B195: HATAİŞLEV | C195: ERF | D195: ERF | E195: GAUSSFEHLER
B196: HATAİŞLEV.DUYARLI | C196: ERF.PRECISE | D196: ERF.PRECIS | E196: GAUSSF.GENAU
B197: HEX2BIN | C197: HEX2BIN | D197: HEXBIN | E197: HEXINBIN
B198: HEX2DEC | C198: HEX2DEC | D198: HEXDEC | E198: HEXINDEZ
B199: HEX2OCT | C199: HEX2OCT | D199: HEXOCT | E199: HEXINOKT
B200: HİPERGEOM.DAĞ | C200: HYPGEOM.DIST | D200: LOI.HYPERGEOMETRIQUE.N | E200: HYPGEOM.VERT
B201: HİPERGEOMDAĞ | C201: HYPGEOMDIST | D201: LOI.HYPERGEOMETRIQUE | E201: HYPGEOMVERT
B202: HTAHDEĞER | C202: TBILLPRICE | D202: PRIX.BON.TRESOR | E202: TBILLKURS
B203: HTAHEŞ | C203: TBILLEQ | D203: TAUX.ESCOMPTE.R | E203: TBILLÄQUIV
B204: HTAHÖDEME | C204: TBILLYIELD | D204: RENDEMENT.BON.TRESOR | E204: TBILLRENDITE
B205: HÜCRE | C205: CELL | D205: CELLULE | E205: ZELLE
B206: ISO.TAVAN | C206: ISO.CEILING | D206: ISO.PLAFOND | E206: ISO.OBERGRENZE
B207: ISOHAFTASAY | C207: ISOWEEKNUM | D207: NO.SEMAINE.ISO | E207: ISOKALENDERWOCHE
B208: ISPMT | C208: ISPMT | D208: ISPMT | E208: ISPMT
... 303 more rows

Sheet Sayfa2
A3: Varsayımlar:
A5: 1. Ok tuşuna basma hızı: İnsan elinin bir tuşa basma hızı, genellikle saniyede 3-5 kez arasında değişir. Hızlı bir kullanıcı için saniyede 5 basış (0.2 saniyede bir basış) varsayalım.
A6: 2. Excel davranışı: Aşağı ok tuşuna her basıldığında bir satır aşağı inilir ve Excel'in herhangi bir gecikme yaratmadığını varsayalım (modern bilgisayarlarda bu genellikle sorun olmaz).
A7: 3. Kesintisiz basma: Kullanıcının durmaksızın aşağı ok tuşuna bastığını ve yorulmadığını farz edelim. 😅
A9: Hesaplama:
A11: Excel'de A1'den A1048576'ya kadar 1.048.576 satır vardır.
A12: Saniyede 5 basış (0.2 saniye/basış) varsayarsak:
A13: Toplam süre = 1.048.576 satır × 0.2 saniye/satır = 209.715,2 saniye.
A14: Bu süreyi daha anlaşılır birimlere çevirelim:
A15: 209.715,2 saniye ÷ 60 = 3.495,25 dakika.
A16: 3.495,25 dakika ÷ 60 ≈ 58,25 saat.
A17: 58,25 saat ÷ 24 ≈ 2,43 gün.
